Workbook

Sheet Table of Contents
E1: SHIFT CNTL N to Show Comments | F1: SHIFT CNTL Q to Hide Comments
C3: Sheet Tab | D3: Description | E3: Author
B4: 1 | C4: Table of Contents
B5: 2 | C5: Summary Output
B6: 3 | C6: Valuation and Refinancing
B7: 4 | C7: Master Scenario
B8: 5 | C8: Operating Assumptions
B9: 6 | C9: Tax Assumptions
B10: 7 | C10: Finance and Value Assumptions
B11: 8 | C11: EBITDA and Capital Expenditures
B12: 9 | C12: Project Financing
B13: 10 | C13: Tornado Chart
B14: 11 | C14: Annual Analysis
B15: 12 | C15: Annual Analysis Chart
B16: 13 | C16: Audit Sheet
B18: File Name: | D18: C:\Users\Monika\Documents\Courses\Chapter 1. Models and Analysis\2. Project Finance Models and Exercises\Featured Project Finance Models\IPP Model1.xlsm
B20: Colour Codes
B22: Last Save Date | D22: 2014-11-05T05:29:30
B23: Last Save By

Sheet Summary Output
F1: Model Test | H1: =IF(P1=1,'Audit Sheet'!E15) -> Model OK | P1: 1
L2: Returns | N2: Nominal | O2: Real | P2: Risk Premium
G3: Scenario | M3: Pre-tax Project Cash Flow | N3: ='Project Financing'!E29 -> 0.05528523028 | O3: ='Project Financing'!E36 -> 0.04653381407 | P3: ='Project Financing'!H38 -> 347570.1915
G4: Capacity Charge | I4: ='Operating Assumptions'!I59 -> 21 | M4: Senior Debt Pre-tax | N4: ='Project Financing'!E441 -> 0.04142368734 | O4: ='Project Financing'!E442 -> 0.03111950457
I5: Value | J5: Custom | M5: Subdebt Pre-tax | R5: LCOE R | S5: ='EBITDA and Capital Expenditures'!J174/3.85 -> 86.934344
G6: Construction Period | I6: ='Master Scenario'!E48 -> 40 | M6: After tax Project IRR | N6: ='Project Financing'!E76 -> 0.04599615037 | O6: ='Project Financing'!E79 -> 0.03564698398 | R6: Real LCOE | S6: ='EBITDA and Capital Expenditures'!J177/3.85 -> 74.24077177
G7: Operating Period | I7: ='Master Scenario'!$F$48 -> 25 | M7: Senior Debt After tax | N7: ='Project Financing'!E445 -> FALSE | O7: ='Project Financing'!E446 -> FALSE
G8: Construction Cost | I8: ='Master Scenario'!G46 -> 3000000 | M8: Subdebt After tax
G9: Actual Heat Rate | I9: ='Master Scenario'!I48 -> 6000 | M9: Equity | N9: ='Project Financing'!E412 -> 0.08668271005 | O9: ='Project Financing'!E413 -> 0.07593231499
G10: Availabilitiy | I10: ='Master Scenario'!$L$48 -> 0.85 | M10: Target IRR | N10: 0.1 | U10: DifferenceROE | V10: =N9-N10 -> -0.01331728995
G11: Inflation Scenario | H11: =INDEX('Operating Assumptions'!D78:D80,'Summary Output'!I11) -> Low Case Inflation | I11: ='Operating Assumptions'!F77 -> 2 | L11: Coverage | N11: MIN | O11: Average
G12: Heat Rate Degradation | I12: ='Master Scenario'!J48 -> 0.002 | M12: Annual Debt Service Cover Ratio | N12: ='Project Financing'!F418 -> 1.2 | O12: ='Project Financing'!H418 -> 1.2
G13: Actual Fixed O&M | I13: ='Master Scenario'!N48 -> 52 | M13: Project Life Cover Ratio | N13: ='Project Financing'!E428 -> 1.308261135
G14: Actual Variable O&M | I14: ='Master Scenario'!O48 -> 10 | M14: Loan life Cover Ratio | N14: ='Project Financing'!E424 -> 1.2
G16: Structuring | L16: Total Uses of Funds | N16: Amount | O16: Percent | P16: RM/kW
H17: Target DSCR | I17: ='Finance and Value Assumptions'!$F$4 -> 1.2 | M17: Total CapEx | N17: ='Project Financing'!G123 -> 3090000 | O17: =N17/$N$24 -> 0.8302163562 | P17: =N17/$N$34/1000 -> 3090
H18: Gearing Ratio | I18: ='Finance and Value Assumptions'!$F$5 -> 0.85 | M18: Total VAT | N18: ='Project Financing'!G124-'Project Financing'!G125 -> 0 | O18: 0 | P18: 0
H19: Size from Gearing Ratio | I19: ='Finance and Value Assumptions'!F6 -> FALSE | M19: Development Fees | N19: ='Project Financing'!G126 -> 400000 | O19: 0.107471373 | P19: 400
H20: Debt Tenor | I20: ='Finance and Value Assumptions'!$F$14 -> 21 | M20: Interest During Construction | N20: =SUM('Project Financing'!G128:G129)+'Project Financing'!G131 -> 148450.4889 | O20: =N20/$N$24 -> 0.03988544465 | P20: 148.4504889
H21: DSRA Months | I21: ='Finance and Value Assumptions'!F33 -> 0 | M21: Total Fees (on undrawn Debt) | N21: ='Project Financing'!G130 -> 83470.88381 | O21: 0.02242682621 | P21: 83.47088381
H22: Repayment | M22: Debt Service Reserve A/C | N22: ='Project Financing'!G132 -> 0 | O22: 0 | P22: 0
M23: Subtotal Cost related to Debt | N23: ='Project Financing'!G133 -> 231921.3727 | O23: 0.06231227086 | P23: 231.9213727
G24: Other Structuring Features | M24: Total Project Cost | N24: ='Project Financing'!G134 -> 3721921.373 | O24: 1 | P24: 3721.921373
H25: Cash Sweep Percent | I25: ='Finance and Value Assumptions'!F37 -> 0
H26: Cash Trap Covenant | I26: ='Finance and Value Assumptions'!F36 -> 1.15 | L26: Total Sources of Funds
H27: Development Fee | I27: ='Finance and Value Assumptions'!$F$55 -> 400000 | M27: VAT Facility | N27: ='Project Financing'!G137 -> 0 | O27: =N27/$N$31 -> 0
H28: Funding Method | M28: Senior Debt | N28: ='Project Financing'!G138 -> 2930240.782 | O28: =N28/$N$31 -> 0.7872925
H29: Capitalize Int and Fees | M29: Sub-Debt (assumed to be Equity) | N29: ='Project Financing'!G139 -> 0 | O29: =N29/$N$31 -> 0
M30: Equity | N30: ='Project Financing'!G140 -> 791680.5905 | O30: =N30/$N$31 -> 0.2127075
M31: Total | N31: ='Project Financing'!G141 -> 3721921.373 | O31: =N31/$N$31 -> 1
L34: Capacity | N34: ='Operating Assumptions'!F31/1000 -> 1
B53: Instructions
B55: Only cells in yellow should be manually changed
B56: Before calculating the return on the project, the debt needs to be sized.
B57: Debt Sizing Procedure
B58: Debt sizing inputs; P90 case =3, Low Sem =1, Price yrs 1-15 =1, Price post yr 15 =2, Sculpted case =1.
B59: Change Equity % in funding box until the balance at the end of the repayment period is zero.
B60: Click the Freeze Repayment Profile macro to freeze the debt repayment profile in the debt sheet
B61: Return calculation Procedure
B62: Return calc inputs; P50 case =1, Central Sem =2, Price yrs 1-15 =1, Price post yr 15 =2, Sculpted case =2.

Sheet Valuation and Refinancing
E1: Model Test | H1: ='Summary Output'!H1 -> Model OK
G3: Re-Financing Analysis
B4: No-Project Sale | H4: Re-Financing Turned On
C5: Pre-Tax IRR | D5: ='Summary Output'!N3 -> 0.05528523028 | H5: Date of Re-financing | I5: ='Finance and Value Assumptions'!$F$91 -> 2019-06-01
C6: Post-Tax IRR | D6: ='Summary Output'!N6 -> 0.04599615037 | H6: DSCR to Size Re-financing | I6: ='Finance and Value Assumptions'!$F$92 -> 1.15
C7: Equity IRR | D7: ='Summary Output'!N9 -> 0.08668271005 | H7: Amount of Re-financing | I7: ='Project Financing'!F237 -> 0
H8: Tail of Re-financing | I8: ='Finance and Value Assumptions'!$F$93 -> 3
B9: With Sale | H9: Tenor of Re-financing | I9: ='Finance and Value Assumptions'!F97 -> 23
C10: Sale Date | D10: ='Finance and Value Assumptions'!F87 -> 2023-06-01 | H10: Re-financing Interest Rate | I10: ='Finance and Value Assumptions'!F94 -> 0.041
C11: Post-Tax IRR | D11: ='Project Financing'!E462 -> 0.03139373958
C12: Equity IRR | D12: ='Project Financing'!E456 -> 0.09971209168 | G12: Sources and Uses
H13: New Debt | I13: =SUM('Project Financing'!K237:DU237) -> 0
B14: Discount Rate Evolution | D14: Equity | E14: Project
C15: Pre-construction | D15: ='Finance and Value Assumptions'!G79 -> 0.15 | E15: ='Finance and Value Assumptions'!H79 -> 0.12 | H15: Retirement of Existing Debt | I15: =SUM('Project Financing'!K240:DU240) -> 0
C16: Post-Construction | D16: ='Finance and Value Assumptions'!G80 -> 0.11 | E16: ='Finance and Value Assumptions'!H80 -> 0.09 | H16: Fees on New Debt | I16: =SUM('Project Financing'!K241:DU241) -> 0
C17: Initial Operations (Yrs 1 -3) | D17: ='Finance and Value Assumptions'!G81 -> 0.1 | E17: ='Finance and Value Assumptions'!H81 -> 0.08 | H17: Breakage Fee | I17: =SUM('Project Financing'!K242:DU242) -> 0
C18: Initial Operations Mature | D18: ='Finance and Value Assumptions'!G82 -> 0.09 | E18: ='Finance and Value Assumptions'!H82 -> 0.07 | H18: Super Dividends | I18: =SUM('Project Financing'!K243:DU243) -> 0
I21: Sub Debt Paramters
I22: % of Proj Cost | J22: ='Finance and Value Assumptions'!F43 -> 0
I23: Interest | J23: ='Finance and Value Assumptions'!F50 -> 0.07
I24: Yrs b/f Repay | J24: ='Finance and Value Assumptions'!$F$45 -> 19
I25: Yrs of Repay | J25: ='Finance and Value Assumptions'!$F$47 -> 7

Sheet Master Scenario
D1: Scenario Number | F1: 1 | L1: scenario sheet | M1: =sheet_name(R4) -> Master Scenario | Q1: SHIFT,CNTL,Q to Hide Comments, SHIFT, CNTL N to Show Comments
E2: 1 | F2: 2 | G2: 3 | H2: 4 | I2: 5 | J2: 6 | K2: 7 | L2: 8 | M2: 9 | N2: 10 | O2: 11
E3: Construction Period | F3: Operating Period | G3: Construction Cost | H3: Realised Capacity | I3: Actual Heat Rate | J3: Actual Degradation in Heat Rate | K3: Revenue Inflation | L3: Actual Availability | M3: Actual Fuel Price per kJ | N3: Actual Fixed O&M Expenses | O3: Actual Variable O&M Expenses | Q3: Pre-tax Project IRR | R3: Project IRR | S3: NPV | T3: Equity IRR | U3: DSCR | V3: LLCR
Q4: =IFERROR('Project Financing'!E29,"") -> 0.05528523028 | R4: =IFERROR('Project Financing'!E76,"") -> 0.04599615037 | S4: =IFERROR('Project Financing'!H38,"") -> 347570.1915 | T4: =IFERROR('Project Financing'!E412,"") -> 0.08668271005 | U4: =IFERROR('Project Financing'!F418,"") -> 1.2 | V4: =IFERROR('Project Financing'!E424,"") -> 1.2
D5: Base Case | E5: 40 | F5: 25 | G5: 3000000 | H5: 1000 | I5: 6000 | J5: 0.002 | K5: 2 | L5: 0.85 | M5: 40 | N5: 52 | O5: 10 | P5: 1 | Q5: 0.05528523028 | R5: 0.04599615037 | S5: 347570.1915 | T5: 0.08668271005 | U5: 1.2 | V5: 1.2
D6: Low Case | E6: 60 | F6: 23 | G6: =G5*1.1 -> 3300000 | H6: 980 | I6: 6100 | J6: 0.0025 | K6: 1 | L6: 0.8 | M6: 40.3 | N6: 55 | O6: 12 | P6: 2 | Q6: -0.002989017777 | R6: -0.002989017777 | S6: -1420940.547 | T6: 2.980232239e-09 | U6: 1.2 | V6: 1.2
D7: High Case | E7: 35 | F7: 30 | G7: =G5*0.95 -> 2850000 | H7: 1100 | I7: 5900 | J7: 0.0018 | K7: 3 | L7: 0.94 | M7: 39.8 | N7: 50 | O7: 8 | P7: 3 | Q7: 0.1092457592 | R7: 0.09290783107 | S7: 2961345.501 | T7: FALSE | U7: 1.2 | V7: 1.2
P8: 4 | T8: FALSE
D9: =TRANSPOSE(E3:O3&D6) -> Construction Period Low Case | E9: =E6 -> 60 | F9: =F$5 -> 25 | G9: 3000000 | H9: 1000 | I9: 6000 | J9: 0.002 | K9: 2 | L9: 0.85 | M9: 40 | N9: 52 | O9: 10 | P9: 5 | Q9: 0.05124313533 | R9: 0.04261288941 | S9: 212443.1264 | T9: 0.06591044366 | U9: 1.2 | V9: 1.2
D10: Operating Period Low Case | E10: =E$5 -> 40 | F10: =F6 -> 23 | G10: =G$5 -> 3000000 | H10: 1000 | I10: 6000 | J10: 0.002 | K10: 2 | L10: 0.85 | M10: 40 | N10: 52 | O10: 10 | P10: 6 | Q10: 0.05187497437 | R10: 0.04276584685 | S10: 214671.9985 | T10: 0.07890880406 | U10: 1.2 | V10: 1.2
D11: Construction Cost Low Case | E11: 40 | F11: =F$5 -> 25 | G11: =G6 -> 3300000 | H11: =H$5 -> 1000 | I11: 6000 | J11: 0.002 | K11: 2 | L11: 0.85 | M11: 40 | N11: 52 | O11: 10 | P11: 7 | Q11: 0.04691441357 | R11: 0.03898150623 | S11: 58730.43595 | T11: 0.05048423111 | U11: 1.2 | V11: 1.2
D12: Realised Capacity Low Case | E12: 40 | F12: 25 | G12: =G$5 -> 3000000 | H12: =H6 -> 980 | I12: =I$5 -> 6000 | J12: 0.002 | K12: 2 | L12: 0.85 | M12: 40 | N12: 52 | O12: 10 | P12: 8 | Q12: 0.05348327458 | R12: 0.04448550642 | S12: 282850.8366 | T12: 0.07697831094 | U12: 1.2 | V12: 1.2
D13: Actual Heat Rate Low Case | E13: 40 | F13: 25 | G13: 3000000 | H13: =H$5 -> 1000 | I13: =I6 -> 6100 | J13: =J$5 -> 0.002 | K13: =K$5 -> 2 | L13: =L$5 -> 0.85 | M13: =M$5 -> 40 | N13: =N$5 -> 52 | O13: =O$5 -> 10 | P13: 9 | Q13: 0.0412075907 | R13: 0.03414109647 | S13: -136347.4466 | T13: 0.03392544687 | U13: 1.2 | V13: 1.2
D14: Actual Degradation in Heat Rate Low Case | E14: 40 | F14: 25 | G14: 3000000 | H14: 1000 | I14: =I$5 -> 6000 | J14: =J6 -> 0.0025 | K14: 2 | L14: 0.85 | M14: =M$5 -> 40 | N14: 52 | O14: 10 | P14: 10 | Q14: 0.0541103214 | R14: 0.04499489367 | S14: 304617.3779 | T14: 0.08048693836 | U14: 1.2 | V14: 1.2
D15: Revenue Inflation Low Case | E15: 40 | F15: 25 | G15: 3000000 | H15: 1000 | I15: 6000 | J15: =J$5 -> 0.002 | K15: =K6 -> 1 | L15: 0.85 | M15: 40 | N15: 52 | O15: 10 | P15: 11 | Q15: 0.05524768531 | R15: 0.04596132338 | S15: 346059.2537 | T15: 0.08659052551 | U15: 1.2 | V15: 1.2
D16: Actual Availability Low Case | E16: 40 | F16: 25 | G16: 3000000 | H16: 1000 | I16: 6000 | J16: =J$5 -> 0.002 | K16: 2 | L16: =L6 -> 0.8 | M16: 40 | N16: 52 | O16: 10 | P16: 12 | Q16: 0.04837201536 | R16: 0.04020062387 | S16: 103402.9235 | T16: 0.05551685393 | U16: 1.2 | V16: 1.2
D17: Actual Fuel Price per kJ Low Case | E17: 40 | F17: 25 | G17: 3000000 | H17: 1000 | I17: 6000 | J17: =J$5 -> 0.002 | K17: =K$5 -> 2 | L17: =L9 -> 0.85 | M17: =M6 -> 40.3 | N17: =N$5 -> 52 | O17: =O$5 -> 10 | P17: 13 | Q17: 0.04915018976 | R17: 0.04082543552 | S17: 129807.2544 | T17: 0.05846605599 | U17: 1.2 | V17: 1.2
D18: Actual Fixed O&M Expenses Low Case | E18: 40 | F18: 25 | G18: 3000000 | H18: 1000 | I18: 6000 | J18: =J$5 -> 0.002 | K18: =K$5 -> 2 | L18: =L10 -> 0.85 | M18: =M$5 -> 40 | N18: =N6 -> 55 | O18: =O$5 -> 10 | P18: 14 | Q18: 0.05399232209 | R18: 0.04490587413 | S18: 300798.2891 | T18: 0.07962628305 | U18: 1.2 | V18: 1.2
D19: Actual Variable O&M Expenses Low Case | E19: 40 | F19: 25 | G19: 3000000 | H19: 1000 | I19: 6000 | J19: =J$5 -> 0.002 | K19: =K$5 -> 2 | L19: =L11 -> 0.85 | M19: =M$5 -> 40 | N19: =N$5 -> 52 | O19: =O6 -> 12 | P19: 15 | Q19: 0.04849075377 | R19: 0.04027049243 | S19: 107037.682 | T19: 0.05604213774 | U19: 1.2 | V19: 1.2
P20: 16 | T20: FALSE
D21: =TRANSPOSE(E3:O3&D7) -> Construction Period High Case | E21: =E7 -> 35 | F21: =F$5 -> 25 | G21: 3000000 | H21: 1000 | I21: 6000 | J21: 0.002 | K21: 2 | L21: 0.85 | M21: 40 | N21: 52 | O21: 10 | P21: 17 | Q21: 0.05639721453 | R21: 0.04692647755 | S21: 383234.8023 | T21: 0.09360956848 | U21: 1.2 | V21: 1.2
D22: Operating Period High Case | E22: =E$5 -> 40 | F22: =F7 -> 30 | G22: =G$5 -> 3000000 | H22: 1000 | I22: 6000 | J22: 0.002 | K22: 2 | L22: 0.85 | M22: 40 | N22: 52 | O22: 10 | P22: 18 | Q22: 0.06104589999 | R22: 0.05163249671 | S22: 622768.9024 | T22: 0.09692588449 | U22: 1.2 | V22: 1.2
D23: Construction Cost High Case | E23: 40 | F23: =F$5 -> 25 | G23: =G7 -> 2850000 | H23: =H$5 -> 1000 | I23: 6000 | J23: 0.002 | K23: 2 | L23: 0.85 | M23: 40 | N23: 52 | O23: 10 | P23: 19 | Q23: 0.05992965996 | R23: 0.04989094436 | S23: 491990.0693 | T23: 0.1212834537 | U23: 1.2 | V23: 1.2
D24: Realised Capacity High Case | E24: 40 | F24: 25 | G24: =G$5 -> 3000000 | H24: =H7 -> 1100 | I24: =I$5 -> 6000 | J24: 0.002 | K24: 2 | L24: 0.85 | M24: 40 | N24: 52 | O24: 10 | P24: 20 | Q24: 0.06399711072 | R24: 0.05330297053 | S24: 671166.9663 | T24: 0.1780957878 | U24: 1.2 | V24: 1.2
D25: Actual Heat Rate High Case | E25: 40 | F25: 25 | G25: 3000000 | H25: =H$5 -> 1000 | I25: =I7 -> 5900 | J25: =J$5 -> 0.002 | K25: =K$5 -> 2 | L25: =L$5 -> 0.85 | M25: =M$5 -> 40 | N25: =N$5 -> 52 | O25: =O$5 -> 10 | P25: 21 | Q25: 0.06797198951 | R25: 0.05670892894 | S25: 831487.8297 | T25: 0.343168968 | U25: 1.2 | V25: 1.2
D26: Actual Degradation in Heat Rate High Case | E26: 40 | F26: 25 | G26: 3000000 | H26: 1000 | I26: =I$5 -> 6000 | J26: =J7 -> 0.0018 | K26: 2 | L26: 0.85 | M26: =M$5 -> 40 | N26: 52 | O26: 10 | P26: 22 | Q26: 0.05575086176 | R26: 0.04639309347 | S26: 364732.9712 | T26: 0.08929228485 | U26: 1.2 | V26: 1.2
D27: Revenue Inflation High Case | E27: 40 | F27: 25 | G27: 3000000 | H27: 1000 | I27: 6000 | J27: =J$5 -> 0.002 | K27: =K7 -> 3 | L27: 0.85 | M27: 40 | N27: 52 | O27: 10 | P27: 23 | Q27: 0.05491941869 | R27: 0.04565597475 | S27: 332879.3826 | T27: 0.08580177724 | U27: 1.2 | V27: 1.2
D28: Actual Availability High Case | E28: 40 | F28: 25 | G28: 3000000 | H28: 1000 | I28: 6000 | J28: =J$5 -> 0.002 | K28: =K$5 -> 2 | L28: =L7 -> 0.94 | M28: =M$5 -> 40 | N28: 52 | O28: 10 | P28: 24 | Q28: 0.05689822137 | R28: 0.04734903276 | S28: 406170.3359 | T28: 0.09675427079 | U28: 1.2 | V28: 1.2
D29: Actual Fuel Price per kJ High Case | E29: 40 | F29: 25 | G29: 3000000 | H29: 1000 | I29: 6000 | J29: =J$5 -> 0.002 | K29: =K$5 -> 2 | L29: =L10 -> 0.85 | M29: =M7 -> 39.8 | N29: 52 | O29: 10 | P29: 25 | Q29: 0.05921805203 | R29: 0.04931463301 | S29: 492745.483 | T29: 0.1143397748 | U29: 1.2 | V29: 1.2
D30: Actual Fixed O&M Expenses High Case | E30: 40 | F30: 25 | G30: 3000000 | H30: 1000 | I30: 6000 | J30: =J$5 -> 0.002 | K30: =K$5 -> 2 | L30: =L11 -> 0.85 | M30: 40 | N30: =N7 -> 50 | O30: 10 | P30: 26 | Q30: 0.05614003241 | R30: 0.04671715796 | S30: 378751.4598 | T30: 0.09179103076 | U30: 1.2 | V30: 1.2
D31: Actual Variable O&M Expenses High Case | E31: 40 | F31: 25 | G31: 3000000 | H31: 1000 | I31: 6000 | J31: =J$5 -> 0.002 | K31: =K$5 -> 2 | L31: =L12 -> 0.85 | M31: 40 | N31: 52 | O31: =O7 -> 8 | P31: 27 | Q31: 0.06173996031 | R31: 0.05144352019 | S31: 588102.7011 | T31: 0.1406767905 | U31: 1.2 | V31: 1.2
P32: 28 | T32: FALSE
D33: Base Case | E33: =E5 -> 40 | F33: =F5 -> 25 | G33: 3000000 | H33: 1000 | I33: 6000 | J33: 0.002 | K33: 2 | L33: 0.85 | M33: 40 | N33: 52 | O33: 10 | P33: 29 | Q33: 0.05528523028 | R33: 0.04599615037 | S33: 347570.1915 | T33: 0.08668271005 | U33: 1.2 | V33: 1.2
C34: 1 | D34: =TRANSPOSE(E3:O3) -> Construction Period | E34: =IF($C34<E$2,E$33,E$6) -> 60 | F34: =IF($C34<F$2,F$33,F$6) -> 25 | G34: 3000000 | H34: 1000 | I34: 6000 | J34: 0.002 | K34: 2 | L34: 0.85 | M34: 40 | N34: 52 | O34: 10 | P34: 30 | Q34: 0.05124313533 | R34: 0.04261288941 | S34: 212443.1264 | T34: 0.06591044366 | U34: 1.2 | V34: 1.2
C35: 2 | D35: Operating Period | E35: =IF($C35<E$2,E$33,E$6) -> 60 | F35: 23 | G35: 3000000 | H35: 1000 | I35: 6000 | J35: 0.002 | K35: 2 | L35: 0.85 | M35: 40 | N35: 52 | O35: 10 | P35: 31 | Q35: 0.04797525704 | R35: 0.03953418434 | S35: 89339.39573 | T35: 0.05771104991 | U35: 1.2 | V35: 1.2
C36: 3 | D36: Construction Cost | E36: 60 | F36: 23 | G36: 3300000 | H36: 1000 | I36: 6000 | J36: 0.002 | K36: 2 | L36: 0.85 | M36: 40 | N36: 52 | O36: 10 | P36: 32 | Q36: 0.04008875787 | R36: 0.03294598758 | S36: -189879.6462 | T36: 0.02996529043 | U36: 1.2 | V36: 1.2
C37: 4 | D37: Realised Capacity | E37: 60 | F37: 23 | G37: 3300000 | H37: 980 | I37: 6000 | J37: 0.002 | K37: 2 | L37: 0.85 | M37: 40 | N37: 52 | O37: 10 | P37: 33 | Q37: 0.03844868839 | R37: 0.03157889545 | S37: -247510.2425 | T37: 0.02543271482 | U37: 1.2 | V37: 1.2
C38: 5 | D38: Actual Heat Rate | E38: 60 | F38: 23 | G38: 3300000 | H38: 980 | I38: 6100 | J38: 0.002 | K38: 2 | L38: 0.85 | M38: 40 | N38: 52 | O38: 10 | P38: 34 | Q38: 0.02543692887 | R38: 0.02058145702 | S38: -672916.0626 | T38: -0.0003572935238 | U38: 1.2 | V38: 1.2
C39: 6 | D39: Actual Degradation in Heat Rate | E39: 60 | F39: 23 | G39: 3300000 | H39: 980 | I39: 6100 | J39: 0.0025 | K39: 2 | L39: 0.85 | M39: 40 | N39: 52 | O39: 10 | P39: 35 | Q39: 0.02423425019 | R39: 0.0195590049 | S39: -709178.9302 | T39: -0.002744815871 | U39: 1.2 | V39: 1.2
C40: 7 | D40: Revenue Inflation | E40: 60 | F40: 23 | G40: 3300000 | H40: 980 | I40: 6100 | J40: 0.0025 | K40: 1 | L40: 0.85 | M40: 40 | N40: 52 | O40: 10 | P40: 36 | Q40: 0.02330108583 | R40: 0.01876815259 | S40: -735617.6648 | T40: -0.004582428187 | U40: 1.2 | V40: 1.2
C41: 8 | D41: Actual Availability | E41: 60 | F41: 23 | G41: 3300000 | H41: 980 | I41: 6100 | J41: 0.0025 | K41: 1 | L41: 0.8 | M41: 40 | N41: 52 | O41: 10 | P41: 37 | Q41: 0.01605082452 | R41: 0.01270435154 | S41: -947683.2781 | T41: 2.980232239e-09 | U41: 1.2 | V41: 1.2
C42: 9 | D42: Actual Fuel Price per kJ | E42: 60 | F42: 23 | G42: 3300000 | H42: 980 | I42: 6100 | J42: 0.0025 | K42: 1 | L42: 0.8 | M42: 40.3 | N42: 52 | O42: 10 | P42: 38 | Q42: 0.008272996545 | R42: 0.006398925185 | S42: -1153777.995 | T42: 2.980232239e-09 | U42: 1.2 | V42: 1.2
C43: 10 | D43: Actual Fixed O&M Expenses | E43: 60 | F43: 23 | G43: 3300000 | H43: 980 | I43: 6100 | J43: 0.0025 | K43: 1 | L43: 0.8 | M43: 40.3 | N43: 55 | O43: 10 | P43: 39 | Q43: 0.00653950274 | R43: 0.005028608441 | S43: -1197270.752 | T43: 2.980232239e-09 | U43: 1.2 | V43: 1.2
C44: 11 | D44: Actual Variable O&M Expenses | E44: 60 | F44: 23 | G44: 3300000 | H44: 980 | I44: 6100 | J44: 0.0025 | K44: 1 | L44: 0.8 | M44: 40.3 | N44: 55 | O44: 12 | P44: 40 | Q44: -0.002989017777 | R44: -0.002989017777 | S44: -1420940.547 | T44: 2.980232239e-09 | U44: 1.2 | V44: 1.2
P45: 28 | T45: FALSE
D46: Custom Case | E46: =spinner/E51 -> 40 | F46: =F53/F51 -> 25 | G46: 3000000 | H46: 1000 | I46: 6000 | J46: 0.002 | K46: 2 | L46: 0.85 | M46: 40 | N46: 52 | O46: =O53/O51 -> 10 | P46: 29 | Q46: 0.05528523028 | R46: 0.04599615037 | S46: 347570.1915 | T46: 0.08668271005 | U46: 1.2 | V46: 1.2
D48: =INDEX(D5:D46,$F$1) -> Base Case | E48: 40 | F48: 25 | G48: 3000000 | H48: 1000 | I48: 6000 | J48: 0.002 | K48: 2 | L48: 0.85 | M48: =INDEX(M5:M46,$F$1) -> 40 | N48: 52 | O48: 10
D50: Copied Data | E50: 40 | F50: 25 | G50: 3000000 | H50: 1000 | I50: 6000 | J50: 0.002 | K50: 2 | L50: 0.85 | M50: 40 | N50: 52 | O50: 10
D51: Multiplier | E51: 1 | F51: 1 | G51: 0.001 | H51: 1 | I51: 1 | J51: 1000 | K51: 1 | L51: 100 | M51: 1 | N51: 1 | O51: 1
D52: Adjusted | E52: =E50*E51 -> 40 | F52: 25 | G52: 3000 | H52: 1000 | I52: 6000 | J52: 2 | K52: 2 | L52: 85 | M52: 40 | N52: 52 | O52: 10
D53: Spinner Data | E53: 40 | F53: 25 | G53: 3000 | H53: 1000 | I53: 6000 | J53: 2 | K53: 2 | L53: 85 | M53: 40 | N53: 52 | O53: 10
H55: Low vs Base | I55: High vs Base
D56: =TRANSPOSE(E3:O3) -> Construction Period | E56: =TRANSPOSE(E5:O7) -> 40 | F56: 60 | G56: 35 | H56: =Q9-$Q$5 -> -0.004042094946 | I56: =Q21-$Q$5 -> 0.001111984253
D57: Operating Period | E57: 25 | F57: 23 | G57: 30 | H57: -0.003410255909 | I57: 0.005760669708
D58: Construction Cost | E58: 3000000 | F58: 3300000 | G58: 2850000 | H58: -0.008370816708 | I58: 0.004644429684
D59: Realised Capacity | E59: 1000 | F59: 980 | G59: 1100 | H59: -0.0018019557 | I59: 0.008711880445
D60: Actual Heat Rate | E60: 6000 | F60: 6100 | G60: 5900 | H60: -0.01407763958 | I60: 0.01268675923
D61: Actual Degradation in Heat Rate | E61: 0.002 | F61: 0.0025 | G61: 0.0018 | H61: -0.001174908876 | I61: 0.000465631485
D62: Revenue Inflation | E62: 2 | F62: 1 | G62: 3 | H62: =Q15-$Q$5 -> -3.754496574e-05 | I62: =Q27-$Q$5 -> -0.0003658115864
D63: Actual Availability | E63: 0.85 | F63: 0.8 | G63: 0.94 | H63: -0.006913214922 | I63: 0.001612991095
D64: Actual Fuel Price per kJ | E64: 40 | F64: 40.3 | G64: 39.8 | H64: -0.006135040522 | I64: 0.003932821751
D65: Actual Fixed O&M Expenses | E65: 52 | F65: 55 | G65: 50 | H65: -0.001292908192 | I65: 0.0008548021317
D66: Actual Variable O&M Expenses | E66: 10 | F66: 12 | G66: 8 | H66: -0.006794476509 | I66: 0.006454730034
D70: Waterfall Chart Data | E70: Increment | F70: Value
D72: =D33 -> Base Case | E72: =F72 -> 347570.1915 | F72: =S33 -> 347570.1915
D73: =D34 -> Construction Period | E73: =F73-F72-RAND()*0.01 -> -135127.0702 | F73: =S34 -> 212443.1264
D74: =D35 -> Operating Period | E74: =F74-F73-RAND()*0.01 -> -123103.7353 | F74: =S35 -> 89339.39573
D75: =D36 -> Construction Cost | E75: -279219.0495 | F75: =S36 -> -189879.6462
D76: =D38 -> Actual Heat Rate | E76: -483036.4248 | F76: =S38 -> -672916.0626
D77: =D39 -> Actual Degradation in Heat Rate | E77: -36262.87155 | F77: =S39 -> -709178.9302
D78: =D41 -> Actual Availability | E78: -238504.3554 | F78: =S41 -> -947683.2781
D79: =D43 -> Actual Fixed O&M Expenses | E79: -249587.4829 | F79: =S43 -> -1197270.752
D80: Low Case | E80: 0

Sheet Operating Assumptions
G1: Equity IRR | H1: ='Summary Output'!N9 -> 0.08668271005
A3: Timing Assumptions - Operation Page
B4: Operating Model Start Date | E4: date | F4: 2013-10-01
B5: Project Finance Start Date | E5: Date | F5: 2013-01-01
B6: Months of Development | E6: month | F6: 4
B7: Financial Close | E7: date | F7: =EDATE(F4,F6) -> 2014-02-01
B8: Months of Construction | E8: month | F8: ='Master Scenario'!$E$48 -> 40
B9: Commercial Operation Date | E9: date | F9: =EDATE(F7,F8) -> 2017-06-01
B10: Years of Operation | E10: year | F10: ='Master Scenario'!$F$48 -> 25
B11: Decommissionning Date | E11: date | F11: =EDATE(F9,F10*12) -> 2042-06-01
B13: No of Months in year | E13: Months | F13: 12
B14: No of Months in semi period | E14: Months | F14: 6
B15: Periods per Year | E15: Periods | F15: =12/F14 -> 2
B16: half a period | E16: % | F16: 0.5
B17: 1 month in period | E17: % | F17: =1/F13 -> 0.08333333333
B19: Repayment Month 1 | E19: Month | F19: =MONTH(F9) -> 6
B20: Repayment Month 2 | E20: Month | F20: =F19+6 -> 12
B22: Total months before COD | E22: month | F22: =F6+F8 -> 44
B24: Months per period - pre COD | E24: month | F24: 1
B25: periods per year - pre COD | E25: periods | F25: =12/F24 -> 12
B27: Months per period -post COD | E27: month | F27: 3
B28: periods per year - post COD | E28: periods | F28: =12/F27 -> 4
A30: Capital Expenditure Assumptions
B31: Expected Plant Capacity | E31: MW | F31: ='Master Scenario'!H48 -> 1000
B32: Capacity Factor | E32: % | F32: 0.88
B34: Plant Cost | E34: RM '000 | F34: ='Master Scenario'!$G$48 -> 3000000
B35: S-Curve 1 | F35: 1
C36: Middle pt | F36: =F8/2 -> 20
C37: Gamma (height) | F37: 0.5
C38: Beta | F38: =F36/F37 -> 40
C39: Alpha (skewness) | F39: 1.3
C40: Construction Month | L40: 1 | M40: =IF(L40<$F$8,L40+1) -> 2 | N40: =IF(M40<$F$8,M40+1) -> 3 | O40: 4 | P40: 5 | Q40: 6 | R40: 7 | S40: 8 | T40: 9 | U40: 10 | V40: 11 | W40: 12 | X40: 13 | Y40: 14 | Z40: 15 | AA40: 16 | AB40: 17 | AC40: 18 | AD40: 19 | AE40: 20 | AF40: 21 | AG40: 22 | AH40: 23 | AI40: 24 | AJ40: 25 | AK40: 26 | AL40: 27 | AM40: 28 | AN40: 29 | AO40: 30 | AP40: 31 | AQ40: 32 | AR40: 33 | AS40: 34 | AT40: 35 | AU40: 36 | AV40: 37 | AW40: 38 | AX40: 39 | AY40: 40 | AZ40: FALSE | BA40: FALSE | BB40: FALSE | BC40: FALSE | BD40: FALSE | BE40: FALSE | BF40: FALSE | BG40: FALSE | BH40: FALSE | BI40: FALSE | BJ40: FALSE | BK40: FALSE | BL40: FALSE | BM40: FALSE | BN40: FALSE | BO40: FALSE | BP40: FALSE | BQ40: FALSE | BR40: FALSE | BS40: FALSE | BT40: FALSE | BU40: FALSE | BV40: FALSE | BW40: FALSE | BX40: FALSE | BY40: FALSE | BZ40: =IF(BY40<$F$8,BY40+1) -> FALSE | CA40: =IF(BZ40<$F$8,BZ40+1) -> FALSE | CB40: =IF(CA40<$F$8,CA40+1) -> FALSE | CC40: =IF(CB40<$F$8,CB40+1) -> FALSE | CD40: =IF(CC40<$F$8,CC40+1) -> FALSE
C41: Weibull Distribution | L41: =WEIBULL(L40,$F$39,$F$38,0) -> 0.01065798894 | M41: =WEIBULL(M40,$F$39,$F$38,0) -> 0.01296386512 | N41: 0.01443533408 | O41: 0.01549234201 | P41: 0.01628788835 | Q41: 0.01689811292 | R41: 0.01736763695 | S41: 0.01772545856 | T41: 0.01799182825 | U41: 0.01818165815 | V41: 0.01830638515 | W41: 0.01837506638 | X41: 0.01839506132 | Y41: 0.01837247674 | Z41: 0.01831246816 | AA41: 0.01821945087 | AB41: 0.01809725178 | AC41: 0.01794922131 | AD41: 0.01777831764 | AE41: 0.01758717137 | AF41: 0.0173781359 | AG41: 0.0171533274 | AH41: 0.01691465688 | AI41: 0.01666385632 | AJ41: 0.01640250016 | AK41: 0.01613202316 | AL41: 0.01585373552 | AM41: 0.01556883558 | AN41: 0.01527842077 | AO41: 0.01498349709 | AP41: 0.01468498728 | AQ41: 0.01438373804 | AR41: 0.01408052638 | AS41: 0.01377606524 | AT41: 0.01347100857 | AU41: 0.01316595577 | AV41: 0.01286145583 | AW41: 0.01255801101 | AX41: 0.01225608016 | AY41: 0.01195608184 | AZ41: 0 | BA41: 0 | BB41: 0 | BC41: 0 | BD41: 0 | BE41: 0 | BF41: 0 | BG41: 0 | BH41: 0 | BI41: 0 | BJ41: 0 | BK41: 0 | BL41: 0 | BM41: 0 | BN41: 0 | BO41: 0 | BP41: 0 | BQ41: 0 | BR41: 0 | BS41: 0 | BT41: 0 | BU41: 0 | BV41: 0 | BW41: 0 | BX41: 0 | BY41: =WEIBULL(BY40,$F$39,$F$38,0) -> 0 | BZ41: 0 | CA41: 0 | CB41: 0 | CC41: 0 | CD41: 0
C42: S-Curve | L42: =L41/SUM(41:41) -> 0.01678640535 | M42: =M41/SUM(41:41) -> 0.02041817606 | N42: 0.02273574972 | O42: 0.02440054443 | P42: 0.02565353534 | Q42: 0.0266146432 | R42: 0.02735414675 | S42: 0.02791771824 | T42: 0.02833725232 | U42: 0.02863623571 | V42: 0.02883268159 | W42: 0.02894085498 | X42: 0.02897234715 | Y42: 0.02893677629 | Z42: 0.02884226236 | AA42: 0.0286957595 | AB42: 0.02850329509 | AC42: 0.02827014609 | AD42: 0.02800097165 | AE42: 0.02769991497 | AF42: 0.02737068268 | AG42: 0.02701660776 | AH42: 0.02664070006 | AI42: 0.02624568747 | AJ42: 0.02583404972 | AK42: 0.02540804661 | AL42: 0.02496974168 | AM42: 0.02452102232 | AN42: 0.02406361702 | AO42: 0.02359911021 | AP42: 0.02312895522 | AQ42: 0.02265448561 | AR42: 0.02217692517 | AS42: 0.0216973968 | AT42: 0.02121693046 | AU42: 0.02073647021 | AV42: 0.02025688074 | AW42: 0.01977895307 | AX42: 0.01930340992 | AY42: 0.01883091051 | AZ42: 0 | BA42: 0 | BB42: 0 | BC42: 0 | BD42: 0 | BE42: 0 | BF42: 0 | BG42: 0 | BH42: 0 | BI42: 0 | BJ42: 0 | BK42: 0 | BL42: 0 | BM42: 0 | BN42: 0 | BO42: 0 | BP42: 0 | BQ42: 0 | BR42: 0 | BS42: 0 | BT42: 0 | BU42: 0 | BV42: 0 | BW42: 0 | BX42: 0 | BY42: =BY41/SUM(41:41) -> 0 | BZ42: 0 | CA42: 0 | CB42: 0 | CC42: 0 | CD42: 0
J43: =SUM(L42:CD42) -> 1
B44: S-Curve 2 | F44: 2
C45: Middle pt | F45: =F8/2 -> 20
C46: Gamma (height) | F46: 2
C47: Beta | F47: =F45/F46 -> 10
C48: Alpha (skewness) | F48: 2
C49: Construction Month | L49: 1 | M49: 2 | N49: 3 | O49: 4 | P49: 5 | Q49: 6 | R49: 7 | S49: 8 | T49: 9 | U49: 10 | V49: 11 | W49: 12 | X49: 13 | Y49: 14 | Z49: 15 | AA49: 16 | AB49: 17 | AC49: 18 | AD49: 19 | AE49: 20 | AF49: 21 | AG49: 22 | AH49: 23 | AI49: 24 | AJ49: 25 | AK49: 26 | AL49: 27 | AM49: 28 | AN49: 29 | AO49: 30 | AP49: 31 | AQ49: 32 | AR49: 33 | AS49: 34 | AT49: 35 | AU49: 36 | AV49: 37 | AW49: 38 | AX49: 39 | AY49: 40 | AZ49: 41 | BA49: 42 | BB49: 43 | BC49: 44 | BD49: 45 | BE49: 46 | BF49: 47 | BG49: 48 | BH49: 49 | BI49: 50 | BJ49: 51 | BK49: 52 | BL49: 53 | BM49: 54 | BN49: 55 | BO49: 56 | BP49: 57 | BQ49: 58 | BR49: 59 | BS49: 60 | BT49: 61 | BU49: 62 | BV49: 63 | BW49: 64 | BX49: 65 | BY49: 66 | BZ49: 67 | CA49: 68 | CB49: 69 | CC49: 70 | CD49: 71
C50: Weibull Distribution | L50: =WEIBULL(L49,$F$48,$F$47,0) -> 0.01980099667 | M50: =WEIBULL(M49,$F$48,$F$47,0) -> 0.03843157757 | N50: 0.05483587112 | O50: 0.06817150312 | P50: 0.07788007831 | Q50: 0.08372115913 | R50: 0.08576769519 | S50: 0.08436678785 | T50: 0.08007445192 | U50: 0.07357588823 | V50: 0.06560340147 | W50: 0.05686266208 | X50: 0.04797507624 | Y50: 0.03944035786 | Z50: 0.03161976737 | AA50: 0.02473751694 | AB50: 0.01889591229 | AC50: 0.01409900224 | AD50: 0.01027970181 | AE50: 0.007326255555 | AF50: 0.005105174899 | AG50: 0.003479103783 | AH50: 0.002319209719 | AI50: 0.001512533567 | AJ50: 0.0009652270681 | AK50: 0.0006027991704 | AL50: 0.0003684571485 | AM50: 0.0002204546628 | AN50: 0.000129125317 | AO50: 7.404588245e-05 | AP50: 4.157399107e-05 | AQ50: 2.285622377e-05 | AR50: 1.230486994e-05 | AS50: 6.487310754e-06 | AT50: 3.349582174e-06 | AU50: 1.693854144e-06 | AV50: 8.389580827e-07 | AW50: 4.07006433e-07 | AX50: 1.934084894e-07 | AY50: 9.002813978e-08 | AZ50: 4.105098777e-08 | BA50: 1.833684548e-08 | BB50: 8.024047314e-09 | BC50: 3.439865822e-09 | BD50: 1.44470525e-09 | BE50: 5.944517231e-10 | BF50: 2.396418968e-10 | BG50: 9.465125353e-11 | BH50: 3.662819901e-11 | BI50: 1.388794386e-11 | BJ50: 5.159417798e-12 | BK50: 1.878064695e-12 | BL50: 6.698443038e-13 | BM50: 2.340974393e-13 | BN50: 8.016496505e-14 | BO50: 2.689942955e-14 | BP50: 8.844578366e-15 | BQ50: 2.849650628e-15 | BR50: 8.996862688e-16 | BS50: 2.783427396e-16 | BT50: 8.43843985e-17 | BU50: 2.506927652e-17 | BV50: 7.298314236e-18 | BW50: 2.082130715e-18 | BX50: 5.821052174e-19 | BY50: =WEIBULL(BY49,$F$48,$F$47,0) -> 1.594800266e-19 | BZ50: 4.281791402e-20 | CA50: 1.126580073e-20 | CB50: 2.90481717e-21 | CC50: 7.340039929e-22 | CD50: 1.817621753e-22
C51: S-Curve | L51: =L50/SUM(50:50) -> 0.01983408662 | M51: =M50/SUM(50:50) -> 0.03849580155 | N51: 0.05492750873 | O51: 0.06828542624 | P51: 0.07801022568 | Q51: 0.08386106768 | R51: 0.08591102375 | S51: 0.08450777532 | T51: 0.08020826636 | U51: 0.07369884276 | V51: 0.06571303298 | W51: 0.05695768672 | X51: 0.0480552486 | Y51: 0.03950626764 | Z51: 0.03167260796 | AA51: 0.02477885643 | AB51: 0.01892748973 | AC51: 0.01412256344 | AD51: 0.01029688048 | AE51: 0.007338498647 | AF51: 0.005113706286 | AG51: 0.003484917801 | AH51: 0.00232308541 | AI51: 0.0015150612 | AJ51: 0.0009668400835 | AK51: 0.0006038065234 | AL51: 0.0003690728866 | AM51: 0.0002208230701 | AN51: 0.0001293411016 | AO51: 7.41696224e-05 | AP51: 4.164346642e-05 | AQ51: 2.289441938e-05 | AR51: 1.232543292e-05 | AS51: 6.498151863e-06 | AT51: 3.355179746e-06 | AU51: 1.696684787e-06 | AV51: 8.403600868e-07 | AW51: 4.076865918e-07 | AX51: 1.937316992e-07 | AY51: 9.017858808e-08 | AZ51: 4.111958912e-08 | BA51: 1.836748865e-08 | BB51: 8.037456503e-09 | BC51: 3.445614269e-09 | BD51: 1.447119533e-09 | BE51: 5.954451264e-10 | BF51: 2.400423684e-10 | BG51: 9.480942764e-11 | BH51: 3.668940932e-11 | BI51: 1.391115236e-11 | BJ51: 5.168039831e-12 | BK51: 1.881203176e-12 | BL51: 6.709636976e-13 | BM51: 2.344886455e-13 | BN51: 8.029893076e-14 | BO51: 2.694438187e-14 | BP51: 8.859358765e-15 | BQ51: 2.854412751e-15 | BR51: 9.011897573e-16 | BS51: 2.788078852e-16 | BT51: 8.452541541e-17 | BU51: 2.511117043e-17 | BV51: 7.310510633e-18 | BW51: 2.085610217e-18 | BX51: 5.830779882e-19 | BY51: =BY50/SUM(50:50) -> 1.597465377e-19 | BZ51: 4.288946812e-20 | CA51: 1.12846273e-20 | CB51: 2.909671484e-21 | CC51: 7.352306055e-22 | CD51: 1.820659227e-22
B53: Development Cost | E53: % of EPC | F53: 0.03
B54: Development Fee | E54: % of EPC | F54: 0.05
A57: Revenue Assumptions
B58: Capacity Rate Financial (CRF) | G58: Years | H58: Start period | I58: Charge
C59: Tier 1 | E59: RM / kW - mth | H59: =F9 -> 2017-06-01 | I59: 21
C60: Tier 2 | E60: RM / kW - mth | G60: 15 | H60: =EDATE(F9,G60*12) -> 2032-06-01 | I60: =I59 -> 21
B62: Availability
C63: Target Availability | E63: Percent | F63: 0.85
C64: Actual Availability | E64: Percent | F64: ='Master Scenario'!$L$48 -> 0.85
C66: Penalty Factor | F66: Target v Actual | G66: Penalty/Bonus
F67: -0.15 | G67: 0.2
F68: -0.05 | G68: 0.3
F69: 0 | G69: 0.5
F70: 0.02 | G70: 1
F71: 0.04 | G71: 1.5
B73: Fuel Cost
C74: Target Fuel Price | E74: RM/Gj | F74: 40
C75: Actual Fuel Price | E75: RM/Gj | F75: ='Master Scenario'!M48 -> 40
C77: Inflation in Fuel Price | E77: Code | F77: ='Master Scenario'!K48 -> 2 | I77: 2013 | J77: 2014 | K77: 2015 | L77: 2016 | M77: 2017 | N77: 2018 | O77: 2019 | P77: 2020
D78: Base Case Inflation | I78: 0.03 | J78: 0.02 | K78: 0.015 | L78: 0.017 | M78: 0.017 | N78: 0.017 | O78: 0.017 | P78: 0.017
D79: Low Case Inflation | I79: 0.02 | J79: 0.02 | K79: 0.01 | L79: 0.015 | M79: 0.013 | N79: 0.013 | O79: 0.013 | P79: 0.013
D80: High Case Inflation | I80: 0.03 | J80: 0.04 | K80: 0.04 | L80: 0.05 | M80: 0.04 | N80: 0.04 | O80: 0.04 | P80: 0.04
D82: =INDEX(D78:D80,$F$77) -> Low Case Inflation | I82: =INDEX(I78:I80,$F$77) -> 0.02 | J82: 0.02 | K82: 0.01 | L82: 0.015 | M82: 0.013 | N82: 0.013 | O82: 0.013 | P82: 0.013
D83: Start date for Inflation | F83: 2014-01-01
B85: Heat Rate
C86: Target Heat Rate in PPA | E86: kJ/kWh | F86: 6000
C87: Actual Heat Rate | E87: kJ/kWh | F87: ='Master Scenario'!I48 -> 6000
C89: Target Degradation | E89: Annual % | F89: 0.002
C90: Maintenance Interval | E90: Years | F90: 6
C91: Recovery Percentage | E91: % | F91: 0.985
C93: Actual Degradation
D94: Degradation Rate | F94: ='Master Scenario'!J48 -> 0.002
F95: years | H95: Improvement after Major Maintenance
D96: Maintenance Period 1 | E96: ='EBITDA and Capital Expenditures'!F10 -> 2017-06-01 | F96: 6 | G96: =EDATE(E96,F96*12) -> 2023-06-01 | H96: 1 | I96: 1.004
D97: Maintenance Period 2 | E97: =G96 -> 2023-06-01 | F97: 6 | G97: =EDATE(E97,F97*12) -> 2029-06-01 | H97: 1 | I97: 1.009
D98: Maintenance Period 3 | E98: =G97 -> 2029-06-01 | F98: 6 | G98: =EDATE(E98,F98*12) -> 2035-06-01 | H98: 1 | I98: 1.011
B100: Operation and Maintenance
C101: Fixed O&M Expenses
D102: Fixed O&M Revenues | E102: RM / kW - yr | F102: 52
D103: Actual O&M Expenses | E103: RM / kW - yr | F103: ='Master Scenario'!N48 -> 52
C105: Variable O&M Expenses
D106: Variable O&M Revenues Target | E106: RM / MW - hr | F106: 10
D107: Actual O&M Expenses | E107: RM / MW - hr | F107: ='Master Scenario'!O48 -> 10
A109: Depreciation and Amortisation Assumptions
C110: Fee Amortisation Term | E110: Years | F110: 10
C111: Depreciation Life | E111: Years | F111: ='Operating Assumptions'!F10 -> 25
C113: Discount rate for levelized price | F113: 0.1
A116: General Economic Variables
B117: Inflation Rates
D118: Start of inflation | E118: Date | G118: 2015-01-01
D119: No of month in a year where inflation is applied (January) | E119: Date | G119: 1 | H119: 2013-07-01 | I119: 2014-01-01 | J119: 2014-07-01 | K119: 2015-01-01 | L119: 2015-07-01 | M119: 2016-01-01 | N119: 2016-07-01 | O119: 2017-01-01 | P119: 2017-07-01 | Q119: 2018-01-01 | R119: 2018-07-01 | S119: 2019-01-01 | T119: 2019-07-01 | U119: 2020-01-01 | V119: 2020-07-01 | W119: 2021-01-01 | X119: 2021-07-01 | Y119: 2022-01-01 | Z119: 2022-07-01 | AA119: 2023-01-01 | AB119: 2023-07-01 | AC119: 2024-01-01 | AD119: 2024-07-01 | AE119: 2025-01-01 | AF119: 2025-07-01 | AG119: 2026-01-01 | AH119: 2026-07-01 | AI119: 2027-01-01 | AJ119: 2027-07-01 | AK119: 2028-01-01 | AL119: 2028-07-01 | AM119: 2029-01-01 | AN119: 2029-07-01 | AO119: 2030-01-01 | AP119: 2030-07-01 | AQ119: 2031-01-01 | AR119: 2031-07-01 | AS119: 2032-01-01 | AT119: 2032-07-01 | AU119: 2033-01-01 | AV119: 2033-07-01 | AW119: 2034-01-01 | AX119: 2034-07-01 | AY119: 2035-01-01 | AZ119: 2035-07-01 | BA119: 2036-01-01 | BB119: 2036-07-01 | BC119: 2037-01-01 | BD119: 2037-07-01 | BE119: 2038-01-01 | BF119: 2038-07-01 | BG119: 2039-01-01 | BH119: 2039-07-01 | BI119: 2040-01-01 | BJ119: 2040-07-01 | BK119: 2041-01-01 | BL119: 2041-07-01 | BM119: 2042-01-01 | BN119: 2042-07-01
C121: Cost Inflation Rate | E121: Code Number | F121: 1
C122: 1 | D122: Low Inflation | E122: % | G122: 0.01 | H122: 0.01 | I122: 0.01 | J122: 0.01 | K122: 0.01 | L122: 0.01 | M122: 0.01 | N122: 0.01 | O122: 0.01 | P122: 0.01 | Q122: 0.01 | R122: 0.01 | S122: 0.01 | T122: 0.01 | U122: 0.01 | V122: 0.01 | W122: 0.01 | X122: 0.01 | Y122: 0.01 | Z122: 0.01 | AA122: 0.01 | AB122: 0.01 | AC122: 0.01 | AD122: 0.01 | AE122: 0.01 | AF122: 0.01 | AG122: 0.01 | AH122: 0.01 | AI122: 0.01 | AJ122: 0.01 | AK122: 0.01 | AL122: 0.01 | AM122: 0.01 | AN122: 0.01 | AO122: 0.01 | AP122: 0.01 | AQ122: 0.01 | AR122: 0.01 | AS122: 0.01 | AT122: 0.01 | AU122: 0.01 | AV122: 0.01 | AW122: 0.01 | AX122: 0.01 | AY122: 0.01 | AZ122: 0.01 | BA122: 0.01 | BB122: 0.01 | BC122: 0.01 | BD122: 0.01 | BE122: 0.01 | BF122: 0.01 | BG122: 0.01 | BH122: 0.01 | BI122: 0.01 | BJ122: 0.01 | BK122: 0.01 | BL122: 0.01 | BM122: 0.01 | BN122: 0.01
C123: 2 | D123: Expected Case | E123: % | G123: =1.73%+2.6% -> 0.0433 | H123: =1.73%+2.6% -> 0.0433 | I123: 0.0195 | J123: 0.0195 | K123: 0.0206 | L123: 0.0206 | M123: 0.0206 | N123: 0.0206 | O123: 0.0206 | P123: 0.0206 | Q123: 0.02101425658 | R123: 0.02101425658 | S123: 0.02143679829 | T123: 0.02143679829 | U123: 0.02186779083 | V123: 0.02186779083 | W123: 0.02230740323 | X123: 0.02230740323 | Y123: 0.02275580787 | Z123: 0.02275580787 | AA123: 0.0232131806 | AB123: 0.0232131806 | AC123: 0.02367970079 | AD123: 0.02367970079 | AE123: 0.02415555139 | AF123: 0.02415555139 | AG123: 0.02464091899 | AH123: 0.02464091899 | AI123: 0.02513599395 | AJ123: 0.02513599395 | AK123: 0.02564097041 | AL123: 0.02564097041 | AM123: 0.02615604639 | AN123: 0.02615604639 | AO123: 0.0266814239 | AP123: 0.0266814239 | AQ123: 0.02721730895 | AR123: 0.02721730895 | AS123: 0.02776391171 | AT123: 0.02776391171 | AU123: 0.02832144652 | AV123: 0.02832144652 | AW123: 0.02889013203 | AX123: 0.02889013203 | AY123: 0.02947019125 | AZ123: 0.02947019125 | BA123: 0.03006185165 | BB123: 0.03006185165 | BC123: 0.03066534526 | BD123: 0.03066534526 | BE123: 0.03128090874 | BF123: 0.03128090874 | BG123: 0.03128090874 | BH123: 0.03128090874 | BI123: 0.03128090874 | BJ123: 0.03128090874 | BK123: 0.03128090874 | BL123: 0.03128090874 | BM123: 0.03128090874 | BN123: 0.03128090874
C124: 3 | D124: High Inflation Case | E124: % | G124: =1.73%+2.6% -> 0.0433 | H124: =1.73%+2.6% -> 0.0433 | I124: 0.025 | J124: 0.025 | K124: 0.025 | L124: 0.025 | M124: 0.025 | N124: 0.025 | O124: 0.025 | P124: 0.025 | Q124: 0.025 | R124: 0.025 | S124: 0.025 | T124: 0.025 | U124: 0.025 | V124: 0.025 | W124: 0.025 | X124: 0.025 | Y124: 0.025 | Z124: 0.025 | AA124: 0.025 | AB124: 0.025 | AC124: 0.025 | AD124: 0.025 | AE124: 0.03 | AF124: 0.03 | AG124: 0.03 | AH124: 0.03 | AI124: 0.03 | AJ124: 0.03 | AK124: 0.03 | AL124: 0.03 | AM124: 0.03 | AN124: 0.03 | AO124: 0.03 | AP124: 0.03 | AQ124: 0.03 | AR124: 0.03 | AS124: 0.03 | AT124: 0.03 | AU124: 0.03 | AV124: 0.03 | AW124: 0.03 | AX124: 0.03 | AY124: 0.03 | AZ124: 0.03 | BA124: 0.03 | BB124: 0.03 | BC124: 0.03 | BD124: 0.03 | BE124: 0.03 | BF124: 0.03 | BG124: 0.03 | BH124: 0.03 | BI124: 0.03 | BJ124: 0.03 | BK124: 0.03 | BL124: 0.03 | BM124: 0.03 | BN124: 0.03
D125: =INDEX(D122:D124,$F$121) -> Low Inflation | E125: % | G125: =INDEX(G122:G124,$F$121) -> 0.01 | H125: 0.01 | I125: 0.01 | J125: 0.01 | K125: 0.01 | L125: 0.01 | M125: 0.01 | N125: 0.01 | O125: 0.01 | P125: 0.01 | Q125: 0.01 | R125: 0.01 | S125: 0.01 | T125: 0.01 | U125: 0.01 | V125: 0.01 | W125: 0.01 | X125: 0.01 | Y125: 0.01 | Z125: 0.01 | AA125: 0.01 | AB125: 0.01 | AC125: 0.01 | AD125: 0.01 | AE125: 0.01 | AF125: 0.01 | AG125: 0.01 | AH125: 0.01 | AI125: 0.01 | AJ125: 0.01 | AK125: 0.01 | AL125: 0.01 | AM125: =INDEX(AM122:AM124,$F$121) -> 0.01 | AN125: 0.01 | AO125: 0.01 | AP125: 0.01 | AQ125: 0.01 | AR125: 0.01 | AS125: 0.01 | AT125: 0.01 | AU125: 0.01 | AV125: 0.01 | AW125: 0.01 | AX125: 0.01 | AY125: 0.01 | AZ125: 0.01 | BA125: 0.01 | BB125: 0.01 | BC125: 0.01 | BD125: 0.01 | BE125: 0.01 | BF125: 0.01 | BG125: 0.01 | BH125: 0.01 | BI125: 0.01 | BJ125: 0.01 | BK125: 0.01 | BL125: 0.01 | BM125: 0.01 | BN125: 0.01
C127: Revenue Inflation Rate | E127: Code Number | F127: ='Master Scenario'!K48 -> 2
C128: 1 | D128: Low Inflation | E128: % | G128: 0.01 | H128: 0.01 | I128: 0.01 | J128: 0.01 | K128: 0.01 | L128: 0.01 | M128: 0.01 | N128: 0.01 | O128: 0.01 | P128: 0.01 | Q128: 0.01 | R128: 0.01 | S128: 0.01 | T128: 0.01 | U128: 0.01 | V128: 0.01 | W128: 0.01 | X128: 0.01 | Y128: 0.01 | Z128: 0.01 | AA128: 0.01 | AB128: 0.01 | AC128: 0.01 | AD128: 0.01 | AE128: 0.01 | AF128: 0.01 | AG128: 0.01 | AH128: 0.01 | AI128: 0.01 | AJ128: 0.01 | AK128: 0.01 | AL128: 0.01 | AM128: 0.01 | AN128: 0.01 | AO128: 0.01 | AP128: 0.01 | AQ128: 0.01 | AR128: 0.01 | AS128: 0.01 | AT128: 0.01 | AU128: 0.01 | AV128: 0.01 | AW128: 0.01 | AX128: 0.01 | AY128: 0.01 | AZ128: 0.01 | BA128: 0.01 | BB128: 0.01 | BC128: 0.01 | BD128: 0.01 | BE128: 0.01 | BF128: 0.01 | BG128: 0.01 | BH128: 0.01 | BI128: 0.01 | BJ128: 0.01 | BK128: 0.01 | BL128: 0.01 | BM128: 0.01 | BN128: 0.01
C129: 2 | D129: Expected Case | E129: % | G129: =1.73%+2.6% -> 0.0433 | H129: =1.73%+2.6% -> 0.0433 | I129: 0.0195 | J129: 0.0195 | K129: 0.0206 | L129: 0.0206 | M129: 0.0206 | N129: 0.0206 | O129: 0.0206 | P129: 0.0206 | Q129: 0.02101425658 | R129: 0.02101425658 | S129: 0.02143679829 | T129: 0.02143679829 | U129: 0.02186779083 | V129: 0.02186779083 | W129: 0.02230740323 | X129: 0.02230740323 | Y129: 0.02275580787 | Z129: 0.02275580787 | AA129: 0.0232131806 | AB129: 0.0232131806 | AC129: 0.02367970079 | AD129: 0.02367970079 | AE129: 0.02415555139 | AF129: 0.02415555139 | AG129: 0.02464091899 | AH129: 0.02464091899 | AI129: 0.02513599395 | AJ129: 0.02513599395 | AK129: 0.02564097041 | AL129: 0.02564097041 | AM129: 0.02615604639 | AN129: 0.02615604639 | AO129: 0.0266814239 | AP129: 0.0266814239 | AQ129: 0.02721730895 | AR129: 0.02721730895 | AS129: 0.02776391171 | AT129: 0.02776391171 | AU129: 0.02832144652 | AV129: 0.02832144652 | AW129: 0.02889013203 | AX129: 0.02889013203 | AY129: 0.02947019125 | AZ129: 0.02947019125 | BA129: 0.03006185165 | BB129: 0.03006185165 | BC129: 0.03066534526 | BD129: 0.03066534526 | BE129: 0.03128090874 | BF129: 0.03128090874 | BG129: 0.03128090874 | BH129: 0.03128090874 | BI129: 0.03128090874 | BJ129: 0.03128090874 | BK129: 0.03128090874 | BL129: 0.03128090874 | BM129: 0.03128090874 | BN129: 0.03128090874
C130: 3 | D130: High Inflation Case | E130: % | G130: =1.73%+2.6% -> 0.0433 | H130: =1.73%+2.6% -> 0.0433 | I130: =I124 -> 0.025 | J130: 0.025 | K130: 0.025 | L130: 0.025 | M130: 0.025 | N130: 0.025 | O130: 0.025 | P130: 0.025 | Q130: 0.025 | R130: 0.025 | S130: 0.025 | T130: 0.025 | U130: 0.025 | V130: 0.025 | W130: 0.025 | X130: 0.025 | Y130: 0.025 | Z130: 0.025 | AA130: 0.025 | AB130: 0.025 | AC130: 0.025 | AD130: 0.025 | AE130: 0.03 | AF130: 0.03 | AG130: 0.03 | AH130: 0.03 | AI130: 0.03 | AJ130: 0.03 | AK130: 0.03 | AL130: 0.03 | AM130: 0.03 | AN130: 0.03 | AO130: =AO124 -> 0.03 | AP130: 0.03 | AQ130: 0.03 | AR130: 0.03 | AS130: 0.03 | AT130: 0.03 | AU130: 0.03 | AV130: 0.03 | AW130: 0.03 | AX130: 0.03 | AY130: 0.03 | AZ130: 0.03 | BA130: 0.03 | BB130: 0.03 | BC130: 0.03 | BD130: 0.03 | BE130: 0.03 | BF130: 0.03 | BG130: 0.03 | BH130: 0.03 | BI130: 0.03 | BJ130: 0.03 | BK130: 0.03 | BL130: 0.03 | BM130: 0.03 | BN130: 0.03
D131: Revenue Inflation Applied | E131: % | G131: =INDEX(G128:G130,$F$127) -> 0.0433 | H131: 0.0433 | I131: 0.0195 | J131: 0.0195 | K131: 0.0206 | L131: 0.0206 | M131: 0.0206 | N131: 0.0206 | O131: 0.0206 | P131: 0.0206 | Q131: 0.02101425658 | R131: 0.02101425658 | S131: 0.02143679829 | T131: 0.02143679829 | U131: 0.02186779083 | V131: 0.02186779083 | W131: 0.02230740323 | X131: 0.02230740323 | Y131: 0.02275580787 | Z131: 0.02275580787 | AA131: 0.0232131806 | AB131: 0.0232131806 | AC131: 0.02367970079 | AD131: 0.02367970079 | AE131: 0.02415555139 | AF131: 0.02415555139 | AG131: 0.02464091899 | AH131: 0.02464091899 | AI131: 0.02513599395 | AJ131: 0.02513599395 | AK131: 0.02564097041 | AL131: 0.02564097041 | AM131: =INDEX(AM128:AM130,$F$127) -> 0.02615604639 | AN131: 0.02615604639 | AO131: 0.0266814239 | AP131: 0.0266814239 | AQ131: 0.02721730895 | AR131: 0.02721730895 | AS131: 0.02776391171 | AT131: 0.02776391171 | AU131: 0.02832144652 | AV131: 0.02832144652 | AW131: 0.02889013203 | AX131: 0.02889013203 | AY131: 0.02947019125 | AZ131: 0.02947019125 | BA131: 0.03006185165 | BB131: 0.03006185165 | BC131: 0.03066534526 | BD131: 0.03066534526 | BE131: 0.03128090874 | BF131: 0.03128090874 | BG131: 0.03128090874 | BH131: 0.03128090874 | BI131: 0.03128090874 | BJ131: 0.03128090874 | BK131: 0.03128090874 | BL131: 0.03128090874 | BM131: 0.03128090874 | BN131: 0.03128090874
A134: Working Capital Assumptions
C135: Working Capital
D136: Debtors | G136: 30
D137: Creditors | G137: 30
D138: Total days in semi annual period | G138: 182.5
B144: Start of Construction | E144: Date | F144: =F7 -> 2014-02-01
B145: Number of construction mths | E145: Months | F145: =F8 -> 40
B146: End of Construction | E146: Date | F146: =EDATE($F$144,F145)-1 -> 2017-05-31

Sheet Tax Assumptions
A2: Profits Tax | H2: ='Valuation and Refinancing'!H1 -> Model OK
B3: Tax Charge | D3: 0.25
B4: % of Fixed assets allowable for capital allowance | D4: 1
B5: Tax rate on deposits | D5: 0.25
B6: Tax paid in advance | D6: 0
B7: Capital Allowance applied for no. Years | D7: 15
B8: Claim from operation start date | D8: ='Operating Assumptions'!F9 -> 2017-06-01
B9: End of Claim | D9: =EDATE(D8,'Operating Assumptions'!$F$13*$D$7)-1 -> 2032-05-31
B11: 1st tax payment (no of month) | D11: 6
B12: 2nd tax payment (no of month) | D12: 11
B13: Final tax payment (no of month) | D13: 9
B15: Total tax amount paid by 1st installment tax | D15: 0.5
B16: Total tax amount paid by 2nd installment tax | D16: 0.9
B17: Total tax amount paid by final installment | D17: 1
A19: VAT
B20: Vat on turbines | D20: 0.21 | E20: 0.21
B21: Vat rate (average vat rate on other costs excluding vat on share consideration) | D21: 0.15 | E21: 0.15
B22: No. of months delay for vat receipts | D22: 2
A24: Fixed Assets
B25: Start of depreciation | D25: ='Operating Assumptions'!F9 -> 2017-06-01
B26: Number of years the asset is depreciated | D26: 20
B27: End of depreciation land & building | D27: =EDATE(D25,D26*12)-1 -> 2037-05-31
B28: no of period semi annual | D28: =D26*2 -> 40

Sheet Finance and Value Assumptions
D1: ='Audit Sheet'!E15 -> Model OK | E1: Equity IRR | F1: ='Project Financing'!E412 -> 0.08668271005 | G1: SD% | H1: ='Project Financing'!R138 -> 0.7872925
A2: Senior Debt A
B3: Debt Size
D4: Target DSCR | E4: 120 | F4: =E4/100 -> 1.2
D5: Target Debt:Capital Ratio | E5: 85 | F5: =E5/100 -> 0.85
D6: Apply Scuplting | F6: FALSE
B8: Debt Draws
D9: Interest Capitalised (Rolled up to Debt) | F9: TRUE
D10: Start of Drawdown (Financial Close Date) | F10: ='Operating Assumptions'!F144 -> 2014-02-01
D11: Draw Code (1-Pro-Rata; 2-Equity First; 3-Debt First) | F11: 2 | N11: Pro-Rata
N12: Equity First
B13: Debt Repayment
D14: Repayment period | F14: 21
D15: Start of Repayment (Construction Start Date) | F15: ='Operating Assumptions'!F9 -> 2017-06-01 | N15: Equal Installment
D16: End of Repayment | F16: =EDATE(F15,F14*12) -> 2038-06-01 | N16: Annuity
D17: Repayment Style (1 - Level; 2 - Annuity; 3 - Sculpted) | F17: 3 | N17: Sculpted
B19: Interest and Fees
D20: Base rate | F20: 0.0155 | G20: 0.0155
D21: 18 year fixed rate swap spread | F21: 0
D22: Hedge percentage | F22: 1 | H22: Norm
D23: Construction Phase | F23: =F10 -> 2014-02-01 | G23: 0.0175 | H23: BBB credit spread | J23: 0.0175
D24: Initial margin (annual) | F24: =F15 -> 2017-06-01 | G24: 0.02 | J24: 0.02
D25: Years 5-10 margin(annual) | E25: 24 | F25: =EDATE(F24,E25) -> 2019-06-01 | G25: 0.0225 | J25: 0.0225
D26: Years 11-15 margin(annual) | E26: 36 | F26: =EDATE(F25,E26) -> 2022-06-01 | G26: 0.025 | H26: Higher margin here to protect bank on the downside | J26: 0.025
D28: Arrangement Fee (Upfront Fee) | F28: 0.015 | G28: 0.015
D29: Commitment Fee annual | F29: 0.0075 | G29: 0.0075 | H29: Fee for the amount you dont borrow, on the undrawn debt
D30: Fee Amortisation Period | E30: Years | F30: ='Tax Assumptions'!D7 -> 15
B32: Credit Enhancements | F32: 0.05
D33: DSRA Months | E33: Months | F33: 0 | H33: The amount of months of the annual Debt repayment needed to be retained
D34: DSRA Interest Rate | E34: % | F34: 0
D35: DRSA Funded with LOC | F35: FALSE | H35: Cash trap covenants - PV of CF/PV of Debt. Projection of the life of the project to project future CF's
D36: Cash Trap/Dividend Lockup Covenant | E36: DSCR X | F36: 1.15 | H36: You cannot pay a dividend on this
D37: Cash Sweep | F37: 0 | H37: How much of the extra cashflow and pay off the debt / this is a % of CF after debt service
D39: Interest charge semi annual | F39: 0
A41: Subordinated Debt
C42: Debt Sizing
D43: Sub-debt % | F43: =G43/100 -> 0 | G43: 0
C44: Repayments
D45: Number of years before sub detb paid | F45: =G45 -> 19 | G45: 19
D46: Start of Repayment | F46: =EDATE('Operating Assumptions'!F9,F45*'Operating Assumptions'!F13) -> 2036-06-01
D47: No of years for repayment | F47: =G47 -> 7 | G47: 7
D48: End of Repayment | F48: =EDATE(F46,F47*'Operating Assumptions'!$F$13)-1 -> 2043-05-31
C49: Interest and Fees
D50: Annual Coupon Rate - Construction | F50: =G50/100 -> 0.07 | G50: 7
D51: Annual Coupon Rate - Operations | F51: 0.07
D52: Sub Interest Tax Deductible | F52: TRUE
A54: Development Fee
C55: Development Fee Amount | F55: =G55*100000 -> 400000 | G55: 4
C56: Percent of Construction | F56: =F55/'Project Financing'!G127 -> 0.1146131805
C57: Development Fee Date | F57: =EDATE(F24,-1) -> 2017-05-01
A59: MRA
D60: MRA required balance | F60: 0
D61: MRA required balance post yr 5 | F61: 0
D62: Length of period in mths | F62: 6
D63: % of semi annual period | F63: =F62/'Operating Assumptions'!F14 -> 1
D64: Number of periods | F64: 4
D65: % of MRA balance built per period | F65: 0.25
D66: Start of 1st period of MRA balance build up | F66: ='Operating Assumptions'!F9 -> 2017-06-01
D67: End of final period of MRA balance build up | F67: =EDATE(F66,F62*F64)-1 -> 2019-05-31
D68: Period post MRA build up | F68: =EDATE(F67+1,3) -> 2019-09-01
D69: End of MRA | F69: =F16 -> 2038-06-01
A71: VAT
D72: Interest rate on facilty | F72: 0.03 | H72: Low Risk - this should be low
D73: Arrangement fee | F73: 0
D74: Commitment fee | F74: 0
D76: Interest Capitalised | F76: FALSE
A78: Discount Rate (Return a Buyer Requires to invest in this project) | F78: Start Date | G78: Discount Rate - Equity | H78: Discount Rate - Project
D79: Pre-construction | F79: ='Operating Assumptions'!F144 -> 2014-02-01 | G79: =J79/100 -> 0.15 | H79: =G79-3% -> 0.12 | J79: 15
D80: Post-Construction | F80: ='Operating Assumptions'!F9 -> 2017-06-01 | G80: =J80/100 -> 0.11 | H80: =G80-2% -> 0.09 | J80: 11
D81: Initial Operations (Yrs 1 -3) | E81: 3 | F81: =EDATE(F80,E81*12) -> 2020-06-01 | G81: =J81/100 -> 0.1 | H81: =G81-2% -> 0.08 | J81: 10
D82: Initial Operations Mature | E82: 2 | F82: =EDATE(F81,E82*12) -> 2022-06-01 | G82: =J82/100 -> 0.09 | H82: =G82-2% -> 0.07 | J82: 9
D84: Risk Free Rate | F84: 0.035
D86: COD Month | F86: =MONTH('Operating Assumptions'!F9) -> 6
D87: Assumed Sale Date | F87: =DATE(H87,F86,1) -> 2023-06-01 | H87: 2023
A89: Refinancing
D90: Include Re-Financing | F90: FALSE
D91: Assumed Date of Refinancing | F91: =DATE(H91,F86,1) -> 2019-06-01 | H91: 2019
D92: Assumed DSCR on Refinancing | F92: =H92/100 -> 1.15 | H92: 115
D93: Assumed Term (Tail) | F93: =H93 -> 3 | H93: 3
D94: Assumed Interest Rate | F94: =H94/1000 -> 0.041 | H94: 41
D95: End of Operations | F95: ='Operating Assumptions'!F11 -> 2042-06-01
D96: Date of Repayment | F96: =EDATE(F95,-F93*12) -> 2039-06-01
D97: Tenor for Re-financing | F97: =DAYS360(F91,F95)/360 -> 23
D98: Fee on New Debt | F98: 0.015
D99: Breakage Fee | F99: 0.01
A101: LCOE Rates
D102: Discount Rate | F102: 0.1
D103: Inflation Rate | F103: =AVERAGE('Operating Assumptions'!125:125) -> 0.01
D104: Real | F104: =(1+F102)/(1+F103)-1 -> 0.08910891089
D105: Periodic | F105: =(1+F104)^(1/'Operating Assumptions'!F15)-1 -> 0.04360380935
H111: Structuring
H112: Risk Analysis

Sheet EBITDA and Capital Expenditures
A1: Timing of the model
B2: Model Counter | J2: test | K2: =-'Operating Assumptions'!F22 -> -44 | L2: =K2+1 -> -43 | M2: -42 | N2: -41 | O2: -40 | P2: -39 | Q2: -38 | R2: -37 | S2: -36 | T2: -35 | U2: -34 | V2: -33 | W2: -32 | X2: -31 | Y2: -30 | Z2: -29 | AA2: -28 | AB2: -27 | AC2: -26 | AD2: -25 | AE2: -24 | AF2: -23 | AG2: -22 | AH2: -21 | AI2: -20 | AJ2: -19 | AK2: -18 | AL2: -17 | AM2: -16 | AN2: -15 | AO2: -14 | AP2: -13 | AQ2: -12 | AR2: -11 | AS2: -10 | AT2: -9 | AU2: -8 | AV2: -7 | AW2: -6 | AX2: -5 | AY2: -4 | AZ2: -3 | BA2: -2 | BB2: -1 | BC2: 0 | BD2: 1 | BE2: 2 | BF2: 3 | BG2: 4 | BH2: 5 | BI2: 6 | BJ2: 7 | BK2: 8 | BL2: 9 | BM2: 10 | BN2: 11 | BO2: 12 | BP2: 13 | BQ2: 14 | BR2: 15 | BS2: 16 | BT2: 17 | BU2: 18 | BV2: 19 | BW2: 20 | BX2: =BW2+1 -> 21 | BY2: 22 | BZ2: 23 | CA2: 24 | CB2: 25 | CC2: 26 | CD2: 27 | CE2: 28 | CF2: 29 | CG2: 30 | CH2: 31 | CI2: 32 | CJ2: 33 | CK2: 34 | CL2: 35 | CM2: 36 | CN2: 37 | CO2: 38 | CP2: 39 | CQ2: 40 | CR2: 41 | CS2: 42 | CT2: 43 | CU2: 44 | CV2: 45 | CW2: 46 | CX2: 47 | CY2: 48 | CZ2: 49 | DA2: 50 | DB2: 51 | DC2: 52 | DD2: 53 | DE2: 54 | DF2: 55 | DG2: 56 | DH2: 57 | DI2: 58 | DJ2: 59 | DK2: 60 | DL2: 61 | DM2: 62 | DN2: 63 | DO2: 64 | DP2: 65 | DQ2: 66 | DR2: 67 | DS2: 68 | DT2: 69 | DU2: 70 | DV2: 71 | DW2: 72 | DX2: 73 | DY2: 74 | DZ2: 75 | EA2: 76 | EB2: 77 | EC2: 78 | ED2: 79 | EE2: 80 | EF2: 81 | EG2: 82 | EH2: 83 | EI2: 84 | EJ2: =EI2+1 -> 85 | EK2: 86 | EL2: 87 | EM2: 88 | EN2: 89 | EO2: 90 | EP2: 91 | EQ2: 92 | ER2: 93 | ES2: 94 | ET2: 95 | EU2: 96 | EV2: 97 | EW2: 98 | EX2: 99 | EY2: 100 | EZ2: 101 | FA2: 102 | FB2: 103 | FC2: 104 | FD2: 105 | FE2: 106 | FF2: 107 | FG2: 108 | FH2: 109 | FI2: 110 | FJ2: 111 | FK2: 112 | FL2: 113 | FM2: 114 | FN2: 115 | FO2: 116 | FP2: 117 | FQ2: 118 | FR2: 119 | FS2: 120 | FT2: 121 | FU2: 122 | FV2: 123 | FW2: 124 | FX2: 125 | FY2: 126 | FZ2: 127 | GA2: 128 | GB2: 129 | GC2: 130 | GD2: 131 | GE2: 132 | GF2: 133 | GG2: 134 | GH2: 135 | GI2: 136 | GJ2: 137 | GK2: 138 | GL2: 139 | GM2: 140 | GN2: 141 | GO2: 142 | GP2: 143 | GQ2: 144 | GR2: 145 | GS2: 146 | GT2: 147 | GU2: 148 | GV2: =GU2+1 -> 149 | GW2: 150 | GX2: 151 | GY2: 152 | GZ2: 153 | HA2: 154 | HB2: 155 | HC2: 156 | HD2: 157 | HE2: 158 | HF2: 159 | HG2: 160 | HH2: 161 | HI2: 162 | HJ2: 163 | HK2: 164 | HL2: 165 | HM2: 166 | HN2: 167 | HO2: 168 | HP2: 169 | HQ2: 170 | HR2: 171 | HS2: 172 | HT2: 173 | HU2: 174 | HV2: 175 | HW2: 176 | HX2: 177 | HY2: 178 | HZ2: 179 | IA2: 180 | IB2: 181 | IC2: 182 | ID2: 183 | IE2: 184 | IF2: 185 | IG2: 186 | IH2: 187 | II2: 188 | IJ2: 189 | IK2: 190 | IL2: 191 | IM2: 192 | IN2: 193 | IO2: 194 | IP2: 195 | IQ2: 196 | IR2: 197 | IS2: 198 | IT2: 199 | IU2: 200 | IV2: 201 | IW2: 202 | IX2: 203 | IY2: 204 | IZ2: 205 | JA2: 206 | JB2: 207 | JC2: 208 | JD2: 209 | JE2: 210
B3: Pre-COD switch | K3: =K2<1 -> TRUE | L3: TRUE | M3: TRUE | N3: TRUE | O3: TRUE | P3: TRUE | Q3: TRUE | R3: TRUE | S3: TRUE | T3: TRUE | U3: TRUE | V3: TRUE | W3: TRUE | X3: TRUE | Y3: TRUE | Z3: TRUE | AA3: TRUE | AB3: TRUE | AC3: TRUE | AD3: TRUE | AE3: TRUE | AF3: TRUE | AG3: TRUE | AH3: TRUE | AI3: TRUE | AJ3: TRUE | AK3: TRUE | AL3: TRUE | AM3: TRUE | AN3: TRUE | AO3: TRUE | AP3: TRUE | AQ3: TRUE | AR3: TRUE | AS3: TRUE | AT3: TRUE | AU3: TRUE | AV3: TRUE | AW3: TRUE | AX3: TRUE | AY3: TRUE | AZ3: TRUE | BA3: TRUE | BB3: TRUE | BC3: TRUE | BD3: FALSE | BE3: FALSE | BF3: FALSE | BG3: FALSE | BH3: FALSE | BI3: FALSE | BJ3: FALSE | BK3: FALSE | BL3: FALSE | BM3: FALSE | BN3: FALSE | BO3: FALSE | BP3: FALSE | BQ3: FALSE | BR3: FALSE | BS3: FALSE | BT3: FALSE | BU3: FALSE | BV3: FALSE | BW3: =BW2<1 -> FALSE | BX3: FALSE | BY3: FALSE | BZ3: FALSE | CA3: FALSE | CB3: FALSE | CC3: FALSE | CD3: FALSE | CE3: FALSE | CF3: FALSE | CG3: FALSE | CH3: FALSE | CI3: FALSE | CJ3: FALSE | CK3: FALSE | CL3: FALSE | CM3: FALSE | CN3: FALSE | CO3: FALSE | CP3: FALSE | CQ3: FALSE | CR3: FALSE | CS3: FALSE | CT3: FALSE | CU3: FALSE | CV3: FALSE | CW3: FALSE | CX3: FALSE | CY3: FALSE | CZ3: FALSE | DA3: FALSE | DB3: FALSE | DC3: FALSE | DD3: FALSE | DE3: FALSE | DF3: FALSE | DG3: FALSE | DH3: FALSE | DI3: FALSE | DJ3: FALSE | DK3: FALSE | DL3: FALSE | DM3: FALSE | DN3: FALSE | DO3: FALSE | DP3: FALSE | DQ3: FALSE | DR3: FALSE | DS3: FALSE | DT3: FALSE | DU3: FALSE | DV3: FALSE | DW3: FALSE | DX3: FALSE | DY3: FALSE | DZ3: FALSE | EA3: FALSE | EB3: FALSE | EC3: FALSE | ED3: FALSE | EE3: FALSE | EF3: FALSE | EG3: FALSE | EH3: FALSE | EI3: =EI2<1 -> FALSE | EJ3: FALSE | EK3: FALSE | EL3: FALSE | EM3: FALSE | EN3: FALSE | EO3: FALSE | EP3: FALSE | EQ3: FALSE | ER3: FALSE | ES3: FALSE | ET3: FALSE | EU3: FALSE | EV3: FALSE | EW3: FALSE | EX3: FALSE | EY3: FALSE | EZ3: FALSE | FA3: FALSE | FB3: FALSE | FC3: FALSE | FD3: FALSE | FE3: FALSE | FF3: FALSE | FG3: FALSE | FH3: FALSE | FI3: FALSE | FJ3: FALSE | FK3: FALSE | FL3: FALSE | FM3: FALSE | FN3: FALSE | FO3: FALSE | FP3: FALSE | FQ3: FALSE | FR3: FALSE | FS3: FALSE | FT3: FALSE | FU3: FALSE | FV3: FALSE | FW3: FALSE | FX3: FALSE | FY3: FALSE | FZ3: FALSE | GA3: FALSE | GB3: FALSE | GC3: FALSE | GD3: FALSE | GE3: FALSE | GF3: FALSE | GG3: FALSE | GH3: FALSE | GI3: FALSE | GJ3: FALSE | GK3: FALSE | GL3: FALSE | GM3: FALSE | GN3: FALSE | GO3: FALSE | GP3: FALSE | GQ3: FALSE | GR3: FALSE | GS3: FALSE | GT3: FALSE | GU3: =GU2<1 -> FALSE | GV3: FALSE | GW3: FALSE | GX3: FALSE | GY3: FALSE | GZ3: FALSE | HA3: FALSE | HB3: FALSE | HC3: FALSE | HD3: FALSE | HE3: FALSE | HF3: FALSE | HG3: FALSE | HH3: FALSE | HI3: FALSE | HJ3: FALSE | HK3: FALSE | HL3: FALSE | HM3: FALSE | HN3: FALSE | HO3: FALSE | HP3: FALSE | HQ3: FALSE | HR3: FALSE | HS3: FALSE | HT3: FALSE | HU3: FALSE | HV3: FALSE | HW3: FALSE | HX3: FALSE | HY3: FALSE | HZ3: FALSE | IA3: FALSE | IB3: FALSE | IC3: FALSE | ID3: FALSE | IE3: FALSE | IF3: FALSE | IG3: FALSE | IH3: FALSE | II3: FALSE | IJ3: FALSE | IK3: FALSE | IL3: FALSE | IM3: FALSE | IN3: FALSE | IO3: FALSE | IP3: FALSE | IQ3: FALSE | IR3: FALSE | IS3: FALSE | IT3: FALSE | IU3: FALSE | IV3: FALSE | IW3: FALSE | IX3: FALSE | IY3: FALSE | IZ3: FALSE | JA3: FALSE | JB3: FALSE | JC3: FALSE | JD3: FALSE | JE3: FALSE
B4: Month/period | K4: =IF(K3,'Operating Assumptions'!$F$24,'Operating Assumptions'!$F$27) -> 1 | L4: =IF(L3,'Operating Assumptions'!$F$24,'Operating Assumptions'!$F$27) -> 1 | M4: =IF(M3,'Operating Assumptions'!$F$24,'Operating Assumptions'!$F$27) -> 1 | N4: =IF(N3,'Operating Assumptions'!$F$24,'Operating Assumptions'!$F$27) -> 1 | O4: =IF(O3,'Operating Assumptions'!$F$24,'Operating Assumptions'!$F$27) -> 1 | P4: =IF(P3,'Operating Assumptions'!$F$24,'Operating Assumptions'!$F$27) -> 1 | Q4: =IF(Q3,'Operating Assumptions'!$F$24,'Operating Assumptions'!$F$27) -> 1 | R4: =IF(R3,'Operating Assumptions'!$F$24,'Operating Assumptions'!$F$27) -> 1 | S4: =IF(S3,'Operating Assumptions'!$F$24,'Operating Assumptions'!$F$27) -> 1 | T4: =IF(T3,'Operating Assumptions'!$F$24,'Operating Assumptions'!$F$27) -> 1 | U4: =IF(U3,'Operating Assumptions'!$F$24,'Operating Assumptions'!$F$27) -> 1 | V4: =IF(V3,'Operating Assumptions'!$F$24,'Operating Assumptions'!$F$27) -> 1 | W4: =IF(W3,'Operating Assumptions'!$F$24,'Operating Assumptions'!$F$27) -> 1 | X4: =IF(X3,'Operating Assumptions'!$F$24,'Operating Assumptions'!$F$27) -> 1 | Y4: =IF(Y3,'Operating Assumptions'!$F$24,'Operating Assumptions'!$F$27) -> 1 | Z4: =IF(Z3,'Operating Assumptions'!$F$24,'Operating Assumptions'!$F$27) -> 1 | AA4: =IF(AA3,'Operating Assumptions'!$F$24,'Operating Assumptions'!$F$27) -> 1 | AB4: =IF(AB3,'Operating Assumptions'!$F$24,'Operating Assumptions'!$F$27) -> 1 | AC4: =IF(AC3,'Operating Assumptions'!$F$24,'Operating Assumptions'!$F$27) -> 1 | AD4: =IF(AD3,'Operating Assumptions'!$F$24,'Operating Assumptions'!$F$27) -> 1 | AE4: =IF(AE3,'Operating Assumptions'!$F$24,'Operating Assumptions'!$F$27) -> 1 | AF4: =IF(AF3,'Operating Assumptions'!$F$24,'Operating Assumptions'!$F$27) -> 1 | AG4: =IF(AG3,'Operating Assumptions'!$F$24,'Operating Assumptions'!$F$27) -> 1 | AH4: =IF(AH3,'Operating Assumptions'!$F$24,'Operating Assumptions'!$F$27) -> 1 | AI4: =IF(AI3,'Operating Assumptions'!$F$24,'Operating Assumptions'!$F$27) -> 1 | AJ4: =IF(AJ3,'Operating Assumptions'!$F$24,'Operating Assumptions'!$F$27) -> 1 | AK4: =IF(AK3,'Operating Assumptions'!$F$24,'Operating Assumptions'!$F$27) -> 1 | AL4: =IF(AL3,'Operating Assumptions'!$F$24,'Operating Assumptions'!$F$27) -> 1 | AM4: =IF(AM3,'Operating Assumptions'!$F$24,'Operating Assumptions'!$F$27) -> 1 | AN4: =IF(AN3,'Operating Assumptions'!$F$24,'Operating Assumptions'!$F$27) -> 1 | AO4: =IF(AO3,'Operating Assumptions'!$F$24,'Operating Assumptions'!$F$27) -> 1 | AP4: =IF(AP3,'Operating Assumptions'!$F$24,'Operating Assumptions'!$F$27) -> 1 | AQ4: =IF(AQ3,'Operating Assumptions'!$F$24,'Operating Assumptions'!$F$27) -> 1 | AR4: =IF(AR3,'Operating Assumptions'!$F$24,'Operating Assumptions'!$F$27) -> 1 | AS4: =IF(AS3,'Operating Assumptions'!$F$24,'Operating Assumptions'!$F$27) -> 1 | AT4: =IF(AT3,'Operating Assumptions'!$F$24,'Operating Assumptions'!$F$27) -> 1 | AU4: =IF(AU3,'Operating Assumptions'!$F$24,'Operating Assumptions'!$F$27) -> 1 | AV4: =IF(AV3,'Operating Assumptions'!$F$24,'Operating Assumptions'!$F$27) -> 1 | AW4: =IF(AW3,'Operating Assumptions'!$F$24,'Operating Assumptions'!$F$27) -> 1 | AX4: =IF(AX3,'Operating Assumptions'!$F$24,'Operating Assumptions'!$F$27) -> 1 | AY4: =IF(AY3,'Operating Assumptions'!$F$24,'Operating Assumptions'!$F$27) -> 1 | AZ4: =IF(AZ3,'Operating Assumptions'!$F$24,'Operating Assumptions'!$F$27) -> 1 | BA4: =IF(BA3,'Operating Assumptions'!$F$24,'Operating Assumptions'!$F$27) -> 1 | BB4: =IF(BB3,'Operating Assumptions'!$F$24,'Operating Assumptions'!$F$27) -> 1 | BC4: =IF(BC3,'Operating Assumptions'!$F$24,'Operating Assumptions'!$F$27) -> 1 | BD4: =IF(BD3,'Operating Assumptions'!$F$24,'Operating Assumptions'!$F$27) -> 3 | BE4: =IF(BE3,'Operating Assumptions'!$F$24,'Operating Assumptions'!$F$27) -> 3 | BF4: =IF(BF3,'Operating Assumptions'!$F$24,'Operating Assumptions'!$F$27) -> 3 | BG4: =IF(BG3,'Operating Assumptions'!$F$24,'Operating Assumptions'!$F$27) -> 3 | BH4: =IF(BH3,'Operating Assumptions'!$F$24,'Operating Assumptions'!$F$27) -> 3 | BI4: =IF(BI3,'Operating Assumptions'!$F$24,'Operating Assumptions'!$F$27) -> 3 | BJ4: =IF(BJ3,'Operating Assumptions'!$F$24,'Operating Assumptions'!$F$27) -> 3 | BK4: =IF(BK3,'Operating Assumptions'!$F$24,'Operating Assumptions'!$F$27) -> 3 | BL4: =IF(BL3,'Operating Assumptions'!$F$24,'Operating Assumptions'!$F$27) -> 3 | BM4: =IF(BM3,'Operating Assumptions'!$F$24,'Operating Assumptions'!$F$27) -> 3 | BN4: =IF(BN3,'Operating Assumptions'!$F$24,'Operating Assumptions'!$F$27) -> 3 | BO4: =IF(BO3,'Operating Assumptions'!$F$24,'Operating Assumptions'!$F$27) -> 3 | BP4: =IF(BP3,'Operating Assumptions'!$F$24,'Operating Assumptions'!$F$27) -> 3 | BQ4: =IF(BQ3,'Operating Assumptions'!$F$24,'Operating Assumptions'!$F$27) -> 3 | BR4: =IF(BR3,'Operating Assumptions'!$F$24,'Operating Assumptions'!$F$27) -> 3 | BS4: =IF(BS3,'Operating Assumptions'!$F$24,'Operating Assumptions'!$F$27) -> 3 | BT4: =IF(BT3,'Operating Assumptions'!$F$24,'Operating Assumptions'!$F$27) -> 3 | BU4: =IF(BU3,'Operating Assumptions'!$F$24,'Operating Assumptions'!$F$27) -> 3 | BV4: =IF(BV3,'Operating Assumptions'!$F$24,'Operating Assumptions'!$F$27) -> 3 | BW4: =IF(BW3,'Operating Assumptions'!$F$24,'Operating Assumptions'!$F$27) -> 3 | BX4: =IF(BX3,'Operating Assumptions'!$F$24,'Operating Assumptions'!$F$27) -> 3 | BY4: =IF(BY3,'Operating Assumptions'!$F$24,'Operating Assumptions'!$F$27) -> 3 | BZ4: =IF(BZ3,'Operating Assumptions'!$F$24,'Operating Assumptions'!$F$27) -> 3 | CA4: =IF(CA3,'Operating Assumptions'!$F$24,'Operating Assumptions'!$F$27) -> 3 | CB4: =IF(CB3,'Operating Assumptions'!$F$24,'Operating Assumptions'!$F$27) -> 3 | CC4: =IF(CC3,'Operating Assumptions'!$F$24,'Operating Assumptions'!$F$27) -> 3 | CD4: =IF(CD3,'Operating Assumptions'!$F$24,'Operating Assumptions'!$F$27) -> 3 | CE4: =IF(CE3,'Operating Assumptions'!$F$24,'Operating Assumptions'!$F$27) -> 3 | CF4: =IF(CF3,'Operating Assumptions'!$F$24,'Operating Assumptions'!$F$27) -> 3 | CG4: =IF(CG3,'Operating Assumptions'!$F$24,'Operating Assumptions'!$F$27) -> 3 | CH4: =IF(CH3,'Operating Assumptions'!$F$24,'Operating Assumptions'!$F$27) -> 3 | CI4: =IF(CI3,'Operating Assumptions'!$F$24,'Operating Assumptions'!$F$27) -> 3 | CJ4: =IF(CJ3,'Operating Assumptions'!$F$24,'Operating Assumptions'!$F$27) -> 3 | CK4: =IF(CK3,'Operating Assumptions'!$F$24,'Operating Assumptions'!$F$27) -> 3 | CL4: =IF(CL3,'Operating Assumptions'!$F$24,'Operating Assumptions'!$F$27) -> 3 | CM4: =IF(CM3,'Operating Assumptions'!$F$24,'Operating Assumptions'!$F$27) -> 3 | CN4: =IF(CN3,'Operating Assumptions'!$F$24,'Operating Assumptions'!$F$27) -> 3 | CO4: =IF(CO3,'Operating Assumptions'!$F$24,'Operating Assumptions'!$F$27) -> 3 | CP4: =IF(CP3,'Operating Assumptions'!$F$24,'Operating Assumptions'!$F$27) -> 3 | CQ4: =IF(CQ3,'Operating Assumptions'!$F$24,'Operating Assumptions'!$F$27) -> 3 | CR4: =IF(CR3,'Operating Assumptions'!$F$24,'Operating Assumptions'!$F$27) -> 3 | CS4: =IF(CS3,'Operating Assumptions'!$F$24,'Operating Assumptions'!$F$27) -> 3 | CT4: =IF(CT3,'Operating Assumptions'!$F$24,'Operating Assumptions'!$F$27) -> 3 | CU4: =IF(CU3,'Operating Assumptions'!$F$24,'Operating Assumptions'!$F$27) -> 3 | CV4: =IF(CV3,'Operating Assumptions'!$F$24,'Operating Assumptions'!$F$27) -> 3 | CW4: =IF(CW3,'Operating Assumptions'!$F$24,'Operating Assumptions'!$F$27) -> 3 | CX4: =IF(CX3,'Operating Assumptions'!$F$24,'Operating Assumptions'!$F$27) -> 3 | CY4: =IF(CY3,'Operating Assumptions'!$F$24,'Operating Assumptions'!$F$27) -> 3 | CZ4: =IF(CZ3,'Operating Assumptions'!$F$24,'Operating Assumptions'!$F$27) -> 3 | DA4: =IF(DA3,'Operating Assumptions'!$F$24,'Operating Assumptions'!$F$27) -> 3 | DB4: =IF(DB3,'Operating Assumptions'!$F$24,'Operating Assumptions'!$F$27) -> 3 | DC4: =IF(DC3,'Operating Assumptions'!$F$24,'Operating Assumptions'!$F$27) -> 3 | DD4: =IF(DD3,'Operating Assumptions'!$F$24,'Operating Assumptions'!$F$27) -> 3 | DE4: =IF(DE3,'Operating Assumptions'!$F$24,'Operating Assumptions'!$F$27) -> 3 | DF4: =IF(DF3,'Operating Assumptions'!$F$24,'Operating Assumptions'!$F$27) -> 3 | DG4: =IF(DG3,'Operating Assumptions'!$F$24,'Operating Assumptions'!$F$27) -> 3 | DH4: =IF(DH3,'Operating Assumptions'!$F$24,'Operating Assumptions'!$F$27) -> 3 | DI4: =IF(DI3,'Operating Assumptions'!$F$24,'Operating Assumptions'!$F$27) -> 3 | DJ4: =IF(DJ3,'Operating Assumptions'!$F$24,'Operating Assumptions'!$F$27) -> 3 | DK4: =IF(DK3,'Operating Assumptions'!$F$24,'Operating Assumptions'!$F$27) -> 3 | DL4: =IF(DL3,'Operating Assumptions'!$F$24,'Operating Assumptions'!$F$27) -> 3 | DM4: =IF(DM3,'Operating Assumptions'!$F$24,'Operating Assumptions'!$F$27) -> 3 | DN4: =IF(DN3,'Operating Assumptions'!$F$24,'Operating Assumptions'!$F$27) -> 3 | DO4: =IF(DO3,'Operating Assumptions'!$F$24,'Operating Assumptions'!$F$27) -> 3 | DP4: =IF(DP3,'Operating Assumptions'!$F$24,'Operating Assumptions'!$F$27) -> 3 | DQ4: =IF(DQ3,'Operating Assumptions'!$F$24,'Operating Assumptions'!$F$27) -> 3 | DR4: =IF(DR3,'Operating Assumptions'!$F$24,'Operating Assumptions'!$F$27) -> 3 | DS4: =IF(DS3,'Operating Assumptions'!$F$24,'Operating Assumptions'!$F$27) -> 3 | DT4: =IF(DT3,'Operating Assumptions'!$F$24,'Operating Assumptions'!$F$27) -> 3 | DU4: =IF(DU3,'Operating Assumptions'!$F$24,'Operating Assumptions'!$F$27) -> 3 | DV4: =IF(DV3,'Operating Assumptions'!$F$24,'Operating Assumptions'!$F$27) -> 3 | DW4: =IF(DW3,'Operating Assumptions'!$F$24,'Operating Assumptions'!$F$27) -> 3 | DX4: =IF(DX3,'Operating Assumptions'!$F$24,'Operating Assumptions'!$F$27) -> 3 | DY4: =IF(DY3,'Operating Assumptions'!$F$24,'Operating Assumptions'!$F$27) -> 3 | DZ4: =IF(DZ3,'Operating Assumptions'!$F$24,'Operating Assumptions'!$F$27) -> 3 | EA4: =IF(EA3,'Operating Assumptions'!$F$24,'Operating Assumptions'!$F$27) -> 3 | EB4: =IF(EB3,'Operating Assumptions'!$F$24,'Operating Assumptions'!$F$27) -> 3 | EC4: =IF(EC3,'Operating Assumptions'!$F$24,'Operating Assumptions'!$F$27) -> 3 | ED4: =IF(ED3,'Operating Assumptions'!$F$24,'Operating Assumptions'!$F$27) -> 3 | EE4: =IF(EE3,'Operating Assumptions'!$F$24,'Operating Assumptions'!$F$27) -> 3 | EF4: =IF(EF3,'Operating Assumptions'!$F$24,'Operating Assumptions'!$F$27) -> 3 | EG4: =IF(EG3,'Operating Assumptions'!$F$24,'Operating Assumptions'!$F$27) -> 3 | EH4: =IF(EH3,'Operating Assumptions'!$F$24,'Operating Assumptions'!$F$27) -> 3 | EI4: =IF(EI3,'Operating Assumptions'!$F$24,'Operating Assumptions'!$F$27) -> 3 | EJ4: =IF(EJ3,'Operating Assumptions'!$F$24,'Operating Assumptions'!$F$27) -> 3 | EK4: =IF(EK3,'Operating Assumptions'!$F$24,'Operating Assumptions'!$F$27) -> 3 | EL4: =IF(EL3,'Operating Assumptions'!$F$24,'Operating Assumptions'!$F$27) -> 3 | EM4: =IF(EM3,'Operating Assumptions'!$F$24,'Operating Assumptions'!$F$27) -> 3 | EN4: =IF(EN3,'Operating Assumptions'!$F$24,'Operating Assumptions'!$F$27) -> 3 | EO4: =IF(EO3,'Operating Assumptions'!$F$24,'Operating Assumptions'!$F$27) -> 3 | EP4: =IF(EP3,'Operating Assumptions'!$F$24,'Operating Assumptions'!$F$27) -> 3 | EQ4: =IF(EQ3,'Operating Assumptions'!$F$24,'Operating Assumptions'!$F$27) -> 3 | ER4: =IF(ER3,'Operating Assumptions'!$F$24,'Operating Assumptions'!$F$27) -> 3 | ES4: =IF(ES3,'Operating Assumptions'!$F$24,'Operating Assumptions'!$F$27) -> 3 | ET4: =IF(ET3,'Operating Assumptions'!$F$24,'Operating Assumptions'!$F$27) -> 3 | EU4: =IF(EU3,'Operating Assumptions'!$F$24,'Operating Assumptions'!$F$27) -> 3 | EV4: =IF(EV3,'Operating Assumptions'!$F$24,'Operating Assumptions'!$F$27) -> 3 | EW4: =IF(EW3,'Operating Assumptions'!$F$24,'Operating Assumptions'!$F$27) -> 3 | EX4: =IF(EX3,'Operating Assumptions'!$F$24,'Operating Assumptions'!$F$27) -> 3 | EY4: =IF(EY3,'Operating Assumptions'!$F$24,'Operating Assumptions'!$F$27) -> 3 | EZ4: =IF(EZ3,'Operating Assumptions'!$F$24,'Operating Assumptions'!$F$27) -> 3 | FA4: =IF(FA3,'Operating Assumptions'!$F$24,'Operating Assumptions'!$F$27) -> 3 | FB4: =IF(FB3,'Operating Assumptions'!$F$24,'Operating Assumptions'!$F$27) -> 3 | FC4: =IF(FC3,'Operating Assumptions'!$F$24,'Operating Assumptions'!$F$27) -> 3 | FD4: =IF(FD3,'Operating Assumptions'!$F$24,'Operating Assumptions'!$F$27) -> 3 | FE4: =IF(FE3,'Operating Assumptions'!$F$24,'Operating Assumptions'!$F$27) -> 3 | FF4: =IF(FF3,'Operating Assumptions'!$F$24,'Operating Assumptions'!$F$27) -> 3 | FG4: =IF(FG3,'Operating Assumptions'!$F$24,'Operating Assumptions'!$F$27) -> 3 | FH4: =IF(FH3,'Operating Assumptions'!$F$24,'Operating Assumptions'!$F$27) -> 3 | FI4: =IF(FI3,'Operating Assumptions'!$F$24,'Operating Assumptions'!$F$27) -> 3 | FJ4: =IF(FJ3,'Operating Assumptions'!$F$24,'Operating Assumptions'!$F$27) -> 3 | FK4: =IF(FK3,'Operating Assumptions'!$F$24,'Operating Assumptions'!$F$27) -> 3 | FL4: =IF(FL3,'Operating Assumptions'!$F$24,'Operating Assumptions'!$F$27) -> 3 | FM4: =IF(FM3,'Operating Assumptions'!$F$24,'Operating Assumptions'!$F$27) -> 3 | FN4: =IF(FN3,'Operating Assumptions'!$F$24,'Operating Assumptions'!$F$27) -> 3 | FO4: =IF(FO3,'Operating Assumptions'!$F$24,'Operating Assumptions'!$F$27) -> 3 | FP4: =IF(FP3,'Operating Assumptions'!$F$24,'Operating Assumptions'!$F$27) -> 3 | FQ4: =IF(FQ3,'Operating Assumptions'!$F$24,'Operating Assumptions'!$F$27) -> 3 | FR4: =IF(FR3,'Operating Assumptions'!$F$24,'Operating Assumptions'!$F$27) -> 3 | FS4: =IF(FS3,'Operating Assumptions'!$F$24,'Operating Assumptions'!$F$27) -> 3 | FT4: =IF(FT3,'Operating Assumptions'!$F$24,'Operating Assumptions'!$F$27) -> 3 | FU4: =IF(FU3,'Operating Assumptions'!$F$24,'Operating Assumptions'!$F$27) -> 3 | FV4: =IF(FV3,'Operating Assumptions'!$F$24,'Operating Assumptions'!$F$27) -> 3 | FW4: =IF(FW3,'Operating Assumptions'!$F$24,'Operating Assumptions'!$F$27) -> 3 | FX4: =IF(FX3,'Operating Assumptions'!$F$24,'Operating Assumptions'!$F$27) -> 3 | FY4: =IF(FY3,'Operating Assumptions'!$F$24,'Operating Assumptions'!$F$27) -> 3 | FZ4: =IF(FZ3,'Operating Assumptions'!$F$24,'Operating Assumptions'!$F$27) -> 3 | GA4: =IF(GA3,'Operating Assumptions'!$F$24,'Operating Assumptions'!$F$27) -> 3 | GB4: =IF(GB3,'Operating Assumptions'!$F$24,'Operating Assumptions'!$F$27) -> 3 | GC4: =IF(GC3,'Operating Assumptions'!$F$24,'Operating Assumptions'!$F$27) -> 3 | GD4: =IF(GD3,'Operating Assumptions'!$F$24,'Operating Assumptions'!$F$27) -> 3 | GE4: =IF(GE3,'Operating Assumptions'!$F$24,'Operating Assumptions'!$F$27) -> 3 | GF4: =IF(GF3,'Operating Assumptions'!$F$24,'Operating Assumptions'!$F$27) -> 3 | GG4: =IF(GG3,'Operating Assumptions'!$F$24,'Operating Assumptions'!$F$27) -> 3 | GH4: =IF(GH3,'Operating Assumptions'!$F$24,'Operating Assumptions'!$F$27) -> 3 | GI4: =IF(GI3,'Operating Assumptions'!$F$24,'Operating Assumptions'!$F$27) -> 3 | GJ4: =IF(GJ3,'Operating Assumptions'!$F$24,'Operating Assumptions'!$F$27) -> 3 | GK4: =IF(GK3,'Operating Assumptions'!$F$24,'Operating Assumptions'!$F$27) -> 3 | GL4: =IF(GL3,'Operating Assumptions'!$F$24,'Operating Assumptions'!$F$27) -> 3 | GM4: =IF(GM3,'Operating Assumptions'!$F$24,'Operating Assumptions'!$F$27) -> 3 | GN4: =IF(GN3,'Operating Assumptions'!$F$24,'Operating Assumptions'!$F$27) -> 3 | GO4: =IF(GO3,'Operating Assumptions'!$F$24,'Operating Assumptions'!$F$27) -> 3 | GP4: =IF(GP3,'Operating Assumptions'!$F$24,'Operating Assumptions'!$F$27) -> 3 | GQ4: =IF(GQ3,'Operating Assumptions'!$F$24,'Operating Assumptions'!$F$27) -> 3 | GR4: =IF(GR3,'Operating Assumptions'!$F$24,'Operating Assumptions'!$F$27) -> 3 | GS4: =IF(GS3,'Operating Assumptions'!$F$24,'Operating Assumptions'!$F$27) -> 3 | GT4: =IF(GT3,'Operating Assumptions'!$F$24,'Operating Assumptions'!$F$27) -> 3 | GU4: =IF(GU3,'Operating Assumptions'!$F$24,'Operating Assumptions'!$F$27) -> 3 | GV4: =IF(GV3,'Operating Assumptions'!$F$24,'Operating Assumptions'!$F$27) -> 3 | GW4: =IF(GW3,'Operating Assumptions'!$F$24,'Operating Assumptions'!$F$27) -> 3 | GX4: =IF(GX3,'Operating Assumptions'!$F$24,'Operating Assumptions'!$F$27) -> 3 | GY4: =IF(GY3,'Operating Assumptions'!$F$24,'Operating Assumptions'!$F$27) -> 3 | GZ4: =IF(GZ3,'Operating Assumptions'!$F$24,'Operating Assumptions'!$F$27) -> 3 | HA4: =IF(HA3,'Operating Assumptions'!$F$24,'Operating Assumptions'!$F$27) -> 3 | HB4: =IF(HB3,'Operating Assumptions'!$F$24,'Operating Assumptions'!$F$27) -> 3 | HC4: =IF(HC3,'Operating Assumptions'!$F$24,'Operating Assumptions'!$F$27) -> 3 | HD4: =IF(HD3,'Operating Assumptions'!$F$24,'Operating Assumptions'!$F$27) -> 3 | HE4: =IF(HE3,'Operating Assumptions'!$F$24,'Operating Assumptions'!$F$27) -> 3 | HF4: =IF(HF3,'Operating Assumptions'!$F$24,'Operating Assumptions'!$F$27) -> 3 | HG4: =IF(HG3,'Operating Assumptions'!$F$24,'Operating Assumptions'!$F$27) -> 3 | HH4: =IF(HH3,'Operating Assumptions'!$F$24,'Operating Assumptions'!$F$27) -> 3 | HI4: =IF(HI3,'Operating Assumptions'!$F$24,'Operating Assumptions'!$F$27) -> 3 | HJ4: =IF(HJ3,'Operating Assumptions'!$F$24,'Operating Assumptions'!$F$27) -> 3 | HK4: =IF(HK3,'Operating Assumptions'!$F$24,'Operating Assumptions'!$F$27) -> 3 | HL4: =IF(HL3,'Operating Assumptions'!$F$24,'Operating Assumptions'!$F$27) -> 3 | HM4: =IF(HM3,'Operating Assumptions'!$F$24,'Operating Assumptions'!$F$27) -> 3 | HN4: =IF(HN3,'Operating Assumptions'!$F$24,'Operating Assumptions'!$F$27) -> 3 | HO4: =IF(HO3,'Operating Assumptions'!$F$24,'Operating Assumptions'!$F$27) -> 3 | HP4: =IF(HP3,'Operating Assumptions'!$F$24,'Operating Assumptions'!$F$27) -> 3 | HQ4: =IF(HQ3,'Operating Assumptions'!$F$24,'Operating Assumptions'!$F$27) -> 3 | HR4: =IF(HR3,'Operating Assumptions'!$F$24,'Operating Assumptions'!$F$27) -> 3 | HS4: =IF(HS3,'Operating Assumptions'!$F$24,'Operating Assumptions'!$F$27) -> 3 | HT4: =IF(HT3,'Operating Assumptions'!$F$24,'Operating Assumptions'!$F$27) -> 3 | HU4: =IF(HU3,'Operating Assumptions'!$F$24,'Operating Assumptions'!$F$27) -> 3 | HV4: =IF(HV3,'Operating Assumptions'!$F$24,'Operating Assumptions'!$F$27) -> 3 | HW4: =IF(HW3,'Operating Assumptions'!$F$24,'Operating Assumptions'!$F$27) -> 3 | HX4: =IF(HX3,'Operating Assumptions'!$F$24,'Operating Assumptions'!$F$27) -> 3 | HY4: =IF(HY3,'Operating Assumptions'!$F$24,'Operating Assumptions'!$F$27) -> 3 | HZ4: =IF(HZ3,'Operating Assumptions'!$F$24,'Operating Assumptions'!$F$27) -> 3 | IA4: =IF(IA3,'Operating Assumptions'!$F$24,'Operating Assumptions'!$F$27) -> 3 | IB4: =IF(IB3,'Operating Assumptions'!$F$24,'Operating Assumptions'!$F$27) -> 3 | IC4: =IF(IC3,'Operating Assumptions'!$F$24,'Operating Assumptions'!$F$27) -> 3 | ID4: =IF(ID3,'Operating Assumptions'!$F$24,'Operating Assumptions'!$F$27) -> 3 | IE4: =IF(IE3,'Operating Assumptions'!$F$24,'Operating Assumptions'!$F$27) -> 3 | IF4: =IF(IF3,'Operating Assumptions'!$F$24,'Operating Assumptions'!$F$27) -> 3 | IG4: =IF(IG3,'Operating Assumptions'!$F$24,'Operating Assumptions'!$F$27) -> 3 | IH4: =IF(IH3,'Operating Assumptions'!$F$24,'Operating Assumptions'!$F$27) -> 3 | II4: =IF(II3,'Operating Assumptions'!$F$24,'Operating Assumptions'!$F$27) -> 3 | IJ4: =IF(IJ3,'Operating Assumptions'!$F$24,'Operating Assumptions'!$F$27) -> 3 | IK4: =IF(IK3,'Operating Assumptions'!$F$24,'Operating Assumptions'!$F$27) -> 3 | IL4: =IF(IL3,'Operating Assumptions'!$F$24,'Operating Assumptions'!$F$27) -> 3 | IM4: =IF(IM3,'Operating Assumptions'!$F$24,'Operating Assumptions'!$F$27) -> 3 | IN4: =IF(IN3,'Operating Assumptions'!$F$24,'Operating Assumptions'!$F$27) -> 3 | IO4: =IF(IO3,'Operating Assumptions'!$F$24,'Operating Assumptions'!$F$27) -> 3 | IP4: =IF(IP3,'Operating Assumptions'!$F$24,'Operating Assumptions'!$F$27) -> 3 | IQ4: =IF(IQ3,'Operating Assumptions'!$F$24,'Operating Assumptions'!$F$27) -> 3 | IR4: =IF(IR3,'Operating Assumptions'!$F$24,'Operating Assumptions'!$F$27) -> 3 | IS4: =IF(IS3,'Operating Assumptions'!$F$24,'Operating Assumptions'!$F$27) -> 3 | IT4: =IF(IT3,'Operating Assumptions'!$F$24,'Operating Assumptions'!$F$27) -> 3 | IU4: =IF(IU3,'Operating Assumptions'!$F$24,'Operating Assumptions'!$F$27) -> 3 | IV4: =IF(IV3,'Operating Assumptions'!$F$24,'Operating Assumptions'!$F$27) -> 3 | IW4: =IF(IW3,'Operating Assumptions'!$F$24,'Operating Assumptions'!$F$27) -> 3 | IX4: =IF(IX3,'Operating Assumptions'!$F$24,'Operating Assumptions'!$F$27) -> 3 | IY4: =IF(IY3,'Operating Assumptions'!$F$24,'Operating Assumptions'!$F$27) -> 3 | IZ4: =IF(IZ3,'Operating Assumptions'!$F$24,'Operating Assumptions'!$F$27) -> 3 | JA4: =IF(JA3,'Operating Assumptions'!$F$24,'Operating Assumptions'!$F$27) -> 3 | JB4: =IF(JB3,'Operating Assumptions'!$F$24,'Operating Assumptions'!$F$27) -> 3 | JC4: =IF(JC3,'Operating Assumptions'!$F$24,'Operating Assumptions'!$F$27) -> 3 | JD4: =IF(JD3,'Operating Assumptions'!$F$24,'Operating Assumptions'!$F$27) -> 3 | JE4: =IF(JE3,'Operating Assumptions'!$F$24,'Operating Assumptions'!$F$27) -> 3
B5: Period/Year | K5: =12/K4 -> 12 | L5: 12 | M5: 12 | N5: 12 | O5: 12 | P5: 12 | Q5: 12 | R5: 12 | S5: 12 | T5: 12 | U5: 12 | V5: 12 | W5: 12 | X5: 12 | Y5: 12 | Z5: 12 | AA5: 12 | AB5: 12 | AC5: 12 | AD5: 12 | AE5: 12 | AF5: 12 | AG5: 12 | AH5: 12 | AI5: 12 | AJ5: 12 | AK5: 12 | AL5: 12 | AM5: 12 | AN5: 12 | AO5: 12 | AP5: 12 | AQ5: 12 | AR5: 12 | AS5: 12 | AT5: 12 | AU5: 12 | AV5: 12 | AW5: 12 | AX5: 12 | AY5: 12 | AZ5: 12 | BA5: 12 | BB5: 12 | BC5: 12 | BD5: 4 | BE5: 4 | BF5: 4 | BG5: 4 | BH5: 4 | BI5: 4 | BJ5: 4 | BK5: 4 | BL5: 4 | BM5: 4 | BN5: 4 | BO5: 4 | BP5: 4 | BQ5: 4 | BR5: 4 | BS5: 4 | BT5: 4 | BU5: 4 | BV5: 4 | BW5: =12/BW4 -> 4 | BX5: 4 | BY5: 4 | BZ5: 4 | CA5: 4 | CB5: 4 | CC5: 4 | CD5: 4 | CE5: 4 | CF5: 4 | CG5: 4 | CH5: 4 | CI5: 4 | CJ5: 4 | CK5: 4 | CL5: 4 | CM5: 4 | CN5: 4 | CO5: 4 | CP5: 4 | CQ5: 4 | CR5: 4 | CS5: 4 | CT5: 4 | CU5: 4 | CV5: 4 | CW5: 4 | CX5: 4 | CY5: 4 | CZ5: 4 | DA5: 4 | DB5: 4 | DC5: 4 | DD5: 4 | DE5: 4 | DF5: 4 | DG5: 4 | DH5: 4 | DI5: 4 | DJ5: 4 | DK5: 4 | DL5: 4 | DM5: 4 | DN5: 4 | DO5: 4 | DP5: 4 | DQ5: 4 | DR5: 4 | DS5: 4 | DT5: 4 | DU5: 4 | DV5: 4 | DW5: 4 | DX5: 4 | DY5: 4 | DZ5: 4 | EA5: 4 | EB5: 4 | EC5: 4 | ED5: 4 | EE5: 4 | EF5: 4 | EG5: 4 | EH5: 4 | EI5: =12/EI4 -> 4 | EJ5: 4 | EK5: 4 | EL5: 4 | EM5: 4 | EN5: 4 | EO5: 4 | EP5: 4 | EQ5: 4 | ER5: 4 | ES5: 4 | ET5: 4 | EU5: 4 | EV5: 4 | EW5: 4 | EX5: 4 | EY5: 4 | EZ5: 4 | FA5: 4 | FB5: 4 | FC5: 4 | FD5: 4 | FE5: 4 | FF5: 4 | FG5: 4 | FH5: 4 | FI5: 4 | FJ5: 4 | FK5: 4 | FL5: 4 | FM5: 4 | FN5: 4 | FO5: 4 | FP5: 4 | FQ5: 4 | FR5: 4 | FS5: 4 | FT5: 4 | FU5: 4 | FV5: 4 | FW5: 4 | FX5: 4 | FY5: 4 | FZ5: 4 | GA5: 4 | GB5: 4 | GC5: 4 | GD5: 4 | GE5: 4 | GF5: 4 | GG5: 4 | GH5: 4 | GI5: 4 | GJ5: 4 | GK5: 4 | GL5: 4 | GM5: 4 | GN5: 4 | GO5: 4 | GP5: 4 | GQ5: 4 | GR5: 4 | GS5: 4 | GT5: 4 | GU5: =12/GU4 -> 4 | GV5: 4 | GW5: 4 | GX5: 4 | GY5: 4 | GZ5: 4 | HA5: 4 | HB5: 4 | HC5: 4 | HD5: 4 | HE5: 4 | HF5: 4 | HG5: 4 | HH5: 4 | HI5: 4 | HJ5: 4 | HK5: 4 | HL5: 4 | HM5: 4 | HN5: 4 | HO5: 4 | HP5: 4 | HQ5: 4 | HR5: 4 | HS5: 4 | HT5: 4 | HU5: 4 | HV5: 4 | HW5: 4 | HX5: 4 | HY5: 4 | HZ5: 4 | IA5: 4 | IB5: 4 | IC5: 4 | ID5: 4 | IE5: 4 | IF5: 4 | IG5: 4 | IH5: 4 | II5: 4 | IJ5: 4 | IK5: 4 | IL5: 4 | IM5: 4 | IN5: 4 | IO5: 4 | IP5: 4 | IQ5: 4 | IR5: 4 | IS5: 4 | IT5: 4 | IU5: 4 | IV5: 4 | IW5: 4 | IX5: 4 | IY5: 4 | IZ5: 4 | JA5: 4 | JB5: 4 | JC5: 4 | JD5: 4 | JE5: 4
B6: Start of Period | E6: Model check | L6: =K7+1 -> 2013-10-01 | M6: 2013-11-01 | N6: 2013-12-01 | O6: 2014-01-01 | P6: 2014-02-01 | Q6: 2014-03-01 | R6: 2014-04-01 | S6: 2014-05-01 | T6: 2014-06-01 | U6: 2014-07-01 | V6: 2014-08-01 | W6: 2014-09-01 | X6: 2014-10-01 | Y6: 2014-11-01 | Z6: 2014-12-01 | AA6: 2015-01-01 | AB6: 2015-02-01 | AC6: 2015-03-01 | AD6: 2015-04-01 | AE6: 2015-05-01 | AF6: 2015-06-01 | AG6: 2015-07-01 | AH6: 2015-08-01 | AI6: 2015-09-01 | AJ6: 2015-10-01 | AK6: 2015-11-01 | AL6: 2015-12-01 | AM6: 2016-01-01 | AN6: 2016-02-01 | AO6: 2016-03-01 | AP6: 2016-04-01 | AQ6: 2016-05-01 | AR6: 2016-06-01 | AS6: 2016-07-01 | AT6: 2016-08-01 | AU6: 2016-09-01 | AV6: 2016-10-01 | AW6: 2016-11-01 | AX6: 2016-12-01 | AY6: 2017-01-01 | AZ6: 2017-02-01 | BA6: 2017-03-01 | BB6: 2017-04-01 | BC6: 2017-05-01 | BD6: 2017-06-01 | BE6: 2017-09-01 | BF6: 2017-12-01 | BG6: 2018-03-01 | BH6: 2018-06-01 | BI6: 2018-09-01 | BJ6: 2018-12-01 | BK6: 2019-03-01 | BL6: 2019-06-01 | BM6: 2019-09-01 | BN6: 2019-12-01 | BO6: 2020-03-01 | BP6: 2020-06-01 | BQ6: 2020-09-01 | BR6: 2020-12-01 | BS6: 2021-03-01 | BT6: 2021-06-01 | BU6: 2021-09-01 | BV6: 2021-12-01 | BW6: 2022-03-01 | BX6: =BW7+1 -> 2022-06-01 | BY6: 2022-09-01 | BZ6: 2022-12-01 | CA6: 2023-03-01 | CB6: 2023-06-01 | CC6: 2023-09-01 | CD6: 2023-12-01 | CE6: 2024-03-01 | CF6: 2024-06-01 | CG6: 2024-09-01 | CH6: 2024-12-01 | CI6: 2025-03-01 | CJ6: 2025-06-01 | CK6: 2025-09-01 | CL6: 2025-12-01 | CM6: 2026-03-01 | CN6: 2026-06-01 | CO6: 2026-09-01 | CP6: 2026-12-01 | CQ6: 2027-03-01 | CR6: 2027-06-01 | CS6: 2027-09-01 | CT6: 2027-12-01 | CU6: 2028-03-01 | CV6: 2028-06-01 | CW6: 2028-09-01 | CX6: 2028-12-01 | CY6: 2029-03-01 | CZ6: 2029-06-01 | DA6: 2029-09-01 | DB6: 2029-12-01 | DC6: 2030-03-01 | DD6: 2030-06-01 | DE6: 2030-09-01 | DF6: 2030-12-01 | DG6: 2031-03-01 | DH6: 2031-06-01 | DI6: 2031-09-01 | DJ6: 2031-12-01 | DK6: 2032-03-01 | DL6: 2032-06-01 | DM6: 2032-09-01 | DN6: 2032-12-01 | DO6: 2033-03-01 | DP6: 2033-06-01 | DQ6: 2033-09-01 | DR6: 2033-12-01 | DS6: 2034-03-01 | DT6: 2034-06-01 | DU6: 2034-09-01 | DV6: 2034-12-01 | DW6: 2035-03-01 | DX6: 2035-06-01 | DY6: 2035-09-01 | DZ6: 2035-12-01 | EA6: 2036-03-01 | EB6: 2036-06-01 | EC6: 2036-09-01 | ED6: 2036-12-01 | EE6: 2037-03-01 | EF6: 2037-06-01 | EG6: 2037-09-01 | EH6: 2037-12-01 | EI6: 2038-03-01 | EJ6: =EI7+1 -> 2038-06-01 | EK6: 2038-09-01 | EL6: 2038-12-01 | EM6: 2039-03-01 | EN6: 2039-06-01 | EO6: 2039-09-01 | EP6: 2039-12-01 | EQ6: 2040-03-01 | ER6: 2040-06-01 | ES6: 2040-09-01 | ET6: 2040-12-01 | EU6: 2041-03-01 | EV6: 2041-06-01 | EW6: 2041-09-01 | EX6: 2041-12-01 | EY6: 2042-03-01 | EZ6: 2042-06-01 | FA6: 2042-09-01 | FB6: 2042-12-01 | FC6: 2043-03-01 | FD6: 2043-06-01 | FE6: 2043-09-01 | FF6: 2043-12-01 | FG6: 2044-03-01 | FH6: 2044-06-01 | FI6: 2044-09-01 | FJ6: 2044-12-01 | FK6: 2045-03-01 | FL6: 2045-06-01 | FM6: 2045-09-01 | FN6: 2045-12-01 | FO6: 2046-03-01 | FP6: 2046-06-01 | FQ6: 2046-09-01 | FR6: 2046-12-01 | FS6: 2047-03-01 | FT6: 2047-06-01 | FU6: 2047-09-01 | FV6: 2047-12-01 | FW6: 2048-03-01 | FX6: 2048-06-01 | FY6: 2048-09-01 | FZ6: 2048-12-01 | GA6: 2049-03-01 | GB6: 2049-06-01 | GC6: 2049-09-01 | GD6: 2049-12-01 | GE6: 2050-03-01 | GF6: 2050-06-01 | GG6: 2050-09-01 | GH6: 2050-12-01 | GI6: 2051-03-01 | GJ6: 2051-06-01 | GK6: 2051-09-01 | GL6: 2051-12-01 | GM6: 2052-03-01 | GN6: 2052-06-01 | GO6: 2052-09-01 | GP6: 2052-12-01 | GQ6: 2053-03-01 | GR6: 2053-06-01 | GS6: 2053-09-01 | GT6: 2053-12-01 | GU6: 2054-03-01 | GV6: =GU7+1 -> 2054-06-01 | GW6: 2054-09-01 | GX6: 2054-12-01 | GY6: 2055-03-01 | GZ6: 2055-06-01 | HA6: 2055-09-01 | HB6: 2055-12-01 | HC6: 2056-03-01 | HD6: 2056-06-01 | HE6: 2056-09-01 | HF6: 2056-12-01 | HG6: 2057-03-01 | HH6: 2057-06-01 | HI6: 2057-09-01 | HJ6: 2057-12-01 | HK6: 2058-03-01 | HL6: 2058-06-01 | HM6: 2058-09-01 | HN6: 2058-12-01 | HO6: 2059-03-01 | HP6: 2059-06-01 | HQ6: 2059-09-01 | HR6: 2059-12-01 | HS6: 2060-03-01 | HT6: 2060-06-01 | HU6: 2060-09-01 | HV6: 2060-12-01 | HW6: 2061-03-01 | HX6: 2061-06-01 | HY6: 2061-09-01 | HZ6: 2061-12-01 | IA6: 2062-03-01 | IB6: 2062-06-01 | IC6: 2062-09-01 | ID6: 2062-12-01 | IE6: 2063-03-01 | IF6: 2063-06-01 | IG6: 2063-09-01 | IH6: 2063-12-01 | II6: 2064-03-01 | IJ6: 2064-06-01 | IK6: 2064-09-01 | IL6: 2064-12-01 | IM6: 2065-03-01 | IN6: 2065-06-01 | IO6: 2065-09-01 | IP6: 2065-12-01 | IQ6: 2066-03-01 | IR6: 2066-06-01 | IS6: 2066-09-01 | IT6: 2066-12-01 | IU6: 2067-03-01 | IV6: 2067-06-01 | IW6: 2067-09-01 | IX6: 2067-12-01 | IY6: 2068-03-01 | IZ6: 2068-06-01 | JA6: 2068-09-01 | JB6: 2068-12-01 | JC6: 2069-03-01 | JD6: 2069-06-01 | JE6: 2069-09-01
B7: End of Period | J7: TEST | K7: ='Operating Assumptions'!F4-1 -> 2013-09-30 | L7: =EDATE(L6,L4)-1 -> 2013-10-31 | M7: 2013-11-30 | N7: 2013-12-31 | O7: 2014-01-31 | P7: 2014-02-28 | Q7: 2014-03-31 | R7: 2014-04-30 | S7: 2014-05-31 | T7: 2014-06-30 | U7: 2014-07-31 | V7: 2014-08-31 | W7: 2014-09-30 | X7: 2014-10-31 | Y7: 2014-11-30 | Z7: 2014-12-31 | AA7: 2015-01-31 | AB7: 2015-02-28 | AC7: 2015-03-31 | AD7: 2015-04-30 | AE7: 2015-05-31 | AF7: 2015-06-30 | AG7: 2015-07-31 | AH7: 2015-08-31 | AI7: 2015-09-30 | AJ7: 2015-10-31 | AK7: 2015-11-30 | AL7: 2015-12-31 | AM7: 2016-01-31 | AN7: 2016-02-29 | AO7: 2016-03-31 | AP7: 2016-04-30 | AQ7: 2016-05-31 | AR7: 2016-06-30 | AS7: 2016-07-31 | AT7: 2016-08-31 | AU7: 2016-09-30 | AV7: 2016-10-31 | AW7: 2016-11-30 | AX7: 2016-12-31 | AY7: 2017-01-31 | AZ7: 2017-02-28 | BA7: 2017-03-31 | BB7: 2017-04-30 | BC7: 2017-05-31 | BD7: 2017-08-31 | BE7: 2017-11-30 | BF7: 2018-02-28 | BG7: 2018-05-31 | BH7: 2018-08-31 | BI7: 2018-11-30 | BJ7: 2019-02-28 | BK7: 2019-05-31 | BL7: 2019-08-31 | BM7: 2019-11-30 | BN7: 2020-02-29 | BO7: 2020-05-31 | BP7: 2020-08-31 | BQ7: 2020-11-30 | BR7: 2021-02-28 | BS7: 2021-05-31 | BT7: 2021-08-31 | BU7: 2021-11-30 | BV7: 2022-02-28 | BW7: 2022-05-31 | BX7: =EDATE(BX6,BX4)-1 -> 2022-08-31 | BY7: 2022-11-30 | BZ7: 2023-02-28 | CA7: 2023-05-31 | CB7: 2023-08-31 | CC7: 2023-11-30 | CD7: 2024-02-29 | CE7: 2024-05-31 | CF7: 2024-08-31 | CG7: 2024-11-30 | CH7: 2025-02-28 | CI7: 2025-05-31 | CJ7: 2025-08-31 | CK7: 2025-11-30 | CL7: 2026-02-28 | CM7: 2026-05-31 | CN7: 2026-08-31 | CO7: 2026-11-30 | CP7: 2027-02-28 | CQ7: 2027-05-31 | CR7: 2027-08-31 | CS7: 2027-11-30 | CT7: 2028-02-29 | CU7: 2028-05-31 | CV7: 2028-08-31 | CW7: 2028-11-30 | CX7: 2029-02-28 | CY7: 2029-05-31 | CZ7: 2029-08-31 | DA7: 2029-11-30 | DB7: 2030-02-28 | DC7: 2030-05-31 | DD7: 2030-08-31 | DE7: 2030-11-30 | DF7: 2031-02-28 | DG7: 2031-05-31 | DH7: 2031-08-31 | DI7: 2031-11-30 | DJ7: 2032-02-29 | DK7: 2032-05-31 | DL7: 2032-08-31 | DM7: 2032-11-30 | DN7: 2033-02-28 | DO7: 2033-05-31 | DP7: 2033-08-31 | DQ7: 2033-11-30 | DR7: 2034-02-28 | DS7: 2034-05-31 | DT7: 2034-08-31 | DU7: 2034-11-30 | DV7: 2035-02-28 | DW7: 2035-05-31 | DX7: 2035-08-31 | DY7: 2035-11-30 | DZ7: 2036-02-29 | EA7: 2036-05-31 | EB7: 2036-08-31 | EC7: 2036-11-30 | ED7: 2037-02-28 | EE7: 2037-05-31 | EF7: 2037-08-31 | EG7: 2037-11-30 | EH7: 2038-02-28 | EI7: 2038-05-31 | EJ7: =EDATE(EJ6,EJ4)-1 -> 2038-08-31 | EK7: 2038-11-30 | EL7: 2039-02-28 | EM7: 2039-05-31 | EN7: 2039-08-31 | EO7: 2039-11-30 | EP7: 2040-02-29 | EQ7: 2040-05-31 | ER7: 2040-08-31 | ES7: 2040-11-30 | ET7: 2041-02-28 | EU7: 2041-05-31 | EV7: 2041-08-31 | EW7: 2041-11-30 | EX7: 2042-02-28 | EY7: 2042-05-31 | EZ7: 2042-08-31 | FA7: 2042-11-30 | FB7: 2043-02-28 | FC7: 2043-05-31 | FD7: 2043-08-31 | FE7: 2043-11-30 | FF7: 2044-02-29 | FG7: 2044-05-31 | FH7: 2044-08-31 | FI7: 2044-11-30 | FJ7: 2045-02-28 | FK7: 2045-05-31 | FL7: 2045-08-31 | FM7: 2045-11-30 | FN7: 2046-02-28 | FO7: 2046-05-31 | FP7: 2046-08-31 | FQ7: 2046-11-30 | FR7: 2047-02-28 | FS7: 2047-05-31 | FT7: 2047-08-31 | FU7: 2047-11-30 | FV7: 2048-02-29 | FW7: 2048-05-31 | FX7: 2048-08-31 | FY7: 2048-11-30 | FZ7: 2049-02-28 | GA7: 2049-05-31 | GB7: 2049-08-31 | GC7: 2049-11-30 | GD7: 2050-02-28 | GE7: 2050-05-31 | GF7: 2050-08-31 | GG7: 2050-11-30 | GH7: 2051-02-28 | GI7: 2051-05-31 | GJ7: 2051-08-31 | GK7: 2051-11-30 | GL7: 2052-02-29 | GM7: 2052-05-31 | GN7: 2052-08-31 | GO7: 2052-11-30 | GP7: 2053-02-28 | GQ7: 2053-05-31 | GR7: 2053-08-31 | GS7: 2053-11-30 | GT7: 2054-02-28 | GU7: 2054-05-31 | GV7: =EDATE(GV6,GV4)-1 -> 2054-08-31 | GW7: 2054-11-30 | GX7: 2055-02-28 | GY7: 2055-05-31 | GZ7: 2055-08-31 | HA7: 2055-11-30 | HB7: 2056-02-29 | HC7: 2056-05-31 | HD7: 2056-08-31 | HE7: 2056-11-30 | HF7: 2057-02-28 | HG7: 2057-05-31 | HH7: 2057-08-31 | HI7: 2057-11-30 | HJ7: 2058-02-28 | HK7: 2058-05-31 | HL7: 2058-08-31 | HM7: 2058-11-30 | HN7: 2059-02-28 | HO7: 2059-05-31 | HP7: 2059-08-31 | HQ7: 2059-11-30 | HR7: 2060-02-29 | HS7: 2060-05-31 | HT7: 2060-08-31 | HU7: 2060-11-30 | HV7: 2061-02-28 | HW7: 2061-05-31 | HX7: 2061-08-31 | HY7: 2061-11-30 | HZ7: 2062-02-28 | IA7: 2062-05-31 | IB7: 2062-08-31 | IC7: 2062-11-30 | ID7: 2063-02-28 | IE7: 2063-05-31 | IF7: 2063-08-31 | IG7: 2063-11-30 | IH7: 2064-02-29 | II7: 2064-05-31 | IJ7: 2064-08-31 | IK7: 2064-11-30 | IL7: 2065-02-28 | IM7: 2065-05-31 | IN7: 2065-08-31 | IO7: 2065-11-30 | IP7: 2066-02-28 | IQ7: 2066-05-31 | IR7: 2066-08-31 | IS7: 2066-11-30 | IT7: 2067-02-28 | IU7: 2067-05-31 | IV7: 2067-08-31 | IW7: 2067-11-30 | IX7: 2068-02-29 | IY7: 2068-05-31 | IZ7: 2068-08-31 | JA7: 2068-11-30 | JB7: 2069-02-28 | JC7: 2069-05-31 | JD7: 2069-08-31 | JE7: 2069-11-30
B8: Year | L8: =YEAR(L7) -> 2013 | M8: 2013 | N8: 2013 | O8: 2014 | P8: 2014 | Q8: 2014 | R8: 2014 | S8: 2014 | T8: 2014 | U8: 2014 | V8: 2014 | W8: 2014 | X8: 2014 | Y8: 2014 | Z8: 2014 | AA8: 2015 | AB8: 2015 | AC8: 2015 | AD8: 2015 | AE8: 2015 | AF8: 2015 | AG8: 2015 | AH8: 2015 | AI8: 2015 | AJ8: 2015 | AK8: 2015 | AL8: 2015 | AM8: 2016 | AN8: 2016 | AO8: 2016 | AP8: 2016 | AQ8: 2016 | AR8: 2016 | AS8: 2016 | AT8: 2016 | AU8: 2016 | AV8: 2016 | AW8: 2016 | AX8: 2016 | AY8: 2017 | AZ8: 2017 | BA8: 2017 | BB8: 2017 | BC8: 2017 | BD8: 2017 | BE8: 2017 | BF8: 2018 | BG8: 2018 | BH8: 2018 | BI8: 2018 | BJ8: 2019 | BK8: 2019 | BL8: 2019 | BM8: 2019 | BN8: 2020 | BO8: 2020 | BP8: 2020 | BQ8: 2020 | BR8: 2021 | BS8: 2021 | BT8: 2021 | BU8: 2021 | BV8: 2022 | BW8: 2022 | BX8: =YEAR(BX7) -> 2022 | BY8: 2022 | BZ8: 2023 | CA8: 2023 | CB8: 2023 | CC8: 2023 | CD8: 2024 | CE8: 2024 | CF8: 2024 | CG8: 2024 | CH8: 2025 | CI8: 2025 | CJ8: 2025 | CK8: 2025 | CL8: 2026 | CM8: 2026 | CN8: 2026 | CO8: 2026 | CP8: 2027 | CQ8: 2027 | CR8: 2027 | CS8: 2027 | CT8: 2028 | CU8: 2028 | CV8: 2028 | CW8: 2028 | CX8: 2029 | CY8: 2029 | CZ8: 2029 | DA8: 2029 | DB8: 2030 | DC8: 2030 | DD8: 2030 | DE8: 2030 | DF8: 2031 | DG8: 2031 | DH8: 2031 | DI8: 2031 | DJ8: 2032 | DK8: 2032 | DL8: 2032 | DM8: 2032 | DN8: 2033 | DO8: 2033 | DP8: 2033 | DQ8: 2033 | DR8: 2034 | DS8: 2034 | DT8: 2034 | DU8: 2034 | DV8: 2035 | DW8: 2035 | DX8: 2035 | DY8: 2035 | DZ8: 2036 | EA8: 2036 | EB8: 2036 | EC8: 2036 | ED8: 2037 | EE8: 2037 | EF8: 2037 | EG8: 2037 | EH8: 2038 | EI8: 2038 | EJ8: =YEAR(EJ7) -> 2038 | EK8: 2038 | EL8: 2039 | EM8: 2039 | EN8: 2039 | EO8: 2039 | EP8: 2040 | EQ8: 2040 | ER8: 2040 | ES8: 2040 | ET8: 2041 | EU8: 2041 | EV8: 2041 | EW8: 2041 | EX8: 2042 | EY8: 2042 | EZ8: 2042 | FA8: 2042 | FB8: 2043 | FC8: 2043 | FD8: 2043 | FE8: 2043 | FF8: 2044 | FG8: 2044 | FH8: 2044 | FI8: 2044 | FJ8: 2045 | FK8: 2045 | FL8: 2045 | FM8: 2045 | FN8: 2046 | FO8: 2046 | FP8: 2046 | FQ8: 2046 | FR8: 2047 | FS8: 2047 | FT8: 2047 | FU8: 2047 | FV8: 2048 | FW8: 2048 | FX8: 2048 | FY8: 2048 | FZ8: 2049 | GA8: 2049 | GB8: 2049 | GC8: 2049 | GD8: 2050 | GE8: 2050 | GF8: 2050 | GG8: 2050 | GH8: 2051 | GI8: 2051 | GJ8: 2051 | GK8: 2051 | GL8: 2052 | GM8: 2052 | GN8: 2052 | GO8: 2052 | GP8: 2053 | GQ8: 2053 | GR8: 2053 | GS8: 2053 | GT8: 2054 | GU8: 2054 | GV8: =YEAR(GV7) -> 2054 | GW8: 2054 | GX8: 2055 | GY8: 2055 | GZ8: 2055 | HA8: 2055 | HB8: 2056 | HC8: 2056 | HD8: 2056 | HE8: 2056 | HF8: 2057 | HG8: 2057 | HH8: 2057 | HI8: 2057 | HJ8: 2058 | HK8: 2058 | HL8: 2058 | HM8: 2058 | HN8: 2059 | HO8: 2059 | HP8: 2059 | HQ8: 2059 | HR8: 2060 | HS8: 2060 | HT8: 2060 | HU8: 2060 | HV8: 2061 | HW8: 2061 | HX8: 2061 | HY8: 2061 | HZ8: 2062 | IA8: 2062 | IB8: 2062 | IC8: 2062 | ID8: 2063 | IE8: 2063 | IF8: 2063 | IG8: 2063 | IH8: 2064 | II8: 2064 | IJ8: 2064 | IK8: 2064 | IL8: 2065 | IM8: 2065 | IN8: 2065 | IO8: 2065 | IP8: 2066 | IQ8: 2066 | IR8: 2066 | IS8: 2066 | IT8: 2067 | IU8: 2067 | IV8: 2067 | IW8: 2067 | IX8: 2068 | IY8: 2068 | IZ8: 2068 | JA8: 2068 | JB8: 2069 | JC8: 2069 | JD8: 2069 | JE8: 2069
B9: Development Period | E9: FC | F9: ='Operating Assumptions'!F7 -> 2014-02-01 | I9: =COUNTIF(L9:JE9,TRUE) -> 4 | J9: =I9=I9 -> TRUE | L9: =L6<$F$9 -> TRUE | M9: TRUE | N9: TRUE | O9: TRUE | P9: FALSE | Q9: FALSE | R9: FALSE | S9: FALSE | T9: FALSE | U9: FALSE | V9: FALSE | W9: FALSE | X9: FALSE | Y9: FALSE | Z9: FALSE | AA9: FALSE | AB9: FALSE | AC9: FALSE | AD9: FALSE | AE9: FALSE | AF9: FALSE | AG9: FALSE | AH9: FALSE | AI9: FALSE | AJ9: FALSE | AK9: FALSE | AL9: FALSE | AM9: FALSE | AN9: FALSE | AO9: FALSE | AP9: FALSE | AQ9: FALSE | AR9: FALSE | AS9: FALSE | AT9: FALSE | AU9: FALSE | AV9: FALSE | AW9: FALSE | AX9: FALSE | AY9: FALSE | AZ9: FALSE | BA9: FALSE | BB9: FALSE | BC9: FALSE | BD9: FALSE | BE9: FALSE | BF9: FALSE | BG9: FALSE | BH9: FALSE | BI9: FALSE | BJ9: FALSE | BK9: FALSE | BL9: FALSE | BM9: FALSE | BN9: FALSE | BO9: FALSE | BP9: FALSE | BQ9: FALSE | BR9: FALSE | BS9: FALSE | BT9: FALSE | BU9: FALSE | BV9: FALSE | BW9: FALSE | BX9: =BX6<$F$9 -> FALSE | BY9: FALSE | BZ9: FALSE | CA9: FALSE | CB9: FALSE | CC9: FALSE | CD9: FALSE | CE9: FALSE | CF9: FALSE | CG9: FALSE | CH9: FALSE | CI9: FALSE | CJ9: FALSE | CK9: FALSE | CL9: FALSE | CM9: FALSE | CN9: FALSE | CO9: FALSE | CP9: FALSE | CQ9: FALSE | CR9: FALSE | CS9: FALSE | CT9: FALSE | CU9: FALSE | CV9: FALSE | CW9: FALSE | CX9: FALSE | CY9: FALSE | CZ9: FALSE | DA9: FALSE | DB9: FALSE | DC9: FALSE | DD9: FALSE | DE9: FALSE | DF9: FALSE | DG9: FALSE | DH9: FALSE | DI9: FALSE | DJ9: FALSE | DK9: FALSE | DL9: FALSE | DM9: FALSE | DN9: FALSE | DO9: FALSE | DP9: FALSE | DQ9: FALSE | DR9: FALSE | DS9: FALSE | DT9: FALSE | DU9: FALSE | DV9: FALSE | DW9: FALSE | DX9: FALSE | DY9: FALSE | DZ9: FALSE | EA9: FALSE | EB9: FALSE | EC9: FALSE | ED9: FALSE | EE9: FALSE | EF9: FALSE | EG9: FALSE | EH9: FALSE | EI9: FALSE | EJ9: =EJ6<$F$9 -> FALSE | EK9: FALSE | EL9: FALSE | EM9: FALSE | EN9: FALSE | EO9: FALSE | EP9: FALSE | EQ9: FALSE | ER9: FALSE | ES9: FALSE | ET9: FALSE | EU9: FALSE | EV9: FALSE | EW9: FALSE | EX9: FALSE | EY9: FALSE | EZ9: FALSE | FA9: FALSE | FB9: FALSE | FC9: FALSE | FD9: FALSE | FE9: FALSE | FF9: FALSE | FG9: FALSE | FH9: FALSE | FI9: FALSE | FJ9: FALSE | FK9: FALSE | FL9: FALSE | FM9: FALSE | FN9: FALSE | FO9: FALSE | FP9: FALSE | FQ9: FALSE | FR9: FALSE | FS9: FALSE | FT9: FALSE | FU9: FALSE | FV9: FALSE | FW9: FALSE | FX9: FALSE | FY9: FALSE | FZ9: FALSE | GA9: FALSE | GB9: FALSE | GC9: FALSE | GD9: FALSE | GE9: FALSE | GF9: FALSE | GG9: FALSE | GH9: FALSE | GI9: FALSE | GJ9: FALSE | GK9: FALSE | GL9: FALSE | GM9: FALSE | GN9: FALSE | GO9: FALSE | GP9: FALSE | GQ9: FALSE | GR9: FALSE | GS9: FALSE | GT9: FALSE | GU9: FALSE | GV9: =GV6<$F$9 -> FALSE | GW9: FALSE | GX9: FALSE | GY9: FALSE | GZ9: FALSE | HA9: FALSE | HB9: FALSE | HC9: FALSE | HD9: FALSE | HE9: FALSE | HF9: FALSE | HG9: FALSE | HH9: FALSE | HI9: FALSE | HJ9: FALSE | HK9: FALSE | HL9: FALSE | HM9: FALSE | HN9: FALSE | HO9: FALSE | HP9: FALSE | HQ9: FALSE | HR9: FALSE | HS9: FALSE | HT9: FALSE | HU9: FALSE | HV9: FALSE | HW9: FALSE | HX9: FALSE | HY9: FALSE | HZ9: FALSE | IA9: FALSE | IB9: FALSE | IC9: FALSE | ID9: FALSE | IE9: FALSE | IF9: FALSE | IG9: FALSE | IH9: FALSE | II9: FALSE | IJ9: FALSE | IK9: FALSE | IL9: FALSE | IM9: FALSE | IN9: FALSE | IO9: FALSE | IP9: FALSE | IQ9: FALSE | IR9: FALSE | IS9: FALSE | IT9: FALSE | IU9: FALSE | IV9: FALSE | IW9: FALSE | IX9: FALSE | IY9: FALSE | IZ9: FALSE | JA9: FALSE | JB9: FALSE | JC9: FALSE | JD9: FALSE | JE9: FALSE
B10: Construction Period | E10: COD | F10: ='Operating Assumptions'!F9 -> 2017-06-01 | I10: =COUNTIF(L10:JE10,TRUE) -> 40 | J10: =I10=I10 -> TRUE | L10: =AND(L6>=$F$9,L6<$F$10) -> FALSE | M10: FALSE | N10: FALSE | O10: FALSE | P10: TRUE | Q10: TRUE | R10: TRUE | S10: TRUE | T10: TRUE | U10: TRUE | V10: TRUE | W10: TRUE | X10: TRUE | Y10: TRUE | Z10: TRUE | AA10: TRUE | AB10: TRUE | AC10: TRUE | AD10: TRUE | AE10: TRUE | AF10: TRUE | AG10: TRUE | AH10: TRUE | AI10: TRUE | AJ10: TRUE | AK10: TRUE | AL10: TRUE | AM10: TRUE | AN10: TRUE | AO10: TRUE | AP10: TRUE | AQ10: TRUE | AR10: TRUE | AS10: TRUE | AT10: TRUE | AU10: TRUE | AV10: TRUE | AW10: TRUE | AX10: TRUE | AY10: TRUE | AZ10: TRUE | BA10: TRUE | BB10: TRUE | BC10: TRUE | BD10: FALSE | BE10: FALSE | BF10: FALSE | BG10: FALSE | BH10: FALSE | BI10: FALSE | BJ10: FALSE | BK10: FALSE | BL10: FALSE | BM10: FALSE | BN10: FALSE | BO10: FALSE | BP10: FALSE | BQ10: FALSE | BR10: FALSE | BS10: FALSE | BT10: FALSE | BU10: FALSE | BV10: FALSE | BW10: FALSE | BX10: =AND(BX6>=$F$9,BX6<$F$10) -> FALSE | BY10: FALSE | BZ10: FALSE | CA10: FALSE | CB10: FALSE | CC10: FALSE | CD10: FALSE | CE10: FALSE | CF10: FALSE | CG10: FALSE | CH10: FALSE | CI10: FALSE | CJ10: FALSE | CK10: FALSE | CL10: FALSE | CM10: FALSE | CN10: FALSE | CO10: FALSE | CP10: FALSE | CQ10: FALSE | CR10: FALSE | CS10: FALSE | CT10: FALSE | CU10: FALSE | CV10: FALSE | CW10: FALSE | CX10: FALSE | CY10: FALSE | CZ10: FALSE | DA10: FALSE | DB10: FALSE | DC10: FALSE | DD10: FALSE | DE10: FALSE | DF10: FALSE | DG10: FALSE | DH10: FALSE | DI10: FALSE | DJ10: FALSE | DK10: FALSE | DL10: FALSE | DM10: FALSE | DN10: FALSE | DO10: FALSE | DP10: FALSE | DQ10: FALSE | DR10: FALSE | DS10: FALSE | DT10: FALSE | DU10: FALSE | DV10: FALSE | DW10: FALSE | DX10: FALSE | DY10: FALSE | DZ10: FALSE | EA10: FALSE | EB10: FALSE | EC10: FALSE | ED10: FALSE | EE10: FALSE | EF10: FALSE | EG10: FALSE | EH10: FALSE | EI10: FALSE | EJ10: =AND(EJ6>=$F$9,EJ6<$F$10) -> FALSE | EK10: FALSE | EL10: FALSE | EM10: FALSE | EN10: FALSE | EO10: FALSE | EP10: FALSE | EQ10: FALSE | ER10: FALSE | ES10: FALSE | ET10: FALSE | EU10: FALSE | EV10: FALSE | EW10: FALSE | EX10: FALSE | EY10: FALSE | EZ10: FALSE | FA10: FALSE | FB10: FALSE | FC10: FALSE | FD10: FALSE | FE10: FALSE | FF10: FALSE | FG10: FALSE | FH10: FALSE | FI10: FALSE | FJ10: FALSE | FK10: FALSE | FL10: FALSE | FM10: FALSE | FN10: FALSE | FO10: FALSE | FP10: FALSE | FQ10: FALSE | FR10: FALSE | FS10: FALSE | FT10: FALSE | FU10: FALSE | FV10: FALSE | FW10: FALSE | FX10: FALSE | FY10: FALSE | FZ10: FALSE | GA10: FALSE | GB10: FALSE | GC10: FALSE | GD10: FALSE | GE10: FALSE | GF10: FALSE | GG10: FALSE | GH10: FALSE | GI10: FALSE | GJ10: FALSE | GK10: FALSE | GL10: FALSE | GM10: FALSE | GN10: FALSE | GO10: FALSE | GP10: FALSE | GQ10: FALSE | GR10: FALSE | GS10: FALSE | GT10: FALSE | GU10: FALSE | GV10: =AND(GV6>=$F$9,GV6<$F$10) -> FALSE | GW10: FALSE | GX10: FALSE | GY10: FALSE | GZ10: FALSE | HA10: FALSE | HB10: FALSE | HC10: FALSE | HD10: FALSE | HE10: FALSE | HF10: FALSE | HG10: FALSE | HH10: FALSE | HI10: FALSE | HJ10: FALSE | HK10: FALSE | HL10: FALSE | HM10: FALSE | HN10: FALSE | HO10: FALSE | HP10: FALSE | HQ10: FALSE | HR10: FALSE | HS10: FALSE | HT10: FALSE | HU10: FALSE | HV10: FALSE | HW10: FALSE | HX10: FALSE | HY10: FALSE | HZ10: FALSE | IA10: FALSE | IB10: FALSE | IC10: FALSE | ID10: FALSE | IE10: FALSE | IF10: FALSE | IG10: FALSE | IH10: FALSE | II10: FALSE | IJ10: FALSE | IK10: FALSE | IL10: FALSE | IM10: FALSE | IN10: FALSE | IO10: FALSE | IP10: FALSE | IQ10: FALSE | IR10: FALSE | IS10: FALSE | IT10: FALSE | IU10: FALSE | IV10: FALSE | IW10: FALSE | IX10: FALSE | IY10: FALSE | IZ10: FALSE | JA10: FALSE | JB10: FALSE | JC10: FALSE | JD10: FALSE | JE10: FALSE
B11: Operation Period | E11: End | F11: ='Operating Assumptions'!F11 -> 2042-06-01 | I11: =COUNTIF(L11:JE11,TRUE) -> 100 | J11: =I11/'Operating Assumptions'!$F$28='Operating Assumptions'!F10 -> TRUE | L11: =AND(L6>=$F$10,L6<$F$11) -> FALSE | M11: FALSE | N11: FALSE | O11: FALSE | P11: FALSE | Q11: FALSE | R11: FALSE | S11: FALSE | T11: FALSE | U11: FALSE | V11: FALSE | W11: FALSE | X11: FALSE | Y11: FALSE | Z11: FALSE | AA11: FALSE | AB11: FALSE | AC11: FALSE | AD11: FALSE | AE11: FALSE | AF11: FALSE | AG11: FALSE | AH11: FALSE | AI11: FALSE | AJ11: FALSE | AK11: FALSE | AL11: FALSE | AM11: FALSE | AN11: FALSE | AO11: FALSE | AP11: FALSE | AQ11: FALSE | AR11: FALSE | AS11: FALSE | AT11: FALSE | AU11: FALSE | AV11: FALSE | AW11: FALSE | AX11: FALSE | AY11: FALSE | AZ11: FALSE | BA11: FALSE | BB11: FALSE | BC11: FALSE | BD11: TRUE | BE11: TRUE | BF11: TRUE | BG11: TRUE | BH11: TRUE | BI11: TRUE | BJ11: TRUE | BK11: TRUE | BL11: TRUE | BM11: TRUE | BN11: TRUE | BO11: TRUE | BP11: TRUE | BQ11: TRUE | BR11: TRUE | BS11: TRUE | BT11: TRUE | BU11: TRUE | BV11: TRUE | BW11: TRUE | BX11: =AND(BX6>=$F$10,BX6<$F$11) -> TRUE | BY11: TRUE | BZ11: TRUE | CA11: TRUE | CB11: TRUE | CC11: TRUE | CD11: TRUE | CE11: TRUE | CF11: TRUE | CG11: TRUE | CH11: TRUE | CI11: TRUE | CJ11: TRUE | CK11: TRUE | CL11: TRUE | CM11: TRUE | CN11: TRUE | CO11: TRUE | CP11: TRUE | CQ11: TRUE | CR11: TRUE | CS11: TRUE | CT11: TRUE | CU11: TRUE | CV11: TRUE | CW11: TRUE | CX11: TRUE | CY11: TRUE | CZ11: TRUE | DA11: TRUE | DB11: TRUE | DC11: TRUE | DD11: TRUE | DE11: TRUE | DF11: TRUE | DG11: TRUE | DH11: TRUE | DI11: TRUE | DJ11: TRUE | DK11: TRUE | DL11: TRUE | DM11: TRUE | DN11: TRUE | DO11: TRUE | DP11: TRUE | DQ11: TRUE | DR11: TRUE | DS11: TRUE | DT11: TRUE | DU11: TRUE | DV11: TRUE | DW11: TRUE | DX11: TRUE | DY11: TRUE | DZ11: TRUE | EA11: TRUE | EB11: TRUE | EC11: TRUE | ED11: TRUE | EE11: TRUE | EF11: TRUE | EG11: TRUE | EH11: TRUE | EI11: TRUE | EJ11: =AND(EJ6>=$F$10,EJ6<$F$11) -> TRUE | EK11: TRUE | EL11: TRUE | EM11: TRUE | EN11: TRUE | EO11: TRUE | EP11: TRUE | EQ11: TRUE | ER11: TRUE | ES11: TRUE | ET11: TRUE | EU11: TRUE | EV11: TRUE | EW11: TRUE | EX11: TRUE | EY11: TRUE | EZ11: FALSE | FA11: FALSE | FB11: FALSE | FC11: FALSE | FD11: FALSE | FE11: FALSE | FF11: FALSE | FG11: FALSE | FH11: FALSE | FI11: FALSE | FJ11: FALSE | FK11: FALSE | FL11: FALSE | FM11: FALSE | FN11: FALSE | FO11: FALSE | FP11: FALSE | FQ11: FALSE | FR11: FALSE | FS11: FALSE | FT11: FALSE | FU11: FALSE | FV11: FALSE | FW11: FALSE | FX11: FALSE | FY11: FALSE | FZ11: FALSE | GA11: FALSE | GB11: FALSE | GC11: FALSE | GD11: FALSE | GE11: FALSE | GF11: FALSE | GG11: FALSE | GH11: FALSE | GI11: FALSE | GJ11: FALSE | GK11: FALSE | GL11: FALSE | GM11: FALSE | GN11: FALSE | GO11: FALSE | GP11: FALSE | GQ11: FALSE | GR11: FALSE | GS11: FALSE | GT11: FALSE | GU11: FALSE | GV11: =AND(GV6>=$F$10,GV6<$F$11) -> FALSE | GW11: FALSE | GX11: FALSE | GY11: FALSE | GZ11: FALSE | HA11: FALSE | HB11: FALSE | HC11: FALSE | HD11: FALSE | HE11: FALSE | HF11: FALSE | HG11: FALSE | HH11: FALSE | HI11: FALSE | HJ11: FALSE | HK11: FALSE | HL11: FALSE | HM11: FALSE | HN11: FALSE | HO11: FALSE | HP11: FALSE | HQ11: FALSE | HR11: FALSE | HS11: FALSE | HT11: FALSE | HU11: FALSE | HV11: FALSE | HW11: FALSE | HX11: FALSE | HY11: FALSE | HZ11: FALSE | IA11: FALSE | IB11: FALSE | IC11: FALSE | ID11: FALSE | IE11: FALSE | IF11: FALSE | IG11: FALSE | IH11: FALSE | II11: FALSE | IJ11: FALSE | IK11: FALSE | IL11: FALSE | IM11: FALSE | IN11: FALSE | IO11: FALSE | IP11: FALSE | IQ11: FALSE | IR11: FALSE | IS11: FALSE | IT11: FALSE | IU11: FALSE | IV11: FALSE | IW11: FALSE | IX11: FALSE | IY11: FALSE | IZ11: FALSE | JA11: FALSE | JB11: FALSE | JC11: FALSE | JD11: FALSE | JE11: FALSE
B12: Inflation for Fuel Price | E12: Inflation fuel | F12: ='Operating Assumptions'!F83 -> 2014-01-01 | L12: =L7>=$F$12 -> FALSE | M12: FALSE | N12: FALSE | O12: TRUE | P12: TRUE | Q12: TRUE | R12: TRUE | S12: TRUE | T12: TRUE | U12: TRUE | V12: TRUE | W12: TRUE | X12: TRUE | Y12: TRUE | Z12: TRUE | AA12: TRUE | AB12: TRUE | AC12: TRUE | AD12: TRUE | AE12: TRUE | AF12: TRUE | AG12: TRUE | AH12: TRUE | AI12: TRUE | AJ12: TRUE | AK12: TRUE | AL12: TRUE | AM12: TRUE | AN12: TRUE | AO12: TRUE | AP12: TRUE | AQ12: TRUE | AR12: TRUE | AS12: TRUE | AT12: TRUE | AU12: TRUE | AV12: TRUE | AW12: TRUE | AX12: TRUE | AY12: TRUE | AZ12: TRUE | BA12: TRUE | BB12: TRUE | BC12: TRUE | BD12: TRUE | BE12: TRUE | BF12: TRUE | BG12: TRUE | BH12: TRUE | BI12: TRUE | BJ12: TRUE | BK12: TRUE | BL12: TRUE | BM12: TRUE | BN12: TRUE | BO12: TRUE | BP12: TRUE | BQ12: TRUE | BR12: TRUE | BS12: TRUE | BT12: TRUE | BU12: TRUE | BV12: TRUE | BW12: TRUE | BX12: =BX7>=$F$12 -> TRUE | BY12: TRUE | BZ12: TRUE | CA12: TRUE | CB12: TRUE | CC12: TRUE | CD12: TRUE | CE12: TRUE | CF12: TRUE | CG12: TRUE | CH12: TRUE | CI12: TRUE | CJ12: TRUE | CK12: TRUE | CL12: TRUE | CM12: TRUE | CN12: TRUE | CO12: TRUE | CP12: TRUE | CQ12: TRUE | CR12: TRUE | CS12: TRUE | CT12: TRUE | CU12: TRUE | CV12: TRUE | CW12: TRUE | CX12: TRUE | CY12: TRUE | CZ12: TRUE | DA12: TRUE | DB12: TRUE | DC12: TRUE | DD12: TRUE | DE12: TRUE | DF12: TRUE | DG12: TRUE | DH12: TRUE | DI12: TRUE | DJ12: TRUE | DK12: TRUE | DL12: TRUE | DM12: TRUE | DN12: TRUE | DO12: TRUE | DP12: TRUE | DQ12: TRUE | DR12: TRUE | DS12: TRUE | DT12: TRUE | DU12: TRUE | DV12: TRUE | DW12: TRUE | DX12: TRUE | DY12: TRUE | DZ12: TRUE | EA12: TRUE | EB12: TRUE | EC12: TRUE | ED12: TRUE | EE12: TRUE | EF12: TRUE | EG12: TRUE | EH12: TRUE | EI12: TRUE | EJ12: =EJ7>=$F$12 -> TRUE | EK12: TRUE | EL12: TRUE | EM12: TRUE | EN12: TRUE | EO12: TRUE | EP12: TRUE | EQ12: TRUE | ER12: TRUE | ES12: TRUE | ET12: TRUE | EU12: TRUE | EV12: TRUE | EW12: TRUE | EX12: TRUE | EY12: TRUE | EZ12: TRUE | FA12: TRUE | FB12: TRUE | FC12: TRUE | FD12: TRUE | FE12: TRUE | FF12: TRUE | FG12: TRUE | FH12: TRUE | FI12: TRUE | FJ12: TRUE | FK12: TRUE | FL12: TRUE | FM12: TRUE | FN12: TRUE | FO12: TRUE | FP12: TRUE | FQ12: TRUE | FR12: TRUE | FS12: TRUE | FT12: TRUE | FU12: TRUE | FV12: TRUE | FW12: TRUE | FX12: TRUE | FY12: TRUE | FZ12: TRUE | GA12: TRUE | GB12: TRUE | GC12: TRUE | GD12: TRUE | GE12: TRUE | GF12: TRUE | GG12: TRUE | GH12: TRUE | GI12: TRUE | GJ12: TRUE | GK12: TRUE | GL12: TRUE | GM12: TRUE | GN12: TRUE | GO12: TRUE | GP12: TRUE | GQ12: TRUE | GR12: TRUE | GS12: TRUE | GT12: TRUE | GU12: TRUE | GV12: =GV7>=$F$12 -> TRUE | GW12: TRUE | GX12: TRUE | GY12: TRUE | GZ12: TRUE | HA12: TRUE | HB12: TRUE | HC12: TRUE | HD12: TRUE | HE12: TRUE | HF12: TRUE | HG12: TRUE | HH12: TRUE | HI12: TRUE | HJ12: TRUE | HK12: TRUE | HL12: TRUE | HM12: TRUE | HN12: TRUE | HO12: TRUE | HP12: TRUE | HQ12: TRUE | HR12: TRUE | HS12: TRUE | HT12: TRUE | HU12: TRUE | HV12: TRUE | HW12: TRUE | HX12: TRUE | HY12: TRUE | HZ12: TRUE | IA12: TRUE | IB12: TRUE | IC12: TRUE | ID12: TRUE | IE12: TRUE | IF12: TRUE | IG12: TRUE | IH12: TRUE | II12: TRUE | IJ12: TRUE | IK12: TRUE | IL12: TRUE | IM12: TRUE | IN12: TRUE | IO12: TRUE | IP12: TRUE | IQ12: TRUE | IR12: TRUE | IS12: TRUE | IT12: TRUE | IU12: TRUE | IV12: TRUE | IW12: TRUE | IX12: TRUE | IY12: TRUE | IZ12: TRUE | JA12: TRUE | JB12: TRUE | JC12: TRUE | JD12: TRUE | JE12: TRUE
B13: Financial Close Switch | F13: =F9 -> 2014-02-01 | L13: =L$6=$F13 -> FALSE | M13: FALSE | N13: FALSE | O13: FALSE | P13: TRUE | Q13: FALSE | R13: FALSE | S13: FALSE | T13: FALSE | U13: FALSE | V13: FALSE | W13: FALSE | X13: FALSE | Y13: FALSE | Z13: FALSE | AA13: FALSE | AB13: =AB$6=$F13 -> FALSE | AC13: FALSE | AD13: FALSE | AE13: FALSE | AF13: FALSE | AG13: FALSE | AH13: FALSE | AI13: FALSE | AJ13: FALSE | AK13: FALSE | AL13: FALSE | AM13: FALSE | AN13: FALSE | AO13: FALSE | AP13: FALSE | AQ13: FALSE | AR13: =AR$6=$F13 -> FALSE | AS13: FALSE | AT13: FALSE | AU13: FALSE | AV13: FALSE | AW13: FALSE | AX13: FALSE | AY13: FALSE | AZ13: FALSE | BA13: FALSE | BB13: FALSE | BC13: FALSE | BD13: FALSE | BE13: FALSE | BF13: FALSE | BG13: FALSE | BH13: =BH$6=$F13 -> FALSE | BI13: FALSE | BJ13: FALSE | BK13: FALSE | BL13: FALSE | BM13: FALSE | BN13: FALSE | BO13: FALSE | BP13: FALSE | BQ13: FALSE | BR13: FALSE | BS13: FALSE | BT13: FALSE | BU13: FALSE | BV13: FALSE | BW13: FALSE | BX13: =BX$6=$F13 -> FALSE | BY13: FALSE | BZ13: FALSE | CA13: FALSE | CB13: FALSE | CC13: FALSE | CD13: FALSE | CE13: FALSE | CF13: FALSE | CG13: FALSE | CH13: FALSE | CI13: FALSE | CJ13: FALSE | CK13: FALSE | CL13: FALSE | CM13: FALSE | CN13: =CN$6=$F13 -> FALSE | CO13: FALSE | CP13: FALSE | CQ13: FALSE | CR13: FALSE | CS13: FALSE | CT13: FALSE | CU13: FALSE | CV13: FALSE | CW13: FALSE | CX13: FALSE | CY13: FALSE | CZ13: FALSE | DA13: FALSE | DB13: FALSE | DC13: FALSE | DD13: =DD$6=$F13 -> FALSE | DE13: FALSE | DF13: FALSE | DG13: FALSE | DH13: FALSE | DI13: FALSE | DJ13: FALSE | DK13: FALSE | DL13: FALSE | DM13: FALSE | DN13: FALSE | DO13: FALSE | DP13: FALSE | DQ13: FALSE | DR13: FALSE | DS13: FALSE | DT13: =DT$6=$F13 -> FALSE | DU13: FALSE | DV13: FALSE | DW13: FALSE | DX13: FALSE | DY13: FALSE | DZ13: FALSE | EA13: FALSE | EB13: FALSE | EC13: FALSE | ED13: FALSE | EE13: FALSE | EF13: FALSE | EG13: FALSE | EH13: FALSE | EI13: FALSE | EJ13: =EJ$6=$F13 -> FALSE | EK13: FALSE | EL13: FALSE | EM13: FALSE | EN13: FALSE | EO13: FALSE | EP13: FALSE | EQ13: FALSE | ER13: FALSE | ES13: FALSE | ET13: FALSE | EU13: FALSE | EV13: FALSE | EW13: FALSE | EX13: FALSE | EY13: FALSE | EZ13: =EZ$6=$F13 -> FALSE | FA13: FALSE | FB13: FALSE | FC13: FALSE | FD13: FALSE | FE13: FALSE | FF13: FALSE | FG13: FALSE | FH13: FALSE | FI13: FALSE | FJ13: FALSE | FK13: FALSE | FL13: FALSE | FM13: FALSE | FN13: FALSE | FO13: FALSE | FP13: =FP$6=$F13 -> FALSE | FQ13: FALSE | FR13: FALSE | FS13: FALSE | FT13: FALSE | FU13: FALSE | FV13: FALSE | FW13: FALSE | FX13: FALSE | FY13: FALSE | FZ13: FALSE | GA13: FALSE | GB13: FALSE | GC13: FALSE | GD13: FALSE | GE13: FALSE | GF13: =GF$6=$F13 -> FALSE | GG13: FALSE | GH13: FALSE | GI13: FALSE | GJ13: FALSE | GK13: FALSE | GL13: FALSE | GM13: FALSE | GN13: FALSE | GO13: FALSE | GP13: FALSE | GQ13: FALSE | GR13: FALSE | GS13: FALSE | GT13: FALSE | GU13: FALSE | GV13: =GV$6=$F13 -> FALSE | GW13: FALSE | GX13: FALSE | GY13: FALSE | GZ13: FALSE | HA13: FALSE | HB13: FALSE | HC13: FALSE | HD13: FALSE | HE13: FALSE | HF13: FALSE | HG13: FALSE | HH13: FALSE | HI13: FALSE | HJ13: FALSE | HK13: FALSE | HL13: =HL$6=$F13 -> FALSE | HM13: FALSE | HN13: FALSE | HO13: FALSE | HP13: FALSE | HQ13: FALSE | HR13: FALSE | HS13: FALSE | HT13: FALSE | HU13: FALSE | HV13: FALSE | HW13: FALSE | HX13: FALSE | HY13: FALSE | HZ13: FALSE | IA13: FALSE | IB13: =IB$6=$F13 -> FALSE | IC13: FALSE | ID13: FALSE | IE13: FALSE | IF13: FALSE | IG13: FALSE | IH13: FALSE | II13: FALSE | IJ13: FALSE | IK13: FALSE | IL13: FALSE | IM13: FALSE | IN13: FALSE | IO13: FALSE | IP13: FALSE | IQ13: FALSE | IR13: =IR$6=$F13 -> FALSE | IS13: FALSE | IT13: FALSE | IU13: FALSE | IV13: FALSE | IW13: FALSE | IX13: FALSE | IY13: FALSE | IZ13: FALSE | JA13: FALSE | JB13: FALSE | JC13: FALSE | JD13: FALSE | JE13: FALSE
B14: COD switch | F14: =F10 -> 2017-06-01 | L14: FALSE | M14: FALSE | N14: FALSE | O14: FALSE | P14: FALSE | Q14: FALSE | R14: FALSE | S14: FALSE | T14: FALSE | U14: FALSE | V14: FALSE | W14: FALSE | X14: FALSE | Y14: FALSE | Z14: FALSE | AA14: FALSE | AB14: FALSE | AC14: FALSE | AD14: FALSE | AE14: FALSE | AF14: FALSE | AG14: FALSE | AH14: FALSE | AI14: FALSE | AJ14: FALSE | AK14: FALSE | AL14: FALSE | AM14: FALSE | AN14: FALSE | AO14: FALSE | AP14: FALSE | AQ14: FALSE | AR14: FALSE | AS14: FALSE | AT14: FALSE | AU14: FALSE | AV14: FALSE | AW14: FALSE | AX14: FALSE | AY14: FALSE | AZ14: FALSE | BA14: FALSE | BB14: FALSE | BC14: FALSE | BD14: TRUE | BE14: FALSE | BF14: FALSE | BG14: FALSE | BH14: FALSE | BI14: FALSE | BJ14: FALSE | BK14: FALSE | BL14: FALSE | BM14: FALSE | BN14: FALSE | BO14: FALSE | BP14: FALSE | BQ14: FALSE | BR14: FALSE | BS14: FALSE | BT14: FALSE | BU14: FALSE | BV14: FALSE | BW14: FALSE | BX14: FALSE | BY14: FALSE | BZ14: FALSE | CA14: FALSE | CB14: FALSE | CC14: FALSE | CD14: FALSE | CE14: FALSE | CF14: FALSE | CG14: FALSE | CH14: FALSE | CI14: FALSE | CJ14: FALSE | CK14: FALSE | CL14: FALSE | CM14: FALSE | CN14: FALSE | CO14: FALSE | CP14: FALSE | CQ14: FALSE | CR14: FALSE | CS14: FALSE | CT14: FALSE | CU14: FALSE | CV14: FALSE | CW14: FALSE | CX14: FALSE | CY14: FALSE | CZ14: FALSE | DA14: FALSE | DB14: FALSE | DC14: FALSE | DD14: FALSE | DE14: FALSE | DF14: FALSE | DG14: FALSE | DH14: FALSE | DI14: FALSE | DJ14: FALSE | DK14: FALSE | DL14: FALSE | DM14: FALSE | DN14: FALSE | DO14: FALSE | DP14: FALSE | DQ14: FALSE | DR14: FALSE | DS14: FALSE | DT14: FALSE | DU14: FALSE | DV14: FALSE | DW14: FALSE | DX14: FALSE | DY14: FALSE | DZ14: FALSE | EA14: FALSE | EB14: FALSE | EC14: FALSE | ED14: FALSE | EE14: FALSE | EF14: FALSE | EG14: FALSE | EH14: FALSE | EI14: FALSE | EJ14: FALSE | EK14: FALSE | EL14: FALSE | EM14: FALSE | EN14: FALSE | EO14: FALSE | EP14: FALSE | EQ14: FALSE | ER14: FALSE | ES14: FALSE | ET14: FALSE | EU14: FALSE | EV14: FALSE | EW14: FALSE | EX14: FALSE | EY14: FALSE | EZ14: FALSE | FA14: FALSE | FB14: FALSE | FC14: FALSE | FD14: FALSE | FE14: FALSE | FF14: FALSE | FG14: FALSE | FH14: FALSE | FI14: FALSE | FJ14: FALSE | FK14: FALSE | FL14: FALSE | FM14: FALSE | FN14: FALSE | FO14: FALSE | FP14: FALSE | FQ14: FALSE | FR14: FALSE | FS14: FALSE | FT14: FALSE | FU14: FALSE | FV14: FALSE | FW14: FALSE | FX14: FALSE | FY14: FALSE | FZ14: FALSE | GA14: FALSE | GB14: FALSE | GC14: FALSE | GD14: FALSE | GE14: FALSE | GF14: FALSE | GG14: FALSE | GH14: FALSE | GI14: FALSE | GJ14: FALSE | GK14: FALSE | GL14: FALSE | GM14: FALSE | GN14: FALSE | GO14: FALSE | GP14: FALSE | GQ14: FALSE | GR14: FALSE | GS14: FALSE | GT14: FALSE | GU14: FALSE | GV14: FALSE | GW14: FALSE | GX14: FALSE | GY14: FALSE | GZ14: FALSE | HA14: FALSE | HB14: FALSE | HC14: FALSE | HD14: FALSE | HE14: FALSE | HF14: FALSE | HG14: FALSE | HH14: FALSE | HI14: FALSE | HJ14: FALSE | HK14: FALSE | HL14: FALSE | HM14: FALSE | HN14: FALSE | HO14: FALSE | HP14: FALSE | HQ14: FALSE | HR14: FALSE | HS14: FALSE | HT14: FALSE | HU14: FALSE | HV14: FALSE | HW14: FALSE | HX14: FALSE | HY14: FALSE | HZ14: FALSE | IA14: FALSE | IB14: FALSE | IC14: FALSE | ID14: FALSE | IE14: FALSE | IF14: FALSE | IG14: FALSE | IH14: FALSE | II14: FALSE | IJ14: FALSE | IK14: FALSE | IL14: FALSE | IM14: FALSE | IN14: FALSE | IO14: FALSE | IP14: FALSE | IQ14: FALSE | IR14: FALSE | IS14: FALSE | IT14: FALSE | IU14: FALSE | IV14: FALSE | IW14: FALSE | IX14: FALSE | IY14: FALSE | IZ14: FALSE | JA14: FALSE | JB14: FALSE | JC14: FALSE | JD14: FALSE | JE14: FALSE
A16: At the end, put in a balance sheet that should attach to balances throughout the model.
B17: Plant Capacity | E17: MW | F17: Capacity | G17: ='Operating Assumptions'!F31 -> 1000 | L17: =$G$17*L11 -> 0 | M17: 0 | N17: 0 | O17: 0 | P17: 0 | Q17: 0 | R17: 0 | S17: 0 | T17: 0 | U17: 0 | V17: 0 | W17: 0 | X17: 0 | Y17: 0 | Z17: 0 | AA17: 0 | AB17: 0 | AC17: 0 | AD17: 0 | AE17: 0 | AF17: 0 | AG17: 0 | AH17: 0 | AI17: 0 | AJ17: 0 | AK17: 0 | AL17: 0 | AM17: 0 | AN17: 0 | AO17: 0 | AP17: 0 | AQ17: 0 | AR17: 0 | AS17: 0 | AT17: 0 | AU17: 0 | AV17: 0 | AW17: 0 | AX17: 0 | AY17: 0 | AZ17: 0 | BA17: 0 | BB17: 0 | BC17: 0 | BD17: 1000 | BE17: 1000 | BF17: 1000 | BG17: 1000 | BH17: 1000 | BI17: 1000 | BJ17: 1000 | BK17: 1000 | BL17: 1000 | BM17: 1000 | BN17: 1000 | BO17: 1000 | BP17: 1000 | BQ17: 1000 | BR17: 1000 | BS17: 1000 | BT17: 1000 | BU17: 1000 | BV17: 1000 | BW17: 1000 | BX17: =$G$17*BX11 -> 1000 | BY17: 1000 | BZ17: 1000 | CA17: 1000 | CB17: 1000 | CC17: 1000 | CD17: 1000 | CE17: 1000 | CF17: 1000 | CG17: 1000 | CH17: 1000 | CI17: 1000 | CJ17: 1000 | CK17: 1000 | CL17: 1000 | CM17: 1000 | CN17: 1000 | CO17: 1000 | CP17: 1000 | CQ17: 1000 | CR17: 1000 | CS17: 1000 | CT17: 1000 | CU17: 1000 | CV17: 1000 | CW17: 1000 | CX17: 1000 | CY17: 1000 | CZ17: 1000 | DA17: 1000 | DB17: 1000 | DC17: 1000 | DD17: 1000 | DE17: 1000 | DF17: 1000 | DG17: 1000 | DH17: 1000 | DI17: 1000 | DJ17: 1000 | DK17: 1000 | DL17: 1000 | DM17: 1000 | DN17: 1000 | DO17: 1000 | DP17: 1000 | DQ17: 1000 | DR17: 1000 | DS17: 1000 | DT17: 1000 | DU17: 1000 | DV17: 1000 | DW17: 1000 | DX17: 1000 | DY17: 1000 | DZ17: 1000 | EA17: 1000 | EB17: 1000 | EC17: 1000 | ED17: 1000 | EE17: 1000 | EF17: 1000 | EG17: 1000 | EH17: 1000 | EI17: 1000 | EJ17: =$G$17*EJ11 -> 1000 | EK17: 1000 | EL17: 1000 | EM17: 1000 | EN17: 1000 | EO17: 1000 | EP17: 1000 | EQ17: 1000 | ER17: 1000 | ES17: 1000 | ET17: 1000 | EU17: 1000 | EV17: 1000 | EW17: 1000 | EX17: 1000 | EY17: 1000 | EZ17: 0 | FA17: 0 | FB17: 0 | FC17: 0 | FD17: 0 | FE17: 0 | FF17: 0 | FG17: 0 | FH17: 0 | FI17: 0 | FJ17: 0 | FK17: 0 | FL17: 0 | FM17: 0 | FN17: 0 | FO17: 0 | FP17: 0 | FQ17: 0 | FR17: 0 | FS17: 0 | FT17: 0 | FU17: 0 | FV17: 0 | FW17: 0 | FX17: 0 | FY17: 0 | FZ17: 0 | GA17: 0 | GB17: 0 | GC17: 0 | GD17: 0 | GE17: 0 | GF17: 0 | GG17: 0 | GH17: 0 | GI17: 0 | GJ17: 0 | GK17: 0 | GL17: 0 | GM17: 0 | GN17: 0 | GO17: 0 | GP17: 0 | GQ17: 0 | GR17: 0 | GS17: 0 | GT17: 0 | GU17: 0 | GV17: =$G$17*GV11 -> 0 | GW17: 0 | GX17: 0 | GY17: 0 | GZ17: 0 | HA17: 0 | HB17: 0 | HC17: 0 | HD17: 0 | HE17: 0 | HF17: 0 | HG17: 0 | HH17: 0 | HI17: 0 | HJ17: 0 | HK17: 0 | HL17: 0 | HM17: 0 | HN17: 0 | HO17: 0 | HP17: 0 | HQ17: 0 | HR17: 0 | HS17: 0 | HT17: 0 | HU17: 0 | HV17: 0 | HW17: 0 | HX17: 0 | HY17: 0 | HZ17: 0 | IA17: 0 | IB17: 0 | IC17: 0 | ID17: 0 | IE17: 0 | IF17: 0 | IG17: 0 | IH17: 0 | II17: 0 | IJ17: 0 | IK17: 0 | IL17: 0 | IM17: 0 | IN17: 0 | IO17: 0 | IP17: 0 | IQ17: 0 | IR17: 0 | IS17: 0 | IT17: 0 | IU17: 0 | IV17: 0 | IW17: 0 | IX17: 0 | IY17: 0 | IZ17: 0 | JA17: 0 | JB17: 0 | JC17: 0 | JD17: 0 | JE17: 0
B18: Hours in period | E18: hrs | L18: =(L7-L6+1)*24 -> 744 | M18: 720 | N18: 744 | O18: 744 | P18: 672 | Q18: 744 | R18: 720 | S18: 744 | T18: 720 | U18: 744 | V18: 744 | W18: 720 | X18: 744 | Y18: 720 | Z18: 744 | AA18: 744 | AB18: 672 | AC18: 744 | AD18: 720 | AE18: 744 | AF18: 720 | AG18: 744 | AH18: 744 | AI18: 720 | AJ18: 744 | AK18: 720 | AL18: 744 | AM18: 744 | AN18: 696 | AO18: 744 | AP18: 720 | AQ18: 744 | AR18: 720 | AS18: 744 | AT18: 744 | AU18: 720 | AV18: 744 | AW18: 720 | AX18: 744 | AY18: 744 | AZ18: 672 | BA18: 744 | BB18: 720 | BC18: 744 | BD18: 2208 | BE18: 2184 | BF18: 2160 | BG18: 2208 | BH18: 2208 | BI18: 2184 | BJ18: 2160 | BK18: 2208 | BL18: 2208 | BM18: 2184 | BN18: 2184 | BO18: 2208 | BP18: 2208 | BQ18: 2184 | BR18: 2160 | BS18: 2208 | BT18: 2208 | BU18: 2184 | BV18: 2160 | BW18: 2208 | BX18: =(BX7-BX6+1)*24 -> 2208 | BY18: 2184 | BZ18: 2160 | CA18: 2208 | CB18: 2208 | CC18: 2184 | CD18: 2184 | CE18: 2208 | CF18: 2208 | CG18: 2184 | CH18: 2160 | CI18: 2208 | CJ18: 2208 | CK18: 2184 | CL18: 2160 | CM18: 2208 | CN18: 2208 | CO18: 2184 | CP18: 2160 | CQ18: 2208 | CR18: 2208 | CS18: 2184 | CT18: 2184 | CU18: 2208 | CV18: 2208 | CW18: 2184 | CX18: 2160 | CY18: 2208 | CZ18: 2208 | DA18: 2184 | DB18: 2160 | DC18: 2208 | DD18: 2208 | DE18: 2184 | DF18: 2160 | DG18: 2208 | DH18: 2208 | DI18: 2184 | DJ18: 2184 | DK18: 2208 | DL18: 2208 | DM18: 2184 | DN18: 2160 | DO18: 2208 | DP18: 2208 | DQ18: 2184 | DR18: 2160 | DS18: 2208 | DT18: 2208 | DU18: 2184 | DV18: 2160 | DW18: 2208 | DX18: 2208 | DY18: 2184 | DZ18: 2184 | EA18: 2208 | EB18: 2208 | EC18: 2184 | ED18: 2160 | EE18: 2208 | EF18: 2208 | EG18: 2184 | EH18: 2160 | EI18: 2208 | EJ18: =(EJ7-EJ6+1)*24 -> 2208 | EK18: 2184 | EL18: 2160 | EM18: 2208 | EN18: 2208 | EO18: 2184 | EP18: 2184 | EQ18: 2208 | ER18: 2208 | ES18: 2184 | ET18: 2160 | EU18: 2208 | EV18: 2208 | EW18: 2184 | EX18: 2160 | EY18: 2208 | EZ18: 2208 | FA18: 2184 | FB18: 2160 | FC18: 2208 | FD18: 2208 | FE18: 2184 | FF18: 2184 | FG18: 2208 | FH18: 2208 | FI18: 2184 | FJ18: 2160 | FK18: 2208 | FL18: 2208 | FM18: 2184 | FN18: 2160 | FO18: 2208 | FP18: 2208 | FQ18: 2184 | FR18: 2160 | FS18: 2208 | FT18: 2208 | FU18: 2184 | FV18: 2184 | FW18: 2208 | FX18: 2208 | FY18: 2184 | FZ18: 2160 | GA18: 2208 | GB18: 2208 | GC18: 2184 | GD18: 2160 | GE18: 2208 | GF18: 2208 | GG18: 2184 | GH18: 2160 | GI18: 2208 | GJ18: 2208 | GK18: 2184 | GL18: 2184 | GM18: 2208 | GN18: 2208 | GO18: 2184 | GP18: 2160 | GQ18: 2208 | GR18: 2208 | GS18: 2184 | GT18: 2160 | GU18: 2208 | GV18: =(GV7-GV6+1)*24 -> 2208 | GW18: 2184 | GX18: 2160 | GY18: 2208 | GZ18: 2208 | HA18: 2184 | HB18: 2184 | HC18: 2208 | HD18: 2208 | HE18: 2184 | HF18: 2160 | HG18: 2208 | HH18: 2208 | HI18: 2184 | HJ18: 2160 | HK18: 2208 | HL18: 2208 | HM18: 2184 | HN18: 2160 | HO18: 2208 | HP18: 2208 | HQ18: 2184 | HR18: 2184 | HS18: 2208 | HT18: 2208 | HU18: 2184 | HV18: 2160 | HW18: 2208 | HX18: 2208 | HY18: 2184 | HZ18: 2160 | IA18: 2208 | IB18: 2208 | IC18: 2184 | ID18: 2160 | IE18: 2208 | IF18: 2208 | IG18: 2184 | IH18: 2184 | II18: 2208 | IJ18: 2208 | IK18: 2184 | IL18: 2160 | IM18: 2208 | IN18: 2208 | IO18: 2184 | IP18: 2160 | IQ18: 2208 | IR18: 2208 | IS18: 2184 | IT18: 2160 | IU18: 2208 | IV18: 2208 | IW18: 2184 | IX18: 2184 | IY18: 2208 | IZ18: 2208 | JA18: 2184 | JB18: 2160 | JC18: 2208 | JD18: 2208 | JE18: 2184
B19: Generation of the Plant | E19: MWh | F19: Capacity Factor | G19: ='Operating Assumptions'!F32 -> 0.88 | L19: =L17*L18*$G$19 -> 0 | M19: 0 | N19: 0 | O19: 0 | P19: 0 | Q19: 0 | R19: 0 | S19: 0 | T19: 0 | U19: 0 | V19: 0 | W19: 0 | X19: 0 | Y19: 0 | Z19: 0 | AA19: 0 | AB19: 0 | AC19: 0 | AD19: 0 | AE19: 0 | AF19: 0 | AG19: 0 | AH19: 0 | AI19: 0 | AJ19: 0 | AK19: 0 | AL19: 0 | AM19: 0 | AN19: 0 | AO19: 0 | AP19: 0 | AQ19: 0 | AR19: 0 | AS19: 0 | AT19: 0 | AU19: 0 | AV19: 0 | AW19: 0 | AX19: 0 | AY19: 0 | AZ19: 0 | BA19: 0 | BB19: 0 | BC19: 0 | BD19: 1943040 | BE19: 1921920 | BF19: 1900800 | BG19: 1943040 | BH19: 1943040 | BI19: 1921920 | BJ19: 1900800 | BK19: 1943040 | BL19: 1943040 | BM19: 1921920 | BN19: 1921920 | BO19: 1943040 | BP19: 1943040 | BQ19: 1921920 | BR19: 1900800 | BS19: 1943040 | BT19: 1943040 | BU19: 1921920 | BV19: 1900800 | BW19: 1943040 | BX19: =BX17*BX18*$G$19 -> 1943040 | BY19: 1921920 | BZ19: 1900800 | CA19: 1943040 | CB19: 1943040 | CC19: 1921920 | CD19: 1921920 | CE19: 1943040 | CF19: 1943040 | CG19: 1921920 | CH19: 1900800 | CI19: 1943040 | CJ19: 1943040 | CK19: 1921920 | CL19: 1900800 | CM19: 1943040 | CN19: 1943040 | CO19: 1921920 | CP19: 1900800 | CQ19: 1943040 | CR19: 1943040 | CS19: 1921920 | CT19: 1921920 | CU19: 1943040 | CV19: 1943040 | CW19: 1921920 | CX19: 1900800 | CY19: 1943040 | CZ19: 1943040 | DA19: 1921920 | DB19: 1900800 | DC19: 1943040 | DD19: 1943040 | DE19: 1921920 | DF19: 1900800 | DG19: 1943040 | DH19: 1943040 | DI19: 1921920 | DJ19: 1921920 | DK19: 1943040 | DL19: 1943040 | DM19: 1921920 | DN19: 1900800 | DO19: 1943040 | DP19: 1943040 | DQ19: 1921920 | DR19: 1900800 | DS19: 1943040 | DT19: 1943040 | DU19: 1921920 | DV19: 1900800 | DW19: 1943040 | DX19: 1943040 | DY19: 1921920 | DZ19: 1921920 | EA19: 1943040 | EB19: 1943040 | EC19: 1921920 | ED19: 1900800 | EE19: 1943040 | EF19: 1943040 | EG19: 1921920 | EH19: 1900800 | EI19: 1943040 | EJ19: =EJ17*EJ18*$G$19 -> 1943040 | EK19: 1921920 | EL19: 1900800 | EM19: 1943040 | EN19: 1943040 | EO19: 1921920 | EP19: 1921920 | EQ19: 1943040 | ER19: 1943040 | ES19: 1921920 | ET19: 1900800 | EU19: 1943040 | EV19: 1943040 | EW19: 1921920 | EX19: 1900800 | EY19: 1943040 | EZ19: 0 | FA19: 0 | FB19: 0 | FC19: 0 | FD19: 0 | FE19: 0 | FF19: 0 | FG19: 0 | FH19: 0 | FI19: 0 | FJ19: 0 | FK19: 0 | FL19: 0 | FM19: 0 | FN19: 0 | FO19: 0 | FP19: 0 | FQ19: 0 | FR19: 0 | FS19: 0 | FT19: 0 | FU19: 0 | FV19: 0 | FW19: 0 | FX19: 0 | FY19: 0 | FZ19: 0 | GA19: 0 | GB19: 0 | GC19: 0 | GD19: 0 | GE19: 0 | GF19: 0 | GG19: 0 | GH19: 0 | GI19: 0 | GJ19: 0 | GK19: 0 | GL19: 0 | GM19: 0 | GN19: 0 | GO19: 0 | GP19: 0 | GQ19: 0 | GR19: 0 | GS19: 0 | GT19: 0 | GU19: 0 | GV19: =GV17*GV18*$G$19 -> 0 | GW19: 0 | GX19: 0 | GY19: 0 | GZ19: 0 | HA19: 0 | HB19: 0 | HC19: 0 | HD19: 0 | HE19: 0 | HF19: 0 | HG19: 0 | HH19: 0 | HI19: 0 | HJ19: 0 | HK19: 0 | HL19: 0 | HM19: 0 | HN19: 0 | HO19: 0 | HP19: 0 | HQ19: 0 | HR19: 0 | HS19: 0 | HT19: 0 | HU19: 0 | HV19: 0 | HW19: 0 | HX19: 0 | HY19: 0 | HZ19: 0 | IA19: 0 | IB19: 0 | IC19: 0 | ID19: 0 | IE19: 0 | IF19: 0 | IG19: 0 | IH19: 0 | II19: 0 | IJ19: 0 | IK19: 0 | IL19: 0 | IM19: 0 | IN19: 0 | IO19: 0 | IP19: 0 | IQ19: 0 | IR19: 0 | IS19: 0 | IT19: 0 | IU19: 0 | IV19: 0 | IW19: 0 | IX19: 0 | IY19: 0 | IZ19: 0 | JA19: 0 | JB19: 0 | JC19: 0 | JD19: 0 | JE19: 0
A22: Capital Expenditures
C23: Construction Month | L23: =K23+L10 -> 0 | M23: 0 | N23: 0 | O23: 0 | P23: 1 | Q23: 2 | R23: 3 | S23: 4 | T23: 5 | U23: 6 | V23: 7 | W23: 8 | X23: 9 | Y23: 10 | Z23: 11 | AA23: 12 | AB23: 13 | AC23: 14 | AD23: 15 | AE23: 16 | AF23: 17 | AG23: 18 | AH23: 19 | AI23: 20 | AJ23: 21 | AK23: 22 | AL23: 23 | AM23: 24 | AN23: 25 | AO23: 26 | AP23: 27 | AQ23: 28 | AR23: 29 | AS23: 30 | AT23: 31 | AU23: 32 | AV23: 33 | AW23: 34 | AX23: 35 | AY23: 36 | AZ23: 37 | BA23: 38 | BB23: 39 | BC23: 40 | BD23: 40 | BE23: 40 | BF23: 40 | BG23: 40 | BH23: 40 | BI23: 40 | BJ23: 40 | BK23: 40 | BL23: 40 | BM23: 40 | BN23: 40 | BO23: 40 | BP23: 40 | BQ23: 40 | BR23: 40 | BS23: 40 | BT23: 40 | BU23: 40 | BV23: 40 | BW23: 40 | BX23: =BW23+BX10 -> 40 | BY23: 40 | BZ23: 40 | CA23: 40 | CB23: 40 | CC23: 40 | CD23: 40 | CE23: 40 | CF23: 40 | CG23: 40 | CH23: 40 | CI23: 40 | CJ23: 40 | CK23: 40 | CL23: 40 | CM23: 40 | CN23: 40 | CO23: 40 | CP23: 40 | CQ23: 40 | CR23: 40 | CS23: 40 | CT23: 40 | CU23: 40 | CV23: 40 | CW23: 40 | CX23: 40 | CY23: 40 | CZ23: 40 | DA23: 40 | DB23: 40 | DC23: 40 | DD23: 40 | DE23: 40 | DF23: 40 | DG23: 40 | DH23: 40 | DI23: 40 | DJ23: 40 | DK23: 40 | DL23: 40 | DM23: 40 | DN23: 40 | DO23: 40 | DP23: 40 | DQ23: 40 | DR23: 40 | DS23: 40 | DT23: 40 | DU23: 40 | DV23: 40 | DW23: 40 | DX23: 40 | DY23: 40 | DZ23: 40 | EA23: 40 | EB23: 40 | EC23: 40 | ED23: 40 | EE23: 40 | EF23: 40 | EG23: 40 | EH23: 40 | EI23: 40 | EJ23: =EI23+EJ10 -> 40 | EK23: 40 | EL23: 40 | EM23: 40 | EN23: 40 | EO23: 40 | EP23: 40 | EQ23: 40 | ER23: 40 | ES23: 40 | ET23: 40 | EU23: 40 | EV23: 40 | EW23: 40 | EX23: 40 | EY23: 40 | EZ23: 40 | FA23: 40 | FB23: 40 | FC23: 40 | FD23: 40 | FE23: 40 | FF23: 40 | FG23: 40 | FH23: 40 | FI23: 40 | FJ23: 40 | FK23: 40 | FL23: 40 | FM23: 40 | FN23: 40 | FO23: 40 | FP23: 40 | FQ23: 40 | FR23: 40 | FS23: 40 | FT23: 40 | FU23: 40 | FV23: 40 | FW23: 40 | FX23: 40 | FY23: 40 | FZ23: 40 | GA23: 40 | GB23: 40 | GC23: 40 | GD23: 40 | GE23: 40 | GF23: 40 | GG23: 40 | GH23: 40 | GI23: 40 | GJ23: 40 | GK23: 40 | GL23: 40 | GM23: 40 | GN23: 40 | GO23: 40 | GP23: 40 | GQ23: 40 | GR23: 40 | GS23: 40 | GT23: 40 | GU23: 40 | GV23: =GU23+GV10 -> 40 | GW23: 40 | GX23: 40 | GY23: 40 | GZ23: 40 | HA23: 40 | HB23: 40 | HC23: 40 | HD23: 40 | HE23: 40 | HF23: 40 | HG23: 40 | HH23: 40 | HI23: 40 | HJ23: 40 | HK23: 40 | HL23: 40 | HM23: 40 | HN23: 40 | HO23: 40 | HP23: 40 | HQ23: 40 | HR23: 40 | HS23: 40 | HT23: 40 | HU23: 40 | HV23: 40 | HW23: 40 | HX23: 40 | HY23: 40 | HZ23: 40 | IA23: 40 | IB23: 40 | IC23: 40 | ID23: 40 | IE23: 40 | IF23: 40 | IG23: 40 | IH23: 40 | II23: 40 | IJ23: 40 | IK23: 40 | IL23: 40 | IM23: 40 | IN23: 40 | IO23: 40 | IP23: 40 | IQ23: 40 | IR23: 40 | IS23: 40 | IT23: 40 | IU23: 40 | IV23: 40 | IW23: 40 | IX23: 40 | IY23: 40 | IZ23: 40 | JA23: 40 | JB23: 40 | JC23: 40 | JD23: 40 | JE23: 40
C24: S-Curve 1 | I24: =SUM(L24:JE24) -> 1 | L24: =IF(L10,LOOKUP(L23,'Operating Assumptions'!$L$40:$CD$40,'Operating Assumptions'!$L$42:$CD$42)) -> FALSE | M24: =IF(M10,LOOKUP(M23,'Operating Assumptions'!$L$40:$CD$40,'Operating Assumptions'!$L$42:$CD$42)) -> FALSE | N24: =IF(N10,LOOKUP(N23,'Operating Assumptions'!$L$40:$CD$40,'Operating Assumptions'!$L$42:$CD$42)) -> FALSE | O24: =IF(O10,LOOKUP(O23,'Operating Assumptions'!$L$40:$CD$40,'Operating Assumptions'!$L$42:$CD$42)) -> FALSE | P24: =IF(P10,LOOKUP(P23,'Operating Assumptions'!$L$40:$CD$40,'Operating Assumptions'!$L$42:$CD$42)) -> 0.01678640535 | Q24: =IF(Q10,LOOKUP(Q23,'Operating Assumptions'!$L$40:$CD$40,'Operating Assumptions'!$L$42:$CD$42)) -> 0.02041817606 | R24: =IF(R10,LOOKUP(R23,'Operating Assumptions'!$L$40:$CD$40,'Operating Assumptions'!$L$42:$CD$42)) -> 0.02273574972 | S24: =IF(S10,LOOKUP(S23,'Operating Assumptions'!$L$40:$CD$40,'Operating Assumptions'!$L$42:$CD$42)) -> 0.02440054443 | T24: =IF(T10,LOOKUP(T23,'Operating Assumptions'!$L$40:$CD$40,'Operating Assumptions'!$L$42:$CD$42)) -> 0.02565353534 | U24: =IF(U10,LOOKUP(U23,'Operating Assumptions'!$L$40:$CD$40,'Operating Assumptions'!$L$42:$CD$42)) -> 0.0266146432 | V24: =IF(V10,LOOKUP(V23,'Operating Assumptions'!$L$40:$CD$40,'Operating Assumptions'!$L$42:$CD$42)) -> 0.02735414675 | W24: =IF(W10,LOOKUP(W23,'Operating Assumptions'!$L$40:$CD$40,'Operating Assumptions'!$L$42:$CD$42)) -> 0.02791771824 | X24: =IF(X10,LOOKUP(X23,'Operating Assumptions'!$L$40:$CD$40,'Operating Assumptions'!$L$42:$CD$42)) -> 0.02833725232 | Y24: =IF(Y10,LOOKUP(Y23,'Operating Assumptions'!$L$40:$CD$40,'Operating Assumptions'!$L$42:$CD$42)) -> 0.02863623571 | Z24: =IF(Z10,LOOKUP(Z23,'Operating Assumptions'!$L$40:$CD$40,'Operating Assumptions'!$L$42:$CD$42)) -> 0.02883268159 | AA24: =IF(AA10,LOOKUP(AA23,'Operating Assumptions'!$L$40:$CD$40,'Operating Assumptions'!$L$42:$CD$42)) -> 0.02894085498 | AB24: =IF(AB10,LOOKUP(AB23,'Operating Assumptions'!$L$40:$CD$40,'Operating Assumptions'!$L$42:$CD$42)) -> 0.02897234715 | AC24: =IF(AC10,LOOKUP(AC23,'Operating Assumptions'!$L$40:$CD$40,'Operating Assumptions'!$L$42:$CD$42)) -> 0.02893677629 | AD24: =IF(AD10,LOOKUP(AD23,'Operating Assumptions'!$L$40:$CD$40,'Operating Assumptions'!$L$42:$CD$42)) -> 0.02884226236 | AE24: =IF(AE10,LOOKUP(AE23,'Operating Assumptions'!$L$40:$CD$40,'Operating Assumptions'!$L$42:$CD$42)) -> 0.0286957595 | AF24: =IF(AF10,LOOKUP(AF23,'Operating Assumptions'!$L$40:$CD$40,'Operating Assumptions'!$L$42:$CD$42)) -> 0.02850329509 | AG24: =IF(AG10,LOOKUP(AG23,'Operating Assumptions'!$L$40:$CD$40,'Operating Assumptions'!$L$42:$CD$42)) -> 0.02827014609 | AH24: =IF(AH10,LOOKUP(AH23,'Operating Assumptions'!$L$40:$CD$40,'Operating Assumptions'!$L$42:$CD$42)) -> 0.02800097165 | AI24: =IF(AI10,LOOKUP(AI23,'Operating Assumptions'!$L$40:$CD$40,'Operating Assumptions'!$L$42:$CD$42)) -> 0.02769991497 | AJ24: =IF(AJ10,LOOKUP(AJ23,'Operating Assumptions'!$L$40:$CD$40,'Operating Assumptions'!$L$42:$CD$42)) -> 0.02737068268 | AK24: =IF(AK10,LOOKUP(AK23,'Operating Assumptions'!$L$40:$CD$40,'Operating Assumptions'!$L$42:$CD$42)) -> 0.02701660776 | AL24: =IF(AL10,LOOKUP(AL23,'Operating Assumptions'!$L$40:$CD$40,'Operating Assumptions'!$L$42:$CD$42)) -> 0.02664070006 | AM24: =IF(AM10,LOOKUP(AM23,'Operating Assumptions'!$L$40:$CD$40,'Operating Assumptions'!$L$42:$CD$42)) -> 0.02624568747 | AN24: =IF(AN10,LOOKUP(AN23,'Operating Assumptions'!$L$40:$CD$40,'Operating Assumptions'!$L$42:$CD$42)) -> 0.02583404972 | AO24: =IF(AO10,LOOKUP(AO23,'Operating Assumptions'!$L$40:$CD$40,'Operating Assumptions'!$L$42:$CD$42)) -> 0.02540804661 | AP24: =IF(AP10,LOOKUP(AP23,'Operating Assumptions'!$L$40:$CD$40,'Operating Assumptions'!$L$42:$CD$42)) -> 0.02496974168 | AQ24: =IF(AQ10,LOOKUP(AQ23,'Operating Assumptions'!$L$40:$CD$40,'Operating Assumptions'!$L$42:$CD$42)) -> 0.02452102232 | AR24: =IF(AR10,LOOKUP(AR23,'Operating Assumptions'!$L$40:$CD$40,'Operating Assumptions'!$L$42:$CD$42)) -> 0.02406361702 | AS24: =IF(AS10,LOOKUP(AS23,'Operating Assumptions'!$L$40:$CD$40,'Operating Assumptions'!$L$42:$CD$42)) -> 0.02359911021 | AT24: =IF(AT10,LOOKUP(AT23,'Operating Assumptions'!$L$40:$CD$40,'Operating Assumptions'!$L$42:$CD$42)) -> 0.02312895522 | AU24: =IF(AU10,LOOKUP(AU23,'Operating Assumptions'!$L$40:$CD$40,'Operating Assumptions'!$L$42:$CD$42)) -> 0.02265448561 | AV24: =IF(AV10,LOOKUP(AV23,'Operating Assumptions'!$L$40:$CD$40,'Operating Assumptions'!$L$42:$CD$42)) -> 0.02217692517 | AW24: =IF(AW10,LOOKUP(AW23,'Operating Assumptions'!$L$40:$CD$40,'Operating Assumptions'!$L$42:$CD$42)) -> 0.0216973968 | AX24: =IF(AX10,LOOKUP(AX23,'Operating Assumptions'!$L$40:$CD$40,'Operating Assumptions'!$L$42:$CD$42)) -> 0.02121693046 | AY24: =IF(AY10,LOOKUP(AY23,'Operating Assumptions'!$L$40:$CD$40,'Operating Assumptions'!$L$42:$CD$42)) -> 0.02073647021 | AZ24: =IF(AZ10,LOOKUP(AZ23,'Operating Assumptions'!$L$40:$CD$40,'Operating Assumptions'!$L$42:$CD$42)) -> 0.02025688074 | BA24: =IF(BA10,LOOKUP(BA23,'Operating Assumptions'!$L$40:$CD$40,'Operating Assumptions'!$L$42:$CD$42)) -> 0.01977895307 | BB24: =IF(BB10,LOOKUP(BB23,'Operating Assumptions'!$L$40:$CD$40,'Operating Assumptions'!$L$42:$CD$42)) -> 0.01930340992 | BC24: =IF(BC10,LOOKUP(BC23,'Operating Assumptions'!$L$40:$CD$40,'Operating Assumptions'!$L$42:$CD$42)) -> 0.01883091051 | BD24: =IF(BD10,LOOKUP(BD23,'Operating Assumptions'!$L$40:$CD$40,'Operating Assumptions'!$L$42:$CD$42)) -> FALSE | BE24: =IF(BE10,LOOKUP(BE23,'Operating Assumptions'!$L$40:$CD$40,'Operating Assumptions'!$L$42:$CD$42)) -> FALSE | BF24: =IF(BF10,LOOKUP(BF23,'Operating Assumptions'!$L$40:$CD$40,'Operating Assumptions'!$L$42:$CD$42)) -> FALSE | BG24: =IF(BG10,LOOKUP(BG23,'Operating Assumptions'!$L$40:$CD$40,'Operating Assumptions'!$L$42:$CD$42)) -> FALSE | BH24: =IF(BH10,LOOKUP(BH23,'Operating Assumptions'!$L$40:$CD$40,'Operating Assumptions'!$L$42:$CD$42)) -> FALSE | BI24: =IF(BI10,LOOKUP(BI23,'Operating Assumptions'!$L$40:$CD$40,'Operating Assumptions'!$L$42:$CD$42)) -> FALSE | BJ24: =IF(BJ10,LOOKUP(BJ23,'Operating Assumptions'!$L$40:$CD$40,'Operating Assumptions'!$L$42:$CD$42)) -> FALSE | BK24: =IF(BK10,LOOKUP(BK23,'Operating Assumptions'!$L$40:$CD$40,'Operating Assumptions'!$L$42:$CD$42)) -> FALSE | BL24: =IF(BL10,LOOKUP(BL23,'Operating Assumptions'!$L$40:$CD$40,'Operating Assumptions'!$L$42:$CD$42)) -> FALSE | BM24: =IF(BM10,LOOKUP(BM23,'Operating Assumptions'!$L$40:$CD$40,'Operating Assumptions'!$L$42:$CD$42)) -> FALSE | BN24: =IF(BN10,LOOKUP(BN23,'Operating Assumptions'!$L$40:$CD$40,'Operating Assumptions'!$L$42:$CD$42)) -> FALSE | BO24: =IF(BO10,LOOKUP(BO23,'Operating Assumptions'!$L$40:$CD$40,'Operating Assumptions'!$L$42:$CD$42)) -> FALSE | BP24: =IF(BP10,LOOKUP(BP23,'Operating Assumptions'!$L$40:$CD$40,'Operating Assumptions'!$L$42:$CD$42)) -> FALSE | BQ24: =IF(BQ10,LOOKUP(BQ23,'Operating Assumptions'!$L$40:$CD$40,'Operating Assumptions'!$L$42:$CD$42)) -> FALSE | BR24: =IF(BR10,LOOKUP(BR23,'Operating Assumptions'!$L$40:$CD$40,'Operating Assumptions'!$L$42:$CD$42)) -> FALSE | BS24: =IF(BS10,LOOKUP(BS23,'Operating Assumptions'!$L$40:$CD$40,'Operating Assumptions'!$L$42:$CD$42)) -> FALSE | BT24: =IF(BT10,LOOKUP(BT23,'Operating Assumptions'!$L$40:$CD$40,'Operating Assumptions'!$L$42:$CD$42)) -> FALSE | BU24: =IF(BU10,LOOKUP(BU23,'Operating Assumptions'!$L$40:$CD$40,'Operating Assumptions'!$L$42:$CD$42)) -> FALSE | BV24: =IF(BV10,LOOKUP(BV23,'Operating Assumptions'!$L$40:$CD$40,'Operating Assumptions'!$L$42:$CD$42)) -> FALSE | BW24: =IF(BW10,LOOKUP(BW23,'Operating Assumptions'!$L$40:$CD$40,'Operating Assumptions'!$L$42:$CD$42)) -> FALSE | BX24: =IF(BX10,LOOKUP(BX23,'Operating Assumptions'!$L$40:$CD$40,'Operating Assumptions'!$L$42:$CD$42)) -> FALSE | BY24: =IF(BY10,LOOKUP(BY23,'Operating Assumptions'!$L$40:$CD$40,'Operating Assumptions'!$L$42:$CD$42)) -> FALSE | BZ24: =IF(BZ10,LOOKUP(BZ23,'Operating Assumptions'!$L$40:$CD$40,'Operating Assumptions'!$L$42:$CD$42)) -> FALSE | CA24: =IF(CA10,LOOKUP(CA23,'Operating Assumptions'!$L$40:$CD$40,'Operating Assumptions'!$L$42:$CD$42)) -> FALSE | CB24: =IF(CB10,LOOKUP(CB23,'Operating Assumptions'!$L$40:$CD$40,'Operating Assumptions'!$L$42:$CD$42)) -> FALSE | CC24: =IF(CC10,LOOKUP(CC23,'Operating Assumptions'!$L$40:$CD$40,'Operating Assumptions'!$L$42:$CD$42)) -> FALSE | CD24: =IF(CD10,LOOKUP(CD23,'Operating Assumptions'!$L$40:$CD$40,'Operating Assumptions'!$L$42:$CD$42)) -> FALSE | CE24: =IF(CE10,LOOKUP(CE23,'Operating Assumptions'!$L$40:$CD$40,'Operating Assumptions'!$L$42:$CD$42)) -> FALSE | CF24: =IF(CF10,LOOKUP(CF23,'Operating Assumptions'!$L$40:$CD$40,'Operating Assumptions'!$L$42:$CD$42)) -> FALSE | CG24: =IF(CG10,LOOKUP(CG23,'Operating Assumptions'!$L$40:$CD$40,'Operating Assumptions'!$L$42:$CD$42)) -> FALSE | CH24: =IF(CH10,LOOKUP(CH23,'Operating Assumptions'!$L$40:$CD$40,'Operating Assumptions'!$L$42:$CD$42)) -> FALSE | CI24: =IF(CI10,LOOKUP(CI23,'Operating Assumptions'!$L$40:$CD$40,'Operating Assumptions'!$L$42:$CD$42)) -> FALSE | CJ24: =IF(CJ10,LOOKUP(CJ23,'Operating Assumptions'!$L$40:$CD$40,'Operating Assumptions'!$L$42:$CD$42)) -> FALSE | CK24: =IF(CK10,LOOKUP(CK23,'Operating Assumptions'!$L$40:$CD$40,'Operating Assumptions'!$L$42:$CD$42)) -> FALSE | CL24: =IF(CL10,LOOKUP(CL23,'Operating Assumptions'!$L$40:$CD$40,'Operating Assumptions'!$L$42:$CD$42)) -> FALSE | CM24: =IF(CM10,LOOKUP(CM23,'Operating Assumptions'!$L$40:$CD$40,'Operating Assumptions'!$L$42:$CD$42)) -> FALSE | CN24: =IF(CN10,LOOKUP(CN23,'Operating Assumptions'!$L$40:$CD$40,'Operating Assumptions'!$L$42:$CD$42)) -> FALSE | CO24: =IF(CO10,LOOKUP(CO23,'Operating Assumptions'!$L$40:$CD$40,'Operating Assumptions'!$L$42:$CD$42)) -> FALSE | CP24: =IF(CP10,LOOKUP(CP23,'Operating Assumptions'!$L$40:$CD$40,'Operating Assumptions'!$L$42:$CD$42)) -> FALSE | CQ24: =IF(CQ10,LOOKUP(CQ23,'Operating Assumptions'!$L$40:$CD$40,'Operating Assumptions'!$L$42:$CD$42)) -> FALSE | CR24: =IF(CR10,LOOKUP(CR23,'Operating Assumptions'!$L$40:$CD$40,'Operating Assumptions'!$L$42:$CD$42)) -> FALSE | CS24: =IF(CS10,LOOKUP(CS23,'Operating Assumptions'!$L$40:$CD$40,'Operating Assumptions'!$L$42:$CD$42)) -> FALSE | CT24: =IF(CT10,LOOKUP(CT23,'Operating Assumptions'!$L$40:$CD$40,'Operating Assumptions'!$L$42:$CD$42)) -> FALSE | CU24: =IF(CU10,LOOKUP(CU23,'Operating Assumptions'!$L$40:$CD$40,'Operating Assumptions'!$L$42:$CD$42)) -> FALSE | CV24: =IF(CV10,LOOKUP(CV23,'Operating Assumptions'!$L$40:$CD$40,'Operating Assumptions'!$L$42:$CD$42)) -> FALSE | CW24: =IF(CW10,LOOKUP(CW23,'Operating Assumptions'!$L$40:$CD$40,'Operating Assumptions'!$L$42:$CD$42)) -> FALSE | CX24: =IF(CX10,LOOKUP(CX23,'Operating Assumptions'!$L$40:$CD$40,'Operating Assumptions'!$L$42:$CD$42)) -> FALSE | CY24: =IF(CY10,LOOKUP(CY23,'Operating Assumptions'!$L$40:$CD$40,'Operating Assumptions'!$L$42:$CD$42)) -> FALSE | CZ24: =IF(CZ10,LOOKUP(CZ23,'Operating Assumptions'!$L$40:$CD$40,'Operating Assumptions'!$L$42:$CD$42)) -> FALSE | DA24: =IF(DA10,LOOKUP(DA23,'Operating Assumptions'!$L$40:$CD$40,'Operating Assumptions'!$L$42:$CD$42)) -> FALSE | DB24: =IF(DB10,LOOKUP(DB23,'Operating Assumptions'!$L$40:$CD$40,'Operating Assumptions'!$L$42:$CD$42)) -> FALSE | DC24: =IF(DC10,LOOKUP(DC23,'Operating Assumptions'!$L$40:$CD$40,'Operating Assumptions'!$L$42:$CD$42)) -> FALSE | DD24: =IF(DD10,LOOKUP(DD23,'Operating Assumptions'!$L$40:$CD$40,'Operating Assumptions'!$L$42:$CD$42)) -> FALSE | DE24: =IF(DE10,LOOKUP(DE23,'Operating Assumptions'!$L$40:$CD$40,'Operating Assumptions'!$L$42:$CD$42)) -> FALSE | DF24: =IF(DF10,LOOKUP(DF23,'Operating Assumptions'!$L$40:$CD$40,'Operating Assumptions'!$L$42:$CD$42)) -> FALSE | DG24: =IF(DG10,LOOKUP(DG23,'Operating Assumptions'!$L$40:$CD$40,'Operating Assumptions'!$L$42:$CD$42)) -> FALSE | DH24: =IF(DH10,LOOKUP(DH23,'Operating Assumptions'!$L$40:$CD$40,'Operating Assumptions'!$L$42:$CD$42)) -> FALSE | DI24: =IF(DI10,LOOKUP(DI23,'Operating Assumptions'!$L$40:$CD$40,'Operating Assumptions'!$L$42:$CD$42)) -> FALSE | DJ24: =IF(DJ10,LOOKUP(DJ23,'Operating Assumptions'!$L$40:$CD$40,'Operating Assumptions'!$L$42:$CD$42)) -> FALSE | DK24: =IF(DK10,LOOKUP(DK23,'Operating Assumptions'!$L$40:$CD$40,'Operating Assumptions'!$L$42:$CD$42)) -> FALSE | DL24: =IF(DL10,LOOKUP(DL23,'Operating Assumptions'!$L$40:$CD$40,'Operating Assumptions'!$L$42:$CD$42)) -> FALSE | DM24: =IF(DM10,LOOKUP(DM23,'Operating Assumptions'!$L$40:$CD$40,'Operating Assumptions'!$L$42:$CD$42)) -> FALSE | DN24: =IF(DN10,LOOKUP(DN23,'Operating Assumptions'!$L$40:$CD$40,'Operating Assumptions'!$L$42:$CD$42)) -> FALSE | DO24: =IF(DO10,LOOKUP(DO23,'Operating Assumptions'!$L$40:$CD$40,'Operating Assumptions'!$L$42:$CD$42)) -> FALSE | DP24: =IF(DP10,LOOKUP(DP23,'Operating Assumptions'!$L$40:$CD$40,'Operating Assumptions'!$L$42:$CD$42)) -> FALSE | DQ24: =IF(DQ10,LOOKUP(DQ23,'Operating Assumptions'!$L$40:$CD$40,'Operating Assumptions'!$L$42:$CD$42)) -> FALSE | DR24: =IF(DR10,LOOKUP(DR23,'Operating Assumptions'!$L$40:$CD$40,'Operating Assumptions'!$L$42:$CD$42)) -> FALSE | DS24: =IF(DS10,LOOKUP(DS23,'Operating Assumptions'!$L$40:$CD$40,'Operating Assumptions'!$L$42:$CD$42)) -> FALSE | DT24: =IF(DT10,LOOKUP(DT23,'Operating Assumptions'!$L$40:$CD$40,'Operating Assumptions'!$L$42:$CD$42)) -> FALSE | DU24: =IF(DU10,LOOKUP(DU23,'Operating Assumptions'!$L$40:$CD$40,'Operating Assumptions'!$L$42:$CD$42)) -> FALSE | DV24: =IF(DV10,LOOKUP(DV23,'Operating Assumptions'!$L$40:$CD$40,'Operating Assumptions'!$L$42:$CD$42)) -> FALSE | DW24: =IF(DW10,LOOKUP(DW23,'Operating Assumptions'!$L$40:$CD$40,'Operating Assumptions'!$L$42:$CD$42)) -> FALSE | DX24: =IF(DX10,LOOKUP(DX23,'Operating Assumptions'!$L$40:$CD$40,'Operating Assumptions'!$L$42:$CD$42)) -> FALSE | DY24: =IF(DY10,LOOKUP(DY23,'Operating Assumptions'!$L$40:$CD$40,'Operating Assumptions'!$L$42:$CD$42)) -> FALSE | DZ24: =IF(DZ10,LOOKUP(DZ23,'Operating Assumptions'!$L$40:$CD$40,'Operating Assumptions'!$L$42:$CD$42)) -> FALSE | EA24: =IF(EA10,LOOKUP(EA23,'Operating Assumptions'!$L$40:$CD$40,'Operating Assumptions'!$L$42:$CD$42)) -> FALSE | EB24: =IF(EB10,LOOKUP(EB23,'Operating Assumptions'!$L$40:$CD$40,'Operating Assumptions'!$L$42:$CD$42)) -> FALSE | EC24: =IF(EC10,LOOKUP(EC23,'Operating Assumptions'!$L$40:$CD$40,'Operating Assumptions'!$L$42:$CD$42)) -> FALSE | ED24: =IF(ED10,LOOKUP(ED23,'Operating Assumptions'!$L$40:$CD$40,'Operating Assumptions'!$L$42:$CD$42)) -> FALSE | EE24: =IF(EE10,LOOKUP(EE23,'Operating Assumptions'!$L$40:$CD$40,'Operating Assumptions'!$L$42:$CD$42)) -> FALSE | EF24: =IF(EF10,LOOKUP(EF23,'Operating Assumptions'!$L$40:$CD$40,'Operating Assumptions'!$L$42:$CD$42)) -> FALSE | EG24: =IF(EG10,LOOKUP(EG23,'Operating Assumptions'!$L$40:$CD$40,'Operating Assumptions'!$L$42:$CD$42)) -> FALSE | EH24: =IF(EH10,LOOKUP(EH23,'Operating Assumptions'!$L$40:$CD$40,'Operating Assumptions'!$L$42:$CD$42)) -> FALSE | EI24: =IF(EI10,LOOKUP(EI23,'Operating Assumptions'!$L$40:$CD$40,'Operating Assumptions'!$L$42:$CD$42)) -> FALSE | EJ24: =IF(EJ10,LOOKUP(EJ23,'Operating Assumptions'!$L$40:$CD$40,'Operating Assumptions'!$L$42:$CD$42)) -> FALSE | EK24: =IF(EK10,LOOKUP(EK23,'Operating Assumptions'!$L$40:$CD$40,'Operating Assumptions'!$L$42:$CD$42)) -> FALSE | EL24: =IF(EL10,LOOKUP(EL23,'Operating Assumptions'!$L$40:$CD$40,'Operating Assumptions'!$L$42:$CD$42)) -> FALSE | EM24: =IF(EM10,LOOKUP(EM23,'Operating Assumptions'!$L$40:$CD$40,'Operating Assumptions'!$L$42:$CD$42)) -> FALSE | EN24: =IF(EN10,LOOKUP(EN23,'Operating Assumptions'!$L$40:$CD$40,'Operating Assumptions'!$L$42:$CD$42)) -> FALSE | EO24: =IF(EO10,LOOKUP(EO23,'Operating Assumptions'!$L$40:$CD$40,'Operating Assumptions'!$L$42:$CD$42)) -> FALSE | EP24: =IF(EP10,LOOKUP(EP23,'Operating Assumptions'!$L$40:$CD$40,'Operating Assumptions'!$L$42:$CD$42)) -> FALSE | EQ24: =IF(EQ10,LOOKUP(EQ23,'Operating Assumptions'!$L$40:$CD$40,'Operating Assumptions'!$L$42:$CD$42)) -> FALSE | ER24: =IF(ER10,LOOKUP(ER23,'Operating Assumptions'!$L$40:$CD$40,'Operating Assumptions'!$L$42:$CD$42)) -> FALSE | ES24: =IF(ES10,LOOKUP(ES23,'Operating Assumptions'!$L$40:$CD$40,'Operating Assumptions'!$L$42:$CD$42)) -> FALSE | ET24: =IF(ET10,LOOKUP(ET23,'Operating Assumptions'!$L$40:$CD$40,'Operating Assumptions'!$L$42:$CD$42)) -> FALSE | EU24: =IF(EU10,LOOKUP(EU23,'Operating Assumptions'!$L$40:$CD$40,'Operating Assumptions'!$L$42:$CD$42)) -> FALSE | EV24: =IF(EV10,LOOKUP(EV23,'Operating Assumptions'!$L$40:$CD$40,'Operating Assumptions'!$L$42:$CD$42)) -> FALSE | EW24: =IF(EW10,LOOKUP(EW23,'Operating Assumptions'!$L$40:$CD$40,'Operating Assumptions'!$L$42:$CD$42)) -> FALSE | EX24: =IF(EX10,LOOKUP(EX23,'Operating Assumptions'!$L$40:$CD$40,'Operating Assumptions'!$L$42:$CD$42)) -> FALSE | EY24: =IF(EY10,LOOKUP(EY23,'Operating Assumptions'!$L$40:$CD$40,'Operating Assumptions'!$L$42:$CD$42)) -> FALSE | EZ24: =IF(EZ10,LOOKUP(EZ23,'Operating Assumptions'!$L$40:$CD$40,'Operating Assumptions'!$L$42:$CD$42)) -> FALSE | FA24: =IF(FA10,LOOKUP(FA23,'Operating Assumptions'!$L$40:$CD$40,'Operating Assumptions'!$L$42:$CD$42)) -> FALSE | FB24: =IF(FB10,LOOKUP(FB23,'Operating Assumptions'!$L$40:$CD$40,'Operating Assumptions'!$L$42:$CD$42)) -> FALSE | FC24: =IF(FC10,LOOKUP(FC23,'Operating Assumptions'!$L$40:$CD$40,'Operating Assumptions'!$L$42:$CD$42)) -> FALSE | FD24: =IF(FD10,LOOKUP(FD23,'Operating Assumptions'!$L$40:$CD$40,'Operating Assumptions'!$L$42:$CD$42)) -> FALSE | FE24: =IF(FE10,LOOKUP(FE23,'Operating Assumptions'!$L$40:$CD$40,'Operating Assumptions'!$L$42:$CD$42)) -> FALSE | FF24: =IF(FF10,LOOKUP(FF23,'Operating Assumptions'!$L$40:$CD$40,'Operating Assumptions'!$L$42:$CD$42)) -> FALSE | FG24: =IF(FG10,LOOKUP(FG23,'Operating Assumptions'!$L$40:$CD$40,'Operating Assumptions'!$L$42:$CD$42)) -> FALSE | FH24: =IF(FH10,LOOKUP(FH23,'Operating Assumptions'!$L$40:$CD$40,'Operating Assumptions'!$L$42:$CD$42)) -> FALSE | FI24: =IF(FI10,LOOKUP(FI23,'Operating Assumptions'!$L$40:$CD$40,'Operating Assumptions'!$L$42:$CD$42)) -> FALSE | FJ24: =IF(FJ10,LOOKUP(FJ23,'Operating Assumptions'!$L$40:$CD$40,'Operating Assumptions'!$L$42:$CD$42)) -> FALSE | FK24: =IF(FK10,LOOKUP(FK23,'Operating Assumptions'!$L$40:$CD$40,'Operating Assumptions'!$L$42:$CD$42)) -> FALSE | FL24: =IF(FL10,LOOKUP(FL23,'Operating Assumptions'!$L$40:$CD$40,'Operating Assumptions'!$L$42:$CD$42)) -> FALSE | FM24: =IF(FM10,LOOKUP(FM23,'Operating Assumptions'!$L$40:$CD$40,'Operating Assumptions'!$L$42:$CD$42)) -> FALSE | FN24: =IF(FN10,LOOKUP(FN23,'Operating Assumptions'!$L$40:$CD$40,'Operating Assumptions'!$L$42:$CD$42)) -> FALSE | FO24: =IF(FO10,LOOKUP(FO23,'Operating Assumptions'!$L$40:$CD$40,'Operating Assumptions'!$L$42:$CD$42)) -> FALSE | FP24: =IF(FP10,LOOKUP(FP23,'Operating Assumptions'!$L$40:$CD$40,'Operating Assumptions'!$L$42:$CD$42)) -> FALSE | FQ24: =IF(FQ10,LOOKUP(FQ23,'Operating Assumptions'!$L$40:$CD$40,'Operating Assumptions'!$L$42:$CD$42)) -> FALSE | FR24: =IF(FR10,LOOKUP(FR23,'Operating Assumptions'!$L$40:$CD$40,'Operating Assumptions'!$L$42:$CD$42)) -> FALSE | FS24: =IF(FS10,LOOKUP(FS23,'Operating Assumptions'!$L$40:$CD$40,'Operating Assumptions'!$L$42:$CD$42)) -> FALSE | FT24: =IF(FT10,LOOKUP(FT23,'Operating Assumptions'!$L$40:$CD$40,'Operating Assumptions'!$L$42:$CD$42)) -> FALSE | FU24: =IF(FU10,LOOKUP(FU23,'Operating Assumptions'!$L$40:$CD$40,'Operating Assumptions'!$L$42:$CD$42)) -> FALSE | FV24: =IF(FV10,LOOKUP(FV23,'Operating Assumptions'!$L$40:$CD$40,'Operating Assumptions'!$L$42:$CD$42)) -> FALSE | FW24: =IF(FW10,LOOKUP(FW23,'Operating Assumptions'!$L$40:$CD$40,'Operating Assumptions'!$L$42:$CD$42)) -> FALSE | FX24: =IF(FX10,LOOKUP(FX23,'Operating Assumptions'!$L$40:$CD$40,'Operating Assumptions'!$L$42:$CD$42)) -> FALSE | FY24: =IF(FY10,LOOKUP(FY23,'Operating Assumptions'!$L$40:$CD$40,'Operating Assumptions'!$L$42:$CD$42)) -> FALSE | FZ24: =IF(FZ10,LOOKUP(FZ23,'Operating Assumptions'!$L$40:$CD$40,'Operating Assumptions'!$L$42:$CD$42)) -> FALSE | GA24: =IF(GA10,LOOKUP(GA23,'Operating Assumptions'!$L$40:$CD$40,'Operating Assumptions'!$L$42:$CD$42)) -> FALSE | GB24: =IF(GB10,LOOKUP(GB23,'Operating Assumptions'!$L$40:$CD$40,'Operating Assumptions'!$L$42:$CD$42)) -> FALSE | GC24: =IF(GC10,LOOKUP(GC23,'Operating Assumptions'!$L$40:$CD$40,'Operating Assumptions'!$L$42:$CD$42)) -> FALSE | GD24: =IF(GD10,LOOKUP(GD23,'Operating Assumptions'!$L$40:$CD$40,'Operating Assumptions'!$L$42:$CD$42)) -> FALSE | GE24: =IF(GE10,LOOKUP(GE23,'Operating Assumptions'!$L$40:$CD$40,'Operating Assumptions'!$L$42:$CD$42)) -> FALSE | GF24: =IF(GF10,LOOKUP(GF23,'Operating Assumptions'!$L$40:$CD$40,'Operating Assumptions'!$L$42:$CD$42)) -> FALSE | GG24: =IF(GG10,LOOKUP(GG23,'Operating Assumptions'!$L$40:$CD$40,'Operating Assumptions'!$L$42:$CD$42)) -> FALSE | GH24: =IF(GH10,LOOKUP(GH23,'Operating Assumptions'!$L$40:$CD$40,'Operating Assumptions'!$L$42:$CD$42)) -> FALSE | GI24: =IF(GI10,LOOKUP(GI23,'Operating Assumptions'!$L$40:$CD$40,'Operating Assumptions'!$L$42:$CD$42)) -> FALSE | GJ24: =IF(GJ10,LOOKUP(GJ23,'Operating Assumptions'!$L$40:$CD$40,'Operating Assumptions'!$L$42:$CD$42)) -> FALSE | GK24: =IF(GK10,LOOKUP(GK23,'Operating Assumptions'!$L$40:$CD$40,'Operating Assumptions'!$L$42:$CD$42)) -> FALSE | GL24: =IF(GL10,LOOKUP(GL23,'Operating Assumptions'!$L$40:$CD$40,'Operating Assumptions'!$L$42:$CD$42)) -> FALSE | GM24: =IF(GM10,LOOKUP(GM23,'Operating Assumptions'!$L$40:$CD$40,'Operating Assumptions'!$L$42:$CD$42)) -> FALSE | GN24: =IF(GN10,LOOKUP(GN23,'Operating Assumptions'!$L$40:$CD$40,'Operating Assumptions'!$L$42:$CD$42)) -> FALSE | GO24: =IF(GO10,LOOKUP(GO23,'Operating Assumptions'!$L$40:$CD$40,'Operating Assumptions'!$L$42:$CD$42)) -> FALSE | GP24: =IF(GP10,LOOKUP(GP23,'Operating Assumptions'!$L$40:$CD$40,'Operating Assumptions'!$L$42:$CD$42)) -> FALSE | GQ24: =IF(GQ10,LOOKUP(GQ23,'Operating Assumptions'!$L$40:$CD$40,'Operating Assumptions'!$L$42:$CD$42)) -> FALSE | GR24: =IF(GR10,LOOKUP(GR23,'Operating Assumptions'!$L$40:$CD$40,'Operating Assumptions'!$L$42:$CD$42)) -> FALSE | GS24: =IF(GS10,LOOKUP(GS23,'Operating Assumptions'!$L$40:$CD$40,'Operating Assumptions'!$L$42:$CD$42)) -> FALSE | GT24: =IF(GT10,LOOKUP(GT23,'Operating Assumptions'!$L$40:$CD$40,'Operating Assumptions'!$L$42:$CD$42)) -> FALSE | GU24: =IF(GU10,LOOKUP(GU23,'Operating Assumptions'!$L$40:$CD$40,'Operating Assumptions'!$L$42:$CD$42)) -> FALSE | GV24: =IF(GV10,LOOKUP(GV23,'Operating Assumptions'!$L$40:$CD$40,'Operating Assumptions'!$L$42:$CD$42)) -> FALSE | GW24: =IF(GW10,LOOKUP(GW23,'Operating Assumptions'!$L$40:$CD$40,'Operating Assumptions'!$L$42:$CD$42)) -> FALSE | GX24: =IF(GX10,LOOKUP(GX23,'Operating Assumptions'!$L$40:$CD$40,'Operating Assumptions'!$L$42:$CD$42)) -> FALSE | GY24: =IF(GY10,LOOKUP(GY23,'Operating Assumptions'!$L$40:$CD$40,'Operating Assumptions'!$L$42:$CD$42)) -> FALSE | GZ24: =IF(GZ10,LOOKUP(GZ23,'Operating Assumptions'!$L$40:$CD$40,'Operating Assumptions'!$L$42:$CD$42)) -> FALSE | HA24: =IF(HA10,LOOKUP(HA23,'Operating Assumptions'!$L$40:$CD$40,'Operating Assumptions'!$L$42:$CD$42)) -> FALSE | HB24: =IF(HB10,LOOKUP(HB23,'Operating Assumptions'!$L$40:$CD$40,'Operating Assumptions'!$L$42:$CD$42)) -> FALSE | HC24: =IF(HC10,LOOKUP(HC23,'Operating Assumptions'!$L$40:$CD$40,'Operating Assumptions'!$L$42:$CD$42)) -> FALSE | HD24: =IF(HD10,LOOKUP(HD23,'Operating Assumptions'!$L$40:$CD$40,'Operating Assumptions'!$L$42:$CD$42)) -> FALSE | HE24: =IF(HE10,LOOKUP(HE23,'Operating Assumptions'!$L$40:$CD$40,'Operating Assumptions'!$L$42:$CD$42)) -> FALSE | HF24: =IF(HF10,LOOKUP(HF23,'Operating Assumptions'!$L$40:$CD$40,'Operating Assumptions'!$L$42:$CD$42)) -> FALSE | HG24: =IF(HG10,LOOKUP(HG23,'Operating Assumptions'!$L$40:$CD$40,'Operating Assumptions'!$L$42:$CD$42)) -> FALSE | HH24: =IF(HH10,LOOKUP(HH23,'Operating Assumptions'!$L$40:$CD$40,'Operating Assumptions'!$L$42:$CD$42)) -> FALSE | HI24: =IF(HI10,LOOKUP(HI23,'Operating Assumptions'!$L$40:$CD$40,'Operating Assumptions'!$L$42:$CD$42)) -> FALSE | HJ24: =IF(HJ10,LOOKUP(HJ23,'Operating Assumptions'!$L$40:$CD$40,'Operating Assumptions'!$L$42:$CD$42)) -> FALSE | HK24: =IF(HK10,LOOKUP(HK23,'Operating Assumptions'!$L$40:$CD$40,'Operating Assumptions'!$L$42:$CD$42)) -> FALSE | HL24: =IF(HL10,LOOKUP(HL23,'Operating Assumptions'!$L$40:$CD$40,'Operating Assumptions'!$L$42:$CD$42)) -> FALSE | HM24: =IF(HM10,LOOKUP(HM23,'Operating Assumptions'!$L$40:$CD$40,'Operating Assumptions'!$L$42:$CD$42)) -> FALSE | HN24: =IF(HN10,LOOKUP(HN23,'Operating Assumptions'!$L$40:$CD$40,'Operating Assumptions'!$L$42:$CD$42)) -> FALSE | HO24: =IF(HO10,LOOKUP(HO23,'Operating Assumptions'!$L$40:$CD$40,'Operating Assumptions'!$L$42:$CD$42)) -> FALSE | HP24: =IF(HP10,LOOKUP(HP23,'Operating Assumptions'!$L$40:$CD$40,'Operating Assumptions'!$L$42:$CD$42)) -> FALSE | HQ24: =IF(HQ10,LOOKUP(HQ23,'Operating Assumptions'!$L$40:$CD$40,'Operating Assumptions'!$L$42:$CD$42)) -> FALSE | HR24: =IF(HR10,LOOKUP(HR23,'Operating Assumptions'!$L$40:$CD$40,'Operating Assumptions'!$L$42:$CD$42)) -> FALSE | HS24: =IF(HS10,LOOKUP(HS23,'Operating Assumptions'!$L$40:$CD$40,'Operating Assumptions'!$L$42:$CD$42)) -> FALSE | HT24: =IF(HT10,LOOKUP(HT23,'Operating Assumptions'!$L$40:$CD$40,'Operating Assumptions'!$L$42:$CD$42)) -> FALSE | HU24: =IF(HU10,LOOKUP(HU23,'Operating Assumptions'!$L$40:$CD$40,'Operating Assumptions'!$L$42:$CD$42)) -> FALSE | HV24: =IF(HV10,LOOKUP(HV23,'Operating Assumptions'!$L$40:$CD$40,'Operating Assumptions'!$L$42:$CD$42)) -> FALSE | HW24: =IF(HW10,LOOKUP(HW23,'Operating Assumptions'!$L$40:$CD$40,'Operating Assumptions'!$L$42:$CD$42)) -> FALSE | HX24: =IF(HX10,LOOKUP(HX23,'Operating Assumptions'!$L$40:$CD$40,'Operating Assumptions'!$L$42:$CD$42)) -> FALSE | HY24: =IF(HY10,LOOKUP(HY23,'Operating Assumptions'!$L$40:$CD$40,'Operating Assumptions'!$L$42:$CD$42)) -> FALSE | HZ24: =IF(HZ10,LOOKUP(HZ23,'Operating Assumptions'!$L$40:$CD$40,'Operating Assumptions'!$L$42:$CD$42)) -> FALSE | IA24: =IF(IA10,LOOKUP(IA23,'Operating Assumptions'!$L$40:$CD$40,'Operating Assumptions'!$L$42:$CD$42)) -> FALSE | IB24: =IF(IB10,LOOKUP(IB23,'Operating Assumptions'!$L$40:$CD$40,'Operating Assumptions'!$L$42:$CD$42)) -> FALSE | IC24: =IF(IC10,LOOKUP(IC23,'Operating Assumptions'!$L$40:$CD$40,'Operating Assumptions'!$L$42:$CD$42)) -> FALSE | ID24: =IF(ID10,LOOKUP(ID23,'Operating Assumptions'!$L$40:$CD$40,'Operating Assumptions'!$L$42:$CD$42)) -> FALSE | IE24: =IF(IE10,LOOKUP(IE23,'Operating Assumptions'!$L$40:$CD$40,'Operating Assumptions'!$L$42:$CD$42)) -> FALSE | IF24: =IF(IF10,LOOKUP(IF23,'Operating Assumptions'!$L$40:$CD$40,'Operating Assumptions'!$L$42:$CD$42)) -> FALSE | IG24: =IF(IG10,LOOKUP(IG23,'Operating Assumptions'!$L$40:$CD$40,'Operating Assumptions'!$L$42:$CD$42)) -> FALSE | IH24: =IF(IH10,LOOKUP(IH23,'Operating Assumptions'!$L$40:$CD$40,'Operating Assumptions'!$L$42:$CD$42)) -> FALSE | II24: =IF(II10,LOOKUP(II23,'Operating Assumptions'!$L$40:$CD$40,'Operating Assumptions'!$L$42:$CD$42)) -> FALSE | IJ24: =IF(IJ10,LOOKUP(IJ23,'Operating Assumptions'!$L$40:$CD$40,'Operating Assumptions'!$L$42:$CD$42)) -> FALSE | IK24: =IF(IK10,LOOKUP(IK23,'Operating Assumptions'!$L$40:$CD$40,'Operating Assumptions'!$L$42:$CD$42)) -> FALSE | IL24: =IF(IL10,LOOKUP(IL23,'Operating Assumptions'!$L$40:$CD$40,'Operating Assumptions'!$L$42:$CD$42)) -> FALSE | IM24: =IF(IM10,LOOKUP(IM23,'Operating Assumptions'!$L$40:$CD$40,'Operating Assumptions'!$L$42:$CD$42)) -> FALSE | IN24: =IF(IN10,LOOKUP(IN23,'Operating Assumptions'!$L$40:$CD$40,'Operating Assumptions'!$L$42:$CD$42)) -> FALSE | IO24: =IF(IO10,LOOKUP(IO23,'Operating Assumptions'!$L$40:$CD$40,'Operating Assumptions'!$L$42:$CD$42)) -> FALSE | IP24: =IF(IP10,LOOKUP(IP23,'Operating Assumptions'!$L$40:$CD$40,'Operating Assumptions'!$L$42:$CD$42)) -> FALSE | IQ24: =IF(IQ10,LOOKUP(IQ23,'Operating Assumptions'!$L$40:$CD$40,'Operating Assumptions'!$L$42:$CD$42)) -> FALSE | IR24: =IF(IR10,LOOKUP(IR23,'Operating Assumptions'!$L$40:$CD$40,'Operating Assumptions'!$L$42:$CD$42)) -> FALSE | IS24: =IF(IS10,LOOKUP(IS23,'Operating Assumptions'!$L$40:$CD$40,'Operating Assumptions'!$L$42:$CD$42)) -> FALSE | IT24: =IF(IT10,LOOKUP(IT23,'Operating Assumptions'!$L$40:$CD$40,'Operating Assumptions'!$L$42:$CD$42)) -> FALSE | IU24: =IF(IU10,LOOKUP(IU23,'Operating Assumptions'!$L$40:$CD$40,'Operating Assumptions'!$L$42:$CD$42)) -> FALSE | IV24: =IF(IV10,LOOKUP(IV23,'Operating Assumptions'!$L$40:$CD$40,'Operating Assumptions'!$L$42:$CD$42)) -> FALSE | IW24: =IF(IW10,LOOKUP(IW23,'Operating Assumptions'!$L$40:$CD$40,'Operating Assumptions'!$L$42:$CD$42)) -> FALSE | IX24: =IF(IX10,LOOKUP(IX23,'Operating Assumptions'!$L$40:$CD$40,'Operating Assumptions'!$L$42:$CD$42)) -> FALSE | IY24: =IF(IY10,LOOKUP(IY23,'Operating Assumptions'!$L$40:$CD$40,'Operating Assumptions'!$L$42:$CD$42)) -> FALSE | IZ24: =IF(IZ10,LOOKUP(IZ23,'Operating Assumptions'!$L$40:$CD$40,'Operating Assumptions'!$L$42:$CD$42)) -> FALSE | JA24: =IF(JA10,LOOKUP(JA23,'Operating Assumptions'!$L$40:$CD$40,'Operating Assumptions'!$L$42:$CD$42)) -> FALSE | JB24: =IF(JB10,LOOKUP(JB23,'Operating Assumptions'!$L$40:$CD$40,'Operating Assumptions'!$L$42:$CD$42)) -> FALSE | JC24: =IF(JC10,LOOKUP(JC23,'Operating Assumptions'!$L$40:$CD$40,'Operating Assumptions'!$L$42:$CD$42)) -> FALSE | JD24: =IF(JD10,LOOKUP(JD23,'Operating Assumptions'!$L$40:$CD$40,'Operating Assumptions'!$L$42:$CD$42)) -> FALSE | JE24: =IF(JE10,LOOKUP(JE23,'Operating Assumptions'!$L$40:$CD$40,'Operating Assumptions'!$L$42:$CD$42)) -> FALSE
C25: S-Curve 2 | I25: =SUM(L25:JE25) -> 0.9999999266 | L25: =IF(L10,LOOKUP(L23,'Operating Assumptions'!$L$49:$CD$49,'Operating Assumptions'!$L$51:$CD$51)) -> FALSE | M25: =IF(M10,LOOKUP(M23,'Operating Assumptions'!$L$49:$CD$49,'Operating Assumptions'!$L$51:$CD$51)) -> FALSE | N25: =IF(N10,LOOKUP(N23,'Operating Assumptions'!$L$49:$CD$49,'Operating Assumptions'!$L$51:$CD$51)) -> FALSE | O25: =IF(O10,LOOKUP(O23,'Operating Assumptions'!$L$49:$CD$49,'Operating Assumptions'!$L$51:$CD$51)) -> FALSE | P25: =IF(P10,LOOKUP(P23,'Operating Assumptions'!$L$49:$CD$49,'Operating Assumptions'!$L$51:$CD$51)) -> 0.01983408662 | Q25: =IF(Q10,LOOKUP(Q23,'Operating Assumptions'!$L$49:$CD$49,'Operating Assumptions'!$L$51:$CD$51)) -> 0.03849580155 | R25: =IF(R10,LOOKUP(R23,'Operating Assumptions'!$L$49:$CD$49,'Operating Assumptions'!$L$51:$CD$51)) -> 0.05492750873 | S25: =IF(S10,LOOKUP(S23,'Operating Assumptions'!$L$49:$CD$49,'Operating Assumptions'!$L$51:$CD$51)) -> 0.06828542624 | T25: =IF(T10,LOOKUP(T23,'Operating Assumptions'!$L$49:$CD$49,'Operating Assumptions'!$L$51:$CD$51)) -> 0.07801022568 | U25: =IF(U10,LOOKUP(U23,'Operating Assumptions'!$L$49:$CD$49,'Operating Assumptions'!$L$51:$CD$51)) -> 0.08386106768 | V25: =IF(V10,LOOKUP(V23,'Operating Assumptions'!$L$49:$CD$49,'Operating Assumptions'!$L$51:$CD$51)) -> 0.08591102375 | W25: =IF(W10,LOOKUP(W23,'Operating Assumptions'!$L$49:$CD$49,'Operating Assumptions'!$L$51:$CD$51)) -> 0.08450777532 | X25: =IF(X10,LOOKUP(X23,'Operating Assumptions'!$L$49:$CD$49,'Operating Assumptions'!$L$51:$CD$51)) -> 0.08020826636 | Y25: =IF(Y10,LOOKUP(Y23,'Operating Assumptions'!$L$49:$CD$49,'Operating Assumptions'!$L$51:$CD$51)) -> 0.07369884276 | Z25: =IF(Z10,LOOKUP(Z23,'Operating Assumptions'!$L$49:$CD$49,'Operating Assumptions'!$L$51:$CD$51)) -> 0.06571303298 | AA25: =IF(AA10,LOOKUP(AA23,'Operating Assumptions'!$L$49:$CD$49,'Operating Assumptions'!$L$51:$CD$51)) -> 0.05695768672 | AB25: =IF(AB10,LOOKUP(AB23,'Operating Assumptions'!$L$49:$CD$49,'Operating Assumptions'!$L$51:$CD$51)) -> 0.0480552486 | AC25: =IF(AC10,LOOKUP(AC23,'Operating Assumptions'!$L$49:$CD$49,'Operating Assumptions'!$L$51:$CD$51)) -> 0.03950626764 | AD25: =IF(AD10,LOOKUP(AD23,'Operating Assumptions'!$L$49:$CD$49,'Operating Assumptions'!$L$51:$CD$51)) -> 0.03167260796 | AE25: =IF(AE10,LOOKUP(AE23,'Operating Assumptions'!$L$49:$CD$49,'Operating Assumptions'!$L$51:$CD$51)) -> 0.02477885643 | AF25: =IF(AF10,LOOKUP(AF23,'Operating Assumptions'!$L$49:$CD$49,'Operating Assumptions'!$L$51:$CD$51)) -> 0.01892748973 | AG25: =IF(AG10,LOOKUP(AG23,'Operating Assumptions'!$L$49:$CD$49,'Operating Assumptions'!$L$51:$CD$51)) -> 0.01412256344 | AH25: =IF(AH10,LOOKUP(AH23,'Operating Assumptions'!$L$49:$CD$49,'Operating Assumptions'!$L$51:$CD$51)) -> 0.01029688048 | AI25: =IF(AI10,LOOKUP(AI23,'Operating Assumptions'!$L$49:$CD$49,'Operating Assumptions'!$L$51:$CD$51)) -> 0.007338498647 | AJ25: =IF(AJ10,LOOKUP(AJ23,'Operating Assumptions'!$L$49:$CD$49,'Operating Assumptions'!$L$51:$CD$51)) -> 0.005113706286 | AK25: =IF(AK10,LOOKUP(AK23,'Operating Assumptions'!$L$49:$CD$49,'Operating Assumptions'!$L$51:$CD$51)) -> 0.003484917801 | AL25: =IF(AL10,LOOKUP(AL23,'Operating Assumptions'!$L$49:$CD$49,'Operating Assumptions'!$L$51:$CD$51)) -> 0.00232308541 | AM25: =IF(AM10,LOOKUP(AM23,'Operating Assumptions'!$L$49:$CD$49,'Operating Assumptions'!$L$51:$CD$51)) -> 0.0015150612 | AN25: =IF(AN10,LOOKUP(AN23,'Operating Assumptions'!$L$49:$CD$49,'Operating Assumptions'!$L$51:$CD$51)) -> 0.0009668400835 | AO25: =IF(AO10,LOOKUP(AO23,'Operating Assumptions'!$L$49:$CD$49,'Operating Assumptions'!$L$51:$CD$51)) -> 0.0006038065234 | AP25: =IF(AP10,LOOKUP(AP23,'Operating Assumptions'!$L$49:$CD$49,'Operating Assumptions'!$L$51:$CD$51)) -> 0.0003690728866 | AQ25: =IF(AQ10,LOOKUP(AQ23,'Operating Assumptions'!$L$49:$CD$49,'Operating Assumptions'!$L$51:$CD$51)) -> 0.0002208230701 | AR25: =IF(AR10,LOOKUP(AR23,'Operating Assumptions'!$L$49:$CD$49,'Operating Assumptions'!$L$51:$CD$51)) -> 0.0001293411016 | AS25: =IF(AS10,LOOKUP(AS23,'Operating Assumptions'!$L$49:$CD$49,'Operating Assumptions'!$L$51:$CD$51)) -> 7.41696224e-05 | AT25: =IF(AT10,LOOKUP(AT23,'Operating Assumptions'!$L$49:$CD$49,'Operating Assumptions'!$L$51:$CD$51)) -> 4.164346642e-05 | AU25: =IF(AU10,LOOKUP(AU23,'Operating Assumptions'!$L$49:$CD$49,'Operating Assumptions'!$L$51:$CD$51)) -> 2.289441938e-05 | AV25: =IF(AV10,LOOKUP(AV23,'Operating Assumptions'!$L$49:$CD$49,'Operating Assumptions'!$L$51:$CD$51)) -> 1.232543292e-05 | AW25: =IF(AW10,LOOKUP(AW23,'Operating Assumptions'!$L$49:$CD$49,'Operating Assumptions'!$L$51:$CD$51)) -> 6.498151863e-06 | AX25: =IF(AX10,LOOKUP(AX23,'Operating Assumptions'!$L$49:$CD$49,'Operating Assumptions'!$L$51:$CD$51)) -> 3.355179746e-06 | AY25: =IF(AY10,LOOKUP(AY23,'Operating Assumptions'!$L$49:$CD$49,'Operating Assumptions'!$L$51:$CD$51)) -> 1.696684787e-06 | AZ25: =IF(AZ10,LOOKUP(AZ23,'Operating Assumptions'!$L$49:$CD$49,'Operating Assumptions'!$L$51:$CD$51)) -> 8.403600868e-07 | BA25: =IF(BA10,LOOKUP(BA23,'Operating Assumptions'!$L$49:$CD$49,'Operating Assumptions'!$L$51:$CD$51)) -> 4.076865918e-07 | BB25: =IF(BB10,LOOKUP(BB23,'Operating Assumptions'!$L$49:$CD$49,'Operating Assumptions'!$L$51:$CD$51)) -> 1.937316992e-07 | BC25: =IF(BC10,LOOKUP(BC23,'Operating Assumptions'!$L$49:$CD$49,'Operating Assumptions'!$L$51:$CD$51)) -> 9.017858808e-08 | BD25: =IF(BD10,LOOKUP(BD23,'Operating Assumptions'!$L$49:$CD$49,'Operating Assumptions'!$L$51:$CD$51)) -> FALSE | BE25: =IF(BE10,LOOKUP(BE23,'Operating Assumptions'!$L$49:$CD$49,'Operating Assumptions'!$L$51:$CD$51)) -> FALSE | BF25: =IF(BF10,LOOKUP(BF23,'Operating Assumptions'!$L$49:$CD$49,'Operating Assumptions'!$L$51:$CD$51)) -> FALSE | BG25: =IF(BG10,LOOKUP(BG23,'Operating Assumptions'!$L$49:$CD$49,'Operating Assumptions'!$L$51:$CD$51)) -> FALSE | BH25: =IF(BH10,LOOKUP(BH23,'Operating Assumptions'!$L$49:$CD$49,'Operating Assumptions'!$L$51:$CD$51)) -> FALSE | BI25: =IF(BI10,LOOKUP(BI23,'Operating Assumptions'!$L$49:$CD$49,'Operating Assumptions'!$L$51:$CD$51)) -> FALSE | BJ25: =IF(BJ10,LOOKUP(BJ23,'Operating Assumptions'!$L$49:$CD$49,'Operating Assumptions'!$L$51:$CD$51)) -> FALSE | BK25: =IF(BK10,LOOKUP(BK23,'Operating Assumptions'!$L$49:$CD$49,'Operating Assumptions'!$L$51:$CD$51)) -> FALSE | BL25: =IF(BL10,LOOKUP(BL23,'Operating Assumptions'!$L$49:$CD$49,'Operating Assumptions'!$L$51:$CD$51)) -> FALSE | BM25: =IF(BM10,LOOKUP(BM23,'Operating Assumptions'!$L$49:$CD$49,'Operating Assumptions'!$L$51:$CD$51)) -> FALSE | BN25: =IF(BN10,LOOKUP(BN23,'Operating Assumptions'!$L$49:$CD$49,'Operating Assumptions'!$L$51:$CD$51)) -> FALSE | BO25: =IF(BO10,LOOKUP(BO23,'Operating Assumptions'!$L$49:$CD$49,'Operating Assumptions'!$L$51:$CD$51)) -> FALSE | BP25: =IF(BP10,LOOKUP(BP23,'Operating Assumptions'!$L$49:$CD$49,'Operating Assumptions'!$L$51:$CD$51)) -> FALSE | BQ25: =IF(BQ10,LOOKUP(BQ23,'Operating Assumptions'!$L$49:$CD$49,'Operating Assumptions'!$L$51:$CD$51)) -> FALSE | BR25: =IF(BR10,LOOKUP(BR23,'Operating Assumptions'!$L$49:$CD$49,'Operating Assumptions'!$L$51:$CD$51)) -> FALSE | BS25: =IF(BS10,LOOKUP(BS23,'Operating Assumptions'!$L$49:$CD$49,'Operating Assumptions'!$L$51:$CD$51)) -> FALSE | BT25: =IF(BT10,LOOKUP(BT23,'Operating Assumptions'!$L$49:$CD$49,'Operating Assumptions'!$L$51:$CD$51)) -> FALSE | BU25: =IF(BU10,LOOKUP(BU23,'Operating Assumptions'!$L$49:$CD$49,'Operating Assumptions'!$L$51:$CD$51)) -> FALSE | BV25: =IF(BV10,LOOKUP(BV23,'Operating Assumptions'!$L$49:$CD$49,'Operating Assumptions'!$L$51:$CD$51)) -> FALSE | BW25: =IF(BW10,LOOKUP(BW23,'Operating Assumptions'!$L$49:$CD$49,'Operating Assumptions'!$L$51:$CD$51)) -> FALSE | BX25: =IF(BX10,LOOKUP(BX23,'Operating Assumptions'!$L$49:$CD$49,'Operating Assumptions'!$L$51:$CD$51)) -> FALSE | BY25: =IF(BY10,LOOKUP(BY23,'Operating Assumptions'!$L$49:$CD$49,'Operating Assumptions'!$L$51:$CD$51)) -> FALSE | BZ25: =IF(BZ10,LOOKUP(BZ23,'Operating Assumptions'!$L$49:$CD$49,'Operating Assumptions'!$L$51:$CD$51)) -> FALSE | CA25: =IF(CA10,LOOKUP(CA23,'Operating Assumptions'!$L$49:$CD$49,'Operating Assumptions'!$L$51:$CD$51)) -> FALSE | CB25: =IF(CB10,LOOKUP(CB23,'Operating Assumptions'!$L$49:$CD$49,'Operating Assumptions'!$L$51:$CD$51)) -> FALSE | CC25: =IF(CC10,LOOKUP(CC23,'Operating Assumptions'!$L$49:$CD$49,'Operating Assumptions'!$L$51:$CD$51)) -> FALSE | CD25: =IF(CD10,LOOKUP(CD23,'Operating Assumptions'!$L$49:$CD$49,'Operating Assumptions'!$L$51:$CD$51)) -> FALSE | CE25: =IF(CE10,LOOKUP(CE23,'Operating Assumptions'!$L$49:$CD$49,'Operating Assumptions'!$L$51:$CD$51)) -> FALSE | CF25: =IF(CF10,LOOKUP(CF23,'Operating Assumptions'!$L$49:$CD$49,'Operating Assumptions'!$L$51:$CD$51)) -> FALSE | CG25: =IF(CG10,LOOKUP(CG23,'Operating Assumptions'!$L$49:$CD$49,'Operating Assumptions'!$L$51:$CD$51)) -> FALSE | CH25: =IF(CH10,LOOKUP(CH23,'Operating Assumptions'!$L$49:$CD$49,'Operating Assumptions'!$L$51:$CD$51)) -> FALSE | CI25: =IF(CI10,LOOKUP(CI23,'Operating Assumptions'!$L$49:$CD$49,'Operating Assumptions'!$L$51:$CD$51)) -> FALSE | CJ25: =IF(CJ10,LOOKUP(CJ23,'Operating Assumptions'!$L$49:$CD$49,'Operating Assumptions'!$L$51:$CD$51)) -> FALSE | CK25: =IF(CK10,LOOKUP(CK23,'Operating Assumptions'!$L$49:$CD$49,'Operating Assumptions'!$L$51:$CD$51)) -> FALSE | CL25: =IF(CL10,LOOKUP(CL23,'Operating Assumptions'!$L$49:$CD$49,'Operating Assumptions'!$L$51:$CD$51)) -> FALSE | CM25: =IF(CM10,LOOKUP(CM23,'Operating Assumptions'!$L$49:$CD$49,'Operating Assumptions'!$L$51:$CD$51)) -> FALSE | CN25: =IF(CN10,LOOKUP(CN23,'Operating Assumptions'!$L$49:$CD$49,'Operating Assumptions'!$L$51:$CD$51)) -> FALSE | CO25: =IF(CO10,LOOKUP(CO23,'Operating Assumptions'!$L$49:$CD$49,'Operating Assumptions'!$L$51:$CD$51)) -> FALSE | CP25: =IF(CP10,LOOKUP(CP23,'Operating Assumptions'!$L$49:$CD$49,'Operating Assumptions'!$L$51:$CD$51)) -> FALSE | CQ25: =IF(CQ10,LOOKUP(CQ23,'Operating Assumptions'!$L$49:$CD$49,'Operating Assumptions'!$L$51:$CD$51)) -> FALSE | CR25: =IF(CR10,LOOKUP(CR23,'Operating Assumptions'!$L$49:$CD$49,'Operating Assumptions'!$L$51:$CD$51)) -> FALSE | CS25: =IF(CS10,LOOKUP(CS23,'Operating Assumptions'!$L$49:$CD$49,'Operating Assumptions'!$L$51:$CD$51)) -> FALSE | CT25: =IF(CT10,LOOKUP(CT23,'Operating Assumptions'!$L$49:$CD$49,'Operating Assumptions'!$L$51:$CD$51)) -> FALSE | CU25: =IF(CU10,LOOKUP(CU23,'Operating Assumptions'!$L$49:$CD$49,'Operating Assumptions'!$L$51:$CD$51)) -> FALSE | CV25: =IF(CV10,LOOKUP(CV23,'Operating Assumptions'!$L$49:$CD$49,'Operating Assumptions'!$L$51:$CD$51)) -> FALSE | CW25: =IF(CW10,LOOKUP(CW23,'Operating Assumptions'!$L$49:$CD$49,'Operating Assumptions'!$L$51:$CD$51)) -> FALSE | CX25: =IF(CX10,LOOKUP(CX23,'Operating Assumptions'!$L$49:$CD$49,'Operating Assumptions'!$L$51:$CD$51)) -> FALSE | CY25: =IF(CY10,LOOKUP(CY23,'Operating Assumptions'!$L$49:$CD$49,'Operating Assumptions'!$L$51:$CD$51)) -> FALSE | CZ25: =IF(CZ10,LOOKUP(CZ23,'Operating Assumptions'!$L$49:$CD$49,'Operating Assumptions'!$L$51:$CD$51)) -> FALSE | DA25: =IF(DA10,LOOKUP(DA23,'Operating Assumptions'!$L$49:$CD$49,'Operating Assumptions'!$L$51:$CD$51)) -> FALSE | DB25: =IF(DB10,LOOKUP(DB23,'Operating Assumptions'!$L$49:$CD$49,'Operating Assumptions'!$L$51:$CD$51)) -> FALSE | DC25: =IF(DC10,LOOKUP(DC23,'Operating Assumptions'!$L$49:$CD$49,'Operating Assumptions'!$L$51:$CD$51)) -> FALSE | DD25: =IF(DD10,LOOKUP(DD23,'Operating Assumptions'!$L$49:$CD$49,'Operating Assumptions'!$L$51:$CD$51)) -> FALSE | DE25: =IF(DE10,LOOKUP(DE23,'Operating Assumptions'!$L$49:$CD$49,'Operating Assumptions'!$L$51:$CD$51)) -> FALSE | DF25: =IF(DF10,LOOKUP(DF23,'Operating Assumptions'!$L$49:$CD$49,'Operating Assumptions'!$L$51:$CD$51)) -> FALSE | DG25: =IF(DG10,LOOKUP(DG23,'Operating Assumptions'!$L$49:$CD$49,'Operating Assumptions'!$L$51:$CD$51)) -> FALSE | DH25: =IF(DH10,LOOKUP(DH23,'Operating Assumptions'!$L$49:$CD$49,'Operating Assumptions'!$L$51:$CD$51)) -> FALSE | DI25: =IF(DI10,LOOKUP(DI23,'Operating Assumptions'!$L$49:$CD$49,'Operating Assumptions'!$L$51:$CD$51)) -> FALSE | DJ25: =IF(DJ10,LOOKUP(DJ23,'Operating Assumptions'!$L$49:$CD$49,'Operating Assumptions'!$L$51:$CD$51)) -> FALSE | DK25: =IF(DK10,LOOKUP(DK23,'Operating Assumptions'!$L$49:$CD$49,'Operating Assumptions'!$L$51:$CD$51)) -> FALSE | DL25: =IF(DL10,LOOKUP(DL23,'Operating Assumptions'!$L$49:$CD$49,'Operating Assumptions'!$L$51:$CD$51)) -> FALSE | DM25: =IF(DM10,LOOKUP(DM23,'Operating Assumptions'!$L$49:$CD$49,'Operating Assumptions'!$L$51:$CD$51)) -> FALSE | DN25: =IF(DN10,LOOKUP(DN23,'Operating Assumptions'!$L$49:$CD$49,'Operating Assumptions'!$L$51:$CD$51)) -> FALSE | DO25: =IF(DO10,LOOKUP(DO23,'Operating Assumptions'!$L$49:$CD$49,'Operating Assumptions'!$L$51:$CD$51)) -> FALSE | DP25: =IF(DP10,LOOKUP(DP23,'Operating Assumptions'!$L$49:$CD$49,'Operating Assumptions'!$L$51:$CD$51)) -> FALSE | DQ25: =IF(DQ10,LOOKUP(DQ23,'Operating Assumptions'!$L$49:$CD$49,'Operating Assumptions'!$L$51:$CD$51)) -> FALSE | DR25: =IF(DR10,LOOKUP(DR23,'Operating Assumptions'!$L$49:$CD$49,'Operating Assumptions'!$L$51:$CD$51)) -> FALSE | DS25: =IF(DS10,LOOKUP(DS23,'Operating Assumptions'!$L$49:$CD$49,'Operating Assumptions'!$L$51:$CD$51)) -> FALSE | DT25: =IF(DT10,LOOKUP(DT23,'Operating Assumptions'!$L$49:$CD$49,'Operating Assumptions'!$L$51:$CD$51)) -> FALSE | DU25: =IF(DU10,LOOKUP(DU23,'Operating Assumptions'!$L$49:$CD$49,'Operating Assumptions'!$L$51:$CD$51)) -> FALSE | DV25: =IF(DV10,LOOKUP(DV23,'Operating Assumptions'!$L$49:$CD$49,'Operating Assumptions'!$L$51:$CD$51)) -> FALSE | DW25: =IF(DW10,LOOKUP(DW23,'Operating Assumptions'!$L$49:$CD$49,'Operating Assumptions'!$L$51:$CD$51)) -> FALSE | DX25: =IF(DX10,LOOKUP(DX23,'Operating Assumptions'!$L$49:$CD$49,'Operating Assumptions'!$L$51:$CD$51)) -> FALSE | DY25: =IF(DY10,LOOKUP(DY23,'Operating Assumptions'!$L$49:$CD$49,'Operating Assumptions'!$L$51:$CD$51)) -> FALSE | DZ25: =IF(DZ10,LOOKUP(DZ23,'Operating Assumptions'!$L$49:$CD$49,'Operating Assumptions'!$L$51:$CD$51)) -> FALSE | EA25: =IF(EA10,LOOKUP(EA23,'Operating Assumptions'!$L$49:$CD$49,'Operating Assumptions'!$L$51:$CD$51)) -> FALSE | EB25: =IF(EB10,LOOKUP(EB23,'Operating Assumptions'!$L$49:$CD$49,'Operating Assumptions'!$L$51:$CD$51)) -> FALSE | EC25: =IF(EC10,LOOKUP(EC23,'Operating Assumptions'!$L$49:$CD$49,'Operating Assumptions'!$L$51:$CD$51)) -> FALSE | ED25: =IF(ED10,LOOKUP(ED23,'Operating Assumptions'!$L$49:$CD$49,'Operating Assumptions'!$L$51:$CD$51)) -> FALSE | EE25: =IF(EE10,LOOKUP(EE23,'Operating Assumptions'!$L$49:$CD$49,'Operating Assumptions'!$L$51:$CD$51)) -> FALSE | EF25: =IF(EF10,LOOKUP(EF23,'Operating Assumptions'!$L$49:$CD$49,'Operating Assumptions'!$L$51:$CD$51)) -> FALSE | EG25: =IF(EG10,LOOKUP(EG23,'Operating Assumptions'!$L$49:$CD$49,'Operating Assumptions'!$L$51:$CD$51)) -> FALSE | EH25: =IF(EH10,LOOKUP(EH23,'Operating Assumptions'!$L$49:$CD$49,'Operating Assumptions'!$L$51:$CD$51)) -> FALSE | EI25: =IF(EI10,LOOKUP(EI23,'Operating Assumptions'!$L$49:$CD$49,'Operating Assumptions'!$L$51:$CD$51)) -> FALSE | EJ25: =IF(EJ10,LOOKUP(EJ23,'Operating Assumptions'!$L$49:$CD$49,'Operating Assumptions'!$L$51:$CD$51)) -> FALSE | EK25: =IF(EK10,LOOKUP(EK23,'Operating Assumptions'!$L$49:$CD$49,'Operating Assumptions'!$L$51:$CD$51)) -> FALSE | EL25: =IF(EL10,LOOKUP(EL23,'Operating Assumptions'!$L$49:$CD$49,'Operating Assumptions'!$L$51:$CD$51)) -> FALSE | EM25: =IF(EM10,LOOKUP(EM23,'Operating Assumptions'!$L$49:$CD$49,'Operating Assumptions'!$L$51:$CD$51)) -> FALSE | EN25: =IF(EN10,LOOKUP(EN23,'Operating Assumptions'!$L$49:$CD$49,'Operating Assumptions'!$L$51:$CD$51)) -> FALSE | EO25: =IF(EO10,LOOKUP(EO23,'Operating Assumptions'!$L$49:$CD$49,'Operating Assumptions'!$L$51:$CD$51)) -> FALSE | EP25: =IF(EP10,LOOKUP(EP23,'Operating Assumptions'!$L$49:$CD$49,'Operating Assumptions'!$L$51:$CD$51)) -> FALSE | EQ25: =IF(EQ10,LOOKUP(EQ23,'Operating Assumptions'!$L$49:$CD$49,'Operating Assumptions'!$L$51:$CD$51)) -> FALSE | ER25: =IF(ER10,LOOKUP(ER23,'Operating Assumptions'!$L$49:$CD$49,'Operating Assumptions'!$L$51:$CD$51)) -> FALSE | ES25: =IF(ES10,LOOKUP(ES23,'Operating Assumptions'!$L$49:$CD$49,'Operating Assumptions'!$L$51:$CD$51)) -> FALSE | ET25: =IF(ET10,LOOKUP(ET23,'Operating Assumptions'!$L$49:$CD$49,'Operating Assumptions'!$L$51:$CD$51)) -> FALSE | EU25: =IF(EU10,LOOKUP(EU23,'Operating Assumptions'!$L$49:$CD$49,'Operating Assumptions'!$L$51:$CD$51)) -> FALSE | EV25: =IF(EV10,LOOKUP(EV23,'Operating Assumptions'!$L$49:$CD$49,'Operating Assumptions'!$L$51:$CD$51)) -> FALSE | EW25: =IF(EW10,LOOKUP(EW23,'Operating Assumptions'!$L$49:$CD$49,'Operating Assumptions'!$L$51:$CD$51)) -> FALSE | EX25: =IF(EX10,LOOKUP(EX23,'Operating Assumptions'!$L$49:$CD$49,'Operating Assumptions'!$L$51:$CD$51)) -> FALSE | EY25: =IF(EY10,LOOKUP(EY23,'Operating Assumptions'!$L$49:$CD$49,'Operating Assumptions'!$L$51:$CD$51)) -> FALSE | EZ25: =IF(EZ10,LOOKUP(EZ23,'Operating Assumptions'!$L$49:$CD$49,'Operating Assumptions'!$L$51:$CD$51)) -> FALSE | FA25: =IF(FA10,LOOKUP(FA23,'Operating Assumptions'!$L$49:$CD$49,'Operating Assumptions'!$L$51:$CD$51)) -> FALSE | FB25: =IF(FB10,LOOKUP(FB23,'Operating Assumptions'!$L$49:$CD$49,'Operating Assumptions'!$L$51:$CD$51)) -> FALSE | FC25: =IF(FC10,LOOKUP(FC23,'Operating Assumptions'!$L$49:$CD$49,'Operating Assumptions'!$L$51:$CD$51)) -> FALSE | FD25: =IF(FD10,LOOKUP(FD23,'Operating Assumptions'!$L$49:$CD$49,'Operating Assumptions'!$L$51:$CD$51)) -> FALSE | FE25: =IF(FE10,LOOKUP(FE23,'Operating Assumptions'!$L$49:$CD$49,'Operating Assumptions'!$L$51:$CD$51)) -> FALSE | FF25: =IF(FF10,LOOKUP(FF23,'Operating Assumptions'!$L$49:$CD$49,'Operating Assumptions'!$L$51:$CD$51)) -> FALSE | FG25: =IF(FG10,LOOKUP(FG23,'Operating Assumptions'!$L$49:$CD$49,'Operating Assumptions'!$L$51:$CD$51)) -> FALSE | FH25: =IF(FH10,LOOKUP(FH23,'Operating Assumptions'!$L$49:$CD$49,'Operating Assumptions'!$L$51:$CD$51)) -> FALSE | FI25: =IF(FI10,LOOKUP(FI23,'Operating Assumptions'!$L$49:$CD$49,'Operating Assumptions'!$L$51:$CD$51)) -> FALSE | FJ25: =IF(FJ10,LOOKUP(FJ23,'Operating Assumptions'!$L$49:$CD$49,'Operating Assumptions'!$L$51:$CD$51)) -> FALSE | FK25: =IF(FK10,LOOKUP(FK23,'Operating Assumptions'!$L$49:$CD$49,'Operating Assumptions'!$L$51:$CD$51)) -> FALSE | FL25: =IF(FL10,LOOKUP(FL23,'Operating Assumptions'!$L$49:$CD$49,'Operating Assumptions'!$L$51:$CD$51)) -> FALSE | FM25: =IF(FM10,LOOKUP(FM23,'Operating Assumptions'!$L$49:$CD$49,'Operating Assumptions'!$L$51:$CD$51)) -> FALSE | FN25: =IF(FN10,LOOKUP(FN23,'Operating Assumptions'!$L$49:$CD$49,'Operating Assumptions'!$L$51:$CD$51)) -> FALSE | FO25: =IF(FO10,LOOKUP(FO23,'Operating Assumptions'!$L$49:$CD$49,'Operating Assumptions'!$L$51:$CD$51)) -> FALSE | FP25: =IF(FP10,LOOKUP(FP23,'Operating Assumptions'!$L$49:$CD$49,'Operating Assumptions'!$L$51:$CD$51)) -> FALSE | FQ25: =IF(FQ10,LOOKUP(FQ23,'Operating Assumptions'!$L$49:$CD$49,'Operating Assumptions'!$L$51:$CD$51)) -> FALSE | FR25: =IF(FR10,LOOKUP(FR23,'Operating Assumptions'!$L$49:$CD$49,'Operating Assumptions'!$L$51:$CD$51)) -> FALSE | FS25: =IF(FS10,LOOKUP(FS23,'Operating Assumptions'!$L$49:$CD$49,'Operating Assumptions'!$L$51:$CD$51)) -> FALSE | FT25: =IF(FT10,LOOKUP(FT23,'Operating Assumptions'!$L$49:$CD$49,'Operating Assumptions'!$L$51:$CD$51)) -> FALSE | FU25: =IF(FU10,LOOKUP(FU23,'Operating Assumptions'!$L$49:$CD$49,'Operating Assumptions'!$L$51:$CD$51)) -> FALSE | FV25: =IF(FV10,LOOKUP(FV23,'Operating Assumptions'!$L$49:$CD$49,'Operating Assumptions'!$L$51:$CD$51)) -> FALSE | FW25: =IF(FW10,LOOKUP(FW23,'Operating Assumptions'!$L$49:$CD$49,'Operating Assumptions'!$L$51:$CD$51)) -> FALSE | FX25: =IF(FX10,LOOKUP(FX23,'Operating Assumptions'!$L$49:$CD$49,'Operating Assumptions'!$L$51:$CD$51)) -> FALSE | FY25: =IF(FY10,LOOKUP(FY23,'Operating Assumptions'!$L$49:$CD$49,'Operating Assumptions'!$L$51:$CD$51)) -> FALSE | FZ25: =IF(FZ10,LOOKUP(FZ23,'Operating Assumptions'!$L$49:$CD$49,'Operating Assumptions'!$L$51:$CD$51)) -> FALSE | GA25: =IF(GA10,LOOKUP(GA23,'Operating Assumptions'!$L$49:$CD$49,'Operating Assumptions'!$L$51:$CD$51)) -> FALSE | GB25: =IF(GB10,LOOKUP(GB23,'Operating Assumptions'!$L$49:$CD$49,'Operating Assumptions'!$L$51:$CD$51)) -> FALSE | GC25: =IF(GC10,LOOKUP(GC23,'Operating Assumptions'!$L$49:$CD$49,'Operating Assumptions'!$L$51:$CD$51)) -> FALSE | GD25: =IF(GD10,LOOKUP(GD23,'Operating Assumptions'!$L$49:$CD$49,'Operating Assumptions'!$L$51:$CD$51)) -> FALSE | GE25: =IF(GE10,LOOKUP(GE23,'Operating Assumptions'!$L$49:$CD$49,'Operating Assumptions'!$L$51:$CD$51)) -> FALSE | GF25: =IF(GF10,LOOKUP(GF23,'Operating Assumptions'!$L$49:$CD$49,'Operating Assumptions'!$L$51:$CD$51)) -> FALSE | GG25: =IF(GG10,LOOKUP(GG23,'Operating Assumptions'!$L$49:$CD$49,'Operating Assumptions'!$L$51:$CD$51)) -> FALSE | GH25: =IF(GH10,LOOKUP(GH23,'Operating Assumptions'!$L$49:$CD$49,'Operating Assumptions'!$L$51:$CD$51)) -> FALSE | GI25: =IF(GI10,LOOKUP(GI23,'Operating Assumptions'!$L$49:$CD$49,'Operating Assumptions'!$L$51:$CD$51)) -> FALSE | GJ25: =IF(GJ10,LOOKUP(GJ23,'Operating Assumptions'!$L$49:$CD$49,'Operating Assumptions'!$L$51:$CD$51)) -> FALSE | GK25: =IF(GK10,LOOKUP(GK23,'Operating Assumptions'!$L$49:$CD$49,'Operating Assumptions'!$L$51:$CD$51)) -> FALSE | GL25: =IF(GL10,LOOKUP(GL23,'Operating Assumptions'!$L$49:$CD$49,'Operating Assumptions'!$L$51:$CD$51)) -> FALSE | GM25: =IF(GM10,LOOKUP(GM23,'Operating Assumptions'!$L$49:$CD$49,'Operating Assumptions'!$L$51:$CD$51)) -> FALSE | GN25: =IF(GN10,LOOKUP(GN23,'Operating Assumptions'!$L$49:$CD$49,'Operating Assumptions'!$L$51:$CD$51)) -> FALSE | GO25: =IF(GO10,LOOKUP(GO23,'Operating Assumptions'!$L$49:$CD$49,'Operating Assumptions'!$L$51:$CD$51)) -> FALSE | GP25: =IF(GP10,LOOKUP(GP23,'Operating Assumptions'!$L$49:$CD$49,'Operating Assumptions'!$L$51:$CD$51)) -> FALSE | GQ25: =IF(GQ10,LOOKUP(GQ23,'Operating Assumptions'!$L$49:$CD$49,'Operating Assumptions'!$L$51:$CD$51)) -> FALSE | GR25: =IF(GR10,LOOKUP(GR23,'Operating Assumptions'!$L$49:$CD$49,'Operating Assumptions'!$L$51:$CD$51)) -> FALSE | GS25: =IF(GS10,LOOKUP(GS23,'Operating Assumptions'!$L$49:$CD$49,'Operating Assumptions'!$L$51:$CD$51)) -> FALSE | GT25: =IF(GT10,LOOKUP(GT23,'Operating Assumptions'!$L$49:$CD$49,'Operating Assumptions'!$L$51:$CD$51)) -> FALSE | GU25: =IF(GU10,LOOKUP(GU23,'Operating Assumptions'!$L$49:$CD$49,'Operating Assumptions'!$L$51:$CD$51)) -> FALSE | GV25: =IF(GV10,LOOKUP(GV23,'Operating Assumptions'!$L$49:$CD$49,'Operating Assumptions'!$L$51:$CD$51)) -> FALSE | GW25: =IF(GW10,LOOKUP(GW23,'Operating Assumptions'!$L$49:$CD$49,'Operating Assumptions'!$L$51:$CD$51)) -> FALSE | GX25: =IF(GX10,LOOKUP(GX23,'Operating Assumptions'!$L$49:$CD$49,'Operating Assumptions'!$L$51:$CD$51)) -> FALSE | GY25: =IF(GY10,LOOKUP(GY23,'Operating Assumptions'!$L$49:$CD$49,'Operating Assumptions'!$L$51:$CD$51)) -> FALSE | GZ25: =IF(GZ10,LOOKUP(GZ23,'Operating Assumptions'!$L$49:$CD$49,'Operating Assumptions'!$L$51:$CD$51)) -> FALSE | HA25: =IF(HA10,LOOKUP(HA23,'Operating Assumptions'!$L$49:$CD$49,'Operating Assumptions'!$L$51:$CD$51)) -> FALSE | HB25: =IF(HB10,LOOKUP(HB23,'Operating Assumptions'!$L$49:$CD$49,'Operating Assumptions'!$L$51:$CD$51)) -> FALSE | HC25: =IF(HC10,LOOKUP(HC23,'Operating Assumptions'!$L$49:$CD$49,'Operating Assumptions'!$L$51:$CD$51)) -> FALSE | HD25: =IF(HD10,LOOKUP(HD23,'Operating Assumptions'!$L$49:$CD$49,'Operating Assumptions'!$L$51:$CD$51)) -> FALSE | HE25: =IF(HE10,LOOKUP(HE23,'Operating Assumptions'!$L$49:$CD$49,'Operating Assumptions'!$L$51:$CD$51)) -> FALSE | HF25: =IF(HF10,LOOKUP(HF23,'Operating Assumptions'!$L$49:$CD$49,'Operating Assumptions'!$L$51:$CD$51)) -> FALSE | HG25: =IF(HG10,LOOKUP(HG23,'Operating Assumptions'!$L$49:$CD$49,'Operating Assumptions'!$L$51:$CD$51)) -> FALSE | HH25: =IF(HH10,LOOKUP(HH23,'Operating Assumptions'!$L$49:$CD$49,'Operating Assumptions'!$L$51:$CD$51)) -> FALSE | HI25: =IF(HI10,LOOKUP(HI23,'Operating Assumptions'!$L$49:$CD$49,'Operating Assumptions'!$L$51:$CD$51)) -> FALSE | HJ25: =IF(HJ10,LOOKUP(HJ23,'Operating Assumptions'!$L$49:$CD$49,'Operating Assumptions'!$L$51:$CD$51)) -> FALSE | HK25: =IF(HK10,LOOKUP(HK23,'Operating Assumptions'!$L$49:$CD$49,'Operating Assumptions'!$L$51:$CD$51)) -> FALSE | HL25: =IF(HL10,LOOKUP(HL23,'Operating Assumptions'!$L$49:$CD$49,'Operating Assumptions'!$L$51:$CD$51)) -> FALSE | HM25: =IF(HM10,LOOKUP(HM23,'Operating Assumptions'!$L$49:$CD$49,'Operating Assumptions'!$L$51:$CD$51)) -> FALSE | HN25: =IF(HN10,LOOKUP(HN23,'Operating Assumptions'!$L$49:$CD$49,'Operating Assumptions'!$L$51:$CD$51)) -> FALSE | HO25: =IF(HO10,LOOKUP(HO23,'Operating Assumptions'!$L$49:$CD$49,'Operating Assumptions'!$L$51:$CD$51)) -> FALSE | HP25: =IF(HP10,LOOKUP(HP23,'Operating Assumptions'!$L$49:$CD$49,'Operating Assumptions'!$L$51:$CD$51)) -> FALSE | HQ25: =IF(HQ10,LOOKUP(HQ23,'Operating Assumptions'!$L$49:$CD$49,'Operating Assumptions'!$L$51:$CD$51)) -> FALSE | HR25: =IF(HR10,LOOKUP(HR23,'Operating Assumptions'!$L$49:$CD$49,'Operating Assumptions'!$L$51:$CD$51)) -> FALSE | HS25: =IF(HS10,LOOKUP(HS23,'Operating Assumptions'!$L$49:$CD$49,'Operating Assumptions'!$L$51:$CD$51)) -> FALSE | HT25: =IF(HT10,LOOKUP(HT23,'Operating Assumptions'!$L$49:$CD$49,'Operating Assumptions'!$L$51:$CD$51)) -> FALSE | HU25: =IF(HU10,LOOKUP(HU23,'Operating Assumptions'!$L$49:$CD$49,'Operating Assumptions'!$L$51:$CD$51)) -> FALSE | HV25: =IF(HV10,LOOKUP(HV23,'Operating Assumptions'!$L$49:$CD$49,'Operating Assumptions'!$L$51:$CD$51)) -> FALSE | HW25: =IF(HW10,LOOKUP(HW23,'Operating Assumptions'!$L$49:$CD$49,'Operating Assumptions'!$L$51:$CD$51)) -> FALSE | HX25: =IF(HX10,LOOKUP(HX23,'Operating Assumptions'!$L$49:$CD$49,'Operating Assumptions'!$L$51:$CD$51)) -> FALSE | HY25: =IF(HY10,LOOKUP(HY23,'Operating Assumptions'!$L$49:$CD$49,'Operating Assumptions'!$L$51:$CD$51)) -> FALSE | HZ25: =IF(HZ10,LOOKUP(HZ23,'Operating Assumptions'!$L$49:$CD$49,'Operating Assumptions'!$L$51:$CD$51)) -> FALSE | IA25: =IF(IA10,LOOKUP(IA23,'Operating Assumptions'!$L$49:$CD$49,'Operating Assumptions'!$L$51:$CD$51)) -> FALSE | IB25: =IF(IB10,LOOKUP(IB23,'Operating Assumptions'!$L$49:$CD$49,'Operating Assumptions'!$L$51:$CD$51)) -> FALSE | IC25: =IF(IC10,LOOKUP(IC23,'Operating Assumptions'!$L$49:$CD$49,'Operating Assumptions'!$L$51:$CD$51)) -> FALSE | ID25: =IF(ID10,LOOKUP(ID23,'Operating Assumptions'!$L$49:$CD$49,'Operating Assumptions'!$L$51:$CD$51)) -> FALSE | IE25: =IF(IE10,LOOKUP(IE23,'Operating Assumptions'!$L$49:$CD$49,'Operating Assumptions'!$L$51:$CD$51)) -> FALSE | IF25: =IF(IF10,LOOKUP(IF23,'Operating Assumptions'!$L$49:$CD$49,'Operating Assumptions'!$L$51:$CD$51)) -> FALSE | IG25: =IF(IG10,LOOKUP(IG23,'Operating Assumptions'!$L$49:$CD$49,'Operating Assumptions'!$L$51:$CD$51)) -> FALSE | IH25: =IF(IH10,LOOKUP(IH23,'Operating Assumptions'!$L$49:$CD$49,'Operating Assumptions'!$L$51:$CD$51)) -> FALSE | II25: =IF(II10,LOOKUP(II23,'Operating Assumptions'!$L$49:$CD$49,'Operating Assumptions'!$L$51:$CD$51)) -> FALSE | IJ25: =IF(IJ10,LOOKUP(IJ23,'Operating Assumptions'!$L$49:$CD$49,'Operating Assumptions'!$L$51:$CD$51)) -> FALSE | IK25: =IF(IK10,LOOKUP(IK23,'Operating Assumptions'!$L$49:$CD$49,'Operating Assumptions'!$L$51:$CD$51)) -> FALSE | IL25: =IF(IL10,LOOKUP(IL23,'Operating Assumptions'!$L$49:$CD$49,'Operating Assumptions'!$L$51:$CD$51)) -> FALSE | IM25: =IF(IM10,LOOKUP(IM23,'Operating Assumptions'!$L$49:$CD$49,'Operating Assumptions'!$L$51:$CD$51)) -> FALSE | IN25: =IF(IN10,LOOKUP(IN23,'Operating Assumptions'!$L$49:$CD$49,'Operating Assumptions'!$L$51:$CD$51)) -> FALSE | IO25: =IF(IO10,LOOKUP(IO23,'Operating Assumptions'!$L$49:$CD$49,'Operating Assumptions'!$L$51:$CD$51)) -> FALSE | IP25: =IF(IP10,LOOKUP(IP23,'Operating Assumptions'!$L$49:$CD$49,'Operating Assumptions'!$L$51:$CD$51)) -> FALSE | IQ25: =IF(IQ10,LOOKUP(IQ23,'Operating Assumptions'!$L$49:$CD$49,'Operating Assumptions'!$L$51:$CD$51)) -> FALSE | IR25: =IF(IR10,LOOKUP(IR23,'Operating Assumptions'!$L$49:$CD$49,'Operating Assumptions'!$L$51:$CD$51)) -> FALSE | IS25: =IF(IS10,LOOKUP(IS23,'Operating Assumptions'!$L$49:$CD$49,'Operating Assumptions'!$L$51:$CD$51)) -> FALSE | IT25: =IF(IT10,LOOKUP(IT23,'Operating Assumptions'!$L$49:$CD$49,'Operating Assumptions'!$L$51:$CD$51)) -> FALSE | IU25: =IF(IU10,LOOKUP(IU23,'Operating Assumptions'!$L$49:$CD$49,'Operating Assumptions'!$L$51:$CD$51)) -> FALSE | IV25: =IF(IV10,LOOKUP(IV23,'Operating Assumptions'!$L$49:$CD$49,'Operating Assumptions'!$L$51:$CD$51)) -> FALSE | IW25: =IF(IW10,LOOKUP(IW23,'Operating Assumptions'!$L$49:$CD$49,'Operating Assumptions'!$L$51:$CD$51)) -> FALSE | IX25: =IF(IX10,LOOKUP(IX23,'Operating Assumptions'!$L$49:$CD$49,'Operating Assumptions'!$L$51:$CD$51)) -> FALSE | IY25: =IF(IY10,LOOKUP(IY23,'Operating Assumptions'!$L$49:$CD$49,'Operating Assumptions'!$L$51:$CD$51)) -> FALSE | IZ25: =IF(IZ10,LOOKUP(IZ23,'Operating Assumptions'!$L$49:$CD$49,'Operating Assumptions'!$L$51:$CD$51)) -> FALSE | JA25: =IF(JA10,LOOKUP(JA23,'Operating Assumptions'!$L$49:$CD$49,'Operating Assumptions'!$L$51:$CD$51)) -> FALSE | JB25: =IF(JB10,LOOKUP(JB23,'Operating Assumptions'!$L$49:$CD$49,'Operating Assumptions'!$L$51:$CD$51)) -> FALSE | JC25: =IF(JC10,LOOKUP(JC23,'Operating Assumptions'!$L$49:$CD$49,'Operating Assumptions'!$L$51:$CD$51)) -> FALSE | JD25: =IF(JD10,LOOKUP(JD23,'Operating Assumptions'!$L$49:$CD$49,'Operating Assumptions'!$L$51:$CD$51)) -> FALSE | JE25: =IF(JE10,LOOKUP(JE23,'Operating Assumptions'!$L$49:$CD$49,'Operating Assumptions'!$L$51:$CD$51)) -> FALSE
C26: Construction expenditures | E26: RM '000 | F26: Cost/Per | G26: ='Operating Assumptions'!F34 -> 3000000 | H26: ='Operating Assumptions'!F8 -> 40 | I26: =SUM(L26:JE26)=G26 -> TRUE | L26: =$G$26*L24 -> 0 | M26: 0 | N26: 0 | O26: 0 | P26: 50359.21604 | Q26: 61254.52817 | R26: 68207.24915 | S26: 73201.63328 | T26: 76960.60601 | U26: 79843.9296 | V26: 82062.44025 | W26: 83753.15472 | X26: 85011.75697 | Y26: 85908.70713 | Z26: 86498.04476 | AA26: 86822.56495 | AB26: 86917.04146 | AC26: 86810.32886 | AD26: 86526.78709 | AE26: 86087.2785 | AF26: 85509.88528 | AG26: 84810.43826 | AH26: 84002.91495 | AI26: 83099.74492 | AJ26: 82112.04805 | AK26: 81049.82327 | AL26: 79922.10018 | AM26: 78737.0624 | AN26: 77502.14916 | AO26: 76224.13983 | AP26: 74909.22503 | AQ26: 73563.06696 | AR26: 72190.85105 | AS26: 70797.33062 | AT26: 69386.86565 | AU26: 67963.45682 | AV26: 66530.7755 | AW26: 65092.19041 | AX26: 63650.79137 | AY26: 62209.41064 | AZ26: 60770.64221 | BA26: 59336.8592 | BB26: 57910.22975 | BC26: 56492.73154 | BD26: 0 | BE26: 0 | BF26: 0 | BG26: 0 | BH26: 0 | BI26: 0 | BJ26: 0 | BK26: 0 | BL26: 0 | BM26: 0 | BN26: 0 | BO26: 0 | BP26: 0 | BQ26: 0 | BR26: 0 | BS26: 0 | BT26: 0 | BU26: 0 | BV26: 0 | BW26: 0 | BX26: =$G$26*BX24 -> 0 | BY26: 0 | BZ26: 0 | CA26: 0 | CB26: 0 | CC26: 0 | CD26: 0 | CE26: 0 | CF26: 0 | CG26: 0 | CH26: 0 | CI26: 0 | CJ26: 0 | CK26: 0 | CL26: 0 | CM26: 0 | CN26: 0 | CO26: 0 | CP26: 0 | CQ26: 0 | CR26: 0 | CS26: 0 | CT26: 0 | CU26: 0 | CV26: 0 | CW26: 0 | CX26: 0 | CY26: 0 | CZ26: 0 | DA26: 0 | DB26: 0 | DC26: 0 | DD26: 0 | DE26: 0 | DF26: 0 | DG26: 0 | DH26: 0 | DI26: 0 | DJ26: 0 | DK26: 0 | DL26: 0 | DM26: 0 | DN26: 0 | DO26: 0 | DP26: 0 | DQ26: 0 | DR26: 0 | DS26: 0 | DT26: 0 | DU26: 0 | DV26: 0 | DW26: 0 | DX26: 0 | DY26: 0 | DZ26: 0 | EA26: 0 | EB26: 0 | EC26: 0 | ED26: 0 | EE26: 0 | EF26: 0 | EG26: 0 | EH26: 0 | EI26: 0 | EJ26: =$G$26*EJ24 -> 0 | EK26: 0 | EL26: 0 | EM26: 0 | EN26: 0 | EO26: 0 | EP26: 0 | EQ26: 0 | ER26: 0 | ES26: 0 | ET26: 0 | EU26: 0 | EV26: 0 | EW26: 0 | EX26: 0 | EY26: 0 | EZ26: 0 | FA26: 0 | FB26: 0 | FC26: 0 | FD26: 0 | FE26: 0 | FF26: 0 | FG26: 0 | FH26: 0 | FI26: 0 | FJ26: 0 | FK26: 0 | FL26: 0 | FM26: 0 | FN26: 0 | FO26: 0 | FP26: 0 | FQ26: 0 | FR26: 0 | FS26: 0 | FT26: 0 | FU26: 0 | FV26: 0 | FW26: 0 | FX26: 0 | FY26: 0 | FZ26: 0 | GA26: 0 | GB26: 0 | GC26: 0 | GD26: 0 | GE26: 0 | GF26: 0 | GG26: 0 | GH26: 0 | GI26: 0 | GJ26: 0 | GK26: 0 | GL26: 0 | GM26: 0 | GN26: 0 | GO26: 0 | GP26: 0 | GQ26: 0 | GR26: 0 | GS26: 0 | GT26: 0 | GU26: 0 | GV26: =$G$26*GV24 -> 0 | GW26: 0 | GX26: 0 | GY26: 0 | GZ26: 0 | HA26: 0 | HB26: 0 | HC26: 0 | HD26: 0 | HE26: 0 | HF26: 0 | HG26: 0 | HH26: 0 | HI26: 0 | HJ26: 0 | HK26: 0 | HL26: 0 | HM26: 0 | HN26: 0 | HO26: 0 | HP26: 0 | HQ26: 0 | HR26: 0 | HS26: 0 | HT26: 0 | HU26: 0 | HV26: 0 | HW26: 0 | HX26: 0 | HY26: 0 | HZ26: 0 | IA26: 0 | IB26: 0 | IC26: 0 | ID26: 0 | IE26: 0 | IF26: 0 | IG26: 0 | IH26: 0 | II26: 0 | IJ26: 0 | IK26: 0 | IL26: 0 | IM26: 0 | IN26: 0 | IO26: 0 | IP26: 0 | IQ26: 0 | IR26: 0 | IS26: 0 | IT26: 0 | IU26: 0 | IV26: 0 | IW26: 0 | IX26: 0 | IY26: 0 | IZ26: 0 | JA26: 0 | JB26: 0 | JC26: 0 | JD26: 0 | JE26: 0
C28: Development cost | E28: RM '000 | G28: ='Operating Assumptions'!F53 -> 0.03 | H28: =G26 -> 3000000 | J28: ='Operating Assumptions'!F6 -> 4 | L28: =$H$28/$J$28*$G$28*L9 -> 22500 | M28: 22500 | N28: 22500 | O28: 22500 | P28: 0 | Q28: 0 | R28: 0 | S28: 0 | T28: 0 | U28: 0 | V28: 0 | W28: 0 | X28: 0 | Y28: 0 | Z28: 0 | AA28: 0 | AB28: 0 | AC28: 0 | AD28: 0 | AE28: 0 | AF28: 0 | AG28: 0 | AH28: 0 | AI28: 0 | AJ28: 0 | AK28: 0 | AL28: 0 | AM28: 0 | AN28: 0 | AO28: 0 | AP28: 0 | AQ28: 0 | AR28: 0 | AS28: 0 | AT28: 0 | AU28: 0 | AV28: 0 | AW28: 0 | AX28: 0 | AY28: 0 | AZ28: 0 | BA28: 0 | BB28: 0 | BC28: 0 | BD28: 0 | BE28: 0 | BF28: 0 | BG28: 0 | BH28: 0 | BI28: 0 | BJ28: 0 | BK28: 0 | BL28: 0 | BM28: 0 | BN28: 0 | BO28: 0 | BP28: 0 | BQ28: 0 | BR28: 0 | BS28: 0 | BT28: 0 | BU28: 0 | BV28: 0 | BW28: 0 | BX28: =$H$28/$J$28*$G$28*BX9 -> 0 | BY28: 0 | BZ28: 0 | CA28: 0 | CB28: 0 | CC28: 0 | CD28: 0 | CE28: 0 | CF28: 0 | CG28: 0 | CH28: 0 | CI28: 0 | CJ28: 0 | CK28: 0 | CL28: 0 | CM28: 0 | CN28: 0 | CO28: 0 | CP28: 0 | CQ28: 0 | CR28: 0 | CS28: 0 | CT28: 0 | CU28: 0 | CV28: 0 | CW28: 0 | CX28: 0 | CY28: 0 | CZ28: 0 | DA28: 0 | DB28: 0 | DC28: 0 | DD28: 0 | DE28: 0 | DF28: 0 | DG28: 0 | DH28: 0 | DI28: 0 | DJ28: 0 | DK28: 0 | DL28: 0 | DM28: 0 | DN28: 0 | DO28: 0 | DP28: 0 | DQ28: 0 | DR28: 0 | DS28: 0 | DT28: 0 | DU28: 0 | DV28: 0 | DW28: 0 | DX28: 0 | DY28: 0 | DZ28: 0 | EA28: 0 | EB28: 0 | EC28: 0 | ED28: 0 | EE28: 0 | EF28: 0 | EG28: 0 | EH28: 0 | EI28: 0 | EJ28: =$H$28/$J$28*$G$28*EJ9 -> 0 | EK28: 0 | EL28: 0 | EM28: 0 | EN28: 0 | EO28: 0 | EP28: 0 | EQ28: 0 | ER28: 0 | ES28: 0 | ET28: 0 | EU28: 0 | EV28: 0 | EW28: 0 | EX28: 0 | EY28: 0 | EZ28: 0 | FA28: 0 | FB28: 0 | FC28: 0 | FD28: 0 | FE28: 0 | FF28: 0 | FG28: 0 | FH28: 0 | FI28: 0 | FJ28: 0 | FK28: 0 | FL28: 0 | FM28: 0 | FN28: 0 | FO28: 0 | FP28: 0 | FQ28: 0 | FR28: 0 | FS28: 0 | FT28: 0 | FU28: 0 | FV28: 0 | FW28: 0 | FX28: 0 | FY28: 0 | FZ28: 0 | GA28: 0 | GB28: 0 | GC28: 0 | GD28: 0 | GE28: 0 | GF28: 0 | GG28: 0 | GH28: 0 | GI28: 0 | GJ28: 0 | GK28: 0 | GL28: 0 | GM28: 0 | GN28: 0 | GO28: 0 | GP28: 0 | GQ28: 0 | GR28: 0 | GS28: 0 | GT28: 0 | GU28: 0 | GV28: =$H$28/$J$28*$G$28*GV9 -> 0 | GW28: 0 | GX28: 0 | GY28: 0 | GZ28: 0 | HA28: 0 | HB28: 0 | HC28: 0 | HD28: 0 | HE28: 0 | HF28: 0 | HG28: 0 | HH28: 0 | HI28: 0 | HJ28: 0 | HK28: 0 | HL28: 0 | HM28: 0 | HN28: 0 | HO28: 0 | HP28: 0 | HQ28: 0 | HR28: 0 | HS28: 0 | HT28: 0 | HU28: 0 | HV28: 0 | HW28: 0 | HX28: 0 | HY28: 0 | HZ28: 0 | IA28: 0 | IB28: 0 | IC28: 0 | ID28: 0 | IE28: 0 | IF28: 0 | IG28: 0 | IH28: 0 | II28: 0 | IJ28: 0 | IK28: 0 | IL28: 0 | IM28: 0 | IN28: 0 | IO28: 0 | IP28: 0 | IQ28: 0 | IR28: 0 | IS28: 0 | IT28: 0 | IU28: 0 | IV28: 0 | IW28: 0 | IX28: 0 | IY28: 0 | IZ28: 0 | JA28: 0 | JB28: 0 | JC28: 0 | JD28: 0 | JE28: 0
C29: Accumulated | E29: RM '000 | L29: =K29+L28 -> 22500 | M29: =L29+M28 -> 45000 | N29: 67500 | O29: 90000 | P29: 90000 | Q29: 90000 | R29: 90000 | S29: 90000 | T29: 90000 | U29: 90000 | V29: 90000 | W29: 90000 | X29: 90000 | Y29: 90000 | Z29: 90000 | AA29: 90000 | AB29: 90000 | AC29: 90000 | AD29: 90000 | AE29: 90000 | AF29: 90000 | AG29: 90000 | AH29: 90000 | AI29: 90000 | AJ29: 90000 | AK29: 90000 | AL29: 90000 | AM29: 90000 | AN29: 90000 | AO29: 90000 | AP29: 90000 | AQ29: 90000 | AR29: 90000 | AS29: 90000 | AT29: 90000 | AU29: 90000 | AV29: 90000 | AW29: 90000 | AX29: 90000 | AY29: 90000 | AZ29: 90000 | BA29: 90000 | BB29: 90000 | BC29: 90000 | BD29: 90000 | BE29: 90000 | BF29: 90000 | BG29: 90000 | BH29: 90000 | BI29: 90000 | BJ29: 90000 | BK29: 90000 | BL29: 90000 | BM29: 90000 | BN29: 90000 | BO29: 90000 | BP29: 90000 | BQ29: 90000 | BR29: 90000 | BS29: 90000 | BT29: 90000 | BU29: 90000 | BV29: 90000 | BW29: 90000 | BX29: 90000 | BY29: =BX29+BY28 -> 90000 | BZ29: 90000 | CA29: 90000 | CB29: 90000 | CC29: 90000 | CD29: 90000 | CE29: 90000 | CF29: 90000 | CG29: 90000 | CH29: 90000 | CI29: 90000 | CJ29: 90000 | CK29: 90000 | CL29: 90000 | CM29: 90000 | CN29: 90000 | CO29: 90000 | CP29: 90000 | CQ29: 90000 | CR29: 90000 | CS29: 90000 | CT29: 90000 | CU29: 90000 | CV29: 90000 | CW29: 90000 | CX29: 90000 | CY29: 90000 | CZ29: 90000 | DA29: 90000 | DB29: 90000 | DC29: 90000 | DD29: 90000 | DE29: 90000 | DF29: 90000 | DG29: 90000 | DH29: 90000 | DI29: 90000 | DJ29: 90000 | DK29: 90000 | DL29: 90000 | DM29: 90000 | DN29: 90000 | DO29: 90000 | DP29: 90000 | DQ29: 90000 | DR29: 90000 | DS29: 90000 | DT29: 90000 | DU29: 90000 | DV29: 90000 | DW29: 90000 | DX29: 90000 | DY29: 90000 | DZ29: 90000 | EA29: 90000 | EB29: 90000 | EC29: 90000 | ED29: 90000 | EE29: 90000 | EF29: 90000 | EG29: 90000 | EH29: 90000 | EI29: 90000 | EJ29: 90000 | EK29: =EJ29+EK28 -> 90000 | EL29: 90000 | EM29: 90000 | EN29: 90000 | EO29: 90000 | EP29: 90000 | EQ29: 90000 | ER29: 90000 | ES29: 90000 | ET29: 90000 | EU29: 90000 | EV29: 90000 | EW29: 90000 | EX29: 90000 | EY29: 90000 | EZ29: 90000 | FA29: 90000 | FB29: 90000 | FC29: 90000 | FD29: 90000 | FE29: 90000 | FF29: 90000 | FG29: 90000 | FH29: 90000 | FI29: 90000 | FJ29: 90000 | FK29: 90000 | FL29: 90000 | FM29: 90000 | FN29: 90000 | FO29: 90000 | FP29: 90000 | FQ29: 90000 | FR29: 90000 | FS29: 90000 | FT29: 90000 | FU29: 90000 | FV29: 90000 | FW29: 90000 | FX29: 90000 | FY29: 90000 | FZ29: 90000 | GA29: 90000 | GB29: 90000 | GC29: 90000 | GD29: 90000 | GE29: 90000 | GF29: 90000 | GG29: 90000 | GH29: 90000 | GI29: 90000 | GJ29: 90000 | GK29: 90000 | GL29: 90000 | GM29: 90000 | GN29: 90000 | GO29: 90000 | GP29: 90000 | GQ29: 90000 | GR29: 90000 | GS29: 90000 | GT29: 90000 | GU29: 90000 | GV29: 90000 | GW29: =GV29+GW28 -> 90000 | GX29: 90000 | GY29: 90000 | GZ29: 90000 | HA29: 90000 | HB29: 90000 | HC29: 90000 | HD29: 90000 | HE29: 90000 | HF29: 90000 | HG29: 90000 | HH29: 90000 | HI29: 90000 | HJ29: 90000 | HK29: 90000 | HL29: 90000 | HM29: 90000 | HN29: 90000 | HO29: 90000 | HP29: 90000 | HQ29: 90000 | HR29: 90000 | HS29: 90000 | HT29: 90000 | HU29: 90000 | HV29: 90000 | HW29: 90000 | HX29: 90000 | HY29: 90000 | HZ29: 90000 | IA29: 90000 | IB29: 90000 | IC29: 90000 | ID29: 90000 | IE29: 90000 | IF29: 90000 | IG29: 90000 | IH29: 90000 | II29: 90000 | IJ29: 90000 | IK29: 90000 | IL29: 90000 | IM29: 90000 | IN29: 90000 | IO29: 90000 | IP29: 90000 | IQ29: 90000 | IR29: 90000 | IS29: 90000 | IT29: 90000 | IU29: 90000 | IV29: 90000 | IW29: 90000 | IX29: 90000 | IY29: 90000 | IZ29: 90000 | JA29: 90000 | JB29: 90000 | JC29: 90000 | JD29: 90000 | JE29: 90000
C30: In Debt Funding Base | E30: RM '000 | L30: =L29*L13 -> 0 | M30: 0 | N30: 0 | O30: 0 | P30: 90000 | Q30: 0 | R30: 0 | S30: 0 | T30: 0 | U30: 0 | V30: 0 | W30: 0 | X30: 0 | Y30: 0 | Z30: 0 | AA30: 0 | AB30: 0 | AC30: 0 | AD30: 0 | AE30: 0 | AF30: 0 | AG30: 0 | AH30: 0 | AI30: 0 | AJ30: 0 | AK30: 0 | AL30: 0 | AM30: 0 | AN30: 0 | AO30: 0 | AP30: 0 | AQ30: 0 | AR30: 0 | AS30: 0 | AT30: 0 | AU30: 0 | AV30: 0 | AW30: 0 | AX30: 0 | AY30: 0 | AZ30: 0 | BA30: 0 | BB30: 0 | BC30: 0 | BD30: 0 | BE30: 0 | BF30: 0 | BG30: 0 | BH30: 0 | BI30: 0 | BJ30: 0 | BK30: 0 | BL30: 0 | BM30: 0 | BN30: 0 | BO30: 0 | BP30: 0 | BQ30: 0 | BR30: 0 | BS30: 0 | BT30: 0 | BU30: 0 | BV30: 0 | BW30: 0 | BX30: =BX29*BX13 -> 0 | BY30: 0 | BZ30: 0 | CA30: 0 | CB30: 0 | CC30: 0 | CD30: 0 | CE30: 0 | CF30: 0 | CG30: 0 | CH30: 0 | CI30: 0 | CJ30: 0 | CK30: 0 | CL30: 0 | CM30: 0 | CN30: 0 | CO30: 0 | CP30: 0 | CQ30: 0 | CR30: 0 | CS30: 0 | CT30: 0 | CU30: 0 | CV30: 0 | CW30: 0 | CX30: 0 | CY30: 0 | CZ30: 0 | DA30: 0 | DB30: 0 | DC30: 0 | DD30: 0 | DE30: 0 | DF30: 0 | DG30: 0 | DH30: 0 | DI30: 0 | DJ30: 0 | DK30: 0 | DL30: 0 | DM30: 0 | DN30: 0 | DO30: 0 | DP30: 0 | DQ30: 0 | DR30: 0 | DS30: 0 | DT30: 0 | DU30: 0 | DV30: 0 | DW30: 0 | DX30: 0 | DY30: 0 | DZ30: 0 | EA30: 0 | EB30: 0 | EC30: 0 | ED30: 0 | EE30: 0 | EF30: 0 | EG30: 0 | EH30: 0 | EI30: 0 | EJ30: =EJ29*EJ13 -> 0 | EK30: 0 | EL30: 0 | EM30: 0 | EN30: 0 | EO30: 0 | EP30: 0 | EQ30: 0 | ER30: 0 | ES30: 0 | ET30: 0 | EU30: 0 | EV30: 0 | EW30: 0 | EX30: 0 | EY30: 0 | EZ30: 0 | FA30: 0 | FB30: 0 | FC30: 0 | FD30: 0 | FE30: 0 | FF30: 0 | FG30: 0 | FH30: 0 | FI30: 0 | FJ30: 0 | FK30: 0 | FL30: 0 | FM30: 0 | FN30: 0 | FO30: 0 | FP30: 0 | FQ30: 0 | FR30: 0 | FS30: 0 | FT30: 0 | FU30: 0 | FV30: 0 | FW30: 0 | FX30: 0 | FY30: 0 | FZ30: 0 | GA30: 0 | GB30: 0 | GC30: 0 | GD30: 0 | GE30: 0 | GF30: 0 | GG30: 0 | GH30: 0 | GI30: 0 | GJ30: 0 | GK30: 0 | GL30: 0 | GM30: 0 | GN30: 0 | GO30: 0 | GP30: 0 | GQ30: 0 | GR30: 0 | GS30: 0 | GT30: 0 | GU30: 0 | GV30: =GV29*GV13 -> 0 | GW30: 0 | GX30: 0 | GY30: 0 | GZ30: 0 | HA30: 0 | HB30: 0 | HC30: 0 | HD30: 0 | HE30: 0 | HF30: 0 | HG30: 0 | HH30: 0 | HI30: 0 | HJ30: 0 | HK30: 0 | HL30: 0 | HM30: 0 | HN30: 0 | HO30: 0 | HP30: 0 | HQ30: 0 | HR30: 0 | HS30: 0 | HT30: 0 | HU30: 0 | HV30: 0 | HW30: 0 | HX30: 0 | HY30: 0 | HZ30: 0 | IA30: 0 | IB30: 0 | IC30: 0 | ID30: 0 | IE30: 0 | IF30: 0 | IG30: 0 | IH30: 0 | II30: 0 | IJ30: 0 | IK30: 0 | IL30: 0 | IM30: 0 | IN30: 0 | IO30: 0 | IP30: 0 | IQ30: 0 | IR30: 0 | IS30: 0 | IT30: 0 | IU30: 0 | IV30: 0 | IW30: 0 | IX30: 0 | IY30: 0 | IZ30: 0 | JA30: 0 | JB30: 0 | JC30: 0 | JD30: 0 | JE30: 0
C32: Development Fee | E32: RM '000 | G32: ='Operating Assumptions'!F54 -> 0.05 | H32: =H28 -> 3000000 | L32: =$G$32*$H$32*L13 -> 0 | M32: 0 | N32: 0 | O32: 0 | P32: 150000 | Q32: 0 | R32: 0 | S32: 0 | T32: 0 | U32: 0 | V32: 0 | W32: 0 | X32: 0 | Y32: 0 | Z32: 0 | AA32: 0 | AB32: 0 | AC32: 0 | AD32: 0 | AE32: 0 | AF32: 0 | AG32: 0 | AH32: 0 | AI32: 0 | AJ32: 0 | AK32: 0 | AL32: 0 | AM32: 0 | AN32: 0 | AO32: 0 | AP32: 0 | AQ32: 0 | AR32: 0 | AS32: 0 | AT32: 0 | AU32: 0 | AV32: 0 | AW32: 0 | AX32: 0 | AY32: 0 | AZ32: 0 | BA32: 0 | BB32: 0 | BC32: 0 | BD32: 0 | BE32: 0 | BF32: 0 | BG32: 0 | BH32: 0 | BI32: 0 | BJ32: 0 | BK32: 0 | BL32: 0 | BM32: 0 | BN32: 0 | BO32: 0 | BP32: 0 | BQ32: 0 | BR32: 0 | BS32: 0 | BT32: 0 | BU32: 0 | BV32: 0 | BW32: 0 | BX32: =$G$32*$H$32*BX13 -> 0 | BY32: 0 | BZ32: 0 | CA32: 0 | CB32: 0 | CC32: 0 | CD32: 0 | CE32: 0 | CF32: 0 | CG32: 0 | CH32: 0 | CI32: 0 | CJ32: 0 | CK32: 0 | CL32: 0 | CM32: 0 | CN32: 0 | CO32: 0 | CP32: 0 | CQ32: 0 | CR32: 0 | CS32: 0 | CT32: 0 | CU32: 0 | CV32: 0 | CW32: 0 | CX32: 0 | CY32: 0 | CZ32: 0 | DA32: 0 | DB32: 0 | DC32: 0 | DD32: 0 | DE32: 0 | DF32: 0 | DG32: 0 | DH32: 0 | DI32: 0 | DJ32: 0 | DK32: 0 | DL32: 0 | DM32: 0 | DN32: 0 | DO32: 0 | DP32: 0 | DQ32: 0 | DR32: 0 | DS32: 0 | DT32: 0 | DU32: 0 | DV32: 0 | DW32: 0 | DX32: 0 | DY32: 0 | DZ32: 0 | EA32: 0 | EB32: 0 | EC32: 0 | ED32: 0 | EE32: 0 | EF32: 0 | EG32: 0 | EH32: 0 | EI32: 0 | EJ32: =$G$32*$H$32*EJ13 -> 0 | EK32: 0 | EL32: 0 | EM32: 0 | EN32: 0 | EO32: 0 | EP32: 0 | EQ32: 0 | ER32: 0 | ES32: 0 | ET32: 0 | EU32: 0 | EV32: 0 | EW32: 0 | EX32: 0 | EY32: 0 | EZ32: 0 | FA32: 0 | FB32: 0 | FC32: 0 | FD32: 0 | FE32: 0 | FF32: 0 | FG32: 0 | FH32: 0 | FI32: 0 | FJ32: 0 | FK32: 0 | FL32: 0 | FM32: 0 | FN32: 0 | FO32: 0 | FP32: 0 | FQ32: 0 | FR32: 0 | FS32: 0 | FT32: 0 | FU32: 0 | FV32: 0 | FW32: 0 | FX32: 0 | FY32: 0 | FZ32: 0 | GA32: 0 | GB32: 0 | GC32: 0 | GD32: 0 | GE32: 0 | GF32: 0 | GG32: 0 | GH32: 0 | GI32: 0 | GJ32: 0 | GK32: 0 | GL32: 0 | GM32: 0 | GN32: 0 | GO32: 0 | GP32: 0 | GQ32: 0 | GR32: 0 | GS32: 0 | GT32: 0 | GU32: 0 | GV32: =$G$32*$H$32*GV13 -> 0 | GW32: 0 | GX32: 0 | GY32: 0 | GZ32: 0 | HA32: 0 | HB32: 0 | HC32: 0 | HD32: 0 | HE32: 0 | HF32: 0 | HG32: 0 | HH32: 0 | HI32: 0 | HJ32: 0 | HK32: 0 | HL32: 0 | HM32: 0 | HN32: 0 | HO32: 0 | HP32: 0 | HQ32: 0 | HR32: 0 | HS32: 0 | HT32: 0 | HU32: 0 | HV32: 0 | HW32: 0 | HX32: 0 | HY32: 0 | HZ32: 0 | IA32: 0 | IB32: 0 | IC32: 0 | ID32: 0 | IE32: 0 | IF32: 0 | IG32: 0 | IH32: 0 | II32: 0 | IJ32: 0 | IK32: 0 | IL32: 0 | IM32: 0 | IN32: 0 | IO32: 0 | IP32: 0 | IQ32: 0 | IR32: 0 | IS32: 0 | IT32: 0 | IU32: 0 | IV32: 0 | IW32: 0 | IX32: 0 | IY32: 0 | IZ32: 0 | JA32: 0 | JB32: 0 | JC32: 0 | JD32: 0 | JE32: 0
A34: Revenues
C35: Inflation Index
D37: Annual Inflation Rate | L37: =LOOKUP(L8,'Operating Assumptions'!$I$77:$P$77,'Operating Assumptions'!$I$82:$P$82) -> 0.02 | M37: =LOOKUP(M8,'Operating Assumptions'!$I$77:$P$77,'Operating Assumptions'!$I$82:$P$82) -> 0.02 | N37: =LOOKUP(N8,'Operating Assumptions'!$I$77:$P$77,'Operating Assumptions'!$I$82:$P$82) -> 0.02 | O37: =LOOKUP(O8,'Operating Assumptions'!$I$77:$P$77,'Operating Assumptions'!$I$82:$P$82) -> 0.02 | P37: =LOOKUP(P8,'Operating Assumptions'!$I$77:$P$77,'Operating Assumptions'!$I$82:$P$82) -> 0.02 | Q37: =LOOKUP(Q8,'Operating Assumptions'!$I$77:$P$77,'Operating Assumptions'!$I$82:$P$82) -> 0.02 | R37: =LOOKUP(R8,'Operating Assumptions'!$I$77:$P$77,'Operating Assumptions'!$I$82:$P$82) -> 0.02 | S37: =LOOKUP(S8,'Operating Assumptions'!$I$77:$P$77,'Operating Assumptions'!$I$82:$P$82) -> 0.02 | T37: =LOOKUP(T8,'Operating Assumptions'!$I$77:$P$77,'Operating Assumptions'!$I$82:$P$82) -> 0.02 | U37: =LOOKUP(U8,'Operating Assumptions'!$I$77:$P$77,'Operating Assumptions'!$I$82:$P$82) -> 0.02 | V37: =LOOKUP(V8,'Operating Assumptions'!$I$77:$P$77,'Operating Assumptions'!$I$82:$P$82) -> 0.02 | W37: =LOOKUP(W8,'Operating Assumptions'!$I$77:$P$77,'Operating Assumptions'!$I$82:$P$82) -> 0.02 | X37: =LOOKUP(X8,'Operating Assumptions'!$I$77:$P$77,'Operating Assumptions'!$I$82:$P$82) -> 0.02 | Y37: =LOOKUP(Y8,'Operating Assumptions'!$I$77:$P$77,'Operating Assumptions'!$I$82:$P$82) -> 0.02 | Z37: =LOOKUP(Z8,'Operating Assumptions'!$I$77:$P$77,'Operating Assumptions'!$I$82:$P$82) -> 0.02 | AA37: =LOOKUP(AA8,'Operating Assumptions'!$I$77:$P$77,'Operating Assumptions'!$I$82:$P$82) -> 0.01 | AB37: =LOOKUP(AB8,'Operating Assumptions'!$I$77:$P$77,'Operating Assumptions'!$I$82:$P$82) -> 0.01 | AC37: =LOOKUP(AC8,'Operating Assumptions'!$I$77:$P$77,'Operating Assumptions'!$I$82:$P$82) -> 0.01 | AD37: =LOOKUP(AD8,'Operating Assumptions'!$I$77:$P$77,'Operating Assumptions'!$I$82:$P$82) -> 0.01 | AE37: =LOOKUP(AE8,'Operating Assumptions'!$I$77:$P$77,'Operating Assumptions'!$I$82:$P$82) -> 0.01 | AF37: =LOOKUP(AF8,'Operating Assumptions'!$I$77:$P$77,'Operating Assumptions'!$I$82:$P$82) -> 0.01 | AG37: =LOOKUP(AG8,'Operating Assumptions'!$I$77:$P$77,'Operating Assumptions'!$I$82:$P$82) -> 0.01 | AH37: =LOOKUP(AH8,'Operating Assumptions'!$I$77:$P$77,'Operating Assumptions'!$I$82:$P$82) -> 0.01 | AI37: =LOOKUP(AI8,'Operating Assumptions'!$I$77:$P$77,'Operating Assumptions'!$I$82:$P$82) -> 0.01 | AJ37: =LOOKUP(AJ8,'Operating Assumptions'!$I$77:$P$77,'Operating Assumptions'!$I$82:$P$82) -> 0.01 | AK37: =LOOKUP(AK8,'Operating Assumptions'!$I$77:$P$77,'Operating Assumptions'!$I$82:$P$82) -> 0.01 | AL37: =LOOKUP(AL8,'Operating Assumptions'!$I$77:$P$77,'Operating Assumptions'!$I$82:$P$82) -> 0.01 | AM37: =LOOKUP(AM8,'Operating Assumptions'!$I$77:$P$77,'Operating Assumptions'!$I$82:$P$82) -> 0.015 | AN37: =LOOKUP(AN8,'Operating Assumptions'!$I$77:$P$77,'Operating Assumptions'!$I$82:$P$82) -> 0.015 | AO37: =LOOKUP(AO8,'Operating Assumptions'!$I$77:$P$77,'Operating Assumptions'!$I$82:$P$82) -> 0.015 | AP37: =LOOKUP(AP8,'Operating Assumptions'!$I$77:$P$77,'Operating Assumptions'!$I$82:$P$82) -> 0.015 | AQ37: =LOOKUP(AQ8,'Operating Assumptions'!$I$77:$P$77,'Operating Assumptions'!$I$82:$P$82) -> 0.015 | AR37: =LOOKUP(AR8,'Operating Assumptions'!$I$77:$P$77,'Operating Assumptions'!$I$82:$P$82) -> 0.015 | AS37: =LOOKUP(AS8,'Operating Assumptions'!$I$77:$P$77,'Operating Assumptions'!$I$82:$P$82) -> 0.015 | AT37: =LOOKUP(AT8,'Operating Assumptions'!$I$77:$P$77,'Operating Assumptions'!$I$82:$P$82) -> 0.015 | AU37: =LOOKUP(AU8,'Operating Assumptions'!$I$77:$P$77,'Operating Assumptions'!$I$82:$P$82) -> 0.015 | AV37: =LOOKUP(AV8,'Operating Assumptions'!$I$77:$P$77,'Operating Assumptions'!$I$82:$P$82) -> 0.015 | AW37: =LOOKUP(AW8,'Operating Assumptions'!$I$77:$P$77,'Operating Assumptions'!$I$82:$P$82) -> 0.015 | AX37: =LOOKUP(AX8,'Operating Assumptions'!$I$77:$P$77,'Operating Assumptions'!$I$82:$P$82) -> 0.015 | AY37: =LOOKUP(AY8,'Operating Assumptions'!$I$77:$P$77,'Operating Assumptions'!$I$82:$P$82) -> 0.013 | AZ37: =LOOKUP(AZ8,'Operating Assumptions'!$I$77:$P$77,'Operating Assumptions'!$I$82:$P$82) -> 0.013 | BA37: =LOOKUP(BA8,'Operating Assumptions'!$I$77:$P$77,'Operating Assumptions'!$I$82:$P$82) -> 0.013 | BB37: =LOOKUP(BB8,'Operating Assumptions'!$I$77:$P$77,'Operating Assumptions'!$I$82:$P$82) -> 0.013 | BC37: =LOOKUP(BC8,'Operating Assumptions'!$I$77:$P$77,'Operating Assumptions'!$I$82:$P$82) -> 0.013 | BD37: =LOOKUP(BD8,'Operating Assumptions'!$I$77:$P$77,'Operating Assumptions'!$I$82:$P$82) -> 0.013 | BE37: =LOOKUP(BE8,'Operating Assumptions'!$I$77:$P$77,'Operating Assumptions'!$I$82:$P$82) -> 0.013 | BF37: =LOOKUP(BF8,'Operating Assumptions'!$I$77:$P$77,'Operating Assumptions'!$I$82:$P$82) -> 0.013 | BG37: =LOOKUP(BG8,'Operating Assumptions'!$I$77:$P$77,'Operating Assumptions'!$I$82:$P$82) -> 0.013 | BH37: =LOOKUP(BH8,'Operating Assumptions'!$I$77:$P$77,'Operating Assumptions'!$I$82:$P$82) -> 0.013 | BI37: =LOOKUP(BI8,'Operating Assumptions'!$I$77:$P$77,'Operating Assumptions'!$I$82:$P$82) -> 0.013 | BJ37: =LOOKUP(BJ8,'Operating Assumptions'!$I$77:$P$77,'Operating Assumptions'!$I$82:$P$82) -> 0.013 | BK37: =LOOKUP(BK8,'Operating Assumptions'!$I$77:$P$77,'Operating Assumptions'!$I$82:$P$82) -> 0.013 | BL37: =LOOKUP(BL8,'Operating Assumptions'!$I$77:$P$77,'Operating Assumptions'!$I$82:$P$82) -> 0.013 | BM37: =LOOKUP(BM8,'Operating Assumptions'!$I$77:$P$77,'Operating Assumptions'!$I$82:$P$82) -> 0.013 | BN37: =LOOKUP(BN8,'Operating Assumptions'!$I$77:$P$77,'Operating Assumptions'!$I$82:$P$82) -> 0.013 | BO37: =LOOKUP(BO8,'Operating Assumptions'!$I$77:$P$77,'Operating Assumptions'!$I$82:$P$82) -> 0.013 | BP37: =LOOKUP(BP8,'Operating Assumptions'!$I$77:$P$77,'Operating Assumptions'!$I$82:$P$82) -> 0.013 | BQ37: =LOOKUP(BQ8,'Operating Assumptions'!$I$77:$P$77,'Operating Assumptions'!$I$82:$P$82) -> 0.013 | BR37: =LOOKUP(BR8,'Operating Assumptions'!$I$77:$P$77,'Operating Assumptions'!$I$82:$P$82) -> 0.013 | BS37: =LOOKUP(BS8,'Operating Assumptions'!$I$77:$P$77,'Operating Assumptions'!$I$82:$P$82) -> 0.013 | BT37: =LOOKUP(BT8,'Operating Assumptions'!$I$77:$P$77,'Operating Assumptions'!$I$82:$P$82) -> 0.013 | BU37: =LOOKUP(BU8,'Operating Assumptions'!$I$77:$P$77,'Operating Assumptions'!$I$82:$P$82) -> 0.013 | BV37: =LOOKUP(BV8,'Operating Assumptions'!$I$77:$P$77,'Operating Assumptions'!$I$82:$P$82) -> 0.013 | BW37: =LOOKUP(BW8,'Operating Assumptions'!$I$77:$P$77,'Operating Assumptions'!$I$82:$P$82) -> 0.013 | BX37: =LOOKUP(BX8,'Operating Assumptions'!$I$77:$P$77,'Operating Assumptions'!$I$82:$P$82) -> 0.013 | BY37: =LOOKUP(BY8,'Operating Assumptions'!$I$77:$P$77,'Operating Assumptions'!$I$82:$P$82) -> 0.013 | BZ37: =LOOKUP(BZ8,'Operating Assumptions'!$I$77:$P$77,'Operating Assumptions'!$I$82:$P$82) -> 0.013 | CA37: =LOOKUP(CA8,'Operating Assumptions'!$I$77:$P$77,'Operating Assumptions'!$I$82:$P$82) -> 0.013 | CB37: =LOOKUP(CB8,'Operating Assumptions'!$I$77:$P$77,'Operating Assumptions'!$I$82:$P$82) -> 0.013 | CC37: =LOOKUP(CC8,'Operating Assumptions'!$I$77:$P$77,'Operating Assumptions'!$I$82:$P$82) -> 0.013 | CD37: =LOOKUP(CD8,'Operating Assumptions'!$I$77:$P$77,'Operating Assumptions'!$I$82:$P$82) -> 0.013 | CE37: =LOOKUP(CE8,'Operating Assumptions'!$I$77:$P$77,'Operating Assumptions'!$I$82:$P$82) -> 0.013 | CF37: =LOOKUP(CF8,'Operating Assumptions'!$I$77:$P$77,'Operating Assumptions'!$I$82:$P$82) -> 0.013 | CG37: =LOOKUP(CG8,'Operating Assumptions'!$I$77:$P$77,'Operating Assumptions'!$I$82:$P$82) -> 0.013 | CH37: =LOOKUP(CH8,'Operating Assumptions'!$I$77:$P$77,'Operating Assumptions'!$I$82:$P$82) -> 0.013 | CI37: =LOOKUP(CI8,'Operating Assumptions'!$I$77:$P$77,'Operating Assumptions'!$I$82:$P$82) -> 0.013 | CJ37: =LOOKUP(CJ8,'Operating Assumptions'!$I$77:$P$77,'Operating Assumptions'!$I$82:$P$82) -> 0.013 | CK37: =LOOKUP(CK8,'Operating Assumptions'!$I$77:$P$77,'Operating Assumptions'!$I$82:$P$82) -> 0.013 | CL37: =LOOKUP(CL8,'Operating Assumptions'!$I$77:$P$77,'Operating Assumptions'!$I$82:$P$82) -> 0.013 | CM37: =LOOKUP(CM8,'Operating Assumptions'!$I$77:$P$77,'Operating Assumptions'!$I$82:$P$82) -> 0.013 | CN37: =LOOKUP(CN8,'Operating Assumptions'!$I$77:$P$77,'Operating Assumptions'!$I$82:$P$82) -> 0.013 | CO37: =LOOKUP(CO8,'Operating Assumptions'!$I$77:$P$77,'Operating Assumptions'!$I$82:$P$82) -> 0.013 | CP37: =LOOKUP(CP8,'Operating Assumptions'!$I$77:$P$77,'Operating Assumptions'!$I$82:$P$82) -> 0.013 | CQ37: =LOOKUP(CQ8,'Operating Assumptions'!$I$77:$P$77,'Operating Assumptions'!$I$82:$P$82) -> 0.013 | CR37: =LOOKUP(CR8,'Operating Assumptions'!$I$77:$P$77,'Operating Assumptions'!$I$82:$P$82) -> 0.013 | CS37: =LOOKUP(CS8,'Operating Assumptions'!$I$77:$P$77,'Operating Assumptions'!$I$82:$P$82) -> 0.013 | CT37: =LOOKUP(CT8,'Operating Assumptions'!$I$77:$P$77,'Operating Assumptions'!$I$82:$P$82) -> 0.013 | CU37: =LOOKUP(CU8,'Operating Assumptions'!$I$77:$P$77,'Operating Assumptions'!$I$82:$P$82) -> 0.013 | CV37: =LOOKUP(CV8,'Operating Assumptions'!$I$77:$P$77,'Operating Assumptions'!$I$82:$P$82) -> 0.013 | CW37: =LOOKUP(CW8,'Operating Assumptions'!$I$77:$P$77,'Operating Assumptions'!$I$82:$P$82) -> 0.013 | CX37: =LOOKUP(CX8,'Operating Assumptions'!$I$77:$P$77,'Operating Assumptions'!$I$82:$P$82) -> 0.013 | CY37: =LOOKUP(CY8,'Operating Assumptions'!$I$77:$P$77,'Operating Assumptions'!$I$82:$P$82) -> 0.013 | CZ37: =LOOKUP(CZ8,'Operating Assumptions'!$I$77:$P$77,'Operating Assumptions'!$I$82:$P$82) -> 0.013 | DA37: =LOOKUP(DA8,'Operating Assumptions'!$I$77:$P$77,'Operating Assumptions'!$I$82:$P$82) -> 0.013 | DB37: =LOOKUP(DB8,'Operating Assumptions'!$I$77:$P$77,'Operating Assumptions'!$I$82:$P$82) -> 0.013 | DC37: =LOOKUP(DC8,'Operating Assumptions'!$I$77:$P$77,'Operating Assumptions'!$I$82:$P$82) -> 0.013 | DD37: =LOOKUP(DD8,'Operating Assumptions'!$I$77:$P$77,'Operating Assumptions'!$I$82:$P$82) -> 0.013 | DE37: =LOOKUP(DE8,'Operating Assumptions'!$I$77:$P$77,'Operating Assumptions'!$I$82:$P$82) -> 0.013 | DF37: =LOOKUP(DF8,'Operating Assumptions'!$I$77:$P$77,'Operating Assumptions'!$I$82:$P$82) -> 0.013 | DG37: =LOOKUP(DG8,'Operating Assumptions'!$I$77:$P$77,'Operating Assumptions'!$I$82:$P$82) -> 0.013 | DH37: =LOOKUP(DH8,'Operating Assumptions'!$I$77:$P$77,'Operating Assumptions'!$I$82:$P$82) -> 0.013 | DI37: =LOOKUP(DI8,'Operating Assumptions'!$I$77:$P$77,'Operating Assumptions'!$I$82:$P$82) -> 0.013 | DJ37: =LOOKUP(DJ8,'Operating Assumptions'!$I$77:$P$77,'Operating Assumptions'!$I$82:$P$82) -> 0.013 | DK37: =LOOKUP(DK8,'Operating Assumptions'!$I$77:$P$77,'Operating Assumptions'!$I$82:$P$82) -> 0.013 | DL37: =LOOKUP(DL8,'Operating Assumptions'!$I$77:$P$77,'Operating Assumptions'!$I$82:$P$82) -> 0.013 | DM37: =LOOKUP(DM8,'Operating Assumptions'!$I$77:$P$77,'Operating Assumptions'!$I$82:$P$82) -> 0.013 | DN37: =LOOKUP(DN8,'Operating Assumptions'!$I$77:$P$77,'Operating Assumptions'!$I$82:$P$82) -> 0.013 | DO37: =LOOKUP(DO8,'Operating Assumptions'!$I$77:$P$77,'Operating Assumptions'!$I$82:$P$82) -> 0.013 | DP37: =LOOKUP(DP8,'Operating Assumptions'!$I$77:$P$77,'Operating Assumptions'!$I$82:$P$82) -> 0.013 | DQ37: =LOOKUP(DQ8,'Operating Assumptions'!$I$77:$P$77,'Operating Assumptions'!$I$82:$P$82) -> 0.013 | DR37: =LOOKUP(DR8,'Operating Assumptions'!$I$77:$P$77,'Operating Assumptions'!$I$82:$P$82) -> 0.013 | DS37: =LOOKUP(DS8,'Operating Assumptions'!$I$77:$P$77,'Operating Assumptions'!$I$82:$P$82) -> 0.013 | DT37: =LOOKUP(DT8,'Operating Assumptions'!$I$77:$P$77,'Operating Assumptions'!$I$82:$P$82) -> 0.013 | DU37: =LOOKUP(DU8,'Operating Assumptions'!$I$77:$P$77,'Operating Assumptions'!$I$82:$P$82) -> 0.013 | DV37: =LOOKUP(DV8,'Operating Assumptions'!$I$77:$P$77,'Operating Assumptions'!$I$82:$P$82) -> 0.013 | DW37: =LOOKUP(DW8,'Operating Assumptions'!$I$77:$P$77,'Operating Assumptions'!$I$82:$P$82) -> 0.013 | DX37: =LOOKUP(DX8,'Operating Assumptions'!$I$77:$P$77,'Operating Assumptions'!$I$82:$P$82) -> 0.013 | DY37: =LOOKUP(DY8,'Operating Assumptions'!$I$77:$P$77,'Operating Assumptions'!$I$82:$P$82) -> 0.013 | DZ37: =LOOKUP(DZ8,'Operating Assumptions'!$I$77:$P$77,'Operating Assumptions'!$I$82:$P$82) -> 0.013 | EA37: =LOOKUP(EA8,'Operating Assumptions'!$I$77:$P$77,'Operating Assumptions'!$I$82:$P$82) -> 0.013 | EB37: =LOOKUP(EB8,'Operating Assumptions'!$I$77:$P$77,'Operating Assumptions'!$I$82:$P$82) -> 0.013 | EC37: =LOOKUP(EC8,'Operating Assumptions'!$I$77:$P$77,'Operating Assumptions'!$I$82:$P$82) -> 0.013 | ED37: =LOOKUP(ED8,'Operating Assumptions'!$I$77:$P$77,'Operating Assumptions'!$I$82:$P$82) -> 0.013 | EE37: =LOOKUP(EE8,'Operating Assumptions'!$I$77:$P$77,'Operating Assumptions'!$I$82:$P$82) -> 0.013 | EF37: =LOOKUP(EF8,'Operating Assumptions'!$I$77:$P$77,'Operating Assumptions'!$I$82:$P$82) -> 0.013 | EG37: =LOOKUP(EG8,'Operating Assumptions'!$I$77:$P$77,'Operating Assumptions'!$I$82:$P$82) -> 0.013 | EH37: =LOOKUP(EH8,'Operating Assumptions'!$I$77:$P$77,'Operating Assumptions'!$I$82:$P$82) -> 0.013 | EI37: =LOOKUP(EI8,'Operating Assumptions'!$I$77:$P$77,'Operating Assumptions'!$I$82:$P$82) -> 0.013 | EJ37: =LOOKUP(EJ8,'Operating Assumptions'!$I$77:$P$77,'Operating Assumptions'!$I$82:$P$82) -> 0.013 | EK37: =LOOKUP(EK8,'Operating Assumptions'!$I$77:$P$77,'Operating Assumptions'!$I$82:$P$82) -> 0.013 | EL37: =LOOKUP(EL8,'Operating Assumptions'!$I$77:$P$77,'Operating Assumptions'!$I$82:$P$82) -> 0.013 | EM37: =LOOKUP(EM8,'Operating Assumptions'!$I$77:$P$77,'Operating Assumptions'!$I$82:$P$82) -> 0.013 | EN37: =LOOKUP(EN8,'Operating Assumptions'!$I$77:$P$77,'Operating Assumptions'!$I$82:$P$82) -> 0.013 | EO37: =LOOKUP(EO8,'Operating Assumptions'!$I$77:$P$77,'Operating Assumptions'!$I$82:$P$82) -> 0.013 | EP37: =LOOKUP(EP8,'Operating Assumptions'!$I$77:$P$77,'Operating Assumptions'!$I$82:$P$82) -> 0.013 | EQ37: =LOOKUP(EQ8,'Operating Assumptions'!$I$77:$P$77,'Operating Assumptions'!$I$82:$P$82) -> 0.013 | ER37: =LOOKUP(ER8,'Operating Assumptions'!$I$77:$P$77,'Operating Assumptions'!$I$82:$P$82) -> 0.013 | ES37: =LOOKUP(ES8,'Operating Assumptions'!$I$77:$P$77,'Operating Assumptions'!$I$82:$P$82) -> 0.013 | ET37: =LOOKUP(ET8,'Operating Assumptions'!$I$77:$P$77,'Operating Assumptions'!$I$82:$P$82) -> 0.013 | EU37: =LOOKUP(EU8,'Operating Assumptions'!$I$77:$P$77,'Operating Assumptions'!$I$82:$P$82) -> 0.013 | EV37: =LOOKUP(EV8,'Operating Assumptions'!$I$77:$P$77,'Operating Assumptions'!$I$82:$P$82) -> 0.013 | EW37: =LOOKUP(EW8,'Operating Assumptions'!$I$77:$P$77,'Operating Assumptions'!$I$82:$P$82) -> 0.013 | EX37: =LOOKUP(EX8,'Operating Assumptions'!$I$77:$P$77,'Operating Assumptions'!$I$82:$P$82) -> 0.013 | EY37: =LOOKUP(EY8,'Operating Assumptions'!$I$77:$P$77,'Operating Assumptions'!$I$82:$P$82) -> 0.013 | EZ37: =LOOKUP(EZ8,'Operating Assumptions'!$I$77:$P$77,'Operating Assumptions'!$I$82:$P$82) -> 0.013 | FA37: =LOOKUP(FA8,'Operating Assumptions'!$I$77:$P$77,'Operating Assumptions'!$I$82:$P$82) -> 0.013 | FB37: =LOOKUP(FB8,'Operating Assumptions'!$I$77:$P$77,'Operating Assumptions'!$I$82:$P$82) -> 0.013 | FC37: =LOOKUP(FC8,'Operating Assumptions'!$I$77:$P$77,'Operating Assumptions'!$I$82:$P$82) -> 0.013 | FD37: =LOOKUP(FD8,'Operating Assumptions'!$I$77:$P$77,'Operating Assumptions'!$I$82:$P$82) -> 0.013 | FE37: =LOOKUP(FE8,'Operating Assumptions'!$I$77:$P$77,'Operating Assumptions'!$I$82:$P$82) -> 0.013 | FF37: =LOOKUP(FF8,'Operating Assumptions'!$I$77:$P$77,'Operating Assumptions'!$I$82:$P$82) -> 0.013 | FG37: =LOOKUP(FG8,'Operating Assumptions'!$I$77:$P$77,'Operating Assumptions'!$I$82:$P$82) -> 0.013 | FH37: =LOOKUP(FH8,'Operating Assumptions'!$I$77:$P$77,'Operating Assumptions'!$I$82:$P$82) -> 0.013 | FI37: =LOOKUP(FI8,'Operating Assumptions'!$I$77:$P$77,'Operating Assumptions'!$I$82:$P$82) -> 0.013 | FJ37: =LOOKUP(FJ8,'Operating Assumptions'!$I$77:$P$77,'Operating Assumptions'!$I$82:$P$82) -> 0.013 | FK37: =LOOKUP(FK8,'Operating Assumptions'!$I$77:$P$77,'Operating Assumptions'!$I$82:$P$82) -> 0.013 | FL37: =LOOKUP(FL8,'Operating Assumptions'!$I$77:$P$77,'Operating Assumptions'!$I$82:$P$82) -> 0.013 | FM37: =LOOKUP(FM8,'Operating Assumptions'!$I$77:$P$77,'Operating Assumptions'!$I$82:$P$82) -> 0.013 | FN37: =LOOKUP(FN8,'Operating Assumptions'!$I$77:$P$77,'Operating Assumptions'!$I$82:$P$82) -> 0.013 | FO37: =LOOKUP(FO8,'Operating Assumptions'!$I$77:$P$77,'Operating Assumptions'!$I$82:$P$82) -> 0.013 | FP37: =LOOKUP(FP8,'Operating Assumptions'!$I$77:$P$77,'Operating Assumptions'!$I$82:$P$82) -> 0.013 | FQ37: =LOOKUP(FQ8,'Operating Assumptions'!$I$77:$P$77,'Operating Assumptions'!$I$82:$P$82) -> 0.013 | FR37: =LOOKUP(FR8,'Operating Assumptions'!$I$77:$P$77,'Operating Assumptions'!$I$82:$P$82) -> 0.013 | FS37: =LOOKUP(FS8,'Operating Assumptions'!$I$77:$P$77,'Operating Assumptions'!$I$82:$P$82) -> 0.013 | FT37: =LOOKUP(FT8,'Operating Assumptions'!$I$77:$P$77,'Operating Assumptions'!$I$82:$P$82) -> 0.013 | FU37: =LOOKUP(FU8,'Operating Assumptions'!$I$77:$P$77,'Operating Assumptions'!$I$82:$P$82) -> 0.013 | FV37: =LOOKUP(FV8,'Operating Assumptions'!$I$77:$P$77,'Operating Assumptions'!$I$82:$P$82) -> 0.013 | FW37: =LOOKUP(FW8,'Operating Assumptions'!$I$77:$P$77,'Operating Assumptions'!$I$82:$P$82) -> 0.013 | FX37: =LOOKUP(FX8,'Operating Assumptions'!$I$77:$P$77,'Operating Assumptions'!$I$82:$P$82) -> 0.013 | FY37: =LOOKUP(FY8,'Operating Assumptions'!$I$77:$P$77,'Operating Assumptions'!$I$82:$P$82) -> 0.013 | FZ37: =LOOKUP(FZ8,'Operating Assumptions'!$I$77:$P$77,'Operating Assumptions'!$I$82:$P$82) -> 0.013 | GA37: =LOOKUP(GA8,'Operating Assumptions'!$I$77:$P$77,'Operating Assumptions'!$I$82:$P$82) -> 0.013 | GB37: =LOOKUP(GB8,'Operating Assumptions'!$I$77:$P$77,'Operating Assumptions'!$I$82:$P$82) -> 0.013 | GC37: =LOOKUP(GC8,'Operating Assumptions'!$I$77:$P$77,'Operating Assumptions'!$I$82:$P$82) -> 0.013 | GD37: =LOOKUP(GD8,'Operating Assumptions'!$I$77:$P$77,'Operating Assumptions'!$I$82:$P$82) -> 0.013 | GE37: =LOOKUP(GE8,'Operating Assumptions'!$I$77:$P$77,'Operating Assumptions'!$I$82:$P$82) -> 0.013 | GF37: =LOOKUP(GF8,'Operating Assumptions'!$I$77:$P$77,'Operating Assumptions'!$I$82:$P$82) -> 0.013 | GG37: =LOOKUP(GG8,'Operating Assumptions'!$I$77:$P$77,'Operating Assumptions'!$I$82:$P$82) -> 0.013 | GH37: =LOOKUP(GH8,'Operating Assumptions'!$I$77:$P$77,'Operating Assumptions'!$I$82:$P$82) -> 0.013 | GI37: =LOOKUP(GI8,'Operating Assumptions'!$I$77:$P$77,'Operating Assumptions'!$I$82:$P$82) -> 0.013 | GJ37: =LOOKUP(GJ8,'Operating Assumptions'!$I$77:$P$77,'Operating Assumptions'!$I$82:$P$82) -> 0.013 | GK37: =LOOKUP(GK8,'Operating Assumptions'!$I$77:$P$77,'Operating Assumptions'!$I$82:$P$82) -> 0.013 | GL37: =LOOKUP(GL8,'Operating Assumptions'!$I$77:$P$77,'Operating Assumptions'!$I$82:$P$82) -> 0.013 | GM37: =LOOKUP(GM8,'Operating Assumptions'!$I$77:$P$77,'Operating Assumptions'!$I$82:$P$82) -> 0.013 | GN37: =LOOKUP(GN8,'Operating Assumptions'!$I$77:$P$77,'Operating Assumptions'!$I$82:$P$82) -> 0.013 | GO37: =LOOKUP(GO8,'Operating Assumptions'!$I$77:$P$77,'Operating Assumptions'!$I$82:$P$82) -> 0.013 | GP37: =LOOKUP(GP8,'Operating Assumptions'!$I$77:$P$77,'Operating Assumptions'!$I$82:$P$82) -> 0.013 | GQ37: =LOOKUP(GQ8,'Operating Assumptions'!$I$77:$P$77,'Operating Assumptions'!$I$82:$P$82) -> 0.013 | GR37: =LOOKUP(GR8,'Operating Assumptions'!$I$77:$P$77,'Operating Assumptions'!$I$82:$P$82) -> 0.013 | GS37: =LOOKUP(GS8,'Operating Assumptions'!$I$77:$P$77,'Operating Assumptions'!$I$82:$P$82) -> 0.013 | GT37: =LOOKUP(GT8,'Operating Assumptions'!$I$77:$P$77,'Operating Assumptions'!$I$82:$P$82) -> 0.013 | GU37: =LOOKUP(GU8,'Operating Assumptions'!$I$77:$P$77,'Operating Assumptions'!$I$82:$P$82) -> 0.013 | GV37: =LOOKUP(GV8,'Operating Assumptions'!$I$77:$P$77,'Operating Assumptions'!$I$82:$P$82) -> 0.013 | GW37: =LOOKUP(GW8,'Operating Assumptions'!$I$77:$P$77,'Operating Assumptions'!$I$82:$P$82) -> 0.013 | GX37: =LOOKUP(GX8,'Operating Assumptions'!$I$77:$P$77,'Operating Assumptions'!$I$82:$P$82) -> 0.013 | GY37: =LOOKUP(GY8,'Operating Assumptions'!$I$77:$P$77,'Operating Assumptions'!$I$82:$P$82) -> 0.013 | GZ37: =LOOKUP(GZ8,'Operating Assumptions'!$I$77:$P$77,'Operating Assumptions'!$I$82:$P$82) -> 0.013 | HA37: =LOOKUP(HA8,'Operating Assumptions'!$I$77:$P$77,'Operating Assumptions'!$I$82:$P$82) -> 0.013 | HB37: =LOOKUP(HB8,'Operating Assumptions'!$I$77:$P$77,'Operating Assumptions'!$I$82:$P$82) -> 0.013 | HC37: =LOOKUP(HC8,'Operating Assumptions'!$I$77:$P$77,'Operating Assumptions'!$I$82:$P$82) -> 0.013 | HD37: =LOOKUP(HD8,'Operating Assumptions'!$I$77:$P$77,'Operating Assumptions'!$I$82:$P$82) -> 0.013 | HE37: =LOOKUP(HE8,'Operating Assumptions'!$I$77:$P$77,'Operating Assumptions'!$I$82:$P$82) -> 0.013 | HF37: =LOOKUP(HF8,'Operating Assumptions'!$I$77:$P$77,'Operating Assumptions'!$I$82:$P$82) -> 0.013 | HG37: =LOOKUP(HG8,'Operating Assumptions'!$I$77:$P$77,'Operating Assumptions'!$I$82:$P$82) -> 0.013 | HH37: =LOOKUP(HH8,'Operating Assumptions'!$I$77:$P$77,'Operating Assumptions'!$I$82:$P$82) -> 0.013 | HI37: =LOOKUP(HI8,'Operating Assumptions'!$I$77:$P$77,'Operating Assumptions'!$I$82:$P$82) -> 0.013 | HJ37: =LOOKUP(HJ8,'Operating Assumptions'!$I$77:$P$77,'Operating Assumptions'!$I$82:$P$82) -> 0.013 | HK37: =LOOKUP(HK8,'Operating Assumptions'!$I$77:$P$77,'Operating Assumptions'!$I$82:$P$82) -> 0.013 | HL37: =LOOKUP(HL8,'Operating Assumptions'!$I$77:$P$77,'Operating Assumptions'!$I$82:$P$82) -> 0.013 | HM37: =LOOKUP(HM8,'Operating Assumptions'!$I$77:$P$77,'Operating Assumptions'!$I$82:$P$82) -> 0.013 | HN37: =LOOKUP(HN8,'Operating Assumptions'!$I$77:$P$77,'Operating Assumptions'!$I$82:$P$82) -> 0.013 | HO37: =LOOKUP(HO8,'Operating Assumptions'!$I$77:$P$77,'Operating Assumptions'!$I$82:$P$82) -> 0.013 | HP37: =LOOKUP(HP8,'Operating Assumptions'!$I$77:$P$77,'Operating Assumptions'!$I$82:$P$82) -> 0.013 | HQ37: =LOOKUP(HQ8,'Operating Assumptions'!$I$77:$P$77,'Operating Assumptions'!$I$82:$P$82) -> 0.013 | HR37: =LOOKUP(HR8,'Operating Assumptions'!$I$77:$P$77,'Operating Assumptions'!$I$82:$P$82) -> 0.013 | HS37: =LOOKUP(HS8,'Operating Assumptions'!$I$77:$P$77,'Operating Assumptions'!$I$82:$P$82) -> 0.013 | HT37: =LOOKUP(HT8,'Operating Assumptions'!$I$77:$P$77,'Operating Assumptions'!$I$82:$P$82) -> 0.013 | HU37: =LOOKUP(HU8,'Operating Assumptions'!$I$77:$P$77,'Operating Assumptions'!$I$82:$P$82) -> 0.013 | HV37: =LOOKUP(HV8,'Operating Assumptions'!$I$77:$P$77,'Operating Assumptions'!$I$82:$P$82) -> 0.013 | HW37: =LOOKUP(HW8,'Operating Assumptions'!$I$77:$P$77,'Operating Assumptions'!$I$82:$P$82) -> 0.013 | HX37: =LOOKUP(HX8,'Operating Assumptions'!$I$77:$P$77,'Operating Assumptions'!$I$82:$P$82) -> 0.013 | HY37: =LOOKUP(HY8,'Operating Assumptions'!$I$77:$P$77,'Operating Assumptions'!$I$82:$P$82) -> 0.013 | HZ37: =LOOKUP(HZ8,'Operating Assumptions'!$I$77:$P$77,'Operating Assumptions'!$I$82:$P$82) -> 0.013 | IA37: =LOOKUP(IA8,'Operating Assumptions'!$I$77:$P$77,'Operating Assumptions'!$I$82:$P$82) -> 0.013 | IB37: =LOOKUP(IB8,'Operating Assumptions'!$I$77:$P$77,'Operating Assumptions'!$I$82:$P$82) -> 0.013 | IC37: =LOOKUP(IC8,'Operating Assumptions'!$I$77:$P$77,'Operating Assumptions'!$I$82:$P$82) -> 0.013 | ID37: =LOOKUP(ID8,'Operating Assumptions'!$I$77:$P$77,'Operating Assumptions'!$I$82:$P$82) -> 0.013 | IE37: =LOOKUP(IE8,'Operating Assumptions'!$I$77:$P$77,'Operating Assumptions'!$I$82:$P$82) -> 0.013 | IF37: =LOOKUP(IF8,'Operating Assumptions'!$I$77:$P$77,'Operating Assumptions'!$I$82:$P$82) -> 0.013 | IG37: =LOOKUP(IG8,'Operating Assumptions'!$I$77:$P$77,'Operating Assumptions'!$I$82:$P$82) -> 0.013 | IH37: =LOOKUP(IH8,'Operating Assumptions'!$I$77:$P$77,'Operating Assumptions'!$I$82:$P$82) -> 0.013 | II37: =LOOKUP(II8,'Operating Assumptions'!$I$77:$P$77,'Operating Assumptions'!$I$82:$P$82) -> 0.013 | IJ37: =LOOKUP(IJ8,'Operating Assumptions'!$I$77:$P$77,'Operating Assumptions'!$I$82:$P$82) -> 0.013 | IK37: =LOOKUP(IK8,'Operating Assumptions'!$I$77:$P$77,'Operating Assumptions'!$I$82:$P$82) -> 0.013 | IL37: =LOOKUP(IL8,'Operating Assumptions'!$I$77:$P$77,'Operating Assumptions'!$I$82:$P$82) -> 0.013 | IM37: =LOOKUP(IM8,'Operating Assumptions'!$I$77:$P$77,'Operating Assumptions'!$I$82:$P$82) -> 0.013 | IN37: =LOOKUP(IN8,'Operating Assumptions'!$I$77:$P$77,'Operating Assumptions'!$I$82:$P$82) -> 0.013 | IO37: =LOOKUP(IO8,'Operating Assumptions'!$I$77:$P$77,'Operating Assumptions'!$I$82:$P$82) -> 0.013 | IP37: =LOOKUP(IP8,'Operating Assumptions'!$I$77:$P$77,'Operating Assumptions'!$I$82:$P$82) -> 0.013 | IQ37: =LOOKUP(IQ8,'Operating Assumptions'!$I$77:$P$77,'Operating Assumptions'!$I$82:$P$82) -> 0.013 | IR37: =LOOKUP(IR8,'Operating Assumptions'!$I$77:$P$77,'Operating Assumptions'!$I$82:$P$82) -> 0.013 | IS37: =LOOKUP(IS8,'Operating Assumptions'!$I$77:$P$77,'Operating Assumptions'!$I$82:$P$82) -> 0.013 | IT37: =LOOKUP(IT8,'Operating Assumptions'!$I$77:$P$77,'Operating Assumptions'!$I$82:$P$82) -> 0.013 | IU37: =LOOKUP(IU8,'Operating Assumptions'!$I$77:$P$77,'Operating Assumptions'!$I$82:$P$82) -> 0.013 | IV37: =LOOKUP(IV8,'Operating Assumptions'!$I$77:$P$77,'Operating Assumptions'!$I$82:$P$82) -> 0.013 | IW37: =LOOKUP(IW8,'Operating Assumptions'!$I$77:$P$77,'Operating Assumptions'!$I$82:$P$82) -> 0.013 | IX37: =LOOKUP(IX8,'Operating Assumptions'!$I$77:$P$77,'Operating Assumptions'!$I$82:$P$82) -> 0.013 | IY37: =LOOKUP(IY8,'Operating Assumptions'!$I$77:$P$77,'Operating Assumptions'!$I$82:$P$82) -> 0.013 | IZ37: =LOOKUP(IZ8,'Operating Assumptions'!$I$77:$P$77,'Operating Assumptions'!$I$82:$P$82) -> 0.013 | JA37: =LOOKUP(JA8,'Operating Assumptions'!$I$77:$P$77,'Operating Assumptions'!$I$82:$P$82) -> 0.013 | JB37: =LOOKUP(JB8,'Operating Assumptions'!$I$77:$P$77,'Operating Assumptions'!$I$82:$P$82) -> 0.013 | JC37: =LOOKUP(JC8,'Operating Assumptions'!$I$77:$P$77,'Operating Assumptions'!$I$82:$P$82) -> 0.013 | JD37: =LOOKUP(JD8,'Operating Assumptions'!$I$77:$P$77,'Operating Assumptions'!$I$82:$P$82) -> 0.013 | JE37: =LOOKUP(JE8,'Operating Assumptions'!$I$77:$P$77,'Operating Assumptions'!$I$82:$P$82) -> 0.013
D38: Periodic Inflation | L38: =(1+L37)^(1/L5)-1 -> 0.001651581302 | M38: 0.001651581302 | N38: 0.001651581302 | O38: 0.001651581302 | P38: 0.001651581302 | Q38: 0.001651581302 | R38: 0.001651581302 | S38: 0.001651581302 | T38: 0.001651581302 | U38: 0.001651581302 | V38: 0.001651581302 | W38: 0.001651581302 | X38: 0.001651581302 | Y38: 0.001651581302 | Z38: 0.001651581302 | AA38: 0.0008295381143 | AB38: 0.0008295381143 | AC38: 0.0008295381143 | AD38: 0.0008295381143 | AE38: 0.0008295381143 | AF38: 0.0008295381143 | AG38: 0.0008295381143 | AH38: 0.0008295381143 | AI38: 0.0008295381143 | AJ38: 0.0008295381143 | AK38: 0.0008295381143 | AL38: 0.0008295381143 | AM38: 0.001241487716 | AN38: 0.001241487716 | AO38: 0.001241487716 | AP38: 0.001241487716 | AQ38: 0.001241487716 | AR38: 0.001241487716 | AS38: 0.001241487716 | AT38: 0.001241487716 | AU38: 0.001241487716 | AV38: 0.001241487716 | AW38: 0.001241487716 | AX38: 0.001241487716 | AY38: 0.00107693158 | AZ38: 0.00107693158 | BA38: 0.00107693158 | BB38: 0.00107693158 | BC38: 0.00107693158 | BD38: 0.003234275335 | BE38: 0.003234275335 | BF38: 0.003234275335 | BG38: 0.003234275335 | BH38: 0.003234275335 | BI38: 0.003234275335 | BJ38: 0.003234275335 | BK38: 0.003234275335 | BL38: 0.003234275335 | BM38: 0.003234275335 | BN38: 0.003234275335 | BO38: 0.003234275335 | BP38: 0.003234275335 | BQ38: 0.003234275335 | BR38: 0.003234275335 | BS38: 0.003234275335 | BT38: 0.003234275335 | BU38: 0.003234275335 | BV38: 0.003234275335 | BW38: 0.003234275335 | BX38: =(1+BX37)^(1/BX5)-1 -> 0.003234275335 | BY38: 0.003234275335 | BZ38: 0.003234275335 | CA38: 0.003234275335 | CB38: 0.003234275335 | CC38: 0.003234275335 | CD38: 0.003234275335 | CE38: 0.003234275335 | CF38: 0.003234275335 | CG38: 0.003234275335 | CH38: 0.003234275335 | CI38: 0.003234275335 | CJ38: 0.003234275335 | CK38: 0.003234275335 | CL38: 0.003234275335 | CM38: 0.003234275335 | CN38: 0.003234275335 | CO38: 0.003234275335 | CP38: 0.003234275335 | CQ38: 0.003234275335 | CR38: 0.003234275335 | CS38: 0.003234275335 | CT38: 0.003234275335 | CU38: 0.003234275335 | CV38: 0.003234275335 | CW38: 0.003234275335 | CX38: 0.003234275335 | CY38: 0.003234275335 | CZ38: 0.003234275335 | DA38: 0.003234275335 | DB38: 0.003234275335 | DC38: 0.003234275335 | DD38: 0.003234275335 | DE38: 0.003234275335 | DF38: 0.003234275335 | DG38: 0.003234275335 | DH38: 0.003234275335 | DI38: 0.003234275335 | DJ38: 0.003234275335 | DK38: 0.003234275335 | DL38: 0.003234275335 | DM38: 0.003234275335 | DN38: 0.003234275335 | DO38: 0.003234275335 | DP38: 0.003234275335 | DQ38: 0.003234275335 | DR38: 0.003234275335 | DS38: 0.003234275335 | DT38: 0.003234275335 | DU38: 0.003234275335 | DV38: 0.003234275335 | DW38: 0.003234275335 | DX38: 0.003234275335 | DY38: 0.003234275335 | DZ38: 0.003234275335 | EA38: 0.003234275335 | EB38: 0.003234275335 | EC38: 0.003234275335 | ED38: 0.003234275335 | EE38: 0.003234275335 | EF38: 0.003234275335 | EG38: 0.003234275335 | EH38: 0.003234275335 | EI38: 0.003234275335 | EJ38: =(1+EJ37)^(1/EJ5)-1 -> 0.003234275335 | EK38: 0.003234275335 | EL38: 0.003234275335 | EM38: 0.003234275335 | EN38: 0.003234275335 | EO38: 0.003234275335 | EP38: 0.003234275335 | EQ38: 0.003234275335 | ER38: 0.003234275335 | ES38: 0.003234275335 | ET38: 0.003234275335 | EU38: 0.003234275335 | EV38: 0.003234275335 | EW38: 0.003234275335 | EX38: 0.003234275335 | EY38: 0.003234275335 | EZ38: 0.003234275335 | FA38: 0.003234275335 | FB38: 0.003234275335 | FC38: 0.003234275335 | FD38: 0.003234275335 | FE38: 0.003234275335 | FF38: 0.003234275335 | FG38: 0.003234275335 | FH38: 0.003234275335 | FI38: 0.003234275335 | FJ38: 0.003234275335 | FK38: 0.003234275335 | FL38: 0.003234275335 | FM38: 0.003234275335 | FN38: 0.003234275335 | FO38: 0.003234275335 | FP38: 0.003234275335 | FQ38: 0.003234275335 | FR38: 0.003234275335 | FS38: 0.003234275335 | FT38: 0.003234275335 | FU38: 0.003234275335 | FV38: 0.003234275335 | FW38: 0.003234275335 | FX38: 0.003234275335 | FY38: 0.003234275335 | FZ38: 0.003234275335 | GA38: 0.003234275335 | GB38: 0.003234275335 | GC38: 0.003234275335 | GD38: 0.003234275335 | GE38: 0.003234275335 | GF38: 0.003234275335 | GG38: 0.003234275335 | GH38: 0.003234275335 | GI38: 0.003234275335 | GJ38: 0.003234275335 | GK38: 0.003234275335 | GL38: 0.003234275335 | GM38: 0.003234275335 | GN38: 0.003234275335 | GO38: 0.003234275335 | GP38: 0.003234275335 | GQ38: 0.003234275335 | GR38: 0.003234275335 | GS38: 0.003234275335 | GT38: 0.003234275335 | GU38: 0.003234275335 | GV38: =(1+GV37)^(1/GV5)-1 -> 0.003234275335 | GW38: 0.003234275335 | GX38: 0.003234275335 | GY38: 0.003234275335 | GZ38: 0.003234275335 | HA38: 0.003234275335 | HB38: 0.003234275335 | HC38: 0.003234275335 | HD38: 0.003234275335 | HE38: 0.003234275335 | HF38: 0.003234275335 | HG38: 0.003234275335 | HH38: 0.003234275335 | HI38: 0.003234275335 | HJ38: 0.003234275335 | HK38: 0.003234275335 | HL38: 0.003234275335 | HM38: 0.003234275335 | HN38: 0.003234275335 | HO38: 0.003234275335 | HP38: 0.003234275335 | HQ38: 0.003234275335 | HR38: 0.003234275335 | HS38: 0.003234275335 | HT38: 0.003234275335 | HU38: 0.003234275335 | HV38: 0.003234275335 | HW38: 0.003234275335 | HX38: 0.003234275335 | HY38: 0.003234275335 | HZ38: 0.003234275335 | IA38: 0.003234275335 | IB38: 0.003234275335 | IC38: 0.003234275335 | ID38: 0.003234275335 | IE38: 0.003234275335 | IF38: 0.003234275335 | IG38: 0.003234275335 | IH38: 0.003234275335 | II38: 0.003234275335 | IJ38: 0.003234275335 | IK38: 0.003234275335 | IL38: 0.003234275335 | IM38: 0.003234275335 | IN38: 0.003234275335 | IO38: 0.003234275335 | IP38: 0.003234275335 | IQ38: 0.003234275335 | IR38: 0.003234275335 | IS38: 0.003234275335 | IT38: 0.003234275335 | IU38: 0.003234275335 | IV38: 0.003234275335 | IW38: 0.003234275335 | IX38: 0.003234275335 | IY38: 0.003234275335 | IZ38: 0.003234275335 | JA38: 0.003234275335 | JB38: 0.003234275335 | JC38: 0.003234275335 | JD38: 0.003234275335 | JE38: 0.003234275335
D39: Inflation Index | F39: ='Operating Assumptions'!F83 -> 2014-01-01 | K39: 1 | L39: =K39*(1+L38*L12) -> 1 | M39: 1 | N39: 1 | O39: 1.001651581 | P39: 1.00330589 | Q39: 1.004962932 | R39: 1.00662271 | S39: 1.008285229 | T39: 1.009950494 | U39: 1.011618509 | V39: 1.013289279 | W39: 1.014962809 | X39: 1.016639103 | Y39: 1.018318165 | Z39: 1.02 | AA39: 1.020846129 | AB39: 1.02169296 | AC39: 1.022540493 | AD39: 1.023388729 | AE39: 1.024237669 | AF39: 1.025087313 | AG39: 1.025937662 | AH39: 1.026788717 | AI39: 1.027640477 | AJ39: 1.028492944 | AK39: 1.029346118 | AL39: 1.0302 | AM39: 1.031478981 | AN39: 1.032759549 | AO39: 1.034041707 | AP39: 1.035325458 | AQ39: 1.036610801 | AR39: 1.037897741 | AS39: 1.039186278 | AT39: 1.040476415 | AU39: 1.041768154 | AV39: 1.043061496 | AW39: 1.044356444 | AX39: 1.045653 | AY39: 1.046779097 | AZ39: 1.047906406 | BA39: 1.04903493 | BB39: 1.050164669 | BC39: 1.051295624 | BD39: 1.054695804 | BE39: 1.05810698 | BF39: 1.061529189 | BG39: 1.064962467 | BH39: 1.068406849 | BI39: 1.071862371 | BJ39: 1.075329069 | BK39: 1.078806979 | BL39: 1.082296138 | BM39: 1.085796582 | BN39: 1.089308347 | BO39: 1.09283147 | BP39: 1.096365988 | BQ39: 1.099911937 | BR39: 1.103469355 | BS39: 1.107038279 | BT39: 1.110618746 | BU39: 1.114210792 | BV39: 1.117814457 | BW39: 1.121429777 | BX39: =BW39*(1+BX38*BX12) -> 1.125056789 | BY39: 1.128695533 | BZ39: 1.132346045 | CA39: 1.136008364 | CB39: 1.139682528 | CC39: 1.143368575 | CD39: 1.147066543 | CE39: 1.150776473 | CF39: 1.1544984 | CG39: 1.158232366 | CH39: 1.161978409 | CI39: 1.165736567 | CJ39: 1.16950688 | CK39: 1.173289387 | CL39: 1.177084128 | CM39: 1.180891142 | CN39: 1.184710469 | CO39: 1.188542149 | CP39: 1.192386222 | CQ39: 1.196242727 | CR39: 1.200111705 | CS39: 1.203993197 | CT39: 1.207887242 | CU39: 1.211793882 | CV39: 1.215713157 | CW39: 1.219645108 | CX39: 1.223589777 | CY39: 1.227547203 | CZ39: 1.231517428 | DA39: 1.235500495 | DB39: 1.239496444 | DC39: 1.243505316 | DD39: 1.247527155 | DE39: 1.251562001 | DF39: 1.255609897 | DG39: 1.259670886 | DH39: 1.263745008 | DI39: 1.267832307 | DJ39: 1.271932826 | DK39: 1.276046607 | DL39: 1.280173693 | DM39: 1.284314127 | DN39: 1.288467953 | DO39: 1.292635213 | DP39: 1.296815951 | DQ39: 1.301010211 | DR39: 1.305218036 | DS39: 1.309439471 | DT39: 1.313674559 | DU39: 1.317923344 | DV39: 1.322185871 | DW39: 1.326462184 | DX39: 1.330752328 | DY39: 1.335056347 | DZ39: 1.339374287 | EA39: 1.343706192 | EB39: 1.348052108 | EC39: 1.35241208 | ED39: 1.356786153 | EE39: 1.361174373 | EF39: 1.365576785 | EG39: 1.369993437 | EH39: 1.374424373 | EI39: 1.37886964 | EJ39: =EI39*(1+EJ38*EJ12) -> 1.383329284 | EK39: 1.387803351 | EL39: 1.39229189 | EM39: 1.396794945 | EN39: 1.401312564 | EO39: 1.405844795 | EP39: 1.410391684 | EQ39: 1.414953279 | ER39: 1.419529628 | ES39: 1.424120777 | ET39: 1.428726776 | EU39: 1.433347672 | EV39: 1.437983513 | EW39: 1.442634347 | EX39: 1.447300224 | EY39: 1.451981192 | EZ39: 1.456677298 | FA39: 1.461388594 | FB39: 1.466115127 | FC39: 1.470856947 | FD39: 1.475614103 | FE39: 1.480386646 | FF39: 1.485174624 | FG39: 1.489978087 | FH39: 1.494797087 | FI39: 1.499631672 | FJ39: 1.504481894 | FK39: 1.509347802 | FL39: 1.514229449 | FM39: 1.519126884 | FN39: 1.524040158 | FO39: 1.528969324 | FP39: 1.533914432 | FQ39: 1.538875533 | FR39: 1.54385268 | FS39: 1.548845925 | FT39: 1.553855319 | FU39: 1.558880915 | FV39: 1.563922765 | FW39: 1.568980922 | FX39: 1.574055438 | FY39: 1.579146367 | FZ39: 1.584253761 | GA39: 1.589377674 | GB39: 1.594518159 | GC39: 1.59967527 | GD39: 1.60484906 | GE39: 1.610039584 | GF39: 1.615246895 | GG39: 1.620471048 | GH39: 1.625712098 | GI39: 1.630970098 | GJ39: 1.636245105 | GK39: 1.641537172 | GL39: 1.646846355 | GM39: 1.65217271 | GN39: 1.657516291 | GO39: 1.662877155 | GP39: 1.668255358 | GQ39: 1.673650955 | GR39: 1.679064003 | GS39: 1.684494558 | GT39: 1.689942677 | GU39: 1.695408417 | GV39: =GU39*(1+GV38*GV12) -> 1.700891835 | GW39: 1.706392988 | GX39: 1.711911932 | GY39: 1.717448727 | GZ39: 1.723003429 | HA39: 1.728576096 | HB39: 1.734166787 | HC39: 1.73977556 | HD39: 1.745402473 | HE39: 1.751047586 | HF39: 1.756710956 | HG39: 1.762392643 | HH39: 1.768092706 | HI39: 1.773811204 | HJ39: 1.779548198 | HK39: 1.785303747 | HL39: 1.791077911 | HM39: 1.79687075 | HN39: 1.802682325 | HO39: 1.808512696 | HP39: 1.814361924 | HQ39: 1.82023007 | HR39: 1.826117195 | HS39: 1.832023361 | HT39: 1.837948629 | HU39: 1.843893061 | HV39: 1.849856718 | HW39: 1.855839664 | HX39: 1.861841961 | HY39: 1.86786367 | HZ39: 1.873904856 | IA39: 1.87996558 | IB39: 1.886045906 | IC39: 1.892145898 | ID39: 1.898265619 | IE39: 1.904405133 | IF39: 1.910564503 | IG39: 1.916743795 | IH39: 1.922943072 | II39: 1.929162399 | IJ39: 1.935401842 | IK39: 1.941661464 | IL39: 1.947941332 | IM39: 1.95424151 | IN39: 1.960562066 | IO39: 1.966903063 | IP39: 1.973264569 | IQ39: 1.97964665 | IR39: 1.986049372 | IS39: 1.992472803 | IT39: 1.998917009 | IU39: 2.005382057 | IV39: 2.011868014 | IW39: 2.018374949 | IX39: 2.02490293 | IY39: 2.031452023 | IZ39: 2.038022298 | JA39: 2.044613824 | JB39: 2.051226668 | JC39: 2.0578609 | JD39: 2.064516588 | JE39: 2.071193803
C41: Capacity Charge | E41: RM / kW / mth | G41: annual | H41: periodic | L41: =LOOKUP(L6,'Operating Assumptions'!$H$59:$H$60,'Operating Assumptions'!$I$59:$I$60) ->  | M41: =LOOKUP(M6,'Operating Assumptions'!$H$59:$H$60,'Operating Assumptions'!$I$59:$I$60) ->  | N41: =LOOKUP(N6,'Operating Assumptions'!$H$59:$H$60,'Operating Assumptions'!$I$59:$I$60) ->  | O41: =LOOKUP(O6,'Operating Assumptions'!$H$59:$H$60,'Operating Assumptions'!$I$59:$I$60) ->  | P41: =LOOKUP(P6,'Operating Assumptions'!$H$59:$H$60,'Operating Assumptions'!$I$59:$I$60) ->  | Q41: =LOOKUP(Q6,'Operating Assumptions'!$H$59:$H$60,'Operating Assumptions'!$I$59:$I$60) ->  | R41: =LOOKUP(R6,'Operating Assumptions'!$H$59:$H$60,'Operating Assumptions'!$I$59:$I$60) ->  | S41: =LOOKUP(S6,'Operating Assumptions'!$H$59:$H$60,'Operating Assumptions'!$I$59:$I$60) ->  | T41: =LOOKUP(T6,'Operating Assumptions'!$H$59:$H$60,'Operating Assumptions'!$I$59:$I$60) ->  | U41: =LOOKUP(U6,'Operating Assumptions'!$H$59:$H$60,'Operating Assumptions'!$I$59:$I$60) ->  | V41: =LOOKUP(V6,'Operating Assumptions'!$H$59:$H$60,'Operating Assumptions'!$I$59:$I$60) ->  | W41: =LOOKUP(W6,'Operating Assumptions'!$H$59:$H$60,'Operating Assumptions'!$I$59:$I$60) ->  | X41: =LOOKUP(X6,'Operating Assumptions'!$H$59:$H$60,'Operating Assumptions'!$I$59:$I$60) ->  | Y41: =LOOKUP(Y6,'Operating Assumptions'!$H$59:$H$60,'Operating Assumptions'!$I$59:$I$60) ->  | Z41: =LOOKUP(Z6,'Operating Assumptions'!$H$59:$H$60,'Operating Assumptions'!$I$59:$I$60) ->  | AA41: =LOOKUP(AA6,'Operating Assumptions'!$H$59:$H$60,'Operating Assumptions'!$I$59:$I$60) ->  | AB41: =LOOKUP(AB6,'Operating Assumptions'!$H$59:$H$60,'Operating Assumptions'!$I$59:$I$60) ->  | AC41: =LOOKUP(AC6,'Operating Assumptions'!$H$59:$H$60,'Operating Assumptions'!$I$59:$I$60) ->  | AD41: =LOOKUP(AD6,'Operating Assumptions'!$H$59:$H$60,'Operating Assumptions'!$I$59:$I$60) ->  | AE41: =LOOKUP(AE6,'Operating Assumptions'!$H$59:$H$60,'Operating Assumptions'!$I$59:$I$60) ->  | AF41: =LOOKUP(AF6,'Operating Assumptions'!$H$59:$H$60,'Operating Assumptions'!$I$59:$I$60) ->  | AG41: =LOOKUP(AG6,'Operating Assumptions'!$H$59:$H$60,'Operating Assumptions'!$I$59:$I$60) ->  | AH41: =LOOKUP(AH6,'Operating Assumptions'!$H$59:$H$60,'Operating Assumptions'!$I$59:$I$60) ->  | AI41: =LOOKUP(AI6,'Operating Assumptions'!$H$59:$H$60,'Operating Assumptions'!$I$59:$I$60) ->  | AJ41: =LOOKUP(AJ6,'Operating Assumptions'!$H$59:$H$60,'Operating Assumptions'!$I$59:$I$60) ->  | AK41: =LOOKUP(AK6,'Operating Assumptions'!$H$59:$H$60,'Operating Assumptions'!$I$59:$I$60) ->  | AL41: =LOOKUP(AL6,'Operating Assumptions'!$H$59:$H$60,'Operating Assumptions'!$I$59:$I$60) ->  | AM41: =LOOKUP(AM6,'Operating Assumptions'!$H$59:$H$60,'Operating Assumptions'!$I$59:$I$60) ->  | AN41: =LOOKUP(AN6,'Operating Assumptions'!$H$59:$H$60,'Operating Assumptions'!$I$59:$I$60) ->  | AO41: =LOOKUP(AO6,'Operating Assumptions'!$H$59:$H$60,'Operating Assumptions'!$I$59:$I$60) ->  | AP41: =LOOKUP(AP6,'Operating Assumptions'!$H$59:$H$60,'Operating Assumptions'!$I$59:$I$60) ->  | AQ41: =LOOKUP(AQ6,'Operating Assumptions'!$H$59:$H$60,'Operating Assumptions'!$I$59:$I$60) ->  | AR41: =LOOKUP(AR6,'Operating Assumptions'!$H$59:$H$60,'Operating Assumptions'!$I$59:$I$60) ->  | AS41: =LOOKUP(AS6,'Operating Assumptions'!$H$59:$H$60,'Operating Assumptions'!$I$59:$I$60) ->  | AT41: =LOOKUP(AT6,'Operating Assumptions'!$H$59:$H$60,'Operating Assumptions'!$I$59:$I$60) ->  | AU41: =LOOKUP(AU6,'Operating Assumptions'!$H$59:$H$60,'Operating Assumptions'!$I$59:$I$60) ->  | AV41: =LOOKUP(AV6,'Operating Assumptions'!$H$59:$H$60,'Operating Assumptions'!$I$59:$I$60) ->  | AW41: =LOOKUP(AW6,'Operating Assumptions'!$H$59:$H$60,'Operating Assumptions'!$I$59:$I$60) ->  | AX41: =LOOKUP(AX6,'Operating Assumptions'!$H$59:$H$60,'Operating Assumptions'!$I$59:$I$60) ->  | AY41: =LOOKUP(AY6,'Operating Assumptions'!$H$59:$H$60,'Operating Assumptions'!$I$59:$I$60) ->  | AZ41: =LOOKUP(AZ6,'Operating Assumptions'!$H$59:$H$60,'Operating Assumptions'!$I$59:$I$60) ->  | BA41: =LOOKUP(BA6,'Operating Assumptions'!$H$59:$H$60,'Operating Assumptions'!$I$59:$I$60) ->  | BB41: =LOOKUP(BB6,'Operating Assumptions'!$H$59:$H$60,'Operating Assumptions'!$I$59:$I$60) ->  | BC41: =LOOKUP(BC6,'Operating Assumptions'!$H$59:$H$60,'Operating Assumptions'!$I$59:$I$60) ->  | BD41: =LOOKUP(BD6,'Operating Assumptions'!$H$59:$H$60,'Operating Assumptions'!$I$59:$I$60) -> 21 | BE41: =LOOKUP(BE6,'Operating Assumptions'!$H$59:$H$60,'Operating Assumptions'!$I$59:$I$60) -> 21 | BF41: =LOOKUP(BF6,'Operating Assumptions'!$H$59:$H$60,'Operating Assumptions'!$I$59:$I$60) -> 21 | BG41: =LOOKUP(BG6,'Operating Assumptions'!$H$59:$H$60,'Operating Assumptions'!$I$59:$I$60) -> 21 | BH41: =LOOKUP(BH6,'Operating Assumptions'!$H$59:$H$60,'Operating Assumptions'!$I$59:$I$60) -> 21 | BI41: =LOOKUP(BI6,'Operating Assumptions'!$H$59:$H$60,'Operating Assumptions'!$I$59:$I$60) -> 21 | BJ41: =LOOKUP(BJ6,'Operating Assumptions'!$H$59:$H$60,'Operating Assumptions'!$I$59:$I$60) -> 21 | BK41: =LOOKUP(BK6,'Operating Assumptions'!$H$59:$H$60,'Operating Assumptions'!$I$59:$I$60) -> 21 | BL41: =LOOKUP(BL6,'Operating Assumptions'!$H$59:$H$60,'Operating Assumptions'!$I$59:$I$60) -> 21 | BM41: =LOOKUP(BM6,'Operating Assumptions'!$H$59:$H$60,'Operating Assumptions'!$I$59:$I$60) -> 21 | BN41: =LOOKUP(BN6,'Operating Assumptions'!$H$59:$H$60,'Operating Assumptions'!$I$59:$I$60) -> 21 | BO41: =LOOKUP(BO6,'Operating Assumptions'!$H$59:$H$60,'Operating Assumptions'!$I$59:$I$60) -> 21 | BP41: =LOOKUP(BP6,'Operating Assumptions'!$H$59:$H$60,'Operating Assumptions'!$I$59:$I$60) -> 21 | BQ41: =LOOKUP(BQ6,'Operating Assumptions'!$H$59:$H$60,'Operating Assumptions'!$I$59:$I$60) -> 21 | BR41: =LOOKUP(BR6,'Operating Assumptions'!$H$59:$H$60,'Operating Assumptions'!$I$59:$I$60) -> 21 | BS41: =LOOKUP(BS6,'Operating Assumptions'!$H$59:$H$60,'Operating Assumptions'!$I$59:$I$60) -> 21 | BT41: =LOOKUP(BT6,'Operating Assumptions'!$H$59:$H$60,'Operating Assumptions'!$I$59:$I$60) -> 21 | BU41: =LOOKUP(BU6,'Operating Assumptions'!$H$59:$H$60,'Operating Assumptions'!$I$59:$I$60) -> 21 | BV41: =LOOKUP(BV6,'Operating Assumptions'!$H$59:$H$60,'Operating Assumptions'!$I$59:$I$60) -> 21 | BW41: =LOOKUP(BW6,'Operating Assumptions'!$H$59:$H$60,'Operating Assumptions'!$I$59:$I$60) -> 21 | BX41: =LOOKUP(BX6,'Operating Assumptions'!$H$59:$H$60,'Operating Assumptions'!$I$59:$I$60) -> 21 | BY41: =LOOKUP(BY6,'Operating Assumptions'!$H$59:$H$60,'Operating Assumptions'!$I$59:$I$60) -> 21 | BZ41: =LOOKUP(BZ6,'Operating Assumptions'!$H$59:$H$60,'Operating Assumptions'!$I$59:$I$60) -> 21 | CA41: =LOOKUP(CA6,'Operating Assumptions'!$H$59:$H$60,'Operating Assumptions'!$I$59:$I$60) -> 21 | CB41: =LOOKUP(CB6,'Operating Assumptions'!$H$59:$H$60,'Operating Assumptions'!$I$59:$I$60) -> 21 | CC41: =LOOKUP(CC6,'Operating Assumptions'!$H$59:$H$60,'Operating Assumptions'!$I$59:$I$60) -> 21 | CD41: =LOOKUP(CD6,'Operating Assumptions'!$H$59:$H$60,'Operating Assumptions'!$I$59:$I$60) -> 21 | CE41: =LOOKUP(CE6,'Operating Assumptions'!$H$59:$H$60,'Operating Assumptions'!$I$59:$I$60) -> 21 | CF41: =LOOKUP(CF6,'Operating Assumptions'!$H$59:$H$60,'Operating Assumptions'!$I$59:$I$60) -> 21 | CG41: =LOOKUP(CG6,'Operating Assumptions'!$H$59:$H$60,'Operating Assumptions'!$I$59:$I$60) -> 21 | CH41: =LOOKUP(CH6,'Operating Assumptions'!$H$59:$H$60,'Operating Assumptions'!$I$59:$I$60) -> 21 | CI41: =LOOKUP(CI6,'Operating Assumptions'!$H$59:$H$60,'Operating Assumptions'!$I$59:$I$60) -> 21 | CJ41: =LOOKUP(CJ6,'Operating Assumptions'!$H$59:$H$60,'Operating Assumptions'!$I$59:$I$60) -> 21 | CK41: =LOOKUP(CK6,'Operating Assumptions'!$H$59:$H$60,'Operating Assumptions'!$I$59:$I$60) -> 21 | CL41: =LOOKUP(CL6,'Operating Assumptions'!$H$59:$H$60,'Operating Assumptions'!$I$59:$I$60) -> 21 | CM41: =LOOKUP(CM6,'Operating Assumptions'!$H$59:$H$60,'Operating Assumptions'!$I$59:$I$60) -> 21 | CN41: =LOOKUP(CN6,'Operating Assumptions'!$H$59:$H$60,'Operating Assumptions'!$I$59:$I$60) -> 21 | CO41: =LOOKUP(CO6,'Operating Assumptions'!$H$59:$H$60,'Operating Assumptions'!$I$59:$I$60) -> 21 | CP41: =LOOKUP(CP6,'Operating Assumptions'!$H$59:$H$60,'Operating Assumptions'!$I$59:$I$60) -> 21 | CQ41: =LOOKUP(CQ6,'Operating Assumptions'!$H$59:$H$60,'Operating Assumptions'!$I$59:$I$60) -> 21 | CR41: =LOOKUP(CR6,'Operating Assumptions'!$H$59:$H$60,'Operating Assumptions'!$I$59:$I$60) -> 21 | CS41: =LOOKUP(CS6,'Operating Assumptions'!$H$59:$H$60,'Operating Assumptions'!$I$59:$I$60) -> 21 | CT41: =LOOKUP(CT6,'Operating Assumptions'!$H$59:$H$60,'Operating Assumptions'!$I$59:$I$60) -> 21 | CU41: =LOOKUP(CU6,'Operating Assumptions'!$H$59:$H$60,'Operating Assumptions'!$I$59:$I$60) -> 21 | CV41: =LOOKUP(CV6,'Operating Assumptions'!$H$59:$H$60,'Operating Assumptions'!$I$59:$I$60) -> 21 | CW41: =LOOKUP(CW6,'Operating Assumptions'!$H$59:$H$60,'Operating Assumptions'!$I$59:$I$60) -> 21 | CX41: =LOOKUP(CX6,'Operating Assumptions'!$H$59:$H$60,'Operating Assumptions'!$I$59:$I$60) -> 21 | CY41: =LOOKUP(CY6,'Operating Assumptions'!$H$59:$H$60,'Operating Assumptions'!$I$59:$I$60) -> 21 | CZ41: =LOOKUP(CZ6,'Operating Assumptions'!$H$59:$H$60,'Operating Assumptions'!$I$59:$I$60) -> 21 | DA41: =LOOKUP(DA6,'Operating Assumptions'!$H$59:$H$60,'Operating Assumptions'!$I$59:$I$60) -> 21 | DB41: =LOOKUP(DB6,'Operating Assumptions'!$H$59:$H$60,'Operating Assumptions'!$I$59:$I$60) -> 21 | DC41: =LOOKUP(DC6,'Operating Assumptions'!$H$59:$H$60,'Operating Assumptions'!$I$59:$I$60) -> 21 | DD41: =LOOKUP(DD6,'Operating Assumptions'!$H$59:$H$60,'Operating Assumptions'!$I$59:$I$60) -> 21 | DE41: =LOOKUP(DE6,'Operating Assumptions'!$H$59:$H$60,'Operating Assumptions'!$I$59:$I$60) -> 21 | DF41: =LOOKUP(DF6,'Operating Assumptions'!$H$59:$H$60,'Operating Assumptions'!$I$59:$I$60) -> 21 | DG41: =LOOKUP(DG6,'Operating Assumptions'!$H$59:$H$60,'Operating Assumptions'!$I$59:$I$60) -> 21 | DH41: =LOOKUP(DH6,'Operating Assumptions'!$H$59:$H$60,'Operating Assumptions'!$I$59:$I$60) -> 21 | DI41: =LOOKUP(DI6,'Operating Assumptions'!$H$59:$H$60,'Operating Assumptions'!$I$59:$I$60) -> 21 | DJ41: =LOOKUP(DJ6,'Operating Assumptions'!$H$59:$H$60,'Operating Assumptions'!$I$59:$I$60) -> 21 | DK41: =LOOKUP(DK6,'Operating Assumptions'!$H$59:$H$60,'Operating Assumptions'!$I$59:$I$60) -> 21 | DL41: =LOOKUP(DL6,'Operating Assumptions'!$H$59:$H$60,'Operating Assumptions'!$I$59:$I$60) -> 21 | DM41: =LOOKUP(DM6,'Operating Assumptions'!$H$59:$H$60,'Operating Assumptions'!$I$59:$I$60) -> 21 | DN41: =LOOKUP(DN6,'Operating Assumptions'!$H$59:$H$60,'Operating Assumptions'!$I$59:$I$60) -> 21 | DO41: =LOOKUP(DO6,'Operating Assumptions'!$H$59:$H$60,'Operating Assumptions'!$I$59:$I$60) -> 21 | DP41: =LOOKUP(DP6,'Operating Assumptions'!$H$59:$H$60,'Operating Assumptions'!$I$59:$I$60) -> 21 | DQ41: =LOOKUP(DQ6,'Operating Assumptions'!$H$59:$H$60,'Operating Assumptions'!$I$59:$I$60) -> 21 | DR41: =LOOKUP(DR6,'Operating Assumptions'!$H$59:$H$60,'Operating Assumptions'!$I$59:$I$60) -> 21 | DS41: =LOOKUP(DS6,'Operating Assumptions'!$H$59:$H$60,'Operating Assumptions'!$I$59:$I$60) -> 21 | DT41: =LOOKUP(DT6,'Operating Assumptions'!$H$59:$H$60,'Operating Assumptions'!$I$59:$I$60) -> 21 | DU41: =LOOKUP(DU6,'Operating Assumptions'!$H$59:$H$60,'Operating Assumptions'!$I$59:$I$60) -> 21 | DV41: =LOOKUP(DV6,'Operating Assumptions'!$H$59:$H$60,'Operating Assumptions'!$I$59:$I$60) -> 21 | DW41: =LOOKUP(DW6,'Operating Assumptions'!$H$59:$H$60,'Operating Assumptions'!$I$59:$I$60) -> 21 | DX41: =LOOKUP(DX6,'Operating Assumptions'!$H$59:$H$60,'Operating Assumptions'!$I$59:$I$60) -> 21 | DY41: =LOOKUP(DY6,'Operating Assumptions'!$H$59:$H$60,'Operating Assumptions'!$I$59:$I$60) -> 21 | DZ41: =LOOKUP(DZ6,'Operating Assumptions'!$H$59:$H$60,'Operating Assumptions'!$I$59:$I$60) -> 21 | EA41: =LOOKUP(EA6,'Operating Assumptions'!$H$59:$H$60,'Operating Assumptions'!$I$59:$I$60) -> 21 | EB41: =LOOKUP(EB6,'Operating Assumptions'!$H$59:$H$60,'Operating Assumptions'!$I$59:$I$60) -> 21 | EC41: =LOOKUP(EC6,'Operating Assumptions'!$H$59:$H$60,'Operating Assumptions'!$I$59:$I$60) -> 21 | ED41: =LOOKUP(ED6,'Operating Assumptions'!$H$59:$H$60,'Operating Assumptions'!$I$59:$I$60) -> 21 | EE41: =LOOKUP(EE6,'Operating Assumptions'!$H$59:$H$60,'Operating Assumptions'!$I$59:$I$60) -> 21 | EF41: =LOOKUP(EF6,'Operating Assumptions'!$H$59:$H$60,'Operating Assumptions'!$I$59:$I$60) -> 21 | EG41: =LOOKUP(EG6,'Operating Assumptions'!$H$59:$H$60,'Operating Assumptions'!$I$59:$I$60) -> 21 | EH41: =LOOKUP(EH6,'Operating Assumptions'!$H$59:$H$60,'Operating Assumptions'!$I$59:$I$60) -> 21 | EI41: =LOOKUP(EI6,'Operating Assumptions'!$H$59:$H$60,'Operating Assumptions'!$I$59:$I$60) -> 21 | EJ41: =LOOKUP(EJ6,'Operating Assumptions'!$H$59:$H$60,'Operating Assumptions'!$I$59:$I$60) -> 21 | EK41: =LOOKUP(EK6,'Operating Assumptions'!$H$59:$H$60,'Operating Assumptions'!$I$59:$I$60) -> 21 | EL41: =LOOKUP(EL6,'Operating Assumptions'!$H$59:$H$60,'Operating Assumptions'!$I$59:$I$60) -> 21 | EM41: =LOOKUP(EM6,'Operating Assumptions'!$H$59:$H$60,'Operating Assumptions'!$I$59:$I$60) -> 21 | EN41: =LOOKUP(EN6,'Operating Assumptions'!$H$59:$H$60,'Operating Assumptions'!$I$59:$I$60) -> 21 | EO41: =LOOKUP(EO6,'Operating Assumptions'!$H$59:$H$60,'Operating Assumptions'!$I$59:$I$60) -> 21 | EP41: =LOOKUP(EP6,'Operating Assumptions'!$H$59:$H$60,'Operating Assumptions'!$I$59:$I$60) -> 21 | EQ41: =LOOKUP(EQ6,'Operating Assumptions'!$H$59:$H$60,'Operating Assumptions'!$I$59:$I$60) -> 21 | ER41: =LOOKUP(ER6,'Operating Assumptions'!$H$59:$H$60,'Operating Assumptions'!$I$59:$I$60) -> 21 | ES41: =LOOKUP(ES6,'Operating Assumptions'!$H$59:$H$60,'Operating Assumptions'!$I$59:$I$60) -> 21 | ET41: =LOOKUP(ET6,'Operating Assumptions'!$H$59:$H$60,'Operating Assumptions'!$I$59:$I$60) -> 21 | EU41: =LOOKUP(EU6,'Operating Assumptions'!$H$59:$H$60,'Operating Assumptions'!$I$59:$I$60) -> 21 | EV41: =LOOKUP(EV6,'Operating Assumptions'!$H$59:$H$60,'Operating Assumptions'!$I$59:$I$60) -> 21 | EW41: =LOOKUP(EW6,'Operating Assumptions'!$H$59:$H$60,'Operating Assumptions'!$I$59:$I$60) -> 21 | EX41: =LOOKUP(EX6,'Operating Assumptions'!$H$59:$H$60,'Operating Assumptions'!$I$59:$I$60) -> 21 | EY41: =LOOKUP(EY6,'Operating Assumptions'!$H$59:$H$60,'Operating Assumptions'!$I$59:$I$60) -> 21 | EZ41: =LOOKUP(EZ6,'Operating Assumptions'!$H$59:$H$60,'Operating Assumptions'!$I$59:$I$60) -> 21 | FA41: =LOOKUP(FA6,'Operating Assumptions'!$H$59:$H$60,'Operating Assumptions'!$I$59:$I$60) -> 21 | FB41: =LOOKUP(FB6,'Operating Assumptions'!$H$59:$H$60,'Operating Assumptions'!$I$59:$I$60) -> 21 | FC41: =LOOKUP(FC6,'Operating Assumptions'!$H$59:$H$60,'Operating Assumptions'!$I$59:$I$60) -> 21 | FD41: =LOOKUP(FD6,'Operating Assumptions'!$H$59:$H$60,'Operating Assumptions'!$I$59:$I$60) -> 21 | FE41: =LOOKUP(FE6,'Operating Assumptions'!$H$59:$H$60,'Operating Assumptions'!$I$59:$I$60) -> 21 | FF41: =LOOKUP(FF6,'Operating Assumptions'!$H$59:$H$60,'Operating Assumptions'!$I$59:$I$60) -> 21 | FG41: =LOOKUP(FG6,'Operating Assumptions'!$H$59:$H$60,'Operating Assumptions'!$I$59:$I$60) -> 21 | FH41: =LOOKUP(FH6,'Operating Assumptions'!$H$59:$H$60,'Operating Assumptions'!$I$59:$I$60) -> 21 | FI41: =LOOKUP(FI6,'Operating Assumptions'!$H$59:$H$60,'Operating Assumptions'!$I$59:$I$60) -> 21 | FJ41: =LOOKUP(FJ6,'Operating Assumptions'!$H$59:$H$60,'Operating Assumptions'!$I$59:$I$60) -> 21 | FK41: =LOOKUP(FK6,'Operating Assumptions'!$H$59:$H$60,'Operating Assumptions'!$I$59:$I$60) -> 21 | FL41: =LOOKUP(FL6,'Operating Assumptions'!$H$59:$H$60,'Operating Assumptions'!$I$59:$I$60) -> 21 | FM41: =LOOKUP(FM6,'Operating Assumptions'!$H$59:$H$60,'Operating Assumptions'!$I$59:$I$60) -> 21 | FN41: =LOOKUP(FN6,'Operating Assumptions'!$H$59:$H$60,'Operating Assumptions'!$I$59:$I$60) -> 21 | FO41: =LOOKUP(FO6,'Operating Assumptions'!$H$59:$H$60,'Operating Assumptions'!$I$59:$I$60) -> 21 | FP41: =LOOKUP(FP6,'Operating Assumptions'!$H$59:$H$60,'Operating Assumptions'!$I$59:$I$60) -> 21 | FQ41: =LOOKUP(FQ6,'Operating Assumptions'!$H$59:$H$60,'Operating Assumptions'!$I$59:$I$60) -> 21 | FR41: =LOOKUP(FR6,'Operating Assumptions'!$H$59:$H$60,'Operating Assumptions'!$I$59:$I$60) -> 21 | FS41: =LOOKUP(FS6,'Operating Assumptions'!$H$59:$H$60,'Operating Assumptions'!$I$59:$I$60) -> 21 | FT41: =LOOKUP(FT6,'Operating Assumptions'!$H$59:$H$60,'Operating Assumptions'!$I$59:$I$60) -> 21 | FU41: =LOOKUP(FU6,'Operating Assumptions'!$H$59:$H$60,'Operating Assumptions'!$I$59:$I$60) -> 21 | FV41: =LOOKUP(FV6,'Operating Assumptions'!$H$59:$H$60,'Operating Assumptions'!$I$59:$I$60) -> 21 | FW41: =LOOKUP(FW6,'Operating Assumptions'!$H$59:$H$60,'Operating Assumptions'!$I$59:$I$60) -> 21 | FX41: =LOOKUP(FX6,'Operating Assumptions'!$H$59:$H$60,'Operating Assumptions'!$I$59:$I$60) -> 21 | FY41: =LOOKUP(FY6,'Operating Assumptions'!$H$59:$H$60,'Operating Assumptions'!$I$59:$I$60) -> 21 | FZ41: =LOOKUP(FZ6,'Operating Assumptions'!$H$59:$H$60,'Operating Assumptions'!$I$59:$I$60) -> 21 | GA41: =LOOKUP(GA6,'Operating Assumptions'!$H$59:$H$60,'Operating Assumptions'!$I$59:$I$60) -> 21 | GB41: =LOOKUP(GB6,'Operating Assumptions'!$H$59:$H$60,'Operating Assumptions'!$I$59:$I$60) -> 21 | GC41: =LOOKUP(GC6,'Operating Assumptions'!$H$59:$H$60,'Operating Assumptions'!$I$59:$I$60) -> 21 | GD41: =LOOKUP(GD6,'Operating Assumptions'!$H$59:$H$60,'Operating Assumptions'!$I$59:$I$60) -> 21 | GE41: =LOOKUP(GE6,'Operating Assumptions'!$H$59:$H$60,'Operating Assumptions'!$I$59:$I$60) -> 21 | GF41: =LOOKUP(GF6,'Operating Assumptions'!$H$59:$H$60,'Operating Assumptions'!$I$59:$I$60) -> 21 | GG41: =LOOKUP(GG6,'Operating Assumptions'!$H$59:$H$60,'Operating Assumptions'!$I$59:$I$60) -> 21 | GH41: =LOOKUP(GH6,'Operating Assumptions'!$H$59:$H$60,'Operating Assumptions'!$I$59:$I$60) -> 21 | GI41: =LOOKUP(GI6,'Operating Assumptions'!$H$59:$H$60,'Operating Assumptions'!$I$59:$I$60) -> 21 | GJ41: =LOOKUP(GJ6,'Operating Assumptions'!$H$59:$H$60,'Operating Assumptions'!$I$59:$I$60) -> 21 | GK41: =LOOKUP(GK6,'Operating Assumptions'!$H$59:$H$60,'Operating Assumptions'!$I$59:$I$60) -> 21 | GL41: =LOOKUP(GL6,'Operating Assumptions'!$H$59:$H$60,'Operating Assumptions'!$I$59:$I$60) -> 21 | GM41: =LOOKUP(GM6,'Operating Assumptions'!$H$59:$H$60,'Operating Assumptions'!$I$59:$I$60) -> 21 | GN41: =LOOKUP(GN6,'Operating Assumptions'!$H$59:$H$60,'Operating Assumptions'!$I$59:$I$60) -> 21 | GO41: =LOOKUP(GO6,'Operating Assumptions'!$H$59:$H$60,'Operating Assumptions'!$I$59:$I$60) -> 21 | GP41: =LOOKUP(GP6,'Operating Assumptions'!$H$59:$H$60,'Operating Assumptions'!$I$59:$I$60) -> 21 | GQ41: =LOOKUP(GQ6,'Operating Assumptions'!$H$59:$H$60,'Operating Assumptions'!$I$59:$I$60) -> 21 | GR41: =LOOKUP(GR6,'Operating Assumptions'!$H$59:$H$60,'Operating Assumptions'!$I$59:$I$60) -> 21 | GS41: =LOOKUP(GS6,'Operating Assumptions'!$H$59:$H$60,'Operating Assumptions'!$I$59:$I$60) -> 21 | GT41: =LOOKUP(GT6,'Operating Assumptions'!$H$59:$H$60,'Operating Assumptions'!$I$59:$I$60) -> 21 | GU41: =LOOKUP(GU6,'Operating Assumptions'!$H$59:$H$60,'Operating Assumptions'!$I$59:$I$60) -> 21 | GV41: =LOOKUP(GV6,'Operating Assumptions'!$H$59:$H$60,'Operating Assumptions'!$I$59:$I$60) -> 21 | GW41: =LOOKUP(GW6,'Operating Assumptions'!$H$59:$H$60,'Operating Assumptions'!$I$59:$I$60) -> 21 | GX41: =LOOKUP(GX6,'Operating Assumptions'!$H$59:$H$60,'Operating Assumptions'!$I$59:$I$60) -> 21 | GY41: =LOOKUP(GY6,'Operating Assumptions'!$H$59:$H$60,'Operating Assumptions'!$I$59:$I$60) -> 21 | GZ41: =LOOKUP(GZ6,'Operating Assumptions'!$H$59:$H$60,'Operating Assumptions'!$I$59:$I$60) -> 21 | HA41: =LOOKUP(HA6,'Operating Assumptions'!$H$59:$H$60,'Operating Assumptions'!$I$59:$I$60) -> 21 | HB41: =LOOKUP(HB6,'Operating Assumptions'!$H$59:$H$60,'Operating Assumptions'!$I$59:$I$60) -> 21 | HC41: =LOOKUP(HC6,'Operating Assumptions'!$H$59:$H$60,'Operating Assumptions'!$I$59:$I$60) -> 21 | HD41: =LOOKUP(HD6,'Operating Assumptions'!$H$59:$H$60,'Operating Assumptions'!$I$59:$I$60) -> 21 | HE41: =LOOKUP(HE6,'Operating Assumptions'!$H$59:$H$60,'Operating Assumptions'!$I$59:$I$60) -> 21 | HF41: =LOOKUP(HF6,'Operating Assumptions'!$H$59:$H$60,'Operating Assumptions'!$I$59:$I$60) -> 21 | HG41: =LOOKUP(HG6,'Operating Assumptions'!$H$59:$H$60,'Operating Assumptions'!$I$59:$I$60) -> 21 | HH41: =LOOKUP(HH6,'Operating Assumptions'!$H$59:$H$60,'Operating Assumptions'!$I$59:$I$60) -> 21 | HI41: =LOOKUP(HI6,'Operating Assumptions'!$H$59:$H$60,'Operating Assumptions'!$I$59:$I$60) -> 21 | HJ41: =LOOKUP(HJ6,'Operating Assumptions'!$H$59:$H$60,'Operating Assumptions'!$I$59:$I$60) -> 21 | HK41: =LOOKUP(HK6,'Operating Assumptions'!$H$59:$H$60,'Operating Assumptions'!$I$59:$I$60) -> 21 | HL41: =LOOKUP(HL6,'Operating Assumptions'!$H$59:$H$60,'Operating Assumptions'!$I$59:$I$60) -> 21 | HM41: =LOOKUP(HM6,'Operating Assumptions'!$H$59:$H$60,'Operating Assumptions'!$I$59:$I$60) -> 21 | HN41: =LOOKUP(HN6,'Operating Assumptions'!$H$59:$H$60,'Operating Assumptions'!$I$59:$I$60) -> 21 | HO41: =LOOKUP(HO6,'Operating Assumptions'!$H$59:$H$60,'Operating Assumptions'!$I$59:$I$60) -> 21 | HP41: =LOOKUP(HP6,'Operating Assumptions'!$H$59:$H$60,'Operating Assumptions'!$I$59:$I$60) -> 21 | HQ41: =LOOKUP(HQ6,'Operating Assumptions'!$H$59:$H$60,'Operating Assumptions'!$I$59:$I$60) -> 21 | HR41: =LOOKUP(HR6,'Operating Assumptions'!$H$59:$H$60,'Operating Assumptions'!$I$59:$I$60) -> 21 | HS41: =LOOKUP(HS6,'Operating Assumptions'!$H$59:$H$60,'Operating Assumptions'!$I$59:$I$60) -> 21 | HT41: =LOOKUP(HT6,'Operating Assumptions'!$H$59:$H$60,'Operating Assumptions'!$I$59:$I$60) -> 21 | HU41: =LOOKUP(HU6,'Operating Assumptions'!$H$59:$H$60,'Operating Assumptions'!$I$59:$I$60) -> 21 | HV41: =LOOKUP(HV6,'Operating Assumptions'!$H$59:$H$60,'Operating Assumptions'!$I$59:$I$60) -> 21 | HW41: =LOOKUP(HW6,'Operating Assumptions'!$H$59:$H$60,'Operating Assumptions'!$I$59:$I$60) -> 21 | HX41: =LOOKUP(HX6,'Operating Assumptions'!$H$59:$H$60,'Operating Assumptions'!$I$59:$I$60) -> 21 | HY41: =LOOKUP(HY6,'Operating Assumptions'!$H$59:$H$60,'Operating Assumptions'!$I$59:$I$60) -> 21 | HZ41: =LOOKUP(HZ6,'Operating Assumptions'!$H$59:$H$60,'Operating Assumptions'!$I$59:$I$60) -> 21 | IA41: =LOOKUP(IA6,'Operating Assumptions'!$H$59:$H$60,'Operating Assumptions'!$I$59:$I$60) -> 21 | IB41: =LOOKUP(IB6,'Operating Assumptions'!$H$59:$H$60,'Operating Assumptions'!$I$59:$I$60) -> 21 | IC41: =LOOKUP(IC6,'Operating Assumptions'!$H$59:$H$60,'Operating Assumptions'!$I$59:$I$60) -> 21 | ID41: =LOOKUP(ID6,'Operating Assumptions'!$H$59:$H$60,'Operating Assumptions'!$I$59:$I$60) -> 21 | IE41: =LOOKUP(IE6,'Operating Assumptions'!$H$59:$H$60,'Operating Assumptions'!$I$59:$I$60) -> 21 | IF41: =LOOKUP(IF6,'Operating Assumptions'!$H$59:$H$60,'Operating Assumptions'!$I$59:$I$60) -> 21 | IG41: =LOOKUP(IG6,'Operating Assumptions'!$H$59:$H$60,'Operating Assumptions'!$I$59:$I$60) -> 21 | IH41: =LOOKUP(IH6,'Operating Assumptions'!$H$59:$H$60,'Operating Assumptions'!$I$59:$I$60) -> 21 | II41: =LOOKUP(II6,'Operating Assumptions'!$H$59:$H$60,'Operating Assumptions'!$I$59:$I$60) -> 21 | IJ41: =LOOKUP(IJ6,'Operating Assumptions'!$H$59:$H$60,'Operating Assumptions'!$I$59:$I$60) -> 21 | IK41: =LOOKUP(IK6,'Operating Assumptions'!$H$59:$H$60,'Operating Assumptions'!$I$59:$I$60) -> 21 | IL41: =LOOKUP(IL6,'Operating Assumptions'!$H$59:$H$60,'Operating Assumptions'!$I$59:$I$60) -> 21 | IM41: =LOOKUP(IM6,'Operating Assumptions'!$H$59:$H$60,'Operating Assumptions'!$I$59:$I$60) -> 21 | IN41: =LOOKUP(IN6,'Operating Assumptions'!$H$59:$H$60,'Operating Assumptions'!$I$59:$I$60) -> 21 | IO41: =LOOKUP(IO6,'Operating Assumptions'!$H$59:$H$60,'Operating Assumptions'!$I$59:$I$60) -> 21 | IP41: =LOOKUP(IP6,'Operating Assumptions'!$H$59:$H$60,'Operating Assumptions'!$I$59:$I$60) -> 21 | IQ41: =LOOKUP(IQ6,'Operating Assumptions'!$H$59:$H$60,'Operating Assumptions'!$I$59:$I$60) -> 21 | IR41: =LOOKUP(IR6,'Operating Assumptions'!$H$59:$H$60,'Operating Assumptions'!$I$59:$I$60) -> 21 | IS41: =LOOKUP(IS6,'Operating Assumptions'!$H$59:$H$60,'Operating Assumptions'!$I$59:$I$60) -> 21 | IT41: =LOOKUP(IT6,'Operating Assumptions'!$H$59:$H$60,'Operating Assumptions'!$I$59:$I$60) -> 21 | IU41: =LOOKUP(IU6,'Operating Assumptions'!$H$59:$H$60,'Operating Assumptions'!$I$59:$I$60) -> 21 | IV41: =LOOKUP(IV6,'Operating Assumptions'!$H$59:$H$60,'Operating Assumptions'!$I$59:$I$60) -> 21 | IW41: =LOOKUP(IW6,'Operating Assumptions'!$H$59:$H$60,'Operating Assumptions'!$I$59:$I$60) -> 21 | IX41: =LOOKUP(IX6,'Operating Assumptions'!$H$59:$H$60,'Operating Assumptions'!$I$59:$I$60) -> 21 | IY41: =LOOKUP(IY6,'Operating Assumptions'!$H$59:$H$60,'Operating Assumptions'!$I$59:$I$60) -> 21 | IZ41: =LOOKUP(IZ6,'Operating Assumptions'!$H$59:$H$60,'Operating Assumptions'!$I$59:$I$60) -> 21 | JA41: =LOOKUP(JA6,'Operating Assumptions'!$H$59:$H$60,'Operating Assumptions'!$I$59:$I$60) -> 21 | JB41: =LOOKUP(JB6,'Operating Assumptions'!$H$59:$H$60,'Operating Assumptions'!$I$59:$I$60) -> 21 | JC41: =LOOKUP(JC6,'Operating Assumptions'!$H$59:$H$60,'Operating Assumptions'!$I$59:$I$60) -> 21 | JD41: =LOOKUP(JD6,'Operating Assumptions'!$H$59:$H$60,'Operating Assumptions'!$I$59:$I$60) -> 21 | JE41: =LOOKUP(JE6,'Operating Assumptions'!$H$59:$H$60,'Operating Assumptions'!$I$59:$I$60) -> 21
C42: Capacity Charge Revenue | F42: RM '000 | L42: =IFERROR(L41*L17*L4,0) -> 0 | M42: 0 | N42: 0 | O42: 0 | P42: 0 | Q42: 0 | R42: 0 | S42: 0 | T42: 0 | U42: 0 | V42: 0 | W42: 0 | X42: 0 | Y42: 0 | Z42: 0 | AA42: 0 | AB42: 0 | AC42: 0 | AD42: 0 | AE42: 0 | AF42: 0 | AG42: 0 | AH42: 0 | AI42: 0 | AJ42: 0 | AK42: 0 | AL42: 0 | AM42: 0 | AN42: 0 | AO42: 0 | AP42: 0 | AQ42: 0 | AR42: 0 | AS42: 0 | AT42: 0 | AU42: 0 | AV42: 0 | AW42: 0 | AX42: 0 | AY42: 0 | AZ42: 0 | BA42: 0 | BB42: 0 | BC42: 0 | BD42: 63000 | BE42: 63000 | BF42: 63000 | BG42: 63000 | BH42: 63000 | BI42: 63000 | BJ42: 63000 | BK42: 63000 | BL42: 63000 | BM42: 63000 | BN42: 63000 | BO42: 63000 | BP42: 63000 | BQ42: 63000 | BR42: 63000 | BS42: 63000 | BT42: 63000 | BU42: 63000 | BV42: 63000 | BW42: 63000 | BX42: =IFERROR(BX41*BX17*BX4,0) -> 63000 | BY42: 63000 | BZ42: 63000 | CA42: 63000 | CB42: 63000 | CC42: 63000 | CD42: 63000 | CE42: 63000 | CF42: 63000 | CG42: 63000 | CH42: 63000 | CI42: 63000 | CJ42: 63000 | CK42: 63000 | CL42: 63000 | CM42: 63000 | CN42: 63000 | CO42: 63000 | CP42: 63000 | CQ42: 63000 | CR42: 63000 | CS42: 63000 | CT42: 63000 | CU42: 63000 | CV42: 63000 | CW42: 63000 | CX42: 63000 | CY42: 63000 | CZ42: 63000 | DA42: 63000 | DB42: 63000 | DC42: 63000 | DD42: 63000 | DE42: 63000 | DF42: 63000 | DG42: 63000 | DH42: 63000 | DI42: 63000 | DJ42: 63000 | DK42: 63000 | DL42: 63000 | DM42: 63000 | DN42: 63000 | DO42: 63000 | DP42: 63000 | DQ42: 63000 | DR42: 63000 | DS42: 63000 | DT42: 63000 | DU42: 63000 | DV42: 63000 | DW42: 63000 | DX42: 63000 | DY42: 63000 | DZ42: 63000 | EA42: 63000 | EB42: 63000 | EC42: 63000 | ED42: 63000 | EE42: 63000 | EF42: 63000 | EG42: 63000 | EH42: 63000 | EI42: 63000 | EJ42: =IFERROR(EJ41*EJ17*EJ4,0) -> 63000 | EK42: 63000 | EL42: 63000 | EM42: 63000 | EN42: 63000 | EO42: 63000 | EP42: 63000 | EQ42: 63000 | ER42: 63000 | ES42: 63000 | ET42: 63000 | EU42: 63000 | EV42: 63000 | EW42: 63000 | EX42: 63000 | EY42: 63000 | EZ42: 0 | FA42: 0 | FB42: 0 | FC42: 0 | FD42: 0 | FE42: 0 | FF42: 0 | FG42: 0 | FH42: 0 | FI42: 0 | FJ42: 0 | FK42: 0 | FL42: 0 | FM42: 0 | FN42: 0 | FO42: 0 | FP42: 0 | FQ42: 0 | FR42: 0 | FS42: 0 | FT42: 0 | FU42: 0 | FV42: 0 | FW42: 0 | FX42: 0 | FY42: 0 | FZ42: 0 | GA42: 0 | GB42: 0 | GC42: 0 | GD42: 0 | GE42: 0 | GF42: 0 | GG42: 0 | GH42: 0 | GI42: 0 | GJ42: 0 | GK42: 0 | GL42: 0 | GM42: 0 | GN42: 0 | GO42: 0 | GP42: 0 | GQ42: 0 | GR42: 0 | GS42: 0 | GT42: 0 | GU42: 0 | GV42: =IFERROR(GV41*GV17*GV4,0) -> 0 | GW42: 0 | GX42: 0 | GY42: 0 | GZ42: 0 | HA42: 0 | HB42: 0 | HC42: 0 | HD42: 0 | HE42: 0 | HF42: 0 | HG42: 0 | HH42: 0 | HI42: 0 | HJ42: 0 | HK42: 0 | HL42: 0 | HM42: 0 | HN42: 0 | HO42: 0 | HP42: 0 | HQ42: 0 | HR42: 0 | HS42: 0 | HT42: 0 | HU42: 0 | HV42: 0 | HW42: 0 | HX42: 0 | HY42: 0 | HZ42: 0 | IA42: 0 | IB42: 0 | IC42: 0 | ID42: 0 | IE42: 0 | IF42: 0 | IG42: 0 | IH42: 0 | II42: 0 | IJ42: 0 | IK42: 0 | IL42: 0 | IM42: 0 | IN42: 0 | IO42: 0 | IP42: 0 | IQ42: 0 | IR42: 0 | IS42: 0 | IT42: 0 | IU42: 0 | IV42: 0 | IW42: 0 | IX42: 0 | IY42: 0 | IZ42: 0 | JA42: 0 | JB42: 0 | JC42: 0 | JD42: 0 | JE42: 0
C44: Availability Penalty/Bonus
D45: Target Availability | H45: ='Operating Assumptions'!F63 -> 0.85 | L45: =$H$45 -> 0.85 | M45: =$H$45 -> 0.85 | N45: 0.85 | O45: 0.85 | P45: 0.85 | Q45: 0.85 | R45: 0.85 | S45: 0.85 | T45: 0.85 | U45: 0.85 | V45: 0.85 | W45: 0.85 | X45: 0.85 | Y45: 0.85 | Z45: 0.85 | AA45: 0.85 | AB45: 0.85 | AC45: 0.85 | AD45: 0.85 | AE45: 0.85 | AF45: 0.85 | AG45: 0.85 | AH45: 0.85 | AI45: 0.85 | AJ45: 0.85 | AK45: 0.85 | AL45: 0.85 | AM45: 0.85 | AN45: 0.85 | AO45: 0.85 | AP45: 0.85 | AQ45: 0.85 | AR45: 0.85 | AS45: 0.85 | AT45: 0.85 | AU45: 0.85 | AV45: 0.85 | AW45: 0.85 | AX45: 0.85 | AY45: 0.85 | AZ45: 0.85 | BA45: 0.85 | BB45: 0.85 | BC45: 0.85 | BD45: 0.85 | BE45: 0.85 | BF45: 0.85 | BG45: 0.85 | BH45: 0.85 | BI45: 0.85 | BJ45: 0.85 | BK45: 0.85 | BL45: 0.85 | BM45: 0.85 | BN45: 0.85 | BO45: 0.85 | BP45: 0.85 | BQ45: 0.85 | BR45: 0.85 | BS45: 0.85 | BT45: 0.85 | BU45: 0.85 | BV45: 0.85 | BW45: 0.85 | BX45: 0.85 | BY45: =$H$45 -> 0.85 | BZ45: 0.85 | CA45: 0.85 | CB45: 0.85 | CC45: 0.85 | CD45: 0.85 | CE45: 0.85 | CF45: 0.85 | CG45: 0.85 | CH45: 0.85 | CI45: 0.85 | CJ45: 0.85 | CK45: 0.85 | CL45: 0.85 | CM45: 0.85 | CN45: 0.85 | CO45: 0.85 | CP45: 0.85 | CQ45: 0.85 | CR45: 0.85 | CS45: 0.85 | CT45: 0.85 | CU45: 0.85 | CV45: 0.85 | CW45: 0.85 | CX45: 0.85 | CY45: 0.85 | CZ45: 0.85 | DA45: 0.85 | DB45: 0.85 | DC45: 0.85 | DD45: 0.85 | DE45: 0.85 | DF45: 0.85 | DG45: 0.85 | DH45: 0.85 | DI45: 0.85 | DJ45: 0.85 | DK45: 0.85 | DL45: 0.85 | DM45: 0.85 | DN45: 0.85 | DO45: 0.85 | DP45: 0.85 | DQ45: 0.85 | DR45: 0.85 | DS45: 0.85 | DT45: 0.85 | DU45: 0.85 | DV45: 0.85 | DW45: 0.85 | DX45: 0.85 | DY45: 0.85 | DZ45: 0.85 | EA45: 0.85 | EB45: 0.85 | EC45: 0.85 | ED45: 0.85 | EE45: 0.85 | EF45: 0.85 | EG45: 0.85 | EH45: 0.85 | EI45: 0.85 | EJ45: 0.85 | EK45: =$H$45 -> 0.85 | EL45: 0.85 | EM45: 0.85 | EN45: 0.85 | EO45: 0.85 | EP45: 0.85 | EQ45: 0.85 | ER45: 0.85 | ES45: 0.85 | ET45: 0.85 | EU45: 0.85 | EV45: 0.85 | EW45: 0.85 | EX45: 0.85 | EY45: 0.85 | EZ45: 0.85 | FA45: 0.85 | FB45: 0.85 | FC45: 0.85 | FD45: 0.85 | FE45: 0.85 | FF45: 0.85 | FG45: 0.85 | FH45: 0.85 | FI45: 0.85 | FJ45: 0.85 | FK45: 0.85 | FL45: 0.85 | FM45: 0.85 | FN45: 0.85 | FO45: 0.85 | FP45: 0.85 | FQ45: 0.85 | FR45: 0.85 | FS45: 0.85 | FT45: 0.85 | FU45: 0.85 | FV45: 0.85 | FW45: 0.85 | FX45: 0.85 | FY45: 0.85 | FZ45: 0.85 | GA45: 0.85 | GB45: 0.85 | GC45: 0.85 | GD45: 0.85 | GE45: 0.85 | GF45: 0.85 | GG45: 0.85 | GH45: 0.85 | GI45: 0.85 | GJ45: 0.85 | GK45: 0.85 | GL45: 0.85 | GM45: 0.85 | GN45: 0.85 | GO45: 0.85 | GP45: 0.85 | GQ45: 0.85 | GR45: 0.85 | GS45: 0.85 | GT45: 0.85 | GU45: 0.85 | GV45: 0.85 | GW45: =$H$45 -> 0.85 | GX45: 0.85 | GY45: 0.85 | GZ45: 0.85 | HA45: 0.85 | HB45: 0.85 | HC45: 0.85 | HD45: 0.85 | HE45: 0.85 | HF45: 0.85 | HG45: 0.85 | HH45: 0.85 | HI45: 0.85 | HJ45: 0.85 | HK45: 0.85 | HL45: 0.85 | HM45: 0.85 | HN45: 0.85 | HO45: 0.85 | HP45: 0.85 | HQ45: 0.85 | HR45: 0.85 | HS45: 0.85 | HT45: 0.85 | HU45: 0.85 | HV45: 0.85 | HW45: 0.85 | HX45: 0.85 | HY45: 0.85 | HZ45: 0.85 | IA45: 0.85 | IB45: 0.85 | IC45: 0.85 | ID45: 0.85 | IE45: 0.85 | IF45: 0.85 | IG45: 0.85 | IH45: 0.85 | II45: 0.85 | IJ45: 0.85 | IK45: 0.85 | IL45: 0.85 | IM45: 0.85 | IN45: 0.85 | IO45: 0.85 | IP45: 0.85 | IQ45: 0.85 | IR45: 0.85 | IS45: 0.85 | IT45: 0.85 | IU45: 0.85 | IV45: 0.85 | IW45: 0.85 | IX45: 0.85 | IY45: 0.85 | IZ45: 0.85 | JA45: 0.85 | JB45: 0.85 | JC45: 0.85 | JD45: 0.85 | JE45: 0.85
D46: Actual Availability | H46: ='Operating Assumptions'!F64 -> 0.85 | L46: =$H$46 -> 0.85 | M46: =$H$46 -> 0.85 | N46: 0.85 | O46: 0.85 | P46: 0.85 | Q46: 0.85 | R46: 0.85 | S46: 0.85 | T46: 0.85 | U46: 0.85 | V46: 0.85 | W46: 0.85 | X46: 0.85 | Y46: 0.85 | Z46: 0.85 | AA46: 0.85 | AB46: 0.85 | AC46: 0.85 | AD46: 0.85 | AE46: 0.85 | AF46: 0.85 | AG46: 0.85 | AH46: 0.85 | AI46: 0.85 | AJ46: 0.85 | AK46: 0.85 | AL46: 0.85 | AM46: 0.85 | AN46: 0.85 | AO46: 0.85 | AP46: 0.85 | AQ46: 0.85 | AR46: 0.85 | AS46: 0.85 | AT46: 0.85 | AU46: 0.85 | AV46: 0.85 | AW46: 0.85 | AX46: 0.85 | AY46: 0.85 | AZ46: 0.85 | BA46: 0.85 | BB46: 0.85 | BC46: 0.85 | BD46: 0.85 | BE46: 0.85 | BF46: 0.85 | BG46: 0.85 | BH46: 0.85 | BI46: 0.85 | BJ46: 0.85 | BK46: 0.85 | BL46: 0.85 | BM46: 0.85 | BN46: 0.85 | BO46: 0.85 | BP46: 0.85 | BQ46: 0.85 | BR46: 0.85 | BS46: 0.85 | BT46: 0.85 | BU46: 0.85 | BV46: 0.85 | BW46: 0.85 | BX46: 0.85 | BY46: =$H$46 -> 0.85 | BZ46: 0.85 | CA46: 0.85 | CB46: 0.85 | CC46: 0.85 | CD46: 0.85 | CE46: 0.85 | CF46: 0.85 | CG46: 0.85 | CH46: 0.85 | CI46: 0.85 | CJ46: 0.85 | CK46: 0.85 | CL46: 0.85 | CM46: 0.85 | CN46: 0.85 | CO46: 0.85 | CP46: 0.85 | CQ46: 0.85 | CR46: 0.85 | CS46: 0.85 | CT46: 0.85 | CU46: 0.85 | CV46: 0.85 | CW46: 0.85 | CX46: 0.85 | CY46: 0.85 | CZ46: 0.85 | DA46: 0.85 | DB46: 0.85 | DC46: 0.85 | DD46: 0.85 | DE46: 0.85 | DF46: 0.85 | DG46: 0.85 | DH46: 0.85 | DI46: 0.85 | DJ46: 0.85 | DK46: 0.85 | DL46: 0.85 | DM46: 0.85 | DN46: 0.85 | DO46: 0.85 | DP46: 0.85 | DQ46: 0.85 | DR46: 0.85 | DS46: 0.85 | DT46: 0.85 | DU46: 0.85 | DV46: 0.85 | DW46: 0.85 | DX46: 0.85 | DY46: 0.85 | DZ46: 0.85 | EA46: 0.85 | EB46: 0.85 | EC46: 0.85 | ED46: 0.85 | EE46: 0.85 | EF46: 0.85 | EG46: 0.85 | EH46: 0.85 | EI46: 0.85 | EJ46: 0.85 | EK46: =$H$46 -> 0.85 | EL46: 0.85 | EM46: 0.85 | EN46: 0.85 | EO46: 0.85 | EP46: 0.85 | EQ46: 0.85 | ER46: 0.85 | ES46: 0.85 | ET46: 0.85 | EU46: 0.85 | EV46: 0.85 | EW46: 0.85 | EX46: 0.85 | EY46: 0.85 | EZ46: 0.85 | FA46: 0.85 | FB46: 0.85 | FC46: 0.85 | FD46: 0.85 | FE46: 0.85 | FF46: 0.85 | FG46: 0.85 | FH46: 0.85 | FI46: 0.85 | FJ46: 0.85 | FK46: 0.85 | FL46: 0.85 | FM46: 0.85 | FN46: 0.85 | FO46: 0.85 | FP46: 0.85 | FQ46: 0.85 | FR46: 0.85 | FS46: 0.85 | FT46: 0.85 | FU46: 0.85 | FV46: 0.85 | FW46: 0.85 | FX46: 0.85 | FY46: 0.85 | FZ46: 0.85 | GA46: 0.85 | GB46: 0.85 | GC46: 0.85 | GD46: 0.85 | GE46: 0.85 | GF46: 0.85 | GG46: 0.85 | GH46: 0.85 | GI46: 0.85 | GJ46: 0.85 | GK46: 0.85 | GL46: 0.85 | GM46: 0.85 | GN46: 0.85 | GO46: 0.85 | GP46: 0.85 | GQ46: 0.85 | GR46: 0.85 | GS46: 0.85 | GT46: 0.85 | GU46: 0.85 | GV46: 0.85 | GW46: =$H$46 -> 0.85 | GX46: 0.85 | GY46: 0.85 | GZ46: 0.85 | HA46: 0.85 | HB46: 0.85 | HC46: 0.85 | HD46: 0.85 | HE46: 0.85 | HF46: 0.85 | HG46: 0.85 | HH46: 0.85 | HI46: 0.85 | HJ46: 0.85 | HK46: 0.85 | HL46: 0.85 | HM46: 0.85 | HN46: 0.85 | HO46: 0.85 | HP46: 0.85 | HQ46: 0.85 | HR46: 0.85 | HS46: 0.85 | HT46: 0.85 | HU46: 0.85 | HV46: 0.85 | HW46: 0.85 | HX46: 0.85 | HY46: 0.85 | HZ46: 0.85 | IA46: 0.85 | IB46: 0.85 | IC46: 0.85 | ID46: 0.85 | IE46: 0.85 | IF46: 0.85 | IG46: 0.85 | IH46: 0.85 | II46: 0.85 | IJ46: 0.85 | IK46: 0.85 | IL46: 0.85 | IM46: 0.85 | IN46: 0.85 | IO46: 0.85 | IP46: 0.85 | IQ46: 0.85 | IR46: 0.85 | IS46: 0.85 | IT46: 0.85 | IU46: 0.85 | IV46: 0.85 | IW46: 0.85 | IX46: 0.85 | IY46: 0.85 | IZ46: 0.85 | JA46: 0.85 | JB46: 0.85 | JC46: 0.85 | JD46: 0.85 | JE46: 0.85
D47: Difference | L47: =L45-L46 -> 0 | M47: =M45-M46 -> 0 | N47: 0 | O47: 0 | P47: 0 | Q47: 0 | R47: 0 | S47: 0 | T47: 0 | U47: 0 | V47: 0 | W47: 0 | X47: 0 | Y47: 0 | Z47: 0 | AA47: 0 | AB47: 0 | AC47: 0 | AD47: 0 | AE47: 0 | AF47: 0 | AG47: 0 | AH47: 0 | AI47: 0 | AJ47: 0 | AK47: 0 | AL47: 0 | AM47: 0 | AN47: 0 | AO47: 0 | AP47: 0 | AQ47: 0 | AR47: 0 | AS47: 0 | AT47: 0 | AU47: 0 | AV47: 0 | AW47: 0 | AX47: 0 | AY47: 0 | AZ47: 0 | BA47: 0 | BB47: 0 | BC47: 0 | BD47: 0 | BE47: 0 | BF47: 0 | BG47: 0 | BH47: 0 | BI47: 0 | BJ47: 0 | BK47: 0 | BL47: 0 | BM47: 0 | BN47: 0 | BO47: 0 | BP47: 0 | BQ47: 0 | BR47: 0 | BS47: 0 | BT47: 0 | BU47: 0 | BV47: 0 | BW47: 0 | BX47: 0 | BY47: =BY45-BY46 -> 0 | BZ47: 0 | CA47: 0 | CB47: 0 | CC47: 0 | CD47: 0 | CE47: 0 | CF47: 0 | CG47: 0 | CH47: 0 | CI47: 0 | CJ47: 0 | CK47: 0 | CL47: 0 | CM47: 0 | CN47: 0 | CO47: 0 | CP47: 0 | CQ47: 0 | CR47: 0 | CS47: 0 | CT47: 0 | CU47: 0 | CV47: 0 | CW47: 0 | CX47: 0 | CY47: 0 | CZ47: 0 | DA47: 0 | DB47: 0 | DC47: 0 | DD47: 0 | DE47: 0 | DF47: 0 | DG47: 0 | DH47: 0 | DI47: 0 | DJ47: 0 | DK47: 0 | DL47: 0 | DM47: 0 | DN47: 0 | DO47: 0 | DP47: 0 | DQ47: 0 | DR47: 0 | DS47: 0 | DT47: 0 | DU47: 0 | DV47: 0 | DW47: 0 | DX47: 0 | DY47: 0 | DZ47: 0 | EA47: 0 | EB47: 0 | EC47: 0 | ED47: 0 | EE47: 0 | EF47: 0 | EG47: 0 | EH47: 0 | EI47: 0 | EJ47: 0 | EK47: =EK45-EK46 -> 0 | EL47: 0 | EM47: 0 | EN47: 0 | EO47: 0 | EP47: 0 | EQ47: 0 | ER47: 0 | ES47: 0 | ET47: 0 | EU47: 0 | EV47: 0 | EW47: 0 | EX47: 0 | EY47: 0 | EZ47: 0 | FA47: 0 | FB47: 0 | FC47: 0 | FD47: 0 | FE47: 0 | FF47: 0 | FG47: 0 | FH47: 0 | FI47: 0 | FJ47: 0 | FK47: 0 | FL47: 0 | FM47: 0 | FN47: 0 | FO47: 0 | FP47: 0 | FQ47: 0 | FR47: 0 | FS47: 0 | FT47: 0 | FU47: 0 | FV47: 0 | FW47: 0 | FX47: 0 | FY47: 0 | FZ47: 0 | GA47: 0 | GB47: 0 | GC47: 0 | GD47: 0 | GE47: 0 | GF47: 0 | GG47: 0 | GH47: 0 | GI47: 0 | GJ47: 0 | GK47: 0 | GL47: 0 | GM47: 0 | GN47: 0 | GO47: 0 | GP47: 0 | GQ47: 0 | GR47: 0 | GS47: 0 | GT47: 0 | GU47: 0 | GV47: 0 | GW47: =GW45-GW46 -> 0 | GX47: 0 | GY47: 0 | GZ47: 0 | HA47: 0 | HB47: 0 | HC47: 0 | HD47: 0 | HE47: 0 | HF47: 0 | HG47: 0 | HH47: 0 | HI47: 0 | HJ47: 0 | HK47: 0 | HL47: 0 | HM47: 0 | HN47: 0 | HO47: 0 | HP47: 0 | HQ47: 0 | HR47: 0 | HS47: 0 | HT47: 0 | HU47: 0 | HV47: 0 | HW47: 0 | HX47: 0 | HY47: 0 | HZ47: 0 | IA47: 0 | IB47: 0 | IC47: 0 | ID47: 0 | IE47: 0 | IF47: 0 | IG47: 0 | IH47: 0 | II47: 0 | IJ47: 0 | IK47: 0 | IL47: 0 | IM47: 0 | IN47: 0 | IO47: 0 | IP47: 0 | IQ47: 0 | IR47: 0 | IS47: 0 | IT47: 0 | IU47: 0 | IV47: 0 | IW47: 0 | IX47: 0 | IY47: 0 | IZ47: 0 | JA47: 0 | JB47: 0 | JC47: 0 | JD47: 0 | JE47: 0
